Workbook

Sheet Welcome
F3: Estimation of benefits from moving an individual from unemployment into sustainable employment
E9: Background This interactive tool has been commissioned by Public Health England (PHE) and developed by Optimity Advisors to support local decision-makers' understanding of the potential benefits of supporting an individual to move from unemployment to employment. The tool provides high-level benefits, in terms of both health gains (to the individual(s)) and financial gains (to the individual(s), public sector and wider society) from reemployment, expressing the benefits that can result beyond individual remuneration and productivity. The tool assesses the benefits that come from moving from unemployment to employment, primarily from the perspective of the individual and the public sector. The health benefits do not include the additional health benefits that may be accrued from participating in an intervention that improves health itself, which may facilitate a transition from unemployment or economic inactivity to employment. Benefits of Employment - Evidence This tool has been developed with reference to the best available evidence. A Rapid Evidence Review (RER) was conducted to find evidence concerning the outcomes attributed to the transition from unemployment to employment. All evidence from the review showed that recent literature has focused on, and found significant results in, the impact of employment on mental health. Therefore, this interactive tool focuses on where the evidence exists and presents results on the impact of reemployment on mental health. The tool facilitates estimates of the benefits of transitioning from unemployment to employment by using the evidence found to calculate the QALY gains to the individual(s) and to calculate cost savings made, from a proportion of people crossing a pre-defined threshold between ‘poor’ mental health and ‘good’ mental health. This information is then combined with figures on the financial benefits of employment, from individual, public sector and societal perspectives. Note that the results of this analysis apply only to those who are able to achieve sustainable employment, either at baseline or with support. The analysis does not consider those unable to work due to the severity of their health problem. Using the tool Further instructions on how to use the tool to estimate the benefits of supporting an individual(s) move from unemployment to employment are provided on each page of the tool. The information required by the user of the tool is, at a minimum, the proportion of people expected to return to work from the relevant population within your chosen area of interest (although this can be run as a hypothetical scenario). Default values have been provided for all other inputs, but these values can be overridden with more up-to-date and/or local figures, or to create alternate scenarios. Please also refer to the worked example in this section for further guidance on how to use these data in this tool. More information on the tool is provided in the accompanying report.

Sheet 1a) Model guide
F10: How to use the tool
F12: Formatting
F14: Dark grey background | H14: Indicates input cells containing default or suggested inputs. This cell is locked and cannot be edited by the user
F16: Gold background | H16: Indicates input cells for custom values. These may be changed should more relevant and/or up-to-date evidence become available.
F18: Plain background | H18: Indicates a formula cell for model calculations, containing 'live' values. These are dependent upon other cells, and should not be changed.
F21: Navigation around the model:
F23: The rectangular buttons along the left allow the user to toggle between each section of the tool (Welcome, Information, Inputs, Results and Charts).
F24: Within each section, the chevron buttons along the top can be used to switch between pages.
F29: Sheets in this tool: | H29: Key inputs:
F31: Population | H31: Claimant count, proportion returning to work
F32: Mental Health Conditions | H32: % of Working Age Population with Common Mental Health Disorders
F33: Return to Work | H33: Proportion returning to work, length of benefit
F34: Other inputs | H34: Value of QALY, discount rate
F35: Results | H35: Displays the health impact, in terms of QALYs and cost-saving of reemployment

Sheet 1b) Model steps

Sheet 1c) Example
F10: This model has been developed to act as an aid to decision-makers, who are considering implementing interventions in order to help and support people move from unemployment to employment. However, the model calculates the consequences of a person or person(s) returning to employment, without consideration of the specific details of a potential intervention. The model does allow the option for the user to provide a cost of an intervention for a cohort of people who have been selected for a specific programme/intervention. If a programme cost is included in the user input sheet, the model will calculate Return on Investment (ROI) metrics alongside the consequences of employment, namely; the Incremental Cost-Effectiveness Ratio (ICER), the Net Benefit, and the Benefit-Cost Ratio. As an example of a scenario run through the model, a decision maker in Bedford may choose to implement an intervention targeted at the population of interest; the JSA, ESA WRAG & ESA SG population within Bedford which amounts to 6,287 people. This decision maker must then select what proportion of this population of interest successfully return to work. In this example, the user selects 5% of their population of interest to return to work; 314 people, with all other default figures unchanged. The length of this benefit (i.e. the average duration of additional employment caused by this return to work) must also be specified. In this example, the user selects 5 years. Results below are shown only for the first year, however. Using results derived from Schuring (2010), the per person QALY gain is 0.0675 QALYs (equivalent to £4,050 per person in value if the value of a QALY is £60,000), and 28 people (or 8.8%) in the selected return to work cohort who had a CMD and improved due to employment, leading to a £85 financial gain to the health services per person returning to work. Based on the person returning to employment, there is, per person returning to work, a £3,530 financial gain to the individual, a £540 financial gain to the Local Authority and £11,660 savings to National Government. The overall gain to society (excluding transfers between individual and government) and based on a local economy multiplier of 1.6 and 1.66 health-specific multiplier, is £25,250 per person returning to work. If the user inputs a one-off fixed cost of intervention £2,500,000 (£7953 per person) and ongoing annual cost of £100,000 (£318 per person) to achieve this change, the ROI metrics would show, from the public sector perspective a 'dominant' ICER (i.e. the intervention saves money and delivers a positive QALY gain), a total net benefit of £1.3 million and a Benefit-Cost Ratio of £1.49 per £1 spent.

Sheet 1d) Disclaimer
F10: Disclaimer Public Health England (PHE) has provided this tool to aid decision-making and cannot be held liable for any investment or other decisions that are made using information obtained from this tool. The best available evidence has been used in this tool and assumptions have been clearly stated. Acknowledgements We would like to thank every member of the steering group who guided us in the evidence collection and development of the final deliverables (tool and report): Dame Carol Black (special advisor to PHE), Brian Ferguson (PHE), Shaun Donaghy (PHE), Annalisa Belloni (PHE), Joy Thompson (DWP), Anne Cunningham (Blackburn with Darwen Council), Francis Markus (Greater Manchester Combined Authority), Manuel Ramos (PHE), Justin Varney (PHE), Gina Radford (DH), Chris Anderson (DH/DWP), Matt Hennessey (PHE), Richard Heron (Faculty of Occupational Medicine), Emily Hough (NHSE), Paul Ogden (LGA), Sally Burlington (LGA) & Laura Adelman (DWP). Many thanks to all the stakeholders from PHE, including Nicola Pearce-Smith from PHE, who conducted the literature that contributed to the project delivery. Finally, many thanks to Sally Wilson for her advice and contribution in the evidence research and final tool and report. Citation Any analysis based on this tool should acknowledge the use of the tool as follows: Public Health England. Estimation of benefits from moving an individual from unemployment into sustainable employment. 2017 Published... PHE publications gateway number: ...

Sheet Population
F9: Population data:
F10: Please select a geographical area:
F11: Area type | G11: =IF(region="","Select area type","") -> Select area type | I11: Dropdown
F12: Chosen area | G12: =IF($H$12="","Select chosen area","") -> Select chosen area | I12: Dropdown
F14: Job Seekers Allowance (JSA) & Employment Support Allowance Work Related Group (ESA WRAG) claimant information:
F15: By default, the population of interest represents the proportion of the working age population claiming Jobseeker's Allowance (JSA) and both the Employment Support Allowance Work-Related Activity Group (ESA WRAG) and the Employment Support Allowance Support Group (ESA SG) in your above selected population area. Please note that the tool does not currently include Universal Credit (UC). However, the population numbers used below as 'JSA' are from the ONS Claimant Count CC01, which includes those claiming JSA plus UC recipients who are required to seek work. For the purposes of the tool these claimants are modelled as if they are claiming JSA. ESA figures are from NOMIS, and do not include UC recipients. Note default figures can be overridden by entering values in the custom boxes below.
G16: Default | H16: Custom | I16: Live
F17: Working age population (16 - 64) | G17: =IF($H$12="","",IFERROR(VLOOKUP($H$12,LA_Population,5,FALSE),VLOOKUP($H$12,Unitary_population,2,FALSE))) ->  | I17: =IF(H17="",G17,H17) -> 
F18: Proportion claiming JSA | G18: =IFERROR((IF(region="National",VLOOKUP($H$12,JSA_ESAWRAG_national,2,FALSE),IF(region="Regional",VLOOKUP($H$12,JSA_ESAWRAG_regional,2,FALSE),IF(region="County & Unitary Authority",VLOOKUP($H$12,JSA_ESAWRAG_county,2,FALSE),IF(region="District & Unitary authority",VLOOKUP($H$12,JSA_ESAWRAG_LA,2,FALSE),IF(region="ccg",HLOOKUP($H$12,CCG_Pop,158,FALSE),IF(region="STP",VLOOKUP($H$12,STP_pop,3,FALSE),IF(region="Combined Authority",VLOOKUP(H12,JSA_ESA_CA,2,FALSE)))))))))/$G$17,"") ->  | I18: =IF(H18="",G18,H18) -> 
F19: Number claiming JSA | I19: =IFERROR(I18*I17,"") -> 
F20: Proportion claiming ESA WRAG | G20: =IFERROR(IF(region="National",VLOOKUP($H$12,JSA_ESAWRAG_national,3,FALSE),IF(region="Regional",VLOOKUP($H$12,JSA_ESAWRAG_regional,3,FALSE),IF(region="County & Unitary Authority",VLOOKUP($H$12,JSA_ESAWRAG_county,3,FALSE),IF(region="District & Unitary Authority",VLOOKUP($H$12,JSA_ESAWRAG_LA,3,FALSE),IF(region="ccg",HLOOKUP($H$12,CCG_Pop,159,FALSE),IF(region="STP",VLOOKUP($H$12,STP_pop,4,FALSE),IF(region="Combined Authority",VLOOKUP(H12,JSA_ESA_CA,3,FALSE))))))))/$G$17,"") ->  | I20: =IF(H20="",G20,H20) ->  | J20: Note that ESA WRAG claimants are not expected to be able to return to work immediately, and ESA SG claimants are not expected to be working towards a return to work. Therefore, only include these populations if it is appropriate for the scenario being modelled.
F21: Number claiming ESA WRAG | I21: =IFERROR(I20*I17,"") -> 
F22: Proportion claiming ESA SG | G22: =IFERROR(IF(region="National",VLOOKUP($H$12,JSA_ESAWRAG_national,4,FALSE),IF(region="Regional",VLOOKUP($H$12,JSA_ESAWRAG_regional,4,FALSE),IF(region="County & Unitary Authority",VLOOKUP($H$12,JSA_ESAWRAG_county,4,FALSE),IF(region="District & Unitary Authority",VLOOKUP($H$12,JSA_ESAWRAG_LA,4,FALSE),IF(region="ccg",HLOOKUP($H$12,CCG_Pop,160,FALSE),IF(region="STP",VLOOKUP($H$12,STP_pop,5,FALSE),IF(region="Combined Authority",VLOOKUP(H12,JSA_ESA_CA,4,FALSE))))))))/$G$17,"") ->  | I22: =IF(H22="",G22,H22) -> 
F23: Number claiming ESA SG | I23: =IFERROR(I22*I17,"") -> 
F24: Total proportion claiming JSA or ESA | I24: =IFERROR(SUM(I21,I19,I23)/$I$17,"") -> 
F25: Total number claiming JSA or ESA | I25: =IF(SUM(I21,I19,I23)=0,"",SUM(I21,I19,I23)) -> 
F26: *N.B. The default proportions are lower than the generally reported unemployment rate, as the working age population includes those who are economically inactive, which unemployment rates do not include.
F28: Proportion returning to sustainable employment:
F29: Please specify the proportion of your selected claimant population that you assume to return to work. You must input a value - no default value is provided. (If specifying an intervention, this relates to those who return to work due to the intervention who otherwise would have remained unemployed.)
H30: Custom | I30: Live
F31: Percentage returning to work | I31: =IF($H$31="","",$H$31) -> 
F32: Number returning to work | I32: =IF(SUM(I19,I21,I23)*$H$31=0,"",SUM(I19,I21,I23)*$H$31) -> 
F34: The definition of return to work, and subsequent estimates of the financial benefits of a return to work, are taken from a DWP economic model that draws evidence from the Destinations Survey 2011, a one-off survey of 9,000 customers who had left either Jobseekers Allowance, Income Support Allowance and Employment Support Allowance. Data on wages are based on the average earnings of those who ended their claim to enter any type of employment (e.g. fixed-term contract, permanent or open-ended contract, full-time or part-time employment), or other type of benefits.

Sheet Mental Health Conditions
F8: =IF(F10="","Please return to 'Population' sheet and fill in necessary information requirements","") -> Please return to 'Population' sheet and fill in necessary information requirements
F9: Working age population of the selected area (from 'Population' sheet)
F10: =IF(Population!$H$12=0,"",Population!$H$12) ->  | I10: =Population!$I$17 -> 
F12: Common Mental Health Disorders (CMDs) Prevalence:
F13: The total no. of people with Common Mental Health Disorders (CMDs) is shown here. This can be overridden by adjusting the default percentage figure.
G14: Default | H14: Custom | I14: Live
F15: % of working age population with CMDs | G15: =IFERROR(VLOOKUP(F10,PopulationRange,20,FALSE),"") ->  | I15: =IF(H15="",G15,H15) -> 
F16: Number of people with CMDs | I16: =IFERROR(I15*I10,"") -> 
F18: Note that the default figure is based on the general population, from the Adult Psychiatric Morbidity Survey 2014. It is assumed to apply to the population in this model (JSA & ESA claimants) in the absence of other data.
F20: Breakdown of common mental health disorders:
F21: Default figures on the breakdown of CMDs is provided below. Note that this does not change when the default value is overridden above, and that as a person can have more than one condition, it does not add up to the overall percentage. Other key issues, in particular those around comorbidity and physical health problems have not been included in the model due to evidence and data limitations, though we acknowledge the importance of these factors with regards to the potential difficulties of returning to work.
G22: Default
F23: with Depression | G23: =IFERROR(VLOOKUP(F10,PopulationRange,21,FALSE),"") ->  | H23: =IFERROR(CONCATENATE(" or ",ROUND((G23*$I$10),0)," people."),"") -> 
F24: with Anxiety | G24: =IFERROR(VLOOKUP(F10,PopulationRange,22,FALSE),"") ->  | H24: =IFERROR(CONCATENATE(" or ",ROUND((G24*$I$10),0)," people."),"") -> 
F25: with Phobias | G25: =IFERROR(VLOOKUP(F10,PopulationRange,23,FALSE),"") -> 
F26: with Obsessive Compulsive Disorders | G26: =IFERROR(VLOOKUP(F10,PopulationRange,24,FALSE),"") -> 
F27: with Panic Disorder | G27: =IFERROR(VLOOKUP(F10,PopulationRange,25,FALSE),"") -> 
F28: with CMD - Not Otherwise Specified | G28: =IFERROR(VLOOKUP(F10,PopulationRange,26,FALSE),"") -> 
F30: Unit cost of common mental health disorders:
F31: The average unit cost of CMDs is shown here, calculated from the unit costs of depression and anxiety shown below, and rounded to the nearest ten. (N.B. the cost of anxiety is applied to all conditions except depression and CMD-Not Otherwise Specified, which was previously known as mixed depression and anxiety.)
G32: Default | H32: Custom | I32: Live
F33: Annual weighted unit cost of CMDs | G33: =IFERROR(((G23+ G28)/I15)* G38 + (I15-G23-G28)/I15*G39,"") ->  | I33: =IF(H33="",G33,H33) -> 
F34: Please note that the annual weighted unit cost of CMDs is based on calculations made in the King's Fund Report (2008) which are based on the whole population, not solely the working age population and have been adjusted to 2016/2017 prices.
F37: Default figures for the cost of depression and anxiety are provided below. These do not change when the overall figure is overridden above. Note that these figures take into account that only a proportion of people with these conditions will access healthcare services.
F38: Annual unit cost of depression (in 2016/17 values) | G38: ='CMDs 2016-2017 prices'!L77 -> 1574.941684
F39: Annual unit cost of anxiety (in 2016/17 values) | G39: ='CMDs 2016-2017 prices'!L78 -> 631.5812195

Sheet Return to Work
F8: =IF($G$11="","Please return to 'Population' and/or 'Mental Health Conditions' sheets and fill in necessary information requirements","") -> Please return to 'Population' and/or 'Mental Health Conditions' sheets and fill in necessary information requirements
F9: Return to work information
F10: Information from 'Population' and 'Mental Health Conditions' sheets
F11: Proportion returning to work | G11: =Population!I31 -> 
F12: Number returning to work | G12: =Population!I32 -> 
F14: Number of those returning to work who have CMDs | G14: =IFERROR('Mental Health Conditions'!I15*G12,"") -> 
F15: Please note that the above number has been calculated by using the prevalence ratio of CMDs of the working age population. This is an underestimation since the prevalence ratio of CMDs is likely to be higher among JSA, ESA WRAG & ESA SG claimants.
F17: Enter the duration of the expected benefit. This means the amount of time, in years, the average individual spends in work when they would otherwise have been unemployed/economically inactive. An indicative default value of 1 year has been input into the custom value box below but which the user can override by entering a value in the custom box.
G18: Custom
F19: Length of benefit (years) | G19: 1 | H19: =IF(G19>50,"Please enter a value less than or equal to 50 years","") -> 
F22: Intervention cost information
F23: Optional: Please enter the total cost required to achieve the return to work
G24: Custom
G25: Total | H25: Per person returning to work
F26: One-off fixed cost of intervention (£'s) | H26: =IFERROR(G26/G12,"") -> 
F27: Ongoing annual cost (£'s) | H27: =IFERROR(G27/G12,"") -> 

Sheet Other Inputs
F8: Value of a QALY and discount rates
F9: The default monetary value of a QALY gain is set at £60,000. This represents the willingness to pay per QALY value gained, due to an intervention, and the default value is that used by the Department of Health. This default value can be overridden by entering a value in the custom field.
G10: Default | H10: Custom | I10: Live
F11: Value of a QALY | G11: =Dropdowns_other!$B$11 -> 60000 | I11: =IF(H11="",G11,H11) -> 60000
F13: The default discount rates, used to convert all costs and benefits to 'present values', are the NICE recommended rates. There are two discount rates used; one specifically for health impacts, and the other for financial impacts. The default values can be overridden by entering a value in each of the custom fields. The discount rate of 3.5% for financial costs and benefits, and 1.5% for health benefits is as recommended by PHE.
G14: Default | H14: Custom | I14: Live
F15: Discount rate (financial costs & benefits) | G15: =Dropdowns_other!$B$12 -> 0.035 | I15: =IF(H15="",G15,H15) -> 0.035
G17: Default | H17: Custom | I17: Live
F18: Discount rate (health benefits) | G18: =Dropdowns_other!$B$13 -> 0.015 | I18: =IF(H18="",G18,H18) -> 0.015 | J18: =$I$18 -> 0.015

Sheet Direct Health Benefits
F8: Direct Health Benefits | K8: The SF-36
K9: "The SF-36 is a 36 item questionnaire which measures Quality of Life (QoL) across eight domains, which are both physically and emotionally based. The eight domains that the SF36 measures are as follows: physical functioning; role limitations due to physical health; role limitations due to emotional problems; energy/fatigue; emotional well-being; social functioning; pain; general health. A single item is also included that identifies perceived change in health, making the SF-36 a useful indicator for change in QoL over time and treatment. ... The SF36 has been widely validated for numerous professions and patient groups and can be administered by clinicians or by the patient at home." - 'SF-36'. Framework for Measuring Impact. Accessed from http://www.measuringimpact.org/s4-sf-36 The SF-36 can be converted into two summary scales; the Mental Component Summary (MSC) and the Physical Component Summary. Each summary scale incorporates all 8 dimensions of the SF-36. We use The Mental Component Summary (MCS) score to robustly estimate the mental health changes induced by reemployment.
F10: QALY gains and direct health care cost savings have been calculated using data from Schuring, 2010.
F11: Changes in health state are recorded according to the SF-36 scale (more info in the box to the right). The health benefits shown here do not include the additional health benefits that may be accrued from participating in an intervention, in particular an intervention aimed at improving one's mental health to facilitate transition from unemployment or economic inactivity to employment.
F13: Calculations using SF-36 results from Schuring (2010)
F14: Schuring (2010)* reports on all 8 dimensions of the SF-36, providing a relatively holistic view of the overall quality of life change resulting from the move to sustainable employment. In this analysis, two groups of respondents are compared; those who were still unemployed at follow-up and those who were reemployed at follow-up. However, no significant change in SF-36 scores was seen in those who remained unemployed
F15: *Schuring, M., Mackenbach, J., Voorham, T., & Burdorf, A. (2010). The effect of re-employment on perceived health. Journal of Epidemiology & Community Health, jech-2009.
F17: Improvement in SF-36 scores (/100)
F18: Physical functioning | G18: ='Cost of CMDs_MCS_SF36'!D19 -> 9.2
F19: Role physical | G19: ='Cost of CMDs_MCS_SF36'!D20 -> 20
F20: Bodily pain | G20: ='Cost of CMDs_MCS_SF36'!D21 -> 11.3
F21: General health | G21: ='Cost of CMDs_MCS_SF36'!D22 -> 7
F22: Vitality | G22: ='Cost of CMDs_MCS_SF36'!D23 -> 7.8
F23: Social functioning | G23: ='Cost of CMDs_MCS_SF36'!D24 -> 14.2
F24: Role emotional | G24: ='Cost of CMDs_MCS_SF36'!D25 -> 22.7
F25: Mental health | G25: ='Cost of CMDs_MCS_SF36'!D26 -> 11
F27: QALY gains - UNROUNDED | G27: 2016/2017 | H27: ="All years"& " (" & 'Return to Work'!G19 & " years)" -> All years (1 years)
F28: Per person returning to work | G28: ='QALY calculations_SF36'!D27 -> 0.0675159 | H28: =G28*Discounting!$D$4 -> 0.0675159
F29: Value, per person, of QALY gains | G29: =G28*'Other Inputs'!$I$11 -> 4050.954 | H29: =G29*Discounting!$D$4 -> 4050.954
F31: Total | G31: =IFERROR(G28*Population!$I$32,"") ->  | H31: =IFERROR(G31*Discounting!$D$4,"") -> 
F32: Total value of QALY gains | G32: =IFERROR(G31*'Other Inputs'!$I$11,"") ->  | H32: =IFERROR(G32*Discounting!$D$4,"") -> 
F34: QALY gains | G34: 2016/2017 | H34: =H27 -> All years (1 years)
F35: Per person returning to work | G35: =IFERROR(G28,"") -> 0.0675159 | H35: =IFERROR(H28,"") -> 0.0675159
F36: Value, per person, of QALY gains (nearest hundred) | G36: =IFERROR(MROUND(G29,100),"") -> 4100 | H36: =IFERROR(MROUND(H29,100),"") -> 4100
F38: Total | G38: =IFERROR(G31,"") ->  | H38: =IFERROR(H31,"") -> 
F39: Total value of QALY gains (nearest hundred) | G39: =IFERROR(MROUND(G32,100),"") ->  | H39: =IFERROR(MROUND(H32,100),"") -> 
F42: Reduction in nos. of people suffering from common mental health conditions
F43: Baseline proportion of those returning to work who have CMD(s) | G43: ='Mental Health Conditions'!$I$15 -> 
F44: Proportion of people whose mental health status is improved by returning to work | G44: =IFERROR($G$46/'Financial Benefits'!$G$13,"") ->  | H44: of the overall population returning to work, equivalent to
G45: =IFERROR($G$44/'Mental Health Conditions'!I15,"") ->  | H45: of those with CMD(s) at baseline
F46: Number of people who no longer have CMD(s) | G46: =IFERROR('Cost of CMDs_MCS_SF36'!$B$80*Population!$I$32*'Mental Health Conditions'!$I$15,"") -> 
G48: 2016/2017 | I48: ="All years"& " (" & 'Return to Work'!G19 & " years)" -> All years (1 years)
F49: Benefits to the health service - UNROUNDED | G49: Per person improving | H49: Total | I49: Per person improving | J49: Total
F50: Cost savings from a reduction in number of people who have a common mental health disorder | G50: =IFERROR('Mental Health Conditions'!$I$33,"") ->  | H50: =IFERROR(G50*'Direct Health Benefits'!G46,"") ->  | I50: =IFERROR(G50*Discounting!$D$4,"") ->  | J50: =IFERROR(H50*Discounting!$D$4,"") -> 
G52: 2016/2017 | I52: =I48 -> All years (1 years)
F53: Benefits to the health service | G53: Per person improving | H53: Total | I53: Per person improving | J53: Total
F54: Cost savings from a reduction in number of people who have a common mental health disorder (nearest hundred) | G54: =IFERROR(MROUND(G50,100),"") ->  | H54: =IFERROR(MROUND(H50,100),"") ->  | I54: =IFERROR(MROUND(I50,100),"") ->  | J54: =IFERROR(MROUND(J50,100),"") -> 
G56: Please note that cost savings to the health service, as calculated in the King's Fund Report (2008), are based on the whole population, not solely the working age population.
G57: (Also note that subsequent results are based on per person returning to work, as opposed to the value above which is per person crossing the threshold from a CMD)

Sheet Financial Benefits
H1: 1 year | AV1: Reduction in Housing Benefit payments_JSA
H2: All years (undiscounted) | AV2: Reduction in Housing Benefit payments_ESAWR
H3: All years (discounted) | AV3: Reduction in Housing Benefit payments_ESASG
J4: Benefits migration
J5: Please note that the tool currently only calculates financial results for JSA, ESA WRAG and ESA Support claimants. For individuals receiving Universal Credit, financial benefits may differ. The government has begun to close new claimants to this system with those remaining gradually migrating to Universal Credit. The deadline for the majority of claimants to have migrated to UC is 2021 - more information can be found here: https://www.gov.uk/universal-credit/overview
F7: =IF($G$9="","Please return to 'Population' and/or 'Mental Health Conditions' and/or 'Return to Work' sheets and fill in necessary information requirements","") -> Please return to 'Population' and/or 'Mental Health Conditions' and/or 'Return to Work' sheets and fill in necessary information requirements
F8: Information from 'Population' and 'Mental Health Conditions' sheets
F9: Selected Area: | G9: =IF(Population!$H$12=0,"",Population!$H$12) -> 
F10: People claiming JSA | G10: =Population!$I$19 -> 
F11: People claiming ESA WRAG | G11: =Population!$I$21 -> 
F12: People claiming ESA SG | G12: =Population!$I$23 -> 
F13: No. of people returning to work | G13: ='Return to Work'!$G$12 -> 
F16: Please select how you want the financial benefits to be displayed
F17: Display financial benefits for: | G17: All years (1 years) | H17: =IF($G$17="","please select time period to display financial results","") -> 
F18: Please note that in the "All years" calculation, the benefits are calculated over the chosen length of the expected benefit from the 'Return to Work' sheet, and that the 2016/2017 tax year has been used for baseline calculations
F21: The values below can be adjusted to reflect area specific values. In case these are not known, the default values will be considered.
G22: Default | H22: Custom | I22: Live
F23: =CONCATENATE("Reduction in Council Tax Benefit payments per person for ",$G$17) -> Reduction in Council Tax Benefit payments per person for All years (1 years) | G23: =IFERROR(($G$10/SUM($G$10,$G$11))*INDEX(Clean_Financial_BG!$D:$E,MATCH($F$10&","&F53,Clean_Financial_BG!$B:$B,0),MATCH($G$17&","&$G$31,Clean_Financial_BG!$D$1:$E$1,0))+($G$11/SUM($G$10,$G$11))*INDEX(Clean_Financial_BG!$D:$E,MATCH($F$11&","&F53,Clean_Financial_BG!$B:$B,0),MATCH($G$17&","&$G$31,Clean_Financial_BG!$D$1:$E$1,0)),"") ->  | I23: =IF(H23="",G23,H23) -> 
F24: =CONCATENATE("Reduction in Free School Meals payments for ",$G$17) -> Reduction in Free School Meals payments for All years (1 years) | G24: =IFERROR(($G$10/SUM($G$10,$G$11))*INDEX(Clean_Financial_BG!$D:$E,MATCH($F$10&","&F54,Clean_Financial_BG!$B:$B,0),MATCH($G$17&","&$G$31,Clean_Financial_BG!$D$1:$E$1,0))+($G$11/SUM($G$10,$G$11))*INDEX(Clean_Financial_BG!$D:$E,MATCH($F$11&","&F54,Clean_Financial_BG!$B:$B,0),MATCH($G$17&","&$G$31,Clean_Financial_BG!$D$1:$E$1,0)),"") ->  | I24: =IF(H24="",G24,H24) -> 
F26: From direct health benefits sheet
F27: No. of people no longer/avoiding experiencing CMDs | G27: =IFERROR('Direct Health Benefits'!G46,"") -> 
F30: Please note that these calculations are unable to take into account familial permutations (e.g. number of dependents and / or living with a spouse) that would likely affect benefit receipt if a member of a household were to return to work.
F33: ="Financial Benefits for " &G17 -> Financial Benefits for All years (1 years)
F35: Total benefits to the Exchequer | G35: =IFERROR(IF(SUM(G49,G57,G64)=0,"",SUM(G49,G57,G64)),"") ->  | H35: =IF(SUM(H49,H57,H64)=0,"",SUM(H49,H57,H64)) -> 
F37: Below is a breakdown of the benefits to the Exchequer by relevant governmental agency, the benefits to participants and the wider societal benefits of moving a person or persons from unemployment to employment. All figures £200 or greater are rounded to the nearest £100 | I37: All figures in orange are unrounded
F39: Benefits to National Government (£)
G40: Benefits per person moving to employment | H40: Total Benefits
F41: Increase in income tax | G41: =IFERROR(($G$10/SUM($G$10:$G$12))*INDEX(Clean_Financial_BG!$D:$E,MATCH($F$10&","&F41,Clean_Financial_BG!$B:$B,0),MATCH($G$17&","&$G$31,Clean_Financial_BG!$D$1:$E$1,0))+($G$11/SUM($G$10:$G$12))*INDEX(Clean_Financial_BG!$D:$E,MATCH($F$11&","&F41,Clean_Financial_BG!$B:$B,0),MATCH($G$17&","&$G$31,Clean_Financial_BG!$D$1:$E$1,0))+($G$12/SUM($G$10:$G$12))*INDEX(Clean_Financial_BG!$D:$E,MATCH($F$12&","&F41,Clean_Financial_BG!$B:$B,0),MATCH($G$17&","&$G$31,Clean_Financial_BG!$D$1:$E$1,0)),"") ->  | H41: =IFERROR(G41*'Return to Work'!$G$12,"") -> 
F42: Increase in employees' NIC | G42: =IFERROR(($G$10/SUM($G$10:$G$12))*INDEX(Clean_Financial_BG!$D:$E,MATCH($F$10&","&F42,Clean_Financial_BG!$B:$B,0),MATCH($G$17&","&$G$31,Clean_Financial_BG!$D$1:$E$1,0))+($G$11/SUM($G$10:$G$12))*INDEX(Clean_Financial_BG!$D:$E,MATCH($F$11&","&F42,Clean_Financial_BG!$B:$B,0),MATCH($G$17&","&$G$31,Clean_Financial_BG!$D$1:$E$1,0))+($G$12/SUM($G$10:$G$12))*INDEX(Clean_Financial_BG!$D:$E,MATCH($F$12&","&F42,Clean_Financial_BG!$B:$B,0),MATCH($G$17&","&$G$31,Clean_Financial_BG!$D$1:$E$1,0)),"") ->  | H42: =IFERROR(G42*'Return to Work'!$G$12,"") -> 
F43: Increase in employers' NIC | G43: =IFERROR(($G$10/SUM($G$10:$G$12))*INDEX(Clean_Financial_BG!$D:$E,MATCH($F$10&","&F43,Clean_Financial_BG!$B:$B,0),MATCH($G$17&","&$G$31,Clean_Financial_BG!$D$1:$E$1,0))+($G$11/SUM($G$10:$G$12))*INDEX(Clean_Financial_BG!$D:$E,MATCH($F$11&","&F43,Clean_Financial_BG!$B:$B,0),MATCH($G$17&","&$G$31,Clean_Financial_BG!$D$1:$E$1,0))+($G$12/SUM($G$10:$G$12))*INDEX(Clean_Financial_BG!$D:$E,MATCH($F$12&","&F43,Clean_Financial_BG!$B:$B,0),MATCH($G$17&","&$G$31,Clean_Financial_BG!$D$1:$E$1,0)),"") ->  | H43: =IFERROR(G43*'Return to Work'!$G$12,"") -> 
F44: Increase in indirect tax | G44: =IFERROR(($G$10/SUM($G$10:$G$12))*INDEX(Clean_Financial_BG!$D:$E,MATCH($F$10&","&F44,Clean_Financial_BG!$B:$B,0),MATCH($G$17&","&$G$31,Clean_Financial_BG!$D$1:$E$1,0))+($G$11/SUM($G$10:$G$12))*INDEX(Clean_Financial_BG!$D:$E,MATCH($F$11&","&F44,Clean_Financial_BG!$B:$B,0),MATCH($G$17&","&$G$31,Clean_Financial_BG!$D$1:$E$1,0))+($G$12/SUM($G$10:$G$12))*INDEX(Clean_Financial_BG!$D:$E,MATCH($F$12&","&F44,Clean_Financial_BG!$B:$B,0),MATCH($G$17&","&$G$31,Clean_Financial_BG!$D$1:$E$1,0)),"") ->  | H44: =IFERROR(G44*'Return to Work'!$G$12,"") -> 
F45: Reduction in JSA/ESA benefit | G45: =IFERROR(($G$10/SUM($G$10:$G$12))*INDEX(Clean_Financial_BG!$D:$E,MATCH($F$10&","&F45,Clean_Financial_BG!$B:$B,0),MATCH($G$17&","&$G$31,Clean_Financial_BG!$D$1:$E$1,0))+($G$11/SUM($G$10:$G$12))*INDEX(Clean_Financial_BG!$D:$E,MATCH($F$11&","&F45,Clean_Financial_BG!$B:$B,0),MATCH($G$17&","&$G$31,Clean_Financial_BG!$D$1:$E$1,0))+($G$12/SUM($G$10:$G$12))*INDEX(Clean_Financial_BG!$D:$E,MATCH($F$12&","&F45,Clean_Financial_BG!$B:$B,0),MATCH($G$17&","&$G$31,Clean_Financial_BG!$D$1:$E$1,0)),"") ->  | H45: =IFERROR(G45*'Return to Work'!$G$12,"") -> 
F46: Reduction in Housing Benefit payments | G46: =IFERROR(($G$10/SUM($G$10:$G$12))*INDEX(Clean_Financial_BG!$D:$E,MATCH($F$10&","&F46,Clean_Financial_BG!$B:$B,0),MATCH($G$17&","&$G$31,Clean_Financial_BG!$D$1:$E$1,0))+($G$11/SUM($G$10:$G$12))*INDEX(Clean_Financial_BG!$D:$E,MATCH($F$11&","&F46,Clean_Financial_BG!$B:$B,0),MATCH($G$17&","&$G$31,Clean_Financial_BG!$D$1:$E$1,0))+($G$12/SUM($G$10:$G$12))*INDEX(Clean_Financial_BG!$D:$E,MATCH($F$12&","&F46,Clean_Financial_BG!$B:$B,0),MATCH($G$17&","&$G$31,Clean_Financial_BG!$D$1:$E$1,0)),"") ->  | H46: =IFERROR(G46*'Return to Work'!$G$12,"") -> 
F47: Reduction in operational costs | G47: =IFERROR(($G$10/SUM($G$10:$G$12))*INDEX(Clean_Financial_BG!$D:$E,MATCH($F$10&","&F47,Clean_Financial_BG!$B:$B,0),MATCH($G$17&","&$G$31,Clean_Financial_BG!$D$1:$E$1,0))+($G$11/SUM($G$10:$G$12))*INDEX(Clean_Financial_BG!$D:$E,MATCH($F$11&","&F47,Clean_Financial_BG!$B:$B,0),MATCH($G$17&","&$G$31,Clean_Financial_BG!$D$1:$E$1,0))+($G$12/SUM($G$10:$G$12))*INDEX(Clean_Financial_BG!$D:$E,MATCH($F$12&","&F47,Clean_Financial_BG!$B:$B,0),MATCH($G$17&","&$G$31,Clean_Financial_BG!$D$1:$E$1,0)),"") ->  | H47: =IFERROR(G47*'Return to Work'!$G$12,"") -> 
F48: Increase in Tax Credits | G48: =IFERROR(($G$10/SUM($G$10:$G$12))*INDEX(Clean_Financial_BG!$D:$E,MATCH($F$10&","&F48,Clean_Financial_BG!$B:$B,0),MATCH($G$17&","&$G$31,Clean_Financial_BG!$D$1:$E$1,0))+($G$11/SUM($G$10:$G$12))*INDEX(Clean_Financial_BG!$D:$E,MATCH($F$11&","&F48,Clean_Financial_BG!$B:$B,0),MATCH($G$17&","&$G$31,Clean_Financial_BG!$D$1:$E$1,0))+($G$12/SUM($G$10:$G$12))*INDEX(Clean_Financial_BG!$D:$E,MATCH($F$12&","&F48,Clean_Financial_BG!$B:$B,0),MATCH($G$17&","&$G$31,Clean_Financial_BG!$D$1:$E$1,0)),"") ->  | H48: =IFERROR(G48*'Return to Work'!$G$12,"") -> 
F49: Total Benefits to National Government | G49: =IF(SUM(G41:G48)=0,"",SUM(G41:G48)) ->  | H49: =IF(SUM(H41:H48)=0,"",SUM(H41:H48)) -> 
F51: Benefits to the Local Authority (£)
G52: Benefits per person moving to employment | H52: Total Benefits
F53: Reduction in Council Tax Benefit payments | G53: =I23 ->  | H53: =IFERROR(G53*'Return to Work'!$G$12,"") -> 
F54: Reduction in Free School Meals payments | G54: =I24 ->  | H54: =IFERROR(G54*'Return to Work'!$G$12,"") -> 
F55: Reduction in LA health and social care costs (SSD, residential care, day care, supported accommodation) | G55: =IFERROR((Charts_Background!C117/Charts_Background!G118)*IFERROR(IF(('Direct Health Benefits'!G46/G13)*(IF(G17=Dropdowns_other!C1,'Direct Health Benefits'!G50,IF(G17=Dropdowns_other!C2,'Direct Health Benefits'!I50)))=0,"",('Direct Health Benefits'!G46/G13)*(IF(G17=Dropdowns_other!C1,'Direct Health Benefits'!G50,IF(G17=Dropdowns_other!C2,'Direct Health Benefits'!I50)))),""),"") ->  | H55: =IFERROR(G55*'Return to Work'!$G$12,"") -> 
F57: Total benefits to Local Authority | G57: =IF(SUM(G53:G56)=0,"",SUM(G53:G56)) ->  | H57: =IF(SUM(H53:H56)=0,"",SUM(H53:H56)) -> 
F59: Benefits to Health Services (£)
G60: Benefits per person moving to employment | H60: Total Benefits
F61: Reduction in healthcare costs, of which:
F62: NHS | G62: =IFERROR((Charts_Background!B117/Charts_Background!G118)*IFERROR(IF(('Direct Health Benefits'!G46/G13)*(IF(G17=Dropdowns_other!C1,'Direct Health Benefits'!G50,IF(G17=Dropdowns_other!C2,'Direct Health Benefits'!I50)))=0,"",('Direct Health Benefits'!G46/G13)*(IF(G17=Dropdowns_other!C1,'Direct Health Benefits'!G50,IF(G17=Dropdowns_other!C2,'Direct Health Benefits'!I50)))),""),"") ->  | H62: =IFERROR(G62*'Return to Work'!$G$12,"") -> 
F63: Other | G63: =IFERROR((Charts_Background!F117/Charts_Background!G118)*IFERROR(IF(('Direct Health Benefits'!G46/G13)*(IF(G17=Dropdowns_other!C1,'Direct Health Benefits'!G50,IF(G17=Dropdowns_other!C2,'Direct Health Benefits'!I50)))=0,"",('Direct Health Benefits'!G46/G13)*(IF(G17=Dropdowns_other!C1,'Direct Health Benefits'!G50,IF(G17=Dropdowns_other!C2,'Direct Health Benefits'!I50)))),""),"") ->  | H63: =IFERROR(G63*'Return to Work'!$G$12,"") -> 
F64: Total benefits to Health Services | G64: =IF(SUM(G62:G63)=0,"",SUM(G62:G63)) ->  | H64: =IFERROR(G64*'Return to Work'!$G$12,"") -> 
F66: Benefits to programme participants (£)
G67: Benefits per person moving to employment | H67: Total Benefits
F68: Increase in wages | G68: =IFERROR(($G$10/SUM($G$10:$G$12))*INDEX(Clean_Financial_BG!$D:$E,MATCH($F$10&","&F68,Clean_Financial_BG!$B:$B,0),MATCH($G$17&","&$G$31,Clean_Financial_BG!$D$1:$E$1,0))+($G$11/SUM($G$10:$G$12))*INDEX(Clean_Financial_BG!$D:$E,MATCH($F$11&","&F68,Clean_Financial_BG!$B:$B,0),MATCH($G$17&","&$G$31,Clean_Financial_BG!$D$1:$E$1,0))+($G$12/SUM($G$10:$G$12))*INDEX(Clean_Financial_BG!$D:$E,MATCH($F$12&","&F68,Clean_Financial_BG!$B:$B,0),MATCH($G$17&","&$G$31,Clean_Financial_BG!$D$1:$E$1,0)),"") ->  | H68: =IFERROR(G68*'Return to Work'!$G$12,"") -> 
F69: Increase in Tax Credits | G69: =IFERROR(-G48,"") ->  | H69: =IFERROR(G69*'Return to Work'!$G$12,"") -> 
F70: Reduction in JSA/ESA benefit | G70: =IFERROR(-G45,"") ->  | H70: =IFERROR(G70*'Return to Work'!$G$12,"") -> 
F71: Reduction in Housing Benefit payments | G71: =IFERROR(-G46,"") ->  | H71: =IFERROR(G71*'Return to Work'!$G$12,"") -> 
F72: Reduction in Council Tax Benefit payments | G72: =IFERROR(-G53,"") ->  | H72: =IFERROR(G72*'Return to Work'!$G$12,"") -> 
F73: Reduction in Free School Meals payments | G73: =IFERROR(-G54,"") ->  | H73: =IFERROR(G73*'Return to Work'!$G$12,"") -> 
F74: Increase in income tax | G74: =IFERROR(-G41,"") ->  | H74: =IFERROR(G74*'Return to Work'!$G$12,"") -> 
F75: Increase in employees' NIC | G75: =IFERROR(-G42,"") ->  | H75: =IFERROR(G75*'Return to Work'!$G$12,"") -> 
F76: Increase in indirect tax | G76: =IFERROR(-G44,"") ->  | H76: =IFERROR(G76*'Return to Work'!$G$12,"") -> 
F77: Increase in travel costs | G77: =IFERROR(($G$10/SUM($G$10:$G$12))*INDEX(Clean_Financial_BG!$D:$E,MATCH($F$10&","&F77,Clean_Financial_BG!$B:$B,0),MATCH($G$17&","&$G$31,Clean_Financial_BG!$D$1:$E$1,0))+($G$11/SUM($G$10:$G$12))*INDEX(Clean_Financial_BG!$D:$E,MATCH($F$11&","&F77,Clean_Financial_BG!$B:$B,0),MATCH($G$17&","&$G$31,Clean_Financial_BG!$D$1:$E$1,0))+($G$12/SUM($G$10:$G$12))*INDEX(Clean_Financial_BG!$D:$E,MATCH($F$12&","&F77,Clean_Financial_BG!$B:$B,0),MATCH($G$17&","&$G$31,Clean_Financial_BG!$D$1:$E$1,0)),"") ->  | H77: =IFERROR(G77*'Return to Work'!$G$12,"") -> 
F78: Increase in childcare costs | G78: =IFERROR(($G$10/SUM($G$10:$G$12))*INDEX(Clean_Financial_BG!$D:$E,MATCH($F$10&","&F78,Clean_Financial_BG!$B:$B,0),MATCH($G$17&","&$G$31,Clean_Financial_BG!$D$1:$E$1,0))+($G$11/SUM($G$10:$G$12))*INDEX(Clean_Financial_BG!$D:$E,MATCH($F$11&","&F78,Clean_Financial_BG!$B:$B,0),MATCH($G$17&","&$G$31,Clean_Financial_BG!$D$1:$E$1,0))+($G$12/SUM($G$10:$G$12))*INDEX(Clean_Financial_BG!$D:$E,MATCH($F$12&","&F78,Clean_Financial_BG!$B:$B,0),MATCH($G$17&","&$G$31,Clean_Financial_BG!$D$1:$E$1,0)),"") ->  | H78: =IFERROR(G78*'Return to Work'!$G$12,"") -> 
F79: Total benefits to participant(s) | G79: =IF(SUM(G68:G78)=0,"",SUM(G68:G78)) ->  | H79: =IF(SUM(H68:H78)=0,"",SUM(H68:H78)) -> 
F81: Benefits to society (£)
G82: Benefits per person moving to employment | H82: Total Benefits
F83: Gross value add pre-multiplier
F84: Gross earnings from employment | G84: =IFERROR(G68,"") ->  | H84: =IFERROR(H68,"") -> 
F85: Healthcare cost savings | G85: =IFERROR((IFERROR(IF(G17=Dropdowns_other!C1,'Direct Health Benefits'!G50,IF(G17=Dropdowns_other!C2,'Direct Health Benefits'!I50)),"")*'Direct Health Benefits'!G46)/G13,"") ->  | H85: =IFERROR(G85*G13,"") -> 
F86: Total | G86: =IF(SUM(G84:G85)=0,"",SUM(G84:G85)) ->  | H86: =IF(SUM(H84:H85)=0,"",SUM(H84:H85)) -> 
F87: Benefit to the local economy
F88: From employment earnings | G88: =IFERROR(G84*(G96-1),"") ->  | H88: =IFERROR(H84*(G97-1),"") -> 
F89: From healthcare cost savings | G89: =IFERROR(G85*(G97-1),"") ->  | H89: =IFERROR(H85*(G97-1),"") -> 
F90: Total | G90: =IF(SUM(G88:G89)=0,"",SUM(G88:G89)) ->  | H90: =IF(SUM(H88:H89)=0,"",SUM(H88:H89)) -> 
F91: Total benefits to society | G91: =IF(SUM(G86,G90)=0,"",SUM(G86,G90)) ->  | H91: =IF(SUM(H86,H90)=0,"",SUM(H86,H90)) -> 
F93: Please note that the total benefits to society have been calculated using the following local economy multipliers, from the Scottish Government
F95: Local economy multiplier
F96: General | G96: ='Type II multipliers'!H2 -> 1.596227265
F97: Healthcare specific | G97: ='Type II multipliers'!H3 -> 1.658157236
F99: Total benefits to the Exchequer | G99: =IFERROR(IF(G35<200,G35,MROUND(G35,100)),"") ->  | H99: =IFERROR(IF(H35<200,H35,MROUND(H35,100)),"") -> 
F101: Below is a breakdown of the benefits to the Exchequer by relevant governmental agency, the benefits to participants and the wider societal benefits of moving a person or persons from unemployment to employment. All figures greater than £200 (or lower than -£200) are rounded to the nearest £100
F103: Benefits to National Government (£)
G104: Benefits per person moving to employment | H104: Total Benefits
F105: Increase in income tax | G105: =IFERROR(IF(G41<200,G41,MROUND(G41,100)),"") ->  | H105: =IFERROR(IF(H41<200,H41,MROUND(H41,100)),"") -> 
F106: Increase in employees' NIC | G106: =IFERROR(IF(G42<200,G42,MROUND(G42,100)),"") -> 
F107: Increase in employers' NIC
F108: Increase in indirect tax
F109: Reduction in JSA/ESA benefit
F110: Reduction in Housing Benefit payments
F111: Reduction in operational costs
F112: Increase in Tax Credits | G112: =IFERROR(IF(G48>-200,G48,MROUND(G48,-100)),"") ->  | H112: =IFERROR(IF(H48>-200,H48,MROUND(H48,-100)),"") -> 
F113: Total Benefits to National Government
F115: Benefits to the Local Authority (£)
G116: Benefits per person moving to employment | H116: Total Benefits
F117: Reduction in Council Tax Benefit payments | G117: =IFERROR(IF(G53<200,G53,MROUND(G53,100)),"") -> 
F118: Reduction in Free School Meals payments | G118: =IFERROR(IF(G54<200,G54,MROUND(G54,100)),"") -> 
F119: Reduction in LA health and social care costs (SSD, residential care, day care, supported accommodation) | G119: =IFERROR(IF(G55<200,G55,MROUND(G55,100)),"") -> 
G120: =IFERROR(IF(G56<200,G56,MROUND(G56,100)),"") -> 0 | H120: 0
F121: Total benefits to Local Authority | G121: =IFERROR(IF(G57<200,G57,MROUND(G57,100)),"") -> 
F123: Benefits to Health Services (£)
G124: Benefits per person moving to employment | H124: Total Benefits
F125: Reduction in healthcare costs, of which:
F126: NHS | G126: =IFERROR(IF(G62<200,G62,MROUND(G62,100)),"") -> 
F127: Other | G127: =IFERROR(IF(G63<200,G63,MROUND(G63,100)),"") -> 
F128: Total benefits to Health Services | G128: =IFERROR(IF(G64<200,G64,MROUND(G64,100)),"") -> 
F130: Benefits to programme participants (£)
G131: Benefits per person moving to employment | H131: Total Benefits
F132: Increase in wages | G132: =IFERROR(IF(G68<200,G68,MROUND(G68,100)),"") -> 
F133: Increase in Tax Credits | G133: =IFERROR(IF(G69<200,G69,MROUND(G69,100)),"") -> 
F134: Reduction in JSA/ESA benefit | G134: =IFERROR(IF(G70>-200,G70,MROUND(G70,-100)),"") ->  | H134: =IFERROR(IF(H70>-200,H70,MROUND(H70,-100)),"") -> 
F135: Reduction in Housing Benefit payments | G135: =IFERROR(IF(G71>-200,G71,MROUND(G71,-100)),"") -> 
F136: Reduction in Council Tax Benefit payments
F137: Reduction in Free School Meals payments
F138: Increase in income tax
F139: Increase in employees' NIC
F140: Increase in indirect tax
F141: Increase in travel costs
F142: Increase in childcare costs
F143: Total benefits to participant(s) | G143: =IFERROR(IF(G79<200,G79,MROUND(G79,100)),"") -> 
F145: Benefits to society (£)
G146: Benefits per person moving to employment | H146: Total Benefits
F147: Gross value add pre-multiplier
F148: Gross earnings from employment | G148: =IFERROR(IF(G84<200,G84,MROUND(G84,100)),"") -> 
F149: Healthcare cost savings | G149: =IFERROR(IF(G85<200,G85,MROUND(G85,100)),"") -> 
F150: Total | G150: =IFERROR(IF(G86<200,G86,MROUND(G86,100)),"") -> 
F151: Benefit to the local economy | G151: =IFERROR(IF(G87<200,G87,MROUND(G87,100)),"") -> 0 | H151: 0
F152: From employment earnings | G152: =IFERROR(IF(G88<200,G88,MROUND(G88,100)),"") -> 
F153: From healthcare cost savings | G153: =IFERROR(IF(G89<200,G89,MROUND(G89,100)),"") -> 
F154: Total | G154: =IFERROR(IF(G90<200,G90,MROUND(G90,100)),"") -> 
F155: Total benefits to society | G155: =IFERROR(IF(G91<200,G91,MROUND(G91,100)),"") -> 
F157: Please note that the total benefits to society have been calculated using the following local economy multipliers, from the Scottish Government
F159: Local economy multiplier
F160: General | G160: =IFERROR(G96,"") -> 1.596227265
F161: Healthcare specific | G161: 1.658157236

Sheet Key Findings
I1: 1 year
I2: All years (undiscounted)
I3: All years (discounted)
F8: Summary of Key findings
F10: Area selected on 'Population' sheet: | G10: =IF(Population!$H$12="","",Population!$H$12) ->  | H10: =IF(G10="","please enter user input information on previous sheets","") -> please enter user input information on previous sheets
F12: Timeframe selected on 'Financial Benefits' sheet: | G12: =IF('Financial Benefits'!G17=0,"",'Financial Benefits'!G17) -> All years (1 years) | H12: =IF(G12="","please select time period you want to see key results for",IF(AND(G10="",G12=""),"please enter user input information on previous sheets","")) -> 
G13: *note timeframe can be adjusted on 'Financial Benefits' sheet
F15: Number of people returning to work
G16: Proportion of the relevant population | H16: =IF(Population!$H$31=0,"",Population!$H$31) -> 
G17: Number of people returning to work | H17: =Population!$I$32 -> 
F19: Reduction in nos. of people suffering from common mental health conditions
G20: Baseline proportion of people who have CMD(s) | H20: ='Mental Health Conditions'!$I$15 -> 
F21: Proportion of those returning to work whose mental health status is improved due to returning to work | H21: ='Direct Health Benefits'!$G$44 -> 
G22: Number of people who no longer have CMD(s) | H22: ='Direct Health Benefits'!$G$46 -> 
F24: QALY gains - Unrounded
G25: QALY gains per person returning to work | H25: =IF($G$12="","",IF($G$12=Dropdowns_other!$C$1,'Direct Health Benefits'!$G$28, IF($G$12=Dropdowns_other!$C$2,'Direct Health Benefits'!$H$28))) -> 0.0675159
G26: Value, per person, of these QALY gains | H26: =IF($G$12="","",IF($G$12=Dropdowns_other!$C$1,'Direct Health Benefits'!$G$29, IF($G$12=Dropdowns_other!$C$2,'Direct Health Benefits'!$H$29))) -> 4050.954
G28: Total QALY gains | H28: =IF($G$12="","",IF(G12=Dropdowns_other!C1,'Direct Health Benefits'!G31,IF(G12=Dropdowns_other!C2,'Direct Health Benefits'!H31))) -> 
G29: Total value of these QALY gains | H29: =IF($G$12="","",IF(G12=Dropdowns_other!C1,'Direct Health Benefits'!G32,IF(G12=Dropdowns_other!C2,'Direct Health Benefits'!H32))) -> 
H30: N.B. The value of QALY gains is not a financial benefit, but a measure of value
F32: Financial benefits to the health and social care services - Unrounded
G33: Per person returning to work | H33: Total
F34: Cost savings from a reduction in the number of people who have a CMD | G34: =SUM('Financial Benefits'!G55,'Financial Benefits'!G62:G63) -> 0 | H34: =IFERROR(HLOOKUP($G$12,$G$42:$H$44,3,FALSE),"") -> 
F36: of which
F37: NHS | G37: =IFERROR((Charts_Background!B117/Charts_Background!G118)*'Key Findings'!G34,"") ->  | H37: =IFERROR((Charts_Background!B117/Charts_Background!G118)*H34,"") -> 
F38: Other | G38: =IFERROR((Charts_Background!F117/Charts_Background!G118)*G34,"") ->  | H38: =IFERROR((Charts_Background!F117/Charts_Background!G118)*H34,"") -> 
F39: Local Authority (SSD, residential care, day care, supported accommodation) | G39: =IFERROR((Charts_Background!C117/Charts_Background!G118)*G34,"") ->  | H39: =IFERROR((Charts_Background!C117/Charts_Background!G118)*H34,"") -> 
G42: 2016/2017 | H42: ="All years"& " (" & 'Return to Work'!G19 & " years)" -> All years (1 years)
G43: Total | H43: Total
G44: ='Direct Health Benefits'!H50 ->  | H44: ='Direct Health Benefits'!J50 -> 
G46: Per person returning to work | H46: Total
F47: Financial benefits to the individual(s) | G47: =IF($G$12="","",'Financial Benefits'!G79) ->  | H47: =IF($G$12="","",'Financial Benefits'!H79) -> 
F48: Financial benefit to society as a whole | G48: =IF($G$12="","",'Financial Benefits'!G91) ->  | H48: =IF($G$12="","",'Financial Benefits'!H91) -> 
F49: Financial benefits to the exchequer, of which accrue to: | G49: =IF($G$12="","",'Financial Benefits'!G35) ->  | H49: =IF($G$12="","",'Financial Benefits'!H35) -> 
F50: National Government | G50: =IF($G$12="","",'Financial Benefits'!G49) ->  | H50: =IF($G$12="","",'Financial Benefits'!H49) -> 
F51: Local Authority | G51: =IF($G$12="","",'Financial Benefits'!G57) ->  | H51: =IF($G$12="","",'Financial Benefits'!H57) -> 
F52: National health services | G52: =IF($G$12="","",'Financial Benefits'!G64) ->  | H52: =IF($G$12="","",'Financial Benefits'!H64) -> 
F53: N.B. Financial benefits to society includes figures from all the other categories, and financial benefits to the exchequer also includes financial benefits to the health and social care services, so all of these financial benefits cannot all be summed. Financial benefit to society as a whole provides a measure of overall value, as it aggregates gross value but doesn't consider payments that are just transfers between parties
F56: =IF(G57="","These figures will be populated only if an intervention cost was provided","") -> These figures will be populated only if an intervention cost was provided | G56: ROI Metrics | H56: Explanation
F57: Total intervention cost (one off + ongoing) | G57: =IF(OR($G$12="",'Return to Work'!$G$26=""),"",(IF('Return to Work'!$G$26="",0,IF($G$12="2016/2017",('Return to Work'!$G$26+'Return to Work'!$G$27),('Return to Work'!$G$26+('Return to Work'!$G$27*'Return to Work'!$G$19)))))) ->  | H57: One-off intervention costs + ongoing costs per year
F58: Total Net Benefit (Societal [financial]) | G58: =IF(OR($G$12="",'Return to Work'!$G$26=""),"",(IF('Return to Work'!$G$26="",0,(H48-G57)))) ->  | H58: Societal financial benefits - intervention cost
F59: Total Net Benefit (govt financial benefits) | G59: =IF(OR($G$12="",'Return to Work'!$G$26=""),"",(IF('Return to Work'!$G$26="",0,(H49-G57)))) ->  | H59: Government financial benefits - intervention cost
F60: ICER (intervention cost only, no financial benefits) | G60: =IF(OR($G$12="",'Return to Work'!$G$26=""),"",(IF('Return to Work'!$G$26="",0,(IF(G57/H28<0,"Dominant",G57/H28))))) ->  | H60: Intervention cost / QALY gain
F61: ICER (intervention cost + societal financial benefits) | G61: =IF(OR($G$12="",'Return to Work'!$G$26=""),"",(IF('Return to Work'!$G$26="",0,(IF(-G59/H28<0,"Dominant",-G59/H28))))) ->  | H61: (Intervention cost - societal financial savings) / QALY gain
F62: ICER (intervention cost + govt financial benefits) | G62: =IF(OR($G$12="",'Return to Work'!$G$26=""),"",(IF('Return to Work'!$G$26="",0,(IF(-G58/H28<0,"Dominant",-G58/H28))))) ->  | H62: (Intervention cost - government financial savings) / QALY gain
F63: Benefit : Cost Ratio (societal financial benefits) | G63: =IF(OR($G$12="",'Return to Work'!$G$26=""),"",(IF('Return to Work'!$G$26="",0,(H48/$G$57)))) ->  | H63: Societal financial savings per £1 spent on the intervention
F64: Benefit : Cost Ratio (govt financial benefits) | G64: =IF(OR($G$12="",'Return to Work'!$G$26=""),"",(IF('Return to Work'!$G$26="",0,(H49/$G$57)))) ->  | H64: Government financial savings per £1 spent on the intervention
F67: All figures presented below which are above £200 have been rounded to the nearest hundred
F69: QALY gains
G70: QALY gains per person returning to work | H70: =IFERROR(IF(H25<200,H25,MROUND(H25,100)),"") -> 0.0675159
G71: Value, per person, of these QALY gains | H71: =IFERROR(IF(H26<200,H26,MROUND(H26,100)),"") -> 4100
G73: Total QALY gains | H73: =IFERROR(IF(H28<200,H28,MROUND(H28,100)),"") -> 
G74: Total value of these QALY gains | H74: =IFERROR(IF(H29<200,H29,MROUND(H29,100)),"") -> 
H75: N.B. The value of QALY gains is not a financial benefit, but a measure of value
F77: Financial benefits to the health and social care services
G78: Per person returning to work | H78: Total
F79: Cost savings from a reduction in the number of people who have a CMD | G79: =IFERROR(IF(G34<200,G34,MROUND(G34,100)),"") -> 0 | H79: =IFERROR(IF(H34<200,H34,MROUND(H34,100)),"") -> 
F81: of which
F82: NHS | G82: =IFERROR(IF(G37<200,G37,MROUND(G37,100)),"") -> 
F83: Other
F84: Local Authority (SSD, residential care, day care, supported accommodation)
G87: 2016/2017 | H87: ="All years"& " (" & 'Return to Work'!G61 & " years)" -> All years ( years)
G88: Total | H88: Total
G89: =IFERROR(IF(G44<200,G44,MROUND(G44,100)),"") ->  | H89: =IFERROR(IF(H44<200,H44,MROUND(H44,100)),"") -> 
G91: Per person returning to work | H91: Total
F92: Financial benefits to the individual(s) | G92: =IFERROR(IF(G47<200,G47,MROUND(G47,100)),"") -> 
F93: Financial benefit to society as a whole | G93: =IFERROR(IF(G48<200,G48,MROUND(G48,100)),"") -> 
F94: Financial benefits to the exchequer, of which accrue to: | G94: =IFERROR(IF(G49<200,G49,MROUND(G49,100)),"") -> 
F95: National Government | G95: =IFERROR(IF(G50<200,G50,MROUND(G50,100)),"") -> 
F96: Local Authority | G96: =IFERROR(IF(G51<200,G51,MROUND(G51,100)),"") -> 
F97: National health services | G97: =IFERROR(IF(G52<200,G52,MROUND(G52,100)),"") -> 
F98: N.B. Financial benefits to society includes figures from all the other categories, and financial benefits to the exchequer also includes financial benefits to the health and social care services, so all of these financial benefits cannot all be summed. Financial benefit to society as a whole provides a measure of overall value, as it aggregates gross value but doesn't consider payments that are just transfers between parties
F101: =IF(G102="","These figures will be populated only if an intervention cost was provided","") -> These figures will be populated only if an intervention cost was provided | G101: ROI Metrics | H101: Explanation
F102: Total intervention cost (one off + ongoing) | G102: =IFERROR(IF(G57<200,G57,MROUND(G57,100)),"") ->  | H102: One-off intervention costs + ongoing costs per year
F103: Total Net Benefit (Societal [financial]) | G103: =IFERROR(IF(G58<200,G58,MROUND(G58,100)),"") ->  | H103: Societal financial benefits - intervention cost
F104: Total Net Benefit (govt financial benefits) | G104: =IFERROR(IF(G59<200,G59,MROUND(G59,100)),"") ->  | H104: Government financial benefits - intervention cost
F105: ICER (intervention cost only, no financial benefits) | G105: =IF(ISTEXT(G60),G60,IFERROR(IF(G60<200,G60,MROUND(G60,100)),"")) ->  | H105: Intervention cost / QALY gain
F106: ICER (intervention cost + societal financial benefits) | G106: =IF(ISTEXT(G61),G61,IFERROR(IF(G61<200,G61,MROUND(G61,100)),"")) ->  | H106: (Intervention cost - societal financial savings) / QALY gain
F107: ICER (intervention cost + govt financial benefits) | G107: =IF(ISTEXT(G62),G62,IFERROR(IF(G62<200,G62,MROUND(G62,100)),"")) ->  | H107: (Intervention cost - government financial savings) / QALY gain
F108: Benefit : Cost Ratio (societal financial benefits) | G108: =IFERROR(IF(G63<200,G63,MROUND(G63,100)),"") ->  | H108: Societal financial savings per £1 spent on the intervention
F109: Benefit : Cost Ratio (govt financial benefits) | H109: Government financial savings per £1 spent on the intervention

Sheet Charts
F4: Benefits shown for selected time period: | I4: =IF('Financial Benefits'!G17="","",'Financial Benefits'!G17) -> All years (1 years) | J4: =IF(I4="","Please sleect a time period on the Financial Benefits sheet","") ->  | K4: All figures >£200 are rounded to the nearest hundred
K119: Please choose a perspective:
I120: Benefits per person returning to work: | L120: dropdown
K122: N.B. This chart will not display correctly unless a perspective is chosen

Sheet Charts_Background (hidden)
A1: Financial Benefits for 2016/2017
F2: Please select from which paper you would like to see health care costs below
A3: Benefits to the exchequer (£) | G3: ='Financial Benefits'!#REF! -> 
P4: unrounded figures for box below | Q4: =I27 ->  | R4: =I27 ->  | S4: =SUM(R4:R5) ->  | T4: =SUM(S4:S5) ->  | U4: =SUM(T4:T5) ->  | V4: =SUM(U4:U5) ->  | W4: =SUM(V4:V5) ->  | X4: =SUM(W4:W5)-X5 ->  | Y4: =X4 -> 
R5: =I28 ->  | S5: =I29 ->  | T5: =I30 ->  | U5: =I31 ->  | V5: =-I45 ->  | W5: =I35 ->  | X5: =-I37 -> 
B8: Total Benefits | F8: =CONCATENATE("Please note that total healthcare costs savings are calculated by multiplying the number of people who are no longer experiencing CMDs by the cost of CMDs ","(£",'Mental Health Conditions'!$I$33,").", "The number of people no longer experiencing CMDs is determined by the findings in each paper.") -> Please note that total healthcare costs savings are calculated by multiplying the number of people who are no longer experiencing CMDs by the cost of CMDs (£).The number of people no longer experiencing CMDs is determined by the findings in each paper. | P8: ='Financial Benefits'!F39 -> Benefits to National Government (£) | Q8: Income tax | R8: Employees' NIC | S8: Employers' NIC | T8: Indirect tax | U8: JSA/ESAWR benefit | V8: Housing benefits | W8: Operational costs | X8: Tax Credits | Y8: Benefits to National Government
A9: Increase in income tax | B9: ='Financial Benefits'!H41 ->  | P9: Income tax | Q9: =IF(Q4<200,Q4,MROUND(Q4,100)) ->  | R9: =IF(R4<200,R4,MROUND(R4,100)) ->  | X9: =IF(X4<200,X4,MROUND(X4,100)) -> 
A10: Increase in employees' NIC | B10: ='Financial Benefits'!H42 ->  | P10: Employees' NIC | Q10: 0
A11: Increase in employers' NIC | B11: ='Financial Benefits'!H43 ->  | G11: Do not move or change | P11: Employers' NIC | Q11: 0 | R11: 0 | S11: =IF(S5<200,S5,MROUND(S5,100)) -> 
A12: Increase in indirect tax | B12: ='Financial Benefits'!H44 ->  | G12: Selected Area: | H12: =Population!H12 -> 0 | P12: Indirect tax | Q12: 0 | R12: 0 | S12: 0 | T12: =IF(T5<200,T5,MROUND(T5,100)) -> 
A13: Reduction in JSA/ESAWR benefit | B13: ='Financial Benefits'!H45 ->  | G13: People claiming JSA | H13: =Population!I19 ->  | P13: JSA/ESAWR benefit | Q13: 0 | R13: 0 | S13: 0 | T13: 0 | U13: =IF(U5<200,U5,MROUND(U5,100)) -> 
A14: Reduction in Housing Benefit payments | B14: ='Financial Benefits'!H46 ->  | G14: People claiming ESA WRAG | H14: =Population!I21 ->  | P14: Housing Benefit payments | Q14: 0 | R14: 0 | S14: 0 | T14: 0 | U14: 0 | V14: =IF(V5<200,V5,MROUND(V5,100)) -> 
A15: Reduction in Council Tax Benefit payments | B15: ='Financial Benefits'!H53 ->  | G15: People claiming ESA SG | H15: =Population!I23 ->  | P15: Operational costs | Q15: 0 | R15: 0 | S15: 0 | T15: 0 | U15: 0 | V15: 0 | W15: =IF(W5<200,W5,MROUND(W5,100)) -> 
A16: Reduction in Free School Meals payments | B16: ='Financial Benefits'!H54 ->  | G16: No. of people returning to work | H16: ='Return to Work'!$G$12 ->  | P16: Tax Credits | Q16: 0 | R16: 0 | S16: 0 | T16: 0 | U16: 0 | V16: 0 | W16: 0 | X16: =IF(X5<200,X5,MROUND(X5,100)) -> 
A17: Reduction in operational costs | B17: ='Financial Benefits'!H47 ->  | O17: operational costs for JSA/ESAWR claimants | P17: Benefits to the Exchequer | Q17: 0 | R17: 0 | S17: 0 | T17: 0 | U17: 0 | V17: 0 | W17: 0 | X17: 0
A18: Increase in Tax Credits | B18: ='Financial Benefits'!H48 ->  | G18: Please note that all benefits have been calculated without migration to the Universal Credit regime.
A19: Total benefits to exchequer | B19: ='Financial Benefits'!H57 -> 
G20: Please select how you want the financial benefits to be displayed | P20: ='Financial Benefits'!F51 -> Benefits to the Local Authority (£) | Q20: Council Tax Benefit payments | R20: Free School Meals payments | S20: LA (SSD, residential care, day care, supported accomodation) | T20: Benefits to the Local Authority | W20: unrounded figs for box on left
G21: Display financial benefits for: | H21: 2016/2017 | P21: Council Tax Benefit payments | Q21: =IF(W21<200,W21,MROUND(W21,100)) ->  | R21: =IF(X21<200,X21,MROUND(X21,100)) ->  | S21: =IF(Y21<200,Y21,MROUND(Y21,100)) ->  | T21: =IF(Z21<200,Z21,MROUND(Z21,100)) ->  | W21: =-I46 ->  | X21: =W21 ->  | Y21: =SUM(X21:X22) ->  | Z21: =SUM(Y21:Y23) -> 
G22: Please note that in the "All years" calculation, the benefits are calculated over the chosen length of the expected benefit from previous sheet | P22: Free School Meals payments | Q22: 0 | R22: =IF(X22<200,X22,MROUND(X22,100)) ->  | W22: 0 | X22: =-I47 -> 
G23: ="Financial Benefits for " &H21 -> Financial Benefits for 2016/2017 | P23: LA (SSD, residential care, day care, supported accomodation) | Q23: 0 | R23: 0 | S23: =IF(Y23<200,Y23,MROUND(Y23,100)) ->  | W23: 0 | X23: 0 | Y23: =-C119 -> 
A24: Direct Health Benefits | P24: Benefits to the Local Authority | Q24: 0 | R24: 0 | S24: 0 | W24: 0 | X24: 0 | Y24: 0
G25: Benefits to the exchequer (£)
A26: Distribution of costs for depression (fig 17, p. 25) | B26: GP | C26: 0.09 | D26: ='Financial Benefits'!$H$64*Charts_Background!C26 ->  | E26: =D26*$D$35 ->  | H26: Benefits per person moving to employment | I26: Total Benefits
B27: Non-psychiatric inpatient | C27: 0.17 | D27: ='Financial Benefits'!$H$64*Charts_Background!C27 ->  | E27: =D27*$D$35 ->  | G27: Increase in income tax | H27: ='Financial Benefits'!G41 ->  | I27: =H27*'Return to Work'!$G$12 -> 
B28: Social Security Disability (SSD) | C28: 0.15 | D28: ='Financial Benefits'!$H$64*Charts_Background!C28 ->  | E28: =D28*$D$35 ->  | G28: Increase in employees' NIC | H28: ='Financial Benefits'!G42 ->  | I28: =H28*'Return to Work'!$G$12 -> 
B29: Psychiatric inpatient | C29: 0.1 | D29: ='Financial Benefits'!$H$64*Charts_Background!C29 ->  | G29: Increase in employers' NIC | H29: ='Financial Benefits'!G43 ->  | I29: =H29*'Return to Work'!$G$12 ->  | P29: ='Financial Benefits'!F66 -> Benefits to programme participants (£) | Q29: Wage | R29: Tax Credits | S29: JSA/ESAWR benefit | T29: Housing Benefit payments | U29: Council Tax Benefit payments | V29: Free School Meals payments | W29: Income tax | X29: Employees' NIC | Y29: Indirect tax | Z29: Travel costs | AA29: Childcare costs | AB29: Benefits to participants | AD29: unrounded figs for box on left
B30: Residential care | C30: 0.1 | D30: ='Financial Benefits'!$H$64*Charts_Background!C30 ->  | G30: Increase in indirect tax | H30: ='Financial Benefits'!G44 ->  | I30: =H30*'Return to Work'!$G$12 ->  | P30: Wage | Q30: =IF(AE30<200,AE30,MROUND(AE30,100)) ->  | AE30: =H42 ->  | AF30: =H42 ->  | AG30: =SUM(AF30:AF31)-AG32 ->  | AH30: =AG30-AH33 ->  | AI30: =AH30-AI34 ->  | AJ30: =AI30-AJ35 ->  | AK30: =AJ30-AK36 ->  | AL30: =AK30-AL37 ->  | AM30: =AL30-AM38 ->  | AN30: =AM30-AN39 ->  | AO30: =AN30-AO40 ->  | AP30: =H53 -> 
B31: Medication | C31: 0.01 | D31: ='Financial Benefits'!$H$64*Charts_Background!C31 ->  | G31: Reduction in JSA/ESA benefit | H31: ='Financial Benefits'!G45 ->  | I31: =H31*'Return to Work'!$G$12 ->  | P31: Tax Credits | Q31: 0 | R31: =IF(AF31<200,AF31,MROUND(AF31,100)) ->  | AF31: =H43 -> 
B32: Other NHS (non inpatient) | C32: 0.05 | D32: ='Financial Benefits'!$H$64*Charts_Background!C32 ->  | G32: Reduction in Housing Benefit payments | H32: ='Financial Benefits'!G46 ->  | I32: =H32*'Return to Work'!$G$12 ->  | P32: JSA/ESAWR benefit | Q32: 0 | R32: 0 | S32: =IF(AG32<200,AG32,MROUND(AG32,100)) ->  | AG32: =-H44 -> 
B33: Other | C33: 0.33 | D33: ='Financial Benefits'!$H$64*Charts_Background!C33 ->  | G33: Reduction in Council Tax Benefit payments | H33: ='Financial Benefits'!G53 ->  | I33: =H33*'Return to Work'!$G$12 ->  | P33: Housing Benefit payments | Q33: 0 | R33: 0 | S33: 0 | T33: =IF(AH33<200,AH33,MROUND(AH33,100)) ->  | AH33: =-H45 -> 
B34: All | C34: =SUM(C26:C33) -> 1 | D34: =SUM(D26:D33) ->  | E34: =SUM(E26:E33) ->  | G34: Reduction in Free School Meals payments | H34: ='Financial Benefits'!G54 ->  | I34: =H34*'Return to Work'!$G$12 ->  | P34: Council Tax Benefit payments | Q34: 0 | R34: 0 | S34: 0 | T34: 0 | U34: =IF(AI34<200,AI34,MROUND(AI34,100)) ->  | AI34: =-H46 -> 
D35: =('Mental Health Conditions'!G23+'Mental Health Conditions'!G28)/'Mental Health Conditions'!I15 ->  | G35: Reduction in operational costs | H35: ='Financial Benefits'!G47 ->  | I35: =H35*'Return to Work'!$G$12 ->  | P35: Free School Meals payments | Q35: 0 | R35: 0 | S35: 0 | T35: 0 | U35: 0 | V35: =IF(AJ35<200,AJ35,MROUND(AJ35,100)) ->  | AJ35: =-H47 -> 
D36: =1-D35 ->  | G36: Reduction in healthcare costs | H36: ='Key Findings'!G34 -> 0 | I36: =H36*'Financial Benefits'!G27 ->  | P36: Income tax | Q36: 0 | R36: 0 | S36: 0 | T36: 0 | U36: 0 | V36: 0 | W36: =IF(AK36<200,AK36,MROUND(AK36,100)) ->  | AK36: =-H48 -> 
A37: Distribution of costs for anxiety (Figure 33, p. 40) | B37: GP | C37: 0.187 | D37: ='Financial Benefits'!$H$64*Charts_Background!C37 ->  | E37: =D37*$D$36 ->  | G37: Increase in Tax Credits | H37: ='Financial Benefits'!G48 ->  | I37: =H37*'Return to Work'!$G$12 ->  | P37: Employees' NIC | Q37: 0 | R37: 0 | S37: 0 | T37: 0 | U37: 0 | V37: 0 | W37: 0 | X37: =IF(AL37<200,AL37,MROUND(AL37,100)) ->  | AL37: =-H49 -> 
B38: Non-psychiatric inpatient | C38: 0.118 | D38: ='Financial Benefits'!$H$64*Charts_Background!C38 ->  | E38: =D38*$D$36 ->  | G38: Total benefits to exchequer | H38: =SUM(H27:H37) -> 0 | I38: =SUM(I27:I37) ->  | P38: Indirect tax | Q38: 0 | R38: 0 | S38: 0 | T38: 0 | U38: 0 | V38: 0 | W38: 0 | X38: 0 | Y38: =IF(AM38<200,AM38,MROUND(AM38,100)) ->  | AM38: =-H50 -> 
B39: Social Security Disability (SSD) | C39: 0.075 | D39: ='Financial Benefits'!$H$64*Charts_Background!C39 ->  | P39: Travel costs | Q39: 0 | R39: 0 | S39: 0 | T39: 0 | U39: 0 | V39: 0 | W39: 0 | X39: 0 | Y39: 0 | Z39: =IF(AN39<200,AN39,MROUND(AN39,100)) ->  | AN39: =-H51 -> 
B40: Psychiatric inpatient | C40: 0.014 | D40: ='Financial Benefits'!$H$64*Charts_Background!C40 ->  | G40: Benefits to programme participants (£) | P40: Childcare costs | Q40: 0 | R40: 0 | S40: 0 | T40: 0 | U40: 0 | V40: 0 | W40: 0 | X40: 0 | Y40: 0 | Z40: 0 | AA40: =IF(AO40<200,AO40,MROUND(AO40,100)) ->  | AO40: =-H52 -> 
B41: Residential care | C41: 0.051 | D41: ='Financial Benefits'!$H$64*Charts_Background!C41 ->  | H41: Benefits per person moving to employment | I41: Total Benefits | P41: Benefits to participant | Q41: 0 | R41: 0 | S41: 0 | T41: 0 | U41: 0 | V41: 0 | W41: 0 | X41: 0 | Y41: 0 | Z41: 0 | AA41: 0
B42: Medication | C42: 0.023 | D42: ='Financial Benefits'!$H$64*Charts_Background!C42 ->  | G42: Increase in wages | H42: ='Financial Benefits'!G68 ->  | I42: =H42*'Return to Work'!$G$12 -> 
B43: Other NHS (non inpatient) | C43: 0.525 | D43: ='Financial Benefits'!$H$64*Charts_Background!C43 ->  | G43: Increase in Tax Credits | H43: =-H37 ->  | I43: =H43*'Return to Work'!$G$12 -> 
B44: Other | C44: 0.006 | D44: ='Financial Benefits'!$H$64*Charts_Background!C44 ->  | G44: Reduction in JSA/ESA benefit | H44: =-H31 ->  | I44: =H44*'Return to Work'!$G$12 -> 
B45: All | C45: =SUM(C37:C44) -> 0.999 | D45: =SUM(D37:D44) ->  | E45: =SUM(E37:E44) ->  | G45: Reduction in Housing Benefit payments | H45: =-H32 ->  | I45: =H45*'Return to Work'!$G$12 -> 
D46: *slight rounding error… | G46: Reduction in Council Tax Benefit payments | H46: =-H33 ->  | I46: =H46*'Return to Work'!$G$12 -> 
E47: =SUM(E45,E34) ->  | G47: Reduction in Free School Meals payments | H47: =-H34 ->  | I47: =H47*'Return to Work'!$G$12 -> 
A48: Weighted average cost breakdown | B48: GP | C48: =$D$35*C26+$D$36*C37 ->  | G48: Increase in income tax | H48: =-H27 ->  | I48: =H48*'Return to Work'!$G$12 ->  | P48: Society Financial Benefits | Q48: Total benefits to society | R48: Local economy benefits from healthcare cost savings | S48: Local economy benefits from employment earnings | T48: Healthcare cost savings | U48: Gross earnings from employment
B49: Non-psychiatric inpatient | C49: =$D$35*C27+$D$36*C38 ->  | G49: Increase in employees' NIC | H49: =-H28 ->  | I49: =H49*'Return to Work'!$G$12 ->  | P49: Total benefits to society
B50: Social Security Disability (SSD) | C50: =$D$35*C28+$D$36*C39 ->  | G50: Increase in indirect tax | H50: =-H30 ->  | I50: =H50*'Return to Work'!$G$12 ->  | P50: Gross earnings from employment | Q50: =IF(W50<200,W50,MROUND(W50,100)) ->  | R50: =IF(X50<200,X50,MROUND(X50,100)) ->  | W50: =I58 ->  | X50: =W50 ->  | Y50: =X50 ->  | Z50: =Y50 ->  | AA50: =Z50 -> 
B51: Psychiatric inpatient | G51: Increase in travel costs | H51: ='Financial Benefits'!G77 ->  | I51: =H51*'Return to Work'!$G$12 ->  | P51: Healthcare cost savings | Q51: =IF(W51<200,W51,MROUND(W51,100)) ->  | W51: =I59 ->  | X51: =W51 ->  | Y51: =X51 -> 
B52: Residential care | G52: Increase in childcare costs | H52: ='Financial Benefits'!G78 ->  | I52: =H52*'Return to Work'!$G$12 ->  | P52: Local economy benefits from employment earnings | W52: =I62 ->  | X52: =W52 ->  | Y52: =X52 ->  | Z52: =Y52 -> 
B53: Medication | G53: Total benefits to participant(s) | H53: =SUM(H42:H52) ->  | I53: =SUM(I42:I52) ->  | P53: Local economy benefits from healthcare cost savings | W53: =I63 ->  | X53: =W53 ->  | Y53: =X53 -> 
B54: Other NHS (non inpatient)
B55: Other | G55: Benefits to society (£)
B56: All | H56: Benefits per person moving to employment | I56: Total Benefits
G57: Gross value add pre-multiplier
G58: Gross earnings from employment | H58: =H42 ->  | I58: =I42 -> 
G59: Healthcare cost savings | H59: ='Direct Health Benefits'!G50 ->  | I59: =H59*'Financial Benefits'!G27 -> 
G60: Total | H60: =SUM(H58:H59) -> 0 | I60: =SUM(I58:I59) -> 
G61: Benefit to the local economy | P61: Society Economic Value | Q61: Total Benefits to Society | R61: Monetised Value from QALY gains | S61: Local economy benefits from healthcare cost savings | T61: Local economy benefits from employment earnings | U61: Healthcare cost savings | V61: Gross earnings from employment
G62: From employment earnings | H62: =H58*(H70-1) ->  | I62: =I58*(H71-1) ->  | P62: Total benefits to society
G63: From healthcare cost savings | H63: =H59*(H71-1) ->  | I63: =I59*(H71-1) ->  | P63: Gross earnings from employment | Q63: =I58 ->  | R63: =Q63 ->  | V63: =U63 -> 
G64: Total | H64: =SUM(H62:H63) ->  | I64: =SUM(I62:I63) ->  | P64: Healthcare cost savings | Q64: =I59 ->  | V64: =U64 -> 
G65: Total benefits to society | H65: =SUM(H60,H64) ->  | I65: =SUM(I60,I64) ->  | P65: Local economy benefits from employment earnings | Q65: =I62 ->  | V65: =U65 -> 
A66: Not for use -- keep until final version and then probably delete | P66: Local economy benefits from healthcare cost savings | Q66: =I63 ->  | V66: =U66 -> 
G67: Please note that the total benefits to society have been calculated using the following local economy multipliers | P67: Monetised Value from QALY gains | Q67: ='Key Findings'!H29 ->  | V67: =U67 -> 
G69: Local economy multiplier
G70: General | H70: ='Type II multipliers'!H2 -> 1.596227265
G71: Healthcare specific | H71: ='Type II multipliers'!H3 -> 1.658157236
S76: No of people returning to work | T76: No of people with CMDs | U76: No of people no longer experiencing CMDs
R77: No of people returning to work | S77: =Population!I32 ->  | T77: ='Return to Work'!G14 ->  | U77: ='Key Findings'!H22 -> 
R78: No of people with CMDs | T78: =S77-'Return to Work'!G14 -> 
R79: No of people no longer experiencing CMDs | U79: =T78-'Key Findings'!H22 -> 
H91: Overall (net) benefit excl. intervention cost | I91: Intervention cost | J91: Net Benefits
H92: Benefits | I92: Cost of the programme | J92: =IF(N92<200,N92,MROUND(N92,100)) -> 0 | N92: =L93-M94 -> 0
G93: Benefits | H93: =IF(L93<200,L93,MROUND(L93,100)) ->  | I93: =IF(M93<200,M93,MROUND(M93,100)) -> 0 | L93: =IF(Charts!$K$120="Government (financial)", 'Key Findings'!$G$49, IF(Charts!$K$120="Society (financial)", 'Key Findings'!$G$48)) -> FALSE | M93: =L93-IF('Return to Work'!G26="",0,IF($H$21="2016/2017",'Return to Work'!$H$26+'Return to Work'!$H$27,'Return to Work'!$H$26+('Return to Work'!$H$27*'Return to Work'!$G$19))) -> 0
G94: Cost of the programme | H94: 0 | I94: =IF(M94<200,M94,MROUND(M94,100)) -> 0 | M94: =IF('Return to Work'!G26="",0,IF($H$21="2016/2017",'Return to Work'!$H$26+'Return to Work'!$H$27,'Return to Work'!$H$26+('Return to Work'!$H$27*'Return to Work'!$G$19))) -> 0
G95: Net Benefits | H95: 0 | I95: 0
A113: Service Cost per person | B113: NHS | C113: LA (SSD, residential care, day care, supported accommodation) | D113: CJS (prisons) | E113: Informal care | F113: Other
A114: Depression | B114: ='CMDs 2016-2017 prices'!I49 -> 1102.459179 | C114: ='CMDs 2016-2017 prices'!J49 -> 393.735421 | D114: ='CMDs 2016-2017 prices'!K49 -> 0 | E114: ='CMDs 2016-2017 prices'!L49 -> 0 | F114: ='CMDs 2016-2017 prices'!M49 -> 78.74708421 | G114: Total fiscal cost | H114: Total economic/ social cost (informal care)
A115: Anxiety disorders | B115: ='CMDs 2016-2017 prices'!I50 -> 548.1290463 | C115: ='CMDs 2016-2017 prices'!J50 -> 79.65889255 | D115: ='CMDs 2016-2017 prices'!K50 -> 0 | E115: ='CMDs 2016-2017 prices'!L50 -> 0 | F115: ='CMDs 2016-2017 prices'!M50 -> 3.793280598 | G115: ='CMDs 2016-2017 prices'!N49 -> 1574.941684 | H115: ='CMDs 2016-2017 prices'!O49 -> 0
B116: NHS | C116: LA (SSD, residential care, day care, supported accommodation) | F116: Other | G116: ='CMDs 2016-2017 prices'!N50 -> 631.5812195 | H116: ='CMDs 2016-2017 prices'!O50 -> 0
A117: CMDs | B117: =B114*$D$35+B115*$D$36 ->  | C117: =C114*$D$35+C115*$D$36 ->  | D117: =D114*$D$35+D115*$D$36 -> 
B118: Per person rtw | C118: =-IFERROR((Charts_Background!C117/Charts_Background!G118)*IFERROR(IF(('Direct Health Benefits'!G46/'Financial Benefits'!G13)*(IF('Financial Benefits'!G17=Dropdowns_other!C1,'Direct Health Benefits'!G50,IF('Financial Benefits'!G17=Dropdowns_other!C2,'Direct Health Benefits'!I50)))=0,"",('Direct Health Benefits'!G46/'Financial Benefits'!G13)*(IF('Financial Benefits'!G17=Dropdowns_other!C1,'Direct Health Benefits'!G50,IF('Financial Benefits'!G17=Dropdowns_other!C2,'Direct Health Benefits'!I50)))),""),"") ->  | G118: =G115*$D$35+G116*$D$36 -> 
B119: cohort | C119: =C118*'Financial Benefits'!G13 -> 

Sheet Dropdowns_locations (hidden)
A1: National | B1: Regional | C1: County & Unitary Authority | D1: District & Unitary Authority | E1: CCG | F1: STP | G1: Combined Authority
A2: England | B2: East Midlands | C2: Bath and North East Somerset | D2: Adur | E2: NHS Airedale, Wharfdale and Craven | F2: Bath, Swindon and Wiltshire STP | G2: Tees Valley
B3: East | C3: Bedford | D3: Allerdale | E3: NHS Ashford | F3: Birmingham and Solihull STP | G3: Liverpool City Region
B4: London | C4: Blackburn with Darwen | D4: Amber Valley | E4: NHS Aylesbury Vale | F4: Black Country and West Birmingham STP | G4: West of England
B5: North East | C5: Blackpool | D5: Arun | E5: NHS Barking and Dagenham | F5: Bristol, North Somerset, South Gloucestershire STP | G5: Cambridgeshire and Peterborough
B6: North West | C6: Bournemouth | D6: Ashfield | E6: NHS Barnet | F6: Buckinghamshire, Oxfordshire and Berkshire STP | G6: North East
B7: South East | C7: Bracknell Forest | D7: Ashford | E7: NHS Barnsley | F7: Cambridgeshire and Peterborough STP | G7: Greater Manchester
B8: South West | C8: Brighton and Hove | D8: Aylesbury Vale | E8: NHS Basildon and Brentwood | F8: Cheshire and Merseyside STP | G8: Sheffield City Region
B9: West Midlands | C9: Bristol, City of | D9: Babergh | E9: NHS Bassetlaw | F9: Humber, Coast and Vale STP | G9: West Midlands
B10: Yorkshire and The Humber | C10: Buckinghamshire | D10: Barking and Dagenham | E10: NHS Bath and North East Somerset | F10: Cornwall and the Isles of Scilly STP | G10: West Yorkshire
C11: Cambridgeshire | D11: Barnet | E11: NHS Bedfordshire | F11: Coventry and Warwickshire STP | G11: North East London
C12: Central Bedfordshire | D12: Barnsley | E12: NHS Bexley | F12: Derbyshire STP | G12: North Central London
C13: Cheshire East | D13: Barrow-in-Furness | E13: NHS Birmingham Crosscity | F13: Devon STP | G13: South East London
C14: Cheshire West and Chester | D14: Basildon | E14: NHS Birmingham South and Central | F14: Dorset STP | G14: North West London
C15: Cornwall | D15: Basingstoke and Deane | E15: NHS Blackburn with Darwen | F15: Durham, Darlington and Tees, Hambleton, Richmondshire and Whitby STP | G15: South West London
C16: County Durham | D16: Bassetlaw | E16: NHS Blackpool | F16: Frimley Health STP
C17: Cumbria | D17: Bath and North East Somerset | E17: NHS Bolton | F17: Gloucestershire STP
C18: Darlington | D18: Bedford | E18: NHS Bracknell and Ascot | F18: Greater Manchester STP
C19: Derby | D19: Bexley | E19: NHS Bradford City | F19: Hampshire and the Isle of Wight STP
C20: Derbyshire | D20: Birmingham | E20: NHS Bradford Districts | F20: Herefordshire and Worcestershire STP
C21: Devon | D21: Blaby | E21: NHS Brent | F21: Hertfordshire and West Essex STP
C22: Dorset | D22: Blackburn with Darwen | E22: NHS Brighton and Hove | F22: Kent & Medway STP
C23: East Riding of Yorkshire | D23: Blackpool | E23: NHS Bristol | F23: Lancashire and South Cumbria STP
C24: East Sussex | D24: Bolsover | E24: NHS Bromley | F24: Leicester, Leicestershire and Rutland STP
C25: Essex | D25: Bolton | E25: NHS Bury | F25: Lincolnshire STP
C26: Gloucestershire | D26: Boston | E26: NHS Calderdale | F26: Mid and South Essex STP
C27: Greater Manchester (Met County) | D27: Bournemouth | E27: NHS Cambridgeshire and Peterborough | F27: Milton Keynes, Bedfordshire and Luton STP
C28: Halton | D28: Bracknell Forest | E28: NHS Camden | F28: Norfolk STP
C29: Hampshire | D29: Bradford | E29: NHS Cannock Chase | F29: North Central London STP
C30: Hartlepool | D30: Braintree | E30: NHS Canterbury and Coastal | F30: North East London STP
C31: Herefordshire, County of | D31: Breckland | E31: NHS Castle Point and Rochford | F31: North West London STP
C32: Hertfordshire | D32: Brent | E32: NHS Central London (Westminster) | F32: Northamptonshire STP
C33: Inner London | D33: Brentwood | E33: NHS Central Manchester | F33: Northumberland, Tyne and Wear STP
C34: Isle of Wight | D34: Brighton and Hove | E34: NHS Chiltern | F34: Nottinghamshire STP
C35: Isles of Scilly | D35: Bristol, City of | E35: NHS Chorley and South Ribble | F35: Shropshire, Telford and Wrekin STP
C36: Kent | D36: Broadland | E36: NHS City and Hackney | F36: Somerset STP
C37: Kingston upon Hull, City of | D37: Bromley | E37: NHS Coastal West Sussex | F37: South East London STP
C38: Lancashire | D38: Bromsgrove | E38: NHS Corby | F38: South West London STP
C39: Leicester | D39: Broxbourne | E39: NHS Coventry and Rugby | F39: South Yorkshire and Bassetlaw STP
C40: Leicestershire | D40: Broxtowe | E40: NHS Crawley | F40: Staffordshire STP
C41: Lincolnshire | D41: Burnley | E41: NHS Croydon | F41: Suffolk and North East Essex STP
C42: Luton | D42: Bury | E42: NHS Cumbria | F42: Surrey Heartlands STP
C43: Medway | D43: Calderdale | E43: NHS Darlington | F43: Sussex and East Surrey STP
C44: Merseyside (Met County) | D44: Cambridge | E44: NHS Dartford, Gravesham and Swanley | F44: West Yorkshire STP
C45: Middlesbrough | D45: Camden | E45: NHS Doncaster | F45: West, North and East Cumbria STP
C46: Milton Keynes | D46: Cannock Chase | E46: NHS Dorset
C47: Norfolk | D47: Canterbury | E47: NHS Dudley
C48: North East Lincolnshire | D48: Carlisle | E48: NHS Durham Dales, Easington and Sedgefield
C49: North Lincolnshire | D49: Castle Point | E49: NHS Ealing
C50: North Somerset | D50: Central Bedfordshire | E50: NHS East and North Hertfordshire
C51: North Yorkshire | D51: Charnwood | E51: NHS East Lancashire
C52: Northamptonshire | D52: Chelmsford | E52: NHS East Leicestershire and Rutland
C53: Northumberland | D53: Cheltenham | E53: NHS East Riding of Yorkshire
C54: Nottingham | D54: Cherwell | E54: NHS East Staffordshire
C55: Nottinghamshire | D55: Cheshire East | E55: NHS East Surrey
C56: Outer London | D56: Cheshire West and Chester | E56: NHS Eastbourne, Hailsham and Seaford
C57: Oxfordshire | D57: Chesterfield | E57: NHS Eastern Cheshire
C58: Peterborough | D58: Chichester | E58: NHS Enfield
C59: Plymouth | D59: Chiltern | E59: NHS Erewash
C60: Poole | D60: Chorley | E60: NHS Fareham and Gosport
C61: Portsmouth | D61: Christchurch | E61: NHS Fylde & Wyre
C62: Reading | D62: City of London | E62: NHS Gloucestershire
C63: Redcar and Cleveland | D63: Colchester | E63: NHS Great Yarmouth and Waveney
C64: Rutland | D64: Copeland | E64: NHS Greater Huddersfield
C65: Shropshire | D65: Corby | E65: NHS Greater Preston
C66: Slough | D66: Cornwall | E66: NHS Greenwich
C67: Somerset | D67: Cotswold | E67: NHS Guildford and Waverley
C68: South Gloucestershire | D68: County Durham | E68: NHS Halton
C69: South Yorkshire (Met County) | D69: Coventry | E69: NHS Hambleton, Richmondshire and Whitby
C70: Southampton | D70: Craven | E70: NHS Hammersmith and Fulham
C71: Southend-on-Sea | D71: Crawley | E71: NHS Hardwick
C72: Staffordshire | D72: Croydon | E72: NHS Haringey
C73: Stockton-on-Tees | D73: Dacorum | E73: NHS Harrogate and Rural District
C74: Stoke-on-Trent | D74: Darlington | E74: NHS Harrow
C75: Suffolk | D75: Dartford | E75: NHS Hartlepool and Stockton-On-Tees
C76: Surrey | D76: Daventry | E76: NHS Hastings and Rother
C77: Swindon | D77: Derby | E77: NHS Havering
C78: Telford and Wrekin | D78: Derbyshire Dales | E78: NHS Herefordshire
C79: Thurrock | D79: Doncaster | E79: NHS Herts Valleys
C80: Torbay | D80: Dover | E80: NHS Heywood, Middleton and Rochdale
C81: Tyne and Wear (Met County) | D81: Dudley | E81: NHS High Weald Lewes Havens
C82: Warrington | D82: Ealing | E82: NHS Hillingdon
C83: Warwickshire | D83: East Cambridgeshire | E83: NHS Horsham and Mid Sussex
C84: West Berkshire | D84: East Devon | E84: NHS Hounslow
C85: West Midlands (Met County) | D85: East Dorset | E85: NHS Hull
C86: West Sussex | D86: East Hampshire | E86: NHS Ipswich and East Suffolk
C87: West Yorkshire (Met County) | D87: East Hertfordshire | E87: NHS Isle of Wight
C88: Wiltshire | D88: East Lindsey | E88: NHS Islington
C89: Windsor and Maidenhead | D89: East Northamptonshire | E89: NHS Kernow
C90: Wokingham | D90: East Riding of Yorkshire | E90: NHS Kingston
C91: Worcestershire | D91: East Staffordshire | E91: NHS Knowsley
C92: York | D92: Eastbourne | E92: NHS Lambeth
D93: Eastleigh | E93: NHS Lancashire North
D94: Eden | E94: NHS Leeds North
D95: Elmbridge | E95: NHS Leeds South and East
D96: Enfield | E96: NHS Leeds West
D97: Epping Forest | E97: NHS Leicester City
D98: Epsom and Ewell | E98: NHS Lewisham
D99: Erewash | E99: NHS Lincolnshire East
D100: Exeter | E100: NHS Lincolnshire West
D101: Fareham | E101: NHS Liverpool
D102: Fenland | E102: NHS Luton
D103: Forest Heath | E103: NHS Mansfield and Ashfield
D104: Forest of Dean | E104: NHS Medway
D105: Fylde | E105: NHS Merton
D106: Gateshead | E106: NHS Mid Essex
D107: Gedling | E107: NHS Milton Keynes
D108: Gloucester | E108: NHS Nene
D109: Gosport | E109: NHS Newark & Sherwood
D110: Gravesham | E110: NHS Newbury and District
D111: Great Yarmouth | E111: NHS Newcastle Gateshead
D112: Greenwich | E112: NHS Newham
D113: Guildford | E113: NHS North & West Reading
D114: Hackney | E114: NHS North Derbyshire
D115: Halton | E115: NHS North Durham
D116: Hambleton | E116: NHS North East Essex
D117: Hammersmith and Fulham | E117: NHS North East Hampshire and Farnham
D118: Harborough | E118: NHS North East Lincolnshire
D119: Haringey | E119: NHS North Hampshire
D120: Harlow | E120: NHS North Kirklees
D121: Harrogate | E121: NHS North Lincolnshire
D122: Harrow | E122: NHS North Manchester
D123: Hart | E123: NHS North Norfolk
D124: Hartlepool | E124: NHS North Somerset
D125: Hastings | E125: NHS North Staffordshire
D126: Havant | E126: NHS North Tyneside
D127: Havering | E127: NHS North West Surrey
D128: Herefordshire, County of | E128: NHS North, East, West Devon
D129: Hertsmere | E129: NHS Northumberland
D130: High Peak | E130: NHS Norwich
D131: Hillingdon | E131: NHS Nottingham City
D132: Hinckley and Bosworth | E132: NHS Nottingham North and East
D133: Horsham | E133: NHS Nottingham West
D134: Hounslow | E134: NHS Oldham
D135: Huntingdonshire | E135: NHS Oxfordshire
D136: Hyndburn | E136: NHS Portsmouth
D137: Ipswich | E137: NHS Redbridge
D138: Isle of Wight | E138: NHS Redditch and Bromsgrove
D139: Isles of Scilly | E139: NHS Richmond
D140: Islington | E140: NHS Rotherham
D141: Kensington and Chelsea | E141: NHS Rushcliffe
D142: Kettering | E142: NHS Salford
D143: King's Lynn and West Norfolk | E143: NHS Sandwell and West Birmingham
D144: Kingston upon Hull, City of | E144: NHS Scarborough and Ryedale
D145: Kingston upon Thames | E145: NHS Sheffield
D146: Kirklees | E146: NHS Shropshire
D147: Knowsley | E147: NHS Slough
D148: Lambeth | E148: NHS Solihull
D149: Lancaster | E149: NHS Somerset
D150: Leeds | E150: NHS South Cheshire
D151: Leicester | E151: NHS South Devon and Torbay
D152: Lewes | E152: NHS South East Staffs and Seisdon Peninsular
D153: Lewisham | E153: NHS South Eastern Hampshire
D154: Lichfield | E154: NHS South Gloucestershire
D155: Lincoln | E155: NHS South Kent Coast
D156: Liverpool | E156: NHS South Lincolnshire
D157: Luton | E157: NHS South Manchester
D158: Maidstone | E158: NHS South Norfolk
D159: Maldon | E159: NHS South Reading
D160: Malvern Hills | E160: NHS South Sefton
D161: Manchester | E161: NHS South Tees
D162: Mansfield | E162: NHS South Tyneside
D163: Medway | E163: NHS South Warwickshire
D164: Melton | E164: NHS South West Lincolnshire
D165: Mendip | E165: NHS South Worcestershire
D166: Merton | E166: NHS Southampton
D167: Mid Devon | E167: NHS Southend
D168: Mid Suffolk | E168: NHS Southern Derbyshire
D169: Mid Sussex | E169: NHS Southport and Formby
D170: Middlesbrough | E170: NHS Southwark
D171: Milton Keynes | E171: NHS St Helens
D172: Mole Valley | E172: NHS Stafford and Surrounds
D173: New Forest | E173: NHS Stockport
D174: Newark and Sherwood | E174: NHS Stoke on Trent
D175: Newcastle upon Tyne | E175: NHS Sunderland
D176: Newcastle-under-Lyme | E176: NHS Surrey Downs
D177: Newham | E177: NHS Surrey Heath
D178: North Devon | E178: NHS Sutton
D179: North Dorset | E179: NHS Swale
D180: North East Derbyshire | E180: NHS Swindon
D181: North East Lincolnshire | E181: NHS Tameside and Glossop
D182: North Hertfordshire | E182: NHS Telford and Wrekin
D183: North Kesteven | E183: NHS Thanet
D184: North Lincolnshire | E184: NHS Thurrock
D185: North Norfolk | E185: NHS Tower Hamlets
D186: North Somerset | E186: NHS Trafford
D187: North Tyneside | E187: NHS Vale of York
D188: North Warwickshire | E188: NHS Vale Royal
D189: North West Leicestershire | E189: NHS Wakefield
D190: Northampton | E190: NHS Walsall
D191: Northumberland | E191: NHS Waltham Forest
D192: Norwich | E192: NHS Wandsworth
D193: Nottingham | E193: NHS Warrington
D194: Nuneaton and Bedworth | E194: NHS Warwickshire North
D195: Oadby and Wigston | E195: NHS West Cheshire
D196: Oldham | E196: NHS West Essex
D197: Oxford | E197: NHS West Hampshire
D198: Pendle | E198: NHS West Kent
D199: Peterborough | E199: NHS West Lancashire
D200: Plymouth | E200: NHS West Leicestershire
... 127 more rows

Sheet Dropdowns_other (hidden)
A1: Non UC | B1: Galic (2008) | C1: 2016/2017
A2: UC | B2: Butterworth (2011) [Good Quality job] | C2: ="All years"& " (" & 'Return to Work'!G19 & " years)" -> All years (1 years)
B3: Schuring (2010)
A6: ="Government"& " (" & "financial)" -> Government (financial)
A7: ="Society"& " (" & "financial)" -> Society (financial)
A8: ="Society"& " (" & "economic value)" -> Society (economic value)
A11: Value of a QALY | B11: 60000
A12: Discount rate (financial costs & benefits) | B12: 0.035
A13: Discount rate (health benefits) | B13: 0.015

Sheet LI01 (hidden)
B1: Local area data
B2: LI01 Local labour market indicators by unitary and local authority
U3: not seasonally adjusted
E4: January 2016 to December 2016 | U4: 2015
C5: Population1 | E5: Labour supply | U5: Labour demand7
E6: Employment2 | I6: Unemployment3 | M6: Economic inactivity2 | Q6: Claimant Count5 | U6: Jobs8
C7: 16-64 (000s) | E7: Total 16+ (000s) | G7: 16-64 Rate (%) | I7: Total 16+ (000s) | K7: Rate4 (%) | M7: Total 16-64 (000s) | O7: 16-64 Rate (%) | Q7: Level | S7: Proportion6 (%) | U7: Total (000s) | W7: Jobs Density 16-64 (ratio)
C8: 1 | E8: 2 | G8: 3 | I8: 4 | K8: 5 | M8: 6 | O8: 7 | Q8: 8 | S8: 9 | U8: 10 | W8: 11
A10: K02000001 | B10: UNITED KINGDOM | C10: 41241002 | E10: 31483914 | G10: 73.9 | I10: 1606259 | K10: 4.9 | L10: 0 | M10: 9131977 | O10: 22.3 | Q10: 776470 | S10: 1.9 | U10: 34059000 | W10: 0.83
X11: Select Region
A12: K03000001 | B12: GREAT BRITAIN | C12: 40066405 | E12: 30648330 | G12: 74 | I12: 1551565 | K12: 4.8 | L12: 0 | M12: 8827396 | O12: 22.2 | Q12: 740360 | S12: 1.8 | U12: 33202000 | W12: 0.83
A14: E92000001 | B14: ENGLAND | C14: 34669641 | E14: 26649772 | G14: 74.3 | I14: 1351756 | K14: 4.8 | L14: 0 | M14: 7553096 | O14: 21.9 | Q14: 618900 | S14: 1.8 | U14: 29041000 | W14: 0.84
A16: E12000001 | B16: NORTH EAST | C16: 1660407 | D16: 0 | E16: 1198730 | G16: 70.4 | I16: 84893 | K16: 6.6 | L16: 0 | M16: 404276 | O16: 24.5 | Q16: 50150 | S16: 3 | U16: 1204000 | W16: 0.73 | X16: North East
X17: North East
A18: E06000047 | B18: County Durham | C18: 327617 | E18: 238519 | G18: 70.8 | I18: 14800 | K18: 5.9 | M18: 78496 | O18: 24.1 | Q18: 7580 | S18: 2.313677251 | U18: 200000 | W18: 0.61 | X18: North East
A19: E06000005 | B19: Darlington | C19: 64814 | E19: 49886 | G19: 74.9 | I19: 3400 | K19: 6.31907171 | M19: 13072 | O19: 20.4 | Q19: 2060 | S19: 3.17832567 | U19: 58000 | W19: 0.9 | X19: North East
A20: E06000001 | B20: Hartlepool | C20: 57604 | E20: 37643 | G20: 64.4 | I20: 3700 | K20: 8.98477398 | M20: 16196 | O20: 28.4 | Q20: 2760 | S20: 4.791333935 | U20: 35000 | W20: 0.6 | X20: North East
A21: E06000002 | B21: Middlesbrough | C21: 88789 | E21: 60153 | G21: 65.6 | I21: 5300 | K21: 8.09950972 | M21: 26358 | O21: 29.6 | Q21: 4225 | S21: 4.758472333 | U21: 68000 | W21: 0.77 | X21: North East
A22: E06000057 | B22: Northumberland | C22: 190478 | E22: 142381 | G22: 72.2 | I22: 8300 | K22: 5.5 | M22: 44536 | O22: 23.6 | Q22: 4590 | S22: 2.409727108 | U22: 126000 | W22: 0.66 | X22: North East
A23: E06000003 | B23: Redcar and Cleveland | C23: 81853 | E23: 56707 | G23: 68.3 | I23: 4600 | K23: 7.44347413 | M23: 21626 | O23: 26.8 | Q23: 3290 | S23: 4.019400633 | U23: 47000 | W23: 0.58 | X23: North East
A24: E06000004 | B24: Stockton-on-Tees | C24: 122849 | E24: 88670 | G24: 70.8 | I24: 6100 | K24: 6.42854317 | M24: 31297 | O24: 25.6 | Q24: 3930 | S24: 3.199049239 | U24: 94000 | W24: 0.76 | X24: North East
X25: North East
A26: E11000007 | B26: Tyne and Wear (Met County) | C26: 726403 | E26: 524771 | G26: 70.7 | I26: 38700 | K26: 6.9 | M26: 172695 | O26: 23.8 | Q26: 21715 | S26: 2.989387434 | U26: 576000 | W26: 0.79 | X26: North East
A27: E08000037 | B27: Gateshead | C27: 127506 | E27: 94748 | G27: 73.1 | I27: 6400 | K27: 6.29174669 | M27: 27324 | O27: 21.8 | Q27: 3465 | S27: 2.717519176 | U27: 107000 | W27: 0.84 | X27: North East
A28: E08000021 | B28: Newcastle upon Tyne | C28: 200340 | E28: 137612 | G28: 67.7 | I28: 10500 | K28: 7.05754547 | M28: 53298 | O28: 26.6 | Q28: 5405 | S28: 2.697913547 | U28: 199000 | W28: 0.99 | X28: North East
A29: E08000022 | B29: North Tyneside | C29: 127345 | E29: 101296 | G29: 76.3 | I29: 6100 | K29: 5.68602834 | M29: 24958 | O29: 19.4 | Q29: 3240 | S29: 2.544269504 | U29: 90000 | W29: 0.7 | X29: North East
A30: E08000023 | B30: South Tyneside | C30: 93702 | E30: 66657 | G30: 68.7 | I30: 5900 | K30: 8.07743088 | M30: 23653 | O30: 25.1 | Q30: 4115 | S30: 4.391581823 | U30: 52000 | W30: 0.55 | X30: North East
A31: E08000024 | B31: Sunderland | C31: 177510 | E31: 124458 | G31: 69.2 | I31: 9900 | K31: 7.3841684 | M31: 43462 | O31: 24.7 | Q31: 5485 | S31: 3.089966762 | U31: 129000 | W31: 0.73 | X31: North East
X32: North East
X33: North East
A34: E12000002 | B34: NORTH WEST | C34: 4519159 | E34: 3323473 | G34: 71.6 | I34: 181029 | K34: 5.2 | M34: 1096473 | O34: 24.4 | Q34: 105990 | S34: 2.3 | U34: 3581000 | W34: 0.79 | X34: North West
X35: North West
A36: E06000008 | B36: Blackburn with Darwen | C36: 91844 | E36: 61148 | G36: 65.6 | I36: 4100 | K36: 6.26532907 | M36: 27671 | O36: 30.6 | Q36: 2620 | S36: 2.852663212 | U36: 72000 | W36: 0.78 | X36: North West
A37: E06000009 | B37: Blackpool | C37: 85767 | E37: 60052 | G37: 71.2 | I37: 4300 | K37: 6.64353181 | M37: 19879 | O37: 24.2 | Q37: 3395 | S37: 3.958398918 | U37: 67000 | W37: 0.78 | X37: North West
A38: E06000049 | B38: Cheshire East | C38: 226971 | E38: 180496 | G38: 76.4 | I38: 6700 | K38: 3.6 | M38: 45033 | O38: 20 | Q38: 2545 | S38: 1.121288623 | U38: 216000 | W38: 0.95 | X38: North West
A39: E06000050 | B39: Cheshire West and Chester | C39: 206441 | E39: 156011 | G39: 72.7 | I39: 6500 | K39: 4 | M39: 50871 | O39: 24.9 | Q39: 2850 | S39: 1.380539718 | U39: 184000 | W39: 0.89 | X39: North West
A40: E06000006 | B40: Halton | C40: 79794 | E40: 59241 | G40: 71.9 | I40: 3200 | K40: 5.13992438 | M40: 19630 | O40: 24.7 | Q40: 2175 | S40: 2.725768855 | U40: 61000 | W40: 0.77 | X40: North West
A41: E06000007 | B41: Warrington | C41: 131296 | E41: 103837 | G41: 76.2 | I41: 4300 | K41: 4.00634685 | M41: 28173 | O41: 21.3 | Q41: 2185 | S41: 1.66417865 | U41: 135000 | W41: 1.03 | X41: North West
X42: North West
A43: E10000006 | B43: Cumbria | C43: 301075 | E43: 234666 | G43: 75.5 | I43: 9700 | K43: 4 | M43: 62903 | O43: 21.2 | Q43: 4630 | S43: 1.537822802 | U43: 271000 | W43: 0.9 | X43: North West
A44: E07000026 | B44: Allerdale | C44: 58273 | E44: 48597 | G44: 82.9 | I44: 2000 | K44: 3.97773385 | M44: 8332 | O44: 14.7 | Q44: 1100 | S44: 1.887666672 | U44: 43000 | W44: 0.73 | X44: North West
A45: E07000027 | B45: Barrow-in-Furness | C45: 41543 | E45: 29409 | G45: 66.1 | I45: 1700 | K45: 5.55654625 | M45: 13600 | O45: 31.9 | Q45: 1140 | S45: 2.744144621 | U45: 35000 | W45: 0.83 | X45: North West
A46: E07000028 | B46: Carlisle | C46: 67106 | E46: 49107 | G46: 67.8 | I46: 2300 | K46: 4.45081161 | M46: 18252 | O46: 26.5 | Q46: 925 | S46: 1.378416237 | U46: 67000 | W46: 1 | X46: North West
A47: E07000029 | B47: Copeland | C47: 43137 | E47: 28649 | G47: 68.8 | I47: 1700 | K47: 5.45299246 | M47: 10089 | O47: 24.8 | Q47: 900 | S47: 2.086375965 | U47: 35000 | W47: 0.82 | X47: North West
A48: E07000030 | B48: Eden | C48: 31265 | E48: 28942 | G48: 87.2 | I48: 700 | K48: 2.47247745 | M48: 3683 | O48: 11.8 | Q48: 215 | S48: 0.6876699184 | U48: 31000 | W48: 0.99 | X48: North West
A49: E07000031 | B49: South Lakeland | C49: 59751 | E49: 49962 | G49: 83 | I49: 1200 | K49: 2.43013128 | M49: 8947 | O49: 15.6 | Q49: 345 | S49: 0.5773961942 | U49: 60000 | W49: 1.01 | X49: North West
X50: North West
A51: E11000001 | B51: Greater Manchester (Met County) | C51: 1768645 | E51: 1273403 | G51: 70.5 | I51: 79400 | K51: 5.9 | M51: 437395 | O51: 24.8 | Q51: 46195 | S51: 2.611886501 | U51: 1387000 | W51: 0.78 | X51: North West
A52: E08000001 | B52: Bolton | C52: 175194 | E52: 126517 | G52: 71.1 | I52: 8100 | K52: 6.01763554 | M52: 42324 | O52: 24.3 | Q52: 5320 | S52: 3.036633675 | U52: 120000 | W52: 0.69 | X52: North West
A53: E08000002 | B53: Bury | C53: 116412 | E53: 87906 | G53: 72.3 | I53: 4700 | K53: 5.0526035 | M53: 27862 | O53: 23.8 | Q53: 2880 | S53: 2.473971755 | U53: 75000 | W53: 0.65 | X53: North West
A54: E08000003 | B54: Manchester | C54: 374440 | E54: 238571 | G54: 63.3 | I54: 19500 | K54: 7.54280469 | M54: 114475 | O54: 31 | Q54: 10495 | S54: 2.802852259 | U54: 399000 | W54: 1.07 | X54: North West
A55: E08000004 | B55: Oldham | C55: 142255 | E55: 100343 | G55: 68.6 | I55: 6900 | K55: 6.41458761 | M55: 36933 | O55: 26 | Q55: 4250 | S55: 2.987592703 | U55: 90000 | W55: 0.63 | X55: North West
A56: E08000005 | B56: Rochdale | C56: 134646 | E56: 84855 | G56: 62.5 | I56: 6600 | K56: 7.26512921 | M56: 42516 | O56: 32.1 | Q56: 3915 | S56: 2.907624437 | U56: 81000 | W56: 0.6 | X56: North West
A57: E08000006 | B57: Salford | C57: 161322 | E57: 113451 | G57: 69.5 | I57: 8300 | K57: 6.8140346 | M57: 38519 | O57: 24 | Q57: 4540 | S57: 2.814247282 | U57: 129000 | W57: 0.8 | X57: North West
A58: E08000007 | B58: Stockport | C58: 177076 | E58: 143136 | G58: 78.6 | I58: 6400 | K58: 4.27008928 | M58: 31918 | O58: 18.1 | Q58: 3390 | S58: 1.914432221 | U58: 139000 | W58: 0.78 | X58: North West
A59: E08000008 | B59: Tameside | C59: 139640 | E59: 100376 | G59: 70.3 | I59: 6100 | K59: 5.76747743 | M59: 34010 | O59: 24.6 | Q59: 3755 | S59: 2.689057577 | U59: 79000 | W59: 0.56 | X59: North West
A60: E08000009 | B60: Trafford | C60: 145198 | E60: 122549 | G60: 79.8 | I60: 4600 | K60: 3.64625234 | M60: 26820 | O60: 18 | Q60: 2420 | S60: 1.666689624 | U60: 159000 | W60: 1.1 | X60: North West
A61: E08000010 | B61: Wigan | C61: 202462 | E61: 155699 | G61: 75.3 | I61: 8200 | K61: 4.9938228 | M61: 42018 | O61: 20.8 | Q61: 5230 | S61: 2.583200798 | U61: 116000 | W61: 0.58 | X61: North West
X62: North West
A63: E10000017 | B63: Lancashire | C63: 736565 | E63: 573421 | G63: 74.9 | I63: 27300 | K63: 4.5 | M63: 158391 | O63: 21.7 | Q63: 13595 | S63: 1.845729841 | U63: 573000 | W63: 0.78 | X63: North West
A64: E07000117 | B64: Burnley | C64: 53938 | E64: 43850 | G64: 76.5 | I64: 2700 | K64: 5.81620678 | M64: 10484 | O64: 19.5 | Q64: 1635 | S64: 3.031258111 | U64: 43000 | W64: 0.79 | X64: North West
A65: E07000118 | B65: Chorley | C65: 70728 | E65: 51402 | G65: 74.8 | I65: 2300 | K65: 4.16252018 | M65: 14918 | O65: 22.3 | Q65: 1070 | S65: 1.512837914 | U65: 46000 | W65: 0.65 | X65: North West
A66: E07000119 | B66: Fylde | C66: 44693 | E66: 34271 | G66: 75.8 | I66: 1400 | K66: 3.90651112 | M66: 9597 | O66: 22 | Q66: 605 | S66: 1.353679547 | U66: 48000 | W66: 1.07 | X66: North West
A67: E07000120 | B67: Hyndburn | C67: 49412 | E67: 39513 | G67: 73.8 | I67: 2100 | K67: 5.06706834 | M67: 9679 | O67: 19.4 | Q67: 1215 | S67: 2.458916862 | U67: 33000 | W67: 0.67 | X67: North West
A68: E07000121 | B68: Lancaster | C68: 90959 | E68: 73793 | G68: 77.4 | I68: 3500 | K68: 4.561356 | M68: 16523 | O68: 18.7 | Q68: 1680 | S68: 1.846986005 | U68: 62000 | W68: 0.68 | X68: North West
A69: E07000122 | B69: Pendle | C69: 55179 | E69: 42939 | G69: 76.4 | I69: 2000 | K69: 4.54852176 | M69: 11300 | O69: 20.9 | Q69: 1170 | S69: 2.120371881 | U69: 33000 | W69: 0.6 | X69: North West
A70: E07000123 | B70: Preston | C70: 93143 | E70: 63764 | G70: 68.6 | I70: 3800 | K70: 5.6353198 | M70: 24870 | O70: 26.9 | Q70: 1940 | S70: 2.082818891 | U70: 96000 | W70: 1.03 | X70: North West
A71: E07000124 | B71: Ribble Valley | C71: 34901 | E71: 31017 | G71: 83.8 | I71: 900 | K71: 2.73469998 | M71: 4710 | O71: 13.5 | Q71: 250 | S71: 0.7163118535 | U71: 38000 | W71: 1.09 | X71: North West
A72: E07000125 | B72: Rossendale | C72: 43588 | E72: 32374 | G72: 72.9 | I72: 1700 | K72: 5.03626966 | M72: 10780 | O72: 24.7 | Q72: 890 | S72: 2.04184638 | U72: 27000 | W72: 0.62 | X72: North West
A73: E07000126 | B73: South Ribble | C73: 67478 | E73: 60304 | G73: 83.4 | I73: 2200 | K73: 3.50947297 | M73: 10820 | O73: 15.5 | Q73: 855 | S73: 1.267079641 | U73: 58000 | W73: 0.85 | X73: North West
A74: E07000127 | B74: West Lancashire | C74: 69416 | E74: 52275 | G74: 70.3 | I74: 2500 | K74: 4.58653152 | M74: 19808 | O74: 28.5 | Q74: 1320 | S74: 1.901578887 | U74: 51000 | W74: 0.74 | X74: North West
A75: E07000128 | B75: Wyre | C75: 63130 | E75: 47919 | G75: 70.5 | I75: 2200 | K75: 4.37501827 | M75: 14902 | O75: 23.2 | Q75: 970 | S75: 1.536511959 | U75: 38000 | W75: 0.61 | X75: North West
X76: North West
A77: E11000002 | B77: Merseyside (Met County) | C77: 890761 | E77: 621198 | G77: 68.1 | I77: 35500 | K77: 5.4 | M77: 246527 | O77: 27.9 | Q77: 25800 | S77: 2.89639982 | U77: 616000 | W77: 0.69 | X77: North West
A78: E08000011 | B78: Knowsley | C78: 93818 | E78: 66552 | G78: 70.4 | I78: 3900 | K78: 5.55271455 | M78: 23056 | O78: 24.9 | Q78: 3125 | S78: 3.330917308 | U78: 69000 | W78: 0.73 | X78: North West
A79: E08000012 | B79: Liverpool | C79: 327711 | E79: 213376 | G79: 64.3 | I79: 15100 | K79: 6.62305619 | M79: 99121 | O79: 30.8 | Q79: 11150 | S79: 3.40238808 | U79: 263000 | W79: 0.8 | X79: North West
A80: E08000014 | B80: Sefton | C80: 164985 | E80: 118941 | G80: 70.1 | I80: 6100 | K80: 4.84940105 | M80: 42541 | O80: 26.2 | Q80: 4255 | S80: 2.579022335 | U80: 100000 | W80: 0.61 | X80: North West
A81: E08000013 | B81: St. Helens | C81: 110143 | E81: 82600 | G81: 71.3 | I81: 4200 | K81: 4.83206241 | M81: 28183 | O81: 25.2 | Q81: 3145 | S81: 2.855378916 | U81: 67000 | W81: 0.61 | X81: North West
A82: E08000015 | B82: Wirral | C82: 194104 | E82: 139729 | G82: 69.7 | I82: 6200 | K82: 4.27198527 | M82: 53626 | O82: 27.7 | Q82: 4125 | S82: 2.125149404 | U82: 117000 | W82: 0.6 | X82: North West
X83: North West
X84: North West
A85: E12000003 | B85: YORKSHIRE AND THE HUMBER | C85: 3397836 | E85: 2535710 | G85: 72.5 | I85: 138711 | K85: 5.2 | M85: 790275 | O85: 23.4 | Q85: 75375 | S85: 2.2 | U85: 2676000 | W85: 0.79 | X85: Yorkshire and The Humber
X86: Yorkshire and The Humber
A87: E06000011 | B87: East Riding of Yorkshire | C87: 199172 | E87: 162392 | G87: 77.5 | I87: 6400 | K87: 3.77952365 | M87: 38537 | O87: 19.4 | Q87: 2865 | S87: 1.438455205 | U87: 138000 | W87: 0.69 | X87: Yorkshire and The Humber
A88: E06000010 | B88: Kingston upon Hull, City of | C88: 170881 | E88: 117611 | G88: 68.5 | I88: 9300 | K88: 7.29734834 | M88: 42865 | O88: 25.5 | Q88: 6460 | S88: 3.780408588 | U88: 130000 | W88: 0.76 | X88: Yorkshire and The Humber
A89: E06000012 | B89: North East Lincolnshire | C89: 97980 | E89: 72140 | G89: 71.1 | I89: 4800 | K89: 6.26696288 | M89: 23655 | O89: 24.1 | Q89: 3500 | S89: 3.572157583 | U89: 76000 | W89: 0.78 | X89: Yorkshire and The Humber
A90: E06000013 | B90: North Lincolnshire | C90: 104274 | E90: 78118 | G90: 72.6 | I90: 4500 | K90: 5.44580464 | M90: 23778 | O90: 22.8 | Q90: 2520 | S90: 2.416709822 | U90: 78000 | W90: 0.75 | X90: Yorkshire and The Humber
A91: E06000014 | B91: York | C91: 137319 | E91: 110386 | G91: 78 | I91: 3700 | K91: 3.21695809 | M91: 25733 | O91: 18.8 | Q91: 955 | S91: 0.695460934 | U91: 116000 | W91: 0.85 | X91: Yorkshire and The Humber
X92: Yorkshire and The Humber
A93: E10000023 | B93: North Yorkshire | C93: 359632 | E93: 306685 | G93: 81.9 | I93: 10000 | K93: 3.2 | M93: 56481 | O93: 16.1 | Q93: 3715 | S93: 1.0330004 | U93: 344000 | W93: 0.96 | X93: Yorkshire and The Humber
A94: E07000163 | B94: Craven | C94: 32470 | E94: 26380 | G94: 77.7 | I94: 900 | K94: 3.21982531 | M94: 6795 | O94: 21 | Q94: 255 | S94: 0.7853403141 | U94: 38000 | W94: 1.16 | X94: Yorkshire and The Humber
A95: E07000164 | B95: Hambleton | C95: 53136 | E95: 45717 | G95: 84.1 | I95: 1300 | K95: 2.7831103 | M95: 7426 | O95: 14.3 | Q95: 440 | S95: 0.8280638362 | U95: 52000 | W95: 0.98 | X95: Yorkshire and The Humber
A96: E07000165 | B96: Harrogate | C96: 93623 | E96: 81694 | G96: 85.2 | I96: 2300 | K96: 2.72370764 | M96: 11666 | O96: 13.1 | Q96: 690 | S96: 0.7369983871 | U96: 99000 | W96: 1.06 | X96: Yorkshire and The Humber
A97: E07000166 | B97: Richmondshire | C97: 32975 | E97: 24680 | G97: 77 | I97: 700 | K97: 2.81819128 | M97: 6857 | O97: 23 | Q97: 225 | S97: 0.6823351024 | U97: 26000 | W97: 0.8 | X97: Yorkshire and The Humber
A98: E07000167 | B98: Ryedale | C98: 30953 | E98: 25448 | G98: 77.2 | I98: 900 | K98: 3.33118984 | M98: 6230 | O98: 19.9 | Q98: 290 | S98: 0.9369043388 | U98: 32000 | W98: 1.02 | X98: Yorkshire and The Humber
A99: E07000168 | B99: Scarborough | C99: 62939 | E99: 56872 | G99: 80.8 | I99: 2200 | K99: 3.68196654 | M99: 10665 | O99: 16.7 | Q99: 1120 | S99: 1.779500786 | U99: 58000 | W99: 0.93 | X99: Yorkshire and The Humber
A100: E07000169 | B100: Selby | C100: 53536 | E100: 45894 | G100: 83.8 | I100: 1800 | K100: 3.75625002 | M100: 6842 | O100: 12.9 | Q100: 700 | S100: 1.307531381 | U100: 39000 | W100: 0.73 | X100: Yorkshire and The Humber
X101: Yorkshire and The Humber
A102: E11000003 | B102: South Yorkshire (Met County) | C102: 876582 | E102: 617784 | G102: 68.9 | I102: 39500 | K102: 6 | M102: 228565 | O102: 26.3 | Q102: 22340 | S102: 2.548535106 | U102: 622000 | W102: 0.71 | X102: Yorkshire and The Humber
A103: E08000016 | B103: Barnsley | C103: 150443 | E103: 111509 | G103: 71 | I103: 6300 | K103: 5.34838439 | M103: 38329 | O103: 24.9 | Q103: 3515 | S103: 2.336433068 | U103: 88000 | W103: 0.59 | X103: Yorkshire and The Humber
A104: E08000017 | B104: Doncaster | C104: 190596 | E104: 140343 | G104: 71.8 | I104: 8700 | K104: 5.82083674 | M104: 43886 | O104: 23.3 | Q104: 5205 | S104: 2.730907259 | U104: 138000 | W104: 0.72 | X104: Yorkshire and The Humber
A105: E08000018 | B105: Rotherham | C105: 161165 | E105: 108474 | G105: 66.6 | I105: 7500 | K105: 6.45028423 | M105: 43904 | O105: 27.6 | Q105: 4315 | S105: 2.677380325 | U105: 113000 | W105: 0.7 | X105: Yorkshire and The Humber
A106: E08000019 | B106: Sheffield | C106: 374378 | E106: 257458 | G106: 67.5 | I106: 17100 | K106: 6.20676301 | M106: 102446 | O106: 27.8 | Q106: 9305 | S106: 2.485455876 | U106: 283000 | W106: 0.76 | X106: Yorkshire and The Humber
X107: Yorkshire and The Humber
A108: E11000006 | B108: West Yorkshire (Met County) | C108: 1451996 | E108: 1070594 | G108: 71.7 | I108: 60500 | K108: 5.4 | M108: 350661 | O108: 24.3 | Q108: 33015 | S108: 2.273766594 | U108: 1172000 | W108: 0.81 | X108: Yorkshire and The Humber
A109: E08000032 | B109: Bradford | C109: 329736 | E109: 225558 | G109: 67.3 | I109: 15300 | K109: 6.34093842 | M109: 90781 | O109: 27.9 | Q109: 9195 | S109: 2.788594512 | U109: 228000 | W109: 0.69 | X109: Yorkshire and The Humber
A110: E08000033 | B110: Calderdale | C110: 130529 | E110: 102049 | G110: 74.8 | I110: 4700 | K110: 4.39654939 | M110: 29925 | O110: 22.6 | Q110: 2660 | S110: 2.037861318 | U110: 112000 | W110: 0.86 | X110: Yorkshire and The Humber
A111: E08000034 | B111: Kirklees | C111: 273152 | E111: 196681 | G111: 69.9 | I111: 11300 | K111: 5.43635321 | M111: 69514 | O111: 25.4 | Q111: 5715 | S111: 2.092241682 | U111: 184000 | W111: 0.67 | X111: Yorkshire and The Humber
A112: E08000035 | B112: Leeds | C112: 508958 | E112: 388599 | G112: 74.1 | I112: 21000 | K112: 5.12056392 | M112: 113762 | O112: 22.5 | Q112: 11510 | S112: 2.261483266 | U112: 485000 | W112: 0.95 | X112: Yorkshire and The Humber
A113: E08000036 | B113: Wakefield | C113: 209621 | E113: 157707 | G113: 73.2 | I113: 8300 | K113: 4.99982886 | M113: 46679 | O113: 22.4 | Q113: 3940 | S113: 1.879582675 | U113: 162000 | W113: 0.77 | X113: Yorkshire and The Humber
X114: Yorkshire and The Humber
X115: Yorkshire and The Humber
A116: E12000004 | B116: EAST MIDLANDS | C116: 2937792 | E116: 2260736 | G116: 74.7 | I116: 100611 | K116: 4.3 | M116: 640081 | O116: 21.9 | Q116: 45310 | S116: 1.5 | U116: 2288000 | W116: 0.78 | X116: East Midlands
X117: East Midlands
A118: E06000015 | B118: Derby | C118: 160600 | E118: 120742 | G118: 74.2 | I118: 5800 | K118: 4.55246501 | M118: 36443 | O118: 22.8 | Q118: 2505 | S118: 1.559775841 | U118: 139000 | W118: 0.87 | X118: East Midlands
A119: E06000016 | B119: Leicester | C119: 228876 | E119: 144633 | G119: 62.8 | I119: 9500 | K119: 6.13444554 | M119: 73954 | O119: 32.6 | Q119: 4350 | S119: 1.900592461 | U119: 192000 | W119: 0.84 | X119: East Midlands
A120: E06000018 | B120: Nottingham | C120: 222500 | E120: 138332 | G120: 62.6 | I120: 11400 | K120: 7.59764288 | M120: 70565 | O120: 32.3 | Q120: 7005 | S120: 3.148314607 | U120: 242000 | W120: 1.09 | X120: East Midlands
A121: E06000017 | B121: Rutland | C121: 22446 | E121: 17853 | G121: 79.5 | I121: ~ | K121: 2.41166081 | M121: 3750 | O121: 17.9 | Q121: 125 | S121: 0.5568920966 | U121: 19000 | W121: 0.85 | X121: East Midlands
X122: East Midlands
A123: E10000007 | B123: Derbyshire | C123: 484924 | E123: 401433 | G123: 78.7 | I123: 14800 | K123: 3.6 | M123: 91844 | O123: 19 | Q123: 6165 | S123: 1.27133324 | U123: 331000 | W123: 0.68 | X123: East Midlands
A124: E07000032 | B124: Amber Valley | C124: 76701 | E124: 65621 | G124: 80.9 | I124: 2300 | K124: 3.45176378 | M124: 13660 | O124: 17.5 | Q124: 1020 | S124: 1.329839246 | U124: 61000 | W124: 0.79 | X124: East Midlands
A125: E07000033 | B125: Bolsover | C125: 48718 | E125: 37052 | G125: 74.9 | I125: 1600 | K125: 4.11430466 | M125: 11081 | O125: 22.7 | Q125: 705 | S125: 1.44710374 | U125: 37000 | W125: 0.75 | X125: East Midlands
A126: E07000034 | B126: Chesterfield | C126: 65579 | E126: 48055 | G126: 72.5 | I126: 2500 | K126: 4.86890685 | M126: 15309 | O126: 23.6 | Q126: 1150 | S126: 1.75361015 | U126: 53000 | W126: 0.81 | X126: East Midlands
A127: E07000035 | B127: Derbyshire Dales | C127: 41825 | E127: 38245 | G127: 81.2 | I127: 1000 | K127: 2.53676342 | M127: 7969 | O127: 18.8 | Q127: 240 | S127: 0.573819486 | U127: 37000 | W127: 0.89 | X127: East Midlands
A128: E07000036 | B128: Erewash | C128: 71525 | E128: 65632 | G128: 86.8 | I128: 2300 | K128: 3.42883539 | M128: 9439 | O128: 13.2 | Q128: 1245 | S128: 1.740650122 | U128: 42000 | W128: 0.59 | X128: East Midlands
A129: E07000037 | B129: High Peak | C129: 57626 | E129: 45917 | G129: 74.2 | I129: 1700 | K129: 3.64322366 | M129: 13083 | O129: 22.4 | Q129: 645 | S129: 1.119286433 | U129: 35000 | W129: 0.61 | X129: East Midlands
A130: E07000038 | B130: North East Derbyshire | C130: 59940 | E130: 49507 | G130: 77.4 | I130: 2000 | K130: 3.83719913 | M130: 11302 | O130: 19.3 | Q130: 760 | S130: 1.267934601 | U130: 33000 | W130: 0.55 | X130: East Midlands
A131: E07000039 | B131: South Derbyshire | C131: 63010 | E131: 51404 | G131: 80 | I131: 1400 | K131: 2.57798809 | M131: 10001 | O131: 16.4 | Q131: 395 | S131: 0.6268846215 | U131: 33000 | W131: 0.52 | X131: East Midlands
X132: East Midlands
A133: E10000018 | B133: Leicestershire | C133: 422233 | E133: 340759 | G133: 77.1 | I133: 11500 | K133: 3.3 | M133: 84704 | O133: 20.1 | Q133: 3525 | S133: 0.8348471105 | U133: 324000 | W133: 0.77 | X133: East Midlands
A134: E07000129 | B134: Blaby | C134: 59300 | E134: 54611 | G134: 87 | I134: 1500 | K134: 2.74154018 | M134: 6484 | O134: 10.8 | Q134: 430 | S134: 0.7251264755 | U134: 56000 | W134: 0.95 | X134: East Midlands
A135: E07000130 | B135: Charnwood | C135: 115873 | E135: 81578 | G135: 69.1 | I135: 3200 | K135: 3.79266729 | M135: 32062 | O135: 27.6 | Q135: 925 | S135: 0.7982877806 | U135: 72000 | W135: 0.62 | X135: East Midlands
A136: E07000131 | B136: Harborough | C136: 54167 | E136: 47508 | G136: 76.8 | I136: 1200 | K136: 2.37092282 | M136: 11704 | O136: 21.2 | Q136: 275 | S136: 0.5076891835 | U136: 43000 | W136: 0.79 | X136: East Midlands
A137: E07000132 | B137: Hinckley and Bosworth | C137: 66807 | E137: 56550 | G137: 81.5 | I137: 1800 | K137: 3.15491161 | M137: 11229 | O137: 16.8 | Q137: 710 | S137: 1.062762884 | U137: 46000 | W137: 0.69 | X137: East Midlands
A138: E07000133 | B138: Melton | C138: 31235 | E138: 25206 | G138: 78 | I138: 1000 | K138: 3.87230495 | M138: 5606 | O138: 17.9 | Q138: 305 | S138: 0.976468705 | U138: 26000 | W138: 0.82 | X138: East Midlands
A139: E07000134 | B139: North West Leicestershire | C139: 60520 | E139: 47675 | G139: 77.2 | I139: 1700 | K139: 3.52211327 | M139: 11518 | O139: 19.4 | Q139: 560 | S139: 0.9253139458 | U139: 60000 | W139: 1 | X139: East Midlands
A140: E07000135 | B140: Oadby and Wigston | C140: 34331 | E140: 27631 | G140: 77.6 | I140: 1000 | K140: 3.52953414 | M140: 6101 | O140: 18.4 | Q140: 315 | S140: 0.9175380851 | U140: 20000 | W140: 0.59 | X140: East Midlands
X141: East Midlands
A142: E10000019 | B142: Lincolnshire | C142: 443783 | E142: 337239 | G142: 73.4 | I142: 15300 | K142: 4.3 | M142: 104414 | O142: 23.5 | Q142: 7125 | S142: 1.605514407 | U142: 333000 | W142: 0.75 | X142: East Midlands
A143: E07000136 | B143: Boston | C143: 40705 | E143: 30728 | G143: 73.1 | I143: 1400 | K143: 4.26593256 | M143: 10187 | O143: 24.8 | Q143: 635 | S143: 1.560004913 | U143: 32000 | W143: 0.79 | X143: East Midlands
A144: E07000137 | B144: East Lindsey | C144: 77204 | E144: 55483 | G144: 71.7 | I144: 2800 | K144: 4.66377783 | M144: 18958 | O144: 25.6 | Q144: 1480 | S144: 1.916999119 | U144: 56000 | W144: 0.72 | X144: East Midlands
A145: E07000138 | B145: Lincoln | C145: 66383 | E145: 45678 | G145: 68.1 | I145: 3100 | K145: 6.27328914 | M145: 17885 | O145: 27.1 | Q145: 1580 | S145: 2.380127442 | U145: 64000 | W145: 0.96 | X145: East Midlands
A146: E07000139 | B146: North Kesteven | C146: 66684 | E146: 51982 | G146: 74 | I146: 1900 | K146: 3.66617965 | M146: 16997 | O146: 25.5 | Q146: 650 | S146: 0.9747465659 | U146: 48000 | W146: 0.71 | X146: East Midlands
A147: E07000140 | B147: South Holland | C147: 53925 | E147: 41489 | G147: 73 | I147: 1600 | K147: 3.78062914 | M147: 13244 | O147: 24.5 | Q147: 630 | S147: 1.168289291 | U147: 42000 | W147: 0.78 | X147: East Midlands
A148: E07000141 | B148: South Kesteven | C148: 83618 | E148: 67003 | G148: 77 | I148: 2600 | K148: 3.71973472 | M148: 16012 | O148: 18.9 | Q148: 1025 | S148: 1.225812624 | U148: 61000 | W148: 0.73 | X148: East Midlands
A149: E07000142 | B149: West Lindsey | C149: 55264 | E149: 44876 | G149: 76.1 | I149: 2000 | K149: 4.21984342 | M149: 11131 | O149: 19.6 | Q149: 1130 | S149: 2.044730747 | U149: 30000 | W149: 0.55 | X149: East Midlands
X150: East Midlands
A151: E10000021 | B151: Northamptonshire | C151: 452483 | E151: 364363 | G151: 79.1 | I151: 14800 | K151: 3.9 | M151: 76966 | O151: 17.1 | Q151: 6875 | S151: 1.519394099 | U151: 375000 | W151: 0.83 | X151: East Midlands
A152: E07000150 | B152: Corby | C152: 42957 | E152: 33704 | G152: 75.9 | I152: 1600 | K152: 4.44070591 | M152: 8729 | O152: 20.2 | Q152: 810 | S152: 1.885606537 | U152: 33000 | W152: 0.76 | X152: East Midlands
A153: E07000151 | B153: Daventry | C153: 49464 | E153: 41436 | G153: 81.4 | I153: 1500 | K153: 3.59569798 | M153: 8592 | O153: 17.7 | Q153: 555 | S153: 1.122028142 | U153: 43000 | W153: 0.87 | X153: East Midlands
A154: E07000152 | B154: East Northamptonshire | C154: 54907 | E154: 42439 | G154: 77.2 | I154: 1500 | K154: 3.40731709 | M154: 8934 | O154: 16.6 | Q154: 585 | S154: 1.065437922 | U154: 34000 | W154: 0.62 | X154: East Midlands
A155: E07000153 | B155: Kettering | C155: 60162 | E155: 50345 | G155: 82.2 | I155: 2100 | K155: 3.94504829 | M155: 8194 | O155: 13.6 | Q155: 1035 | S155: 1.720355041 | U155: 47000 | W155: 0.78 | X155: East Midlands
A156: E07000154 | B156: Northampton | C156: 143648 | E156: 115337 | G156: 78.9 | I156: 5100 | K156: 4.24285267 | M156: 25706 | O156: 18 | Q156: 2715 | S156: 1.890036757 | U156: 142000 | W156: 0.99 | X156: East Midlands
A157: E07000155 | B157: South Northamptonshire | C157: 54360 | E157: 46293 | G157: 84.5 | I157: 1100 | K157: 2.28793196 | M157: 6993 | O157: 12.9 | Q157: 295 | S157: 0.54267844 | U157: 39000 | W157: 0.71 | X157: East Midlands
A158: E07000156 | B158: Wellingborough | C158: 46985 | E158: 34809 | G158: 72.3 | I158: 1900 | K158: 5.16772402 | M158: 9818 | O158: 21.1 | Q158: 885 | S158: 1.883579866 | U158: 39000 | W158: 0.82 | X158: East Midlands
X159: East Midlands
A160: E10000024 | B160: Nottinghamshire | C160: 499947 | E160: 395382 | G160: 76.6 | I160: 17200 | K160: 4.2 | M160: 97441 | O160: 19.6 | Q160: 7630 | S160: 1.526161773 | U160: 333000 | W160: 0.67 | X160: East Midlands
A161: E07000170 | B161: Ashfield | C161: 77346 | E161: 57686 | G161: 72.9 | I161: 2800 | K161: 4.63226497 | M161: 17899 | O161: 23.4 | Q161: 1570 | S161: 2.02983994 | U161: 57000 | W161: 0.73 | X161: East Midlands
A162: E07000171 | B162: Bassetlaw | C162: 70597 | E162: 49470 | G162: 71 | I162: 2400 | K162: 4.55202004 | M162: 16610 | O162: 24.1 | Q162: 1110 | S162: 1.572304772 | U162: 52000 | W162: 0.74 | X162: East Midlands
A163: E07000172 | B163: Broxtowe | C163: 70399 | E163: 62404 | G163: 87.5 | I163: 2200 | K163: 3.3950723 | M163: 5635 | O163: 8 | Q163: 990 | S163: 1.406269975 | U163: 41000 | W163: 0.58 | X163: East Midlands
A164: E07000173 | B164: Gedling | C164: 71794 | E164: 56977 | G164: 74.5 | I164: 2600 | K164: 4.43878059 | M164: 14902 | O164: 20.5 | Q164: 1085 | S164: 1.511268351 | U164: 37000 | W164: 0.52 | X164: East Midlands
A165: E07000174 | B165: Mansfield | C165: 67293 | E165: 50524 | G165: 74.2 | I165: 2800 | K165: 5.16719077 | M165: 13826 | O165: 20.6 | Q165: 1345 | S165: 1.998722007 | U165: 45000 | W165: 0.67 | X165: East Midlands
A166: E07000175 | B166: Newark and Sherwood | C166: 72284 | E166: 59912 | G166: 76.9 | I166: 2500 | K166: 3.96177633 | M166: 15302 | O166: 21.1 | Q166: 955 | S166: 1.321177577 | U166: 54000 | W166: 0.75 | X166: East Midlands
A167: E07000176 | B167: Rushcliffe | C167: 70234 | E167: 58409 | G167: 79.4 | I167: 1900 | K167: 3.22649957 | M167: 13267 | O167: 18.9 | Q167: 580 | S167: 0.8258108608 | U167: 47000 | W167: 0.66 | X167: East Midlands
X168: East Midlands
X169: East Midlands
A170: E12000005 | B170: WEST MIDLANDS | C170: 3582819 | D170: 0 | E170: 2637743 | F170: 0 | G170: 71.1 | H170: 0 | I170: 153842 | J170: 0 | K170: 5.5 | L170: 0 | M170: 877253 | N170: 0 | O170: 24.6 | P170: 0 | Q170: 82350 | R170: 0 | S170: 2.3 | U170: 2800000 | V170: 0 | W170: 0.78 | X170: West Midlands
X171: West Midlands
A172: E06000019 | B172: Herefordshire, County of | C172: 112448 | E172: 89949 | G172: 75.7 | I172: 3600 | K172: 3.83961779 | M172: 22121 | O172: 20 | Q172: 1155 | S172: 1.027141434 | U172: 94000 | W172: 0.84 | X172: West Midlands
A173: E06000051 | B173: Shropshire | C173: 186940 | E173: 154608 | G173: 79.6 | I173: 5400 | K173: 3.4 | M173: 32313 | O173: 17.6 | Q173: 1970 | S173: 1.053814058 | U173: 146000 | W173: 0.78 | X173: West Midlands
A174: E06000021 | B174: Stoke-on-Trent | C174: 158868 | E174: 116254 | G174: 71.7 | I174: 6700 | K174: 5.48116873 | M174: 38736 | O174: 24.4 | Q174: 3340 | S174: 2.102374298 | U174: 124000 | W174: 0.78 | X174: West Midlands
A175: E06000020 | B175: Telford and Wrekin | C175: 108226 | E175: 83586 | G175: 75.9 | I175: 4100 | K175: 4.62247159 | M175: 21780 | O175: 20.3 | Q175: 1710 | S175: 1.580026981 | U175: 92000 | W175: 0.85 | X175: West Midlands
X176: West Midlands
A177: E10000028 | B177: Staffordshire | C177: 534357 | E177: 437097 | G177: 78.3 | I177: 15800 | K177: 3.5 | M177: 97672 | O177: 18.4 | Q177: 5080 | S177: 0.9506752976 | U177: 394000 | W177: 0.74 | X177: West Midlands
A178: E07000192 | B178: Cannock Chase | C178: 62769 | E178: 51523 | G178: 79.1 | I178: 2100 | K178: 3.84072762 | M178: 9090 | O178: 14.9 | Q178: 740 | S178: 1.178925903 | U178: 44000 | W178: 0.7 | X178: West Midlands
A179: E07000193 | B179: East Staffordshire | C179: 72205 | E179: 59228 | G179: 80.6 | I179: 2300 | K179: 3.73502802 | M179: 12516 | O179: 17.4 | Q179: 700 | S179: 0.9694619486 | U179: 70000 | W179: 0.97 | X179: West Midlands
A180: E07000194 | B180: Lichfield | C180: 61733 | E180: 49537 | G180: 76.6 | I180: 1500 | K180: 2.93389361 | M180: 13488 | O180: 21.9 | Q180: 420 | S180: 0.6803492459 | U180: 53000 | W180: 0.86 | X180: West Midlands
A181: E07000195 | B181: Newcastle-under-Lyme | C181: 80794 | E181: 67639 | G181: 79.3 | I181: 2600 | K181: 3.69635787 | M181: 14133 | O181: 17.8 | Q181: 950 | S181: 1.175829888 | U181: 51000 | W181: 0.63 | X181: West Midlands
A182: E07000196 | B182: South Staffordshire | C182: 67649 | E182: 58453 | G182: 79.2 | I182: 2100 | K182: 3.46078434 | M182: 12512 | O182: 18.1 | Q182: 710 | S182: 1.0495351 | U182: 40000 | W182: 0.59 | X182: West Midlands
A183: E07000197 | B183: Stafford | C183: 81822 | E183: 61803 | G183: 74.6 | I183: 2300 | K183: 3.65105237 | M183: 16585 | O183: 20.5 | Q183: 650 | S183: 0.7944073721 | U183: 64000 | W183: 0.79 | X183: West Midlands
A184: E07000198 | B184: Staffordshire Moorlands | C184: 58606 | E184: 50319 | G184: 81.1 | I184: 1500 | K184: 2.9008511 | M184: 9345 | O184: 15.8 | Q184: 455 | S184: 0.77637102 | U184: 35000 | W184: 0.6 | X184: West Midlands
A185: E07000199 | B185: Tamworth | C185: 48779 | E185: 38595 | G185: 75.4 | I185: 1400 | K185: 3.52862563 | M185: 10003 | O185: 21 | Q185: 455 | S185: 0.9327784497 | U185: 37000 | W185: 0.76 | X185: West Midlands
X186: West Midlands
A187: E10000031 | B187: Warwickshire | C187: 341733 | E187: 270877 | G187: 76 | I187: 10100 | K187: 3.6 | M187: 71757 | O187: 21.2 | Q187: 3535 | S187: 1.034433315 | U187: 320000 | W187: 0.94 | X187: West Midlands
A188: E07000218 | B188: North Warwickshire | C188: 38813 | E188: 33455 | G188: 82.4 | I188: 1200 | K188: 3.42275317 | M188: 5839 | O188: 14.7 | Q188: 430 | S188: 1.107876227 | U188: 47000 | W188: 1.22 | X188: West Midlands
A189: E07000219 | B189: Nuneaton and Bedworth | C189: 78523 | E189: 53129 | G189: 64.4 | I189: 3000 | K189: 5.38200114 | M189: 23506 | O189: 30.2 | Q189: 1410 | S189: 1.795652229 | U189: 51000 | W189: 0.65 | X189: West Midlands
A190: E07000220 | B190: Rugby | C190: 63467 | E190: 52867 | G190: 80.2 | I190: 2100 | K190: 3.81259688 | M190: 10797 | O190: 17.5 | Q190: 815 | S190: 1.284131911 | U190: 51000 | W190: 0.81 | X190: West Midlands
A191: E07000221 | B191: Stratford-on-Avon | C191: 70704 | E191: 59160 | G191: 79.9 | I191: 1500 | K191: 2.42091709 | M191: 12965 | O191: 18.7 | Q191: 285 | S191: 0.4030889341 | U191: 78000 | W191: 1.1 | X191: West Midlands
A192: E07000222 | B192: Warwick | C192: 90226 | E192: 72266 | G192: 77.3 | I192: 2300 | K192: 3.10581028 | M192: 18650 | O192: 20.8 | Q192: 590 | S192: 0.6539135061 | U192: 92000 | W192: 1.02 | X192: West Midlands
X193: West Midlands
A194: E11000005 | B194: West Midlands (Met County) | C194: 1788630 | E194: 1199516 | G194: 65.5 | I194: 96600 | K194: 7.5 | M194: 519295 | O194: 29.1 | Q194: 61175 | S194: 3.420215472 | U194: 1356000 | W194: 0.76 | X194: West Midlands
A195: E08000025 | B195: Birmingham | C195: 712208 | E195: 457014 | G195: 63.4 | I195: 43500 | K195: 8.68413801 | M195: 214748 | O195: 30.4 | Q195: 30535 | S195: 4.287371105 | U195: 560000 | W195: 0.79 | X195: West Midlands
A196: E08000026 | B196: Coventry | C196: 228377 | E196: 161119 | G196: 68.9 | I196: 9200 | K196: 5.42224626 | M196: 64567 | O196: 28.2 | Q196: 4375 | S196: 1.915692036 | U196: 174000 | W196: 0.76 | X196: West Midlands
A197: E08000027 | B197: Dudley | C197: 192922 | E197: 137000 | G197: 68.9 | I197: 9300 | K197: 6.36844651 | M197: 50009 | O197: 26 | Q197: 5615 | S197: 2.91050269 | U197: 126000 | W197: 0.65 | X197: West Midlands
A198: E08000028 | B198: Sandwell | C198: 200051 | E198: 124943 | G198: 61.3 | I198: 11400 | K198: 8.35134058 | M198: 64813 | O198: 32.6 | Q198: 7105 | S198: 3.551594343 | U198: 143000 | W198: 0.71 | X198: West Midlands
A199: E08000029 | B199: Solihull | C199: 126404 | E199: 98905 | G199: 73.8 | I199: 5400 | K199: 5.15160044 | M199: 27359 | O199: 21.3 | Q199: 2160 | S199: 1.708806683 | U199: 121000 | W199: 0.96 | X199: West Midlands
A200: E08000030 | B200: Walsall | C200: 168922 | E200: 114798 | G200: 66.4 | I200: 8300 | K200: 6.71138708 | M200: 49955 | O200: 29.7 | Q200: 4770 | S200: 2.823788494 | U200: 118000 | W200: 0.7 | X200: West Midlands
A201: E08000031 | B201: Wolverhampton | C201: 159746 | E201: 105737 | G201: 64.1 | I201: 9600 | K201: 8.35371189 | M201: 47844 | O201: 30 | Q201: 6615 | S201: 4.140948756 | U201: 114000 | W201: 0.71 | X201: West Midlands
X202: West Midlands
A203: E10000034 | B203: Worcestershire | C203: 351617 | E203: 285856 | G203: 76.1 | I203: 11500 | K203: 3.9 | M203: 73579 | O203: 20.9 | Q203: 4385 | S203: 1.247095561 | U203: 274000 | W203: 0.78 | X203: West Midlands
... 316 more rows

Sheet LI04 (hidden)
B1: Local area data
B2: LI04 Local labour market indicators by NUTS 3 area
U3: not seasonally adjusted
E4: January 2016 to December 2016 | U4: 2015
C5: Population1 | E5: Labour supply | U5: Labour demand6
E6: Employment2 | I6: Unemployment3 | M6: Economic inactivity2 | Q6: Claimant Count4 | U6: Jobs7
C7: 16-64 (000s) | E7: Total 16+ (000s) | G7: 16-64 Rate (%) | I7: Total 16+ (000s) | K7: Rate4 (%) | M7: Total 16-64 (000s) | O7: 16-64 Rate (%) | Q7: Level | S7: Proportion6 (%) | U7: Total (000s) | W7: Jobs Density 16-64 (ratio)
C8: 1 | E8: 2 | G8: 3 | I8: 4 | K8: 5 | M8: 6 | O8: 7 | Q8: 8 | S8: 9 | U8: 10 | W8: 11
A10: K02000001 | B10: UNITED KINGDOM | C10: 41241002 | E10: 31483914 | G10: 73.9 | I10: 1606259 | K10: 4.9 | L10: 4.9 | M10: 9131977 | O10: 22.3 | Q10: 776470 | S10: 1.9 | U10: 34059000 | W10: 0.83
X11: Select Region
A12: K03000001 | B12: GREAT BRITAIN | C12: 40066405 | E12: 30648330 | G12: 74 | I12: 1551565 | K12: 4.8 | L12: 0 | M12: 8827396 | O12: 22.2 | Q12: 740360 | S12: 1.8 | U12: 33202000 | W12: 0.83
A14: E92000001 | B14: ENGLAND | C14: 34669641 | E14: 26649772 | G14: 74.3 | I14: 1351756 | K14: 4.8 | L14: 0 | M14: 7553096 | O14: 21.9 | Q14: 618900 | S14: 1.8 | U14: 29041000 | W14: 0.84
A16: E12000001 | B16: NORTH EAST | C16: 1660407 | D16: 1660407 | E16: 1198730 | G16: 70.4 | I16: 84893 | K16: 6.6 | L16: 6.6 | M16: 404276 | O16: 24.5 | Q16: 50150 | S16: 3 | U16: 1204000 | W16: 0.73 | X16: North East
X17: North East
A18: UKC1 | B18: Tees Valley and Durham | C18: 743526 | E18: 531578 | G18: 69.8 | I18: 36379 | K18: 6.4 | M18: 187045 | O18: 25.3 | Q18: 23845 | S18: 3.207016298 | U18: 502154 | W18: 0.6753684471 | X18: North East
X19: North East
A20: UKC11 | B20: Hartlepool and Stockton-on-Tees | C20: 180453 | E20: 126313 | G20: 68.8 | I20: 8518 | K20: 6.3 | M20: 47493 | O20: 26.5 | Q20: 6690 | S20: 3.707336536 | U20: 129000 | W20: 0.71 | X20: North East
A21: UKC12 | B21: South Teesside | C21: 170642 | E21: 116860 | G21: 66.9 | I21: 8387 | K21: 6.7 | M21: 47984 | O21: 28.3 | Q21: 7515 | S21: 4.403956822 | U21: 116000 | W21: 0.68 | X21: North East
A22: UKC13 | B22: Darlington | C22: 64814 | E22: 49886 | G22: 74.9 | I22: 3031 | K22: 5.7 | M22: 13072 | O22: 20.4 | Q22: 2060 | S22: 3.17832567 | U22: 58000 | W22: 0.9 | X22: North East
A23: UKC14 | B23: Durham CC | C23: 327617 | E23: 238519 | G23: 70.8 | I23: 16443 | K23: 6.4 | M23: 78496 | O23: 24.1 | Q23: 7580 | S23: 2.313677251 | U23: 200000 | W23: 0.61 | X23: North East
X24: North East
A25: UKC2 | B25: Northumberland and Tyne and Wear | C25: 916881 | E25: 667152 | G25: 71 | I25: 48514 | K25: 6.8 | M25: 217231 | O25: 23.8 | Q25: 26305 | S25: 2.868965547 | U25: 701689 | W25: 0.765299968 | X25: North East
X26: North East
A27: UKC21 | B27: Northumberland | C27: 190478 | E27: 142381 | G27: 72.2 | I27: 8293 | K27: 5.5 | M27: 44536 | O27: 23.6 | Q27: 4590 | S27: 2.409727108 | U27: 126000 | W27: 0.66 | X27: North East
A28: UKC22 | B28: Tyneside | C28: 548893 | E28: 400313 | G28: 71.1 | I28: 29338 | K28: 6.8 | M28: 129233 | O28: 23.6 | Q28: 16230 | S28: 2.956860445 | U28: 447000 | W28: 0.81 | X28: North East
A29: UKC23 | B29: Sunderland | C29: 177510 | E29: 124458 | G29: 69.2 | I29: 10883 | K29: 8 | M29: 43462 | O29: 24.7 | Q29: 5485 | S29: 3.089966762 | U29: 129000 | W29: 0.73 | X29: North East
X30: North East
A31: E12000002 | B31: NORTH WEST | C31: 4519159 | D31: 4519159 | E31: 3323473 | G31: 71.6 | I31: 181029 | K31: 5.2 | L31: 5.2 | M31: 1096473 | O31: 24.4 | Q31: 105990 | S31: 2.3 | U31: 3581000 | W31: 0.79 | X31: North West
X32: North West
A33: UKD1 | B33: Cumbria | C33: 301075 | E33: 234666 | G33: 75.5 | I33: 9854 | K33: 4 | M33: 62903 | O33: 21.2 | Q33: 4625 | S33: 1.536162086 | U33: 270608 | W33: 0.8988059454 | X33: North West
X34: North West
A35: UKD11 | B35: West Cumbria | C35: 142953 | E35: 106655 | G35: 73.7 | I35: 4822 | K35: 4.3 | M35: 32021 | O35: 22.9 | Q35: 3140 | S35: 2.196526131 | U35: 113000 | W35: 0.79 | X35: North West
A36: UKD12 | B36: East Cumbria | C36: 158122 | E36: 128011 | G36: 77.2 | I36: 5032 | K36: 3.8 | M36: 30882 | O36: 19.6 | Q36: 1485 | S36: 0.9391482526 | U36: 158000 | W36: 1 | X36: North West
X37: North West
A38: UKD3 | B38: Greater Manchester | C38: 1768645 | E38: 1273403 | G38: 70.5 | I38: 83307 | K38: 6.1 | M38: 437395 | O38: 24.8 | Q38: 46190 | S38: 2.611603798 | U38: 1386881 | W38: 0.7841488823 | X38: North West
X39: North West
A40: UKD33 | B40: Manchester | C40: 374440 | E40: 238571 | G40: 63.3 | I40: 21179 | K40: 8.2 | M40: 114475 | O40: 31 | Q40: 10495 | S40: 2.802852259 | U40: 399000 | W40: 1.07 | X40: North West
A41: UKD34 | B41: Greater Manchester South West | C41: 306520 | E41: 236000 | G41: 74.4 | I41: 14013 | K41: 5.6 | M41: 65339 | O41: 21.1 | Q41: 6955 | S41: 2.269019966 | U41: 288000 | W41: 0.94 | X41: North West
A42: UKD35 | B42: Greater Manchester South East | C42: 316716 | E42: 243512 | G42: 75 | I42: 12858 | K42: 5 | M42: 65928 | O42: 21 | Q42: 7145 | S42: 2.255964334 | U42: 217000 | W42: 0.69 | X42: North West
A43: UKD36 | B43: Greater Manchester North West | C43: 377656 | E43: 282216 | G43: 73.4 | I43: 15815 | K43: 5.3 | M43: 84342 | O43: 22.4 | Q43: 10550 | S43: 2.793547567 | U43: 237000 | W43: 0.63 | X43: North West
A44: UKD37 | B44: Greater Manchester North East | C44: 393313 | E44: 273104 | G44: 67.7 | I44: 19442 | K44: 6.6 | M44: 107311 | O44: 27.4 | Q44: 11045 | S44: 2.808196017 | U44: 246000 | W44: 0.63 | X44: North West
X45: North West
A46: UKD4 | B46: Lancashire | C46: 914176 | E46: 694621 | G46: 73.6 | I46: 32865 | K46: 4.5 | M46: 205941 | O46: 22.8 | Q46: 19610 | S46: 2.145101162 | U46: 711237 | W46: 0.7780088298 | X46: North West
X47: North West
A48: UKD41 | B48: Blackburn with Darwen | C48: 91844 | E48: 61148 | G48: 65.6 | I48: 3520 | K48: 5.4 | M48: 27671 | O48: 30.6 | Q48: 2620 | S48: 2.852663212 | U48: 72000 | W48: 0.78 | X48: North West
A49: UKD42 | B49: Blackpool | C49: 85767 | E49: 60052 | G49: 71.2 | I49: 3766 | K49: 5.9 | M49: 19879 | O49: 24.2 | Q49: 3395 | S49: 3.958398918 | U49: 67000 | W49: 0.78 | X49: North West
A50: UKD44 | B50: Lancaster and Wyre | C50: 154089 | E50: 121712 | G50: 74.5 | I50: 7783 | K50: 6 | M50: 31425 | O50: 20.6 | Q50: 2655 | S50: 1.723030197 | U50: 100000 | W50: 0.65 | X50: North West
A51: UKD45 | B51: Mid Lancashire | C51: 240215 | E51: 189356 | G51: 76.4 | I51: 6879 | K51: 3.5 | M51: 49997 | O51: 20.7 | Q51: 3650 | S51: 1.51947214 | U51: 240000 | W51: 1 | X51: North West
A52: UKD46 | B52: East Lancashire | C52: 202117 | E52: 158676 | G52: 75 | I52: 8088 | K52: 4.8 | M52: 42243 | O52: 21 | Q52: 4905 | S52: 2.426812193 | U52: 135000 | W52: 0.67 | X52: North West
A53: UKD47 | B53: Chorley and West Lancashire | C53: 140144 | E53: 103677 | G53: 72.5 | I53: 2829 | K53: 2.7 | M53: 34726 | O53: 25.5 | Q53: 2385 | S53: 1.701820984 | U53: 97000 | W53: 0.69 | X53: North West
X54: North West
A55: UKD6 | B55: Cheshire | C55: 564708 | E55: 440344 | G55: 75 | I55: 16736 | K55: 3.7 | M55: 124077 | O55: 22.1 | Q55: 7580 | S55: 1.342286633 | U55: 534752 | W55: 0.9469531156 | X55: North West
X56: North West
A57: UKD61 | B57: Warrington | C57: 131296 | E57: 103837 | G57: 76.2 | I57: 3356 | K57: 3.1 | M57: 28173 | O57: 21.3 | Q57: 2185 | S57: 1.66417865 | U57: 135000 | W57: 1.03 | X57: North West
A58: UKD62 | B58: Cheshire East | C58: 226971 | E58: 180496 | G58: 76.4 | I58: 8399 | K58: 4.4 | M58: 45033 | O58: 20 | Q58: 2545 | S58: 1.121288623 | U58: 216000 | W58: 0.95 | X58: North West
A59: UKD63 | B59: Cheshire West and Chester | C59: 206441 | E59: 156011 | G59: 72.7 | I59: 4981 | K59: 3.1 | M59: 50871 | O59: 24.9 | Q59: 2850 | S59: 1.380539718 | U59: 184000 | W59: 0.89 | X59: North West
X60: North West
A61: UKD7 | B61: Merseyside | C61: 970555 | E61: 680439 | G61: 68.4 | I61: 38267 | K61: 5.3 | M61: 266157 | O61: 27.7 | Q61: 27975 | S61: 2.882371427 | U61: 677657 | W61: 0.6982159692 | X61: North West
X62: North West
A63: UKD71 | B63: East Merseyside | C63: 283755 | E63: 208393 | G63: 71.2 | I63: 10949 | K63: 5 | M63: 70869 | O63: 25 | Q63: 8445 | S63: 2.97615901 | U63: 197000 | W63: 0.69 | X63: North West
A64: UKD72 | B64: Liverpool | C64: 327711 | E64: 213376 | G64: 64.3 | I64: 16206 | K64: 7.1 | M64: 99121 | O64: 30.8 | Q64: 11150 | S64: 3.40238808 | U64: 263000 | W64: 0.8 | X64: North West
A65: UKD73 | B65: Sefton | C65: 164985 | E65: 118941 | G65: 70.1 | I65: 6134 | K65: 4.9 | M65: 42541 | O65: 26.2 | Q65: 4255 | S65: 2.579022335 | U65: 100000 | W65: 0.61 | X65: North West
A66: UKD74 | B66: Wirral | C66: 194104 | E66: 139729 | G66: 69.7 | I66: 4978 | K66: 3.4 | M66: 53626 | O66: 27.7 | Q66: 4125 | S66: 2.125149404 | U66: 117000 | W66: 0.6 | X66: North West
X67: North West
A68: E12000003 | B68: YORKSHIRE AND THE HUMBER | C68: 3397836 | D68: 3397836 | E68: 2535710 | G68: 72.5 | I68: 138711 | K68: 5.2 | L68: 5.2 | M68: 790275 | O68: 23.4 | Q68: 75375 | S68: 2.2 | U68: 2676000 | W68: 0.79 | X68: Yorkshire and The Humber
X69: Yorkshire and The Humber
A70: UKE1 | B70: East Yorkshire and Northern Lincolnshire | C70: 572307 | E70: 430261 | G70: 72.8 | I70: 26097 | K70: 5.7 | M70: 128835 | O70: 22.6 | Q70: 15350 | S70: 2.6821269 | U70: 422081 | W70: 0.7375080158 | X70: Yorkshire and The Humber
X71: Yorkshire and The Humber
A72: UKE11 | B72: Kingston upon Hull, City of | C72: 170881 | E72: 117611 | G72: 68.5 | I72: 10057 | K72: 7.9 | M72: 42865 | O72: 25.5 | Q72: 6460 | S72: 3.780408588 | U72: 130000 | W72: 0.76 | X72: Yorkshire and The Humber
A73: UKE12 | B73: East Riding of Yorkshire | C73: 199172 | E73: 162392 | G73: 77.5 | I73: 6300 | K73: 3.7 | M73: 38537 | O73: 19.4 | Q73: 2865 | S73: 1.438455205 | U73: 138000 | W73: 0.69 | X73: Yorkshire and The Humber
A74: UKE13 | B74: North & North East Lincolnshire | C74: 202254 | E74: 150258 | G74: 71.9 | I74: 9740 | K74: 6.1 | M74: 47433 | O74: 23.4 | Q74: 6025 | S74: 2.978927487 | U74: 154000 | W74: 0.76 | X74: Yorkshire and The Humber
X75: Yorkshire and The Humber
A76: UKE2 | B76: North Yorkshire | C76: 496951 | E76: 417071 | G76: 80.8 | I76: 11734 | K76: 2.7 | M76: 82214 | O76: 16.8 | Q76: 4670 | S76: 0.9397304764 | U76: 460179 | W76: 0.9260047771 | X76: Yorkshire and The Humber
X77: Yorkshire and The Humber
A78: UKE21 | B78: York | C78: 137319 | E78: 110386 | G78: 78 | I78: 4429 | K78: 3.9 | M78: 25733 | O78: 18.8 | Q78: 955 | S78: 0.695460934 | U78: 116000 | W78: 0.85 | X78: Yorkshire and The Humber
A79: UKE22 | B79: North Yorkshire CC | C79: 359632 | E79: 306685 | G79: 81.9 | I79: 7305 | K79: 2.3 | M79: 56481 | O79: 16.1 | Q79: 3715 | S79: 1.0330004 | U79: 344000 | W79: 0.96 | X79: Yorkshire and The Humber
X80: Yorkshire and The Humber
A81: UKE3 | B81: South Yorkshire | C81: 876582 | E81: 617784 | G81: 68.9 | I81: 42586 | K81: 6.4 | M81: 228565 | O81: 26.3 | Q81: 22340 | S81: 2.548535106 | U81: 621692 | W81: 0.7092228679 | X81: Yorkshire and The Humber
X82: Yorkshire and The Humber
A83: UKE31 | B83: Barnsley, Doncaster & Rotherham | C83: 502204 | E83: 360326 | G83: 69.9 | I83: 24842 | K83: 6.4 | M83: 126119 | O83: 25.2 | Q83: 13035 | S83: 2.595558777 | U83: 339000 | W83: 0.67 | X83: Yorkshire and The Humber
A84: UKE32 | B84: Sheffield | C84: 374378 | E84: 257458 | G84: 67.5 | I84: 17744 | K84: 6.4 | M84: 102446 | O84: 27.8 | Q84: 9305 | S84: 2.485455876 | U84: 283000 | W84: 0.76 | X84: Yorkshire and The Humber
X85: Yorkshire and The Humber
A86: UKE4 | B86: West Yorkshire | C86: 1451996 | E86: 1070594 | G86: 71.7 | I86: 58294 | K86: 5.2 | M86: 350661 | O86: 24.3 | Q86: 33020 | S86: 2.274110948 | U86: 1172184 | W86: 0.8072914801 | X86: Yorkshire and The Humber
X87: Yorkshire and The Humber
A88: UKE41 | B88: Bradford | C88: 329736 | E88: 225558 | G88: 67.3 | I88: 16048 | K88: 6.6 | M88: 90781 | O88: 27.9 | Q88: 9195 | S88: 2.788594512 | U88: 228000 | W88: 0.69 | X88: Yorkshire and The Humber
A89: UKE42 | B89: Leeds | C89: 508958 | E89: 388599 | G89: 74.1 | I89: 16724 | K89: 4.1 | M89: 113762 | O89: 22.5 | Q89: 11510 | S89: 2.261483266 | U89: 485000 | W89: 0.95 | X89: Yorkshire and The Humber
A90: UKE44 | B90: Calderdale and Kirklees | C90: 403681 | E90: 298730 | G90: 71.5 | I90: 16249 | K90: 5.2 | M90: 99439 | O90: 24.5 | Q90: 8375 | S90: 2.07465796 | U90: 296000 | W90: 0.73 | X90: Yorkshire and The Humber
A91: UKE45 | B91: Wakefield | C91: 209621 | E91: 157707 | G91: 73.2 | I91: 9273 | K91: 5.6 | M91: 46679 | O91: 22.4 | Q91: 3940 | S91: 1.879582675 | U91: 163000 | W91: 0.78 | X91: Yorkshire and The Humber
X92: Yorkshire and The Humber
A93: E12000004 | B93: EAST MIDLANDS | C93: 2937792 | D93: 2937792 | E93: 2260736 | G93: 74.7 | I93: 100611 | K93: 4.3 | L93: 4.3 | M93: 640081 | O93: 21.9 | Q93: 45310 | S93: 1.5 | U93: 2288000 | W93: 0.78 | X93: East Midlands
X94: East Midlands
A95: UKF1 | B95: Derbyshire and Nottinghamshire | C95: 1367971 | E95: 1055889 | G95: 74.8 | I95: 46568 | K95: 4.2 | M95: 296293 | O95: 21.8 | Q95: 23305 | S95: 1.703617986 | U95: 1044459 | W95: 0.7635096066 | X95: East Midlands
X96: East Midlands
A97: UKF11 | B97: Derby | C97: 160600 | E97: 120742 | G97: 74.2 | I97: 4951 | K97: 3.9 | M97: 36443 | O97: 22.8 | Q97: 2505 | S97: 1.559775841 | U97: 139000 | W97: 0.87 | X97: East Midlands
A98: UKF12 | B98: East Derbyshire | C98: 174237 | E98: 134614 | G98: 74.9 | I98: 5610 | K98: 4 | M98: 37692 | O98: 21.9 | Q98: 2620 | S98: 1.503698985 | U98: 123000 | W98: 0.7 | X98: East Midlands
A99: UKF13 | B99: South & West Derbyshire | C99: 310687 | E99: 266819 | G99: 80.9 | I99: 5416 | K99: 2 | M99: 54152 | O99: 17.4 | Q99: 3545 | S99: 1.14101974 | U99: 208000 | W99: 0.67 | X99: East Midlands
A100: UKF14 | B100: Nottingham | C100: 222500 | E100: 138332 | G100: 62.6 | I100: 11162 | K100: 7.5 | M100: 70565 | O100: 32.3 | Q100: 7005 | S100: 3.148314607 | U100: 242000 | W100: 1.09 | X100: East Midlands
A101: UKF15 | B101: North Nottinghamshire | C101: 287520 | E101: 217592 | G101: 73.8 | I101: 11482 | K101: 5 | M101: 63637 | O101: 22.3 | Q101: 4975 | S101: 1.730314413 | U101: 208000 | W101: 0.72 | X101: East Midlands
A102: UKF16 | B102: South Nottinghamshire | C102: 212427 | E102: 177790 | G102: 80.4 | I102: 7947 | K102: 4.3 | M102: 33804 | O102: 15.9 | Q102: 2655 | S102: 1.249841122 | U102: 124000 | W102: 0.59 | X102: East Midlands
X103: East Midlands
A104: UKF2 | B104: Leicestershire, Rutland and Northamptonshire | C104: 1126038 | E104: 867608 | G104: 75.1 | I104: 40027 | K104: 4.4 | M104: 239374 | O104: 21.4 | Q104: 14880 | S104: 1.321447411 | U104: 911159 | W104: 0.8091725146 | X104: East Midlands
X105: East Midlands
A106: UKF21 | B106: Leicester | C106: 228876 | E106: 144633 | G106: 62.8 | I106: 10347 | K106: 6.7 | M106: 73954 | O106: 32.6 | Q106: 4350 | S106: 1.900592461 | U106: 192000 | W106: 0.84 | X106: East Midlands
A107: UKF22 | B107: Leicestershire CC & Rutland | C107: 444679 | E107: 358612 | G107: 77.2 | I107: 12725 | K107: 3.4 | M107: 88454 | O107: 20 | Q107: 3650 | S107: 0.8208168139 | U107: 343000 | W107: 0.77 | X107: East Midlands
A108: UKF24 | B108: West Northamptonshire | C108: 247472 | E108: 203066 | G108: 80.6 | I108: 6297 | K108: 3 | M108: 41291 | O108: 16.8 | Q108: 3565 | S108: 1.440567014 | U108: 223000 | W108: 0.9 | X108: East Midlands
A109: UKF25 | B109: North Northamptionshire | C109: 205011 | E109: 161297 | G109: 77.3 | I109: 10658 | K109: 6.2 | M109: 35675 | O109: 17.5 | Q109: 3315 | S109: 1.616986406 | U109: 152000 | W109: 0.74 | X109: East Midlands
X110: East Midlands
A111: UKF3 | B111: Lincolnshire | C111: 443783 | E111: 337239 | G111: 73.4 | I111: 14016 | K111: 4 | M111: 104414 | O111: 23.5 | Q111: 7125 | S111: 1.605514407 | U111: 332540 | W111: 0.7493301907 | X111: East Midlands
X112: East Midlands
A113: UKF30 | B113: Lincolnshire | C113: 443783 | E113: 337239 | G113: 73.4 | I113: 14016 | K113: 4 | M113: 104414 | O113: 23.5 | Q113: 7125 | S113: 1.605514407 | U113: 333000 | W113: 0.75 | X113: East Midlands
X114: East Midlands
A115: E12000005 | B115: WEST MIDLANDS | C115: 3582819 | D115: 3582819 | E115: 2637743 | G115: 71.1 | I115: 153842 | K115: 5.5 | L115: 5.5 | M115: 877253 | O115: 24.6 | Q115: 82350 | S115: 2.3 | U115: 2800000 | W115: 0.78 | X115: West Midlands
X116: West Midlands
A117: UKG1 | B117: Herefordshire, Worcestershire and Warwickshire | C117: 805798 | E117: 646682 | G117: 76 | I117: 24847 | K117: 3.7 | M117: 167457 | O117: 20.9 | Q117: 9075 | S117: 1.126212773 | U117: 688186 | W117: 0.8540428246 | X117: West Midlands
X118: West Midlands
A119: UKG11 | B119: Herefordshire, County of | C119: 112448 | E119: 89949 | G119: 75.7 | I119: 4933 | K119: 5.2 | M119: 22121 | O119: 20 | Q119: 1155 | S119: 1.027141434 | U119: 94000 | W119: 0.84 | X119: West Midlands
A120: UKG12 | B120: Worcestershire | C120: 351617 | E120: 285856 | G120: 76.1 | I120: 10426 | K120: 3.5 | M120: 73579 | O120: 20.9 | Q120: 4385 | S120: 1.247095561 | U120: 274000 | W120: 0.78 | X120: West Midlands
A121: UKG13 | B121: Warwickshire | C121: 341733 | E121: 270877 | G121: 76 | I121: 9488 | K121: 3.4 | M121: 71757 | O121: 21.2 | Q121: 3535 | S121: 1.034433315 | U121: 320000 | W121: 0.94 | X121: West Midlands
X122: West Midlands
A123: UKG2 | B123: Shropshire and Staffordshire | C123: 988391 | E123: 791545 | G123: 77.2 | I123: 33261 | K123: 4 | M123: 190501 | O123: 19.4 | Q123: 12100 | S123: 1.224211876 | U123: 756089 | W123: 0.7649695313 | X123: West Midlands
X124: West Midlands
A125: UKG21 | B125: Telford & Wrekin | C125: 108226 | E125: 83586 | G125: 75.9 | I125: 4061 | K125: 4.6 | M125: 21780 | O125: 20.3 | Q125: 1710 | S125: 1.580026981 | U125: 92000 | W125: 0.85 | X125: West Midlands
A126: UKG22 | B126: Shropshire CC | C126: 186940 | E126: 154608 | G126: 79.6 | I126: 5294 | K126: 3.3 | M126: 32313 | O126: 17.6 | Q126: 1970 | S126: 1.053814058 | U126: 146000 | W126: 0.78 | X126: West Midlands
A127: UKG23 | B127: Stoke-on-Trent | C127: 158868 | E127: 116254 | G127: 71.7 | I127: 6287 | K127: 5.1 | M127: 38736 | O127: 24.4 | Q127: 3340 | S127: 2.102374298 | U127: 124000 | W127: 0.78 | X127: West Midlands
A128: UKG24 | B128: Staffordshire CC | C128: 534357 | E128: 437097 | G128: 78.3 | I128: 17619 | K128: 3.9 | M128: 97672 | O128: 18.4 | Q128: 5080 | S128: 0.9506752976 | U128: 394000 | W128: 0.74 | X128: West Midlands
X129: West Midlands
A130: UKG3 | B130: West Midlands | C130: 1788630 | E130: 1199516 | G130: 65.5 | I130: 95734 | K130: 7.4 | M130: 519295 | O130: 29.1 | Q130: 61175 | S130: 3.420215472 | U130: 1356011 | W130: 0.7581282881 | X130: West Midlands
X131: West Midlands
A132: UKG31 | B132: Birmingham | C132: 712208 | E132: 457014 | G132: 63.4 | I132: 44391 | K132: 8.9 | M132: 214748 | O132: 30.4 | Q132: 30535 | S132: 4.287371105 | U132: 560000 | W132: 0.79 | X132: West Midlands
A133: UKG32 | B133: Solihull | C133: 126404 | E133: 98905 | G133: 73.8 | I133: 6537 | K133: 6.2 | M133: 27359 | O133: 21.3 | Q133: 2160 | S133: 1.708806683 | U133: 121000 | W133: 0.96 | X133: West Midlands
A134: UKG33 | B134: Coventry | C134: 228377 | E134: 161119 | G134: 68.9 | I134: 6826 | K134: 4.1 | M134: 64567 | O134: 28.2 | Q134: 4375 | S134: 1.915692036 | U134: 174000 | W134: 0.76 | X134: West Midlands
A135: UKG36 | B135: Dudley | C135: 192922 | E135: 137000 | G135: 68.9 | I135: 9665 | K135: 6.6 | M135: 50009 | O135: 26 | Q135: 5615 | S135: 2.91050269 | U135: 126000 | W135: 0.65 | X135: West Midlands
A136: UKG37 | B136: Sandwell | C136: 200051 | E136: 124943 | G136: 61.3 | I136: 12127 | K136: 8.8 | M136: 64813 | O136: 32.6 | Q136: 7105 | S136: 3.551594343 | U136: 143000 | W136: 0.71 | X136: West Midlands
A137: UKG38 | B137: Walsall | C137: 168922 | E137: 114798 | G137: 66.4 | I137: 6756 | K137: 5.6 | M137: 49955 | O137: 29.7 | Q137: 4770 | S137: 2.823788494 | U137: 118000 | W137: 0.7 | X137: West Midlands
A138: UKG39 | B138: Wolverhampton | C138: 159746 | E138: 105737 | G138: 64.1 | I138: 9432 | K138: 8.2 | M138: 47844 | O138: 30 | Q138: 6615 | S138: 4.140948756 | U138: 114000 | W138: 0.71 | X138: West Midlands
X139: West Midlands
A140: E12000006 | B140: EAST | C140: 3755306 | D140: 3755306 | E140: 3011872 | G140: 76.8 | I140: 120560 | K140: 3.8 | L140: 3.8 | M140: 753445 | O140: 20.1 | Q140: 47215 | S140: 1.3 | U140: 3032000 | W140: 0.81 | X140: East
X141: East
A142: UKH1 | B142: East Anglia | C142: 1504323 | E142: 1212406 | G142: 77.2 | I142: 48410 | K142: 3.8 | M142: 292618 | O142: 19.6 | Q142: 17195 | S142: 1.143039095 | U142: 1264283 | W142: 0.8404332048 | X142: East
X143: East
A144: UKH11 | B144: Peterborough | C144: 122930 | E144: 95040 | G144: 74.7 | I144: 5757 | K144: 5.7 | M144: 25661 | O144: 20.8 | Q144: 1770 | S144: 1.439843814 | U144: 120000 | W144: 0.97 | X144: East
A145: UKH12 | B145: Cambridgeshire CC | C145: 412656 | E145: 336132 | G145: 78.5 | I145: 12130 | K145: 3.5 | M145: 75678 | O145: 18.5 | Q145: 2835 | S145: 0.6870129115 | U145: 359000 | W145: 0.87 | X145: East
A146: UKH14 | B146: Suffolk | C146: 441507 | E146: 354846 | G146: 77 | I146: 12759 | K146: 3.5 | M146: 87967 | O146: 20.1 | Q146: 5655 | S146: 1.280840394 | U146: 365000 | W146: 0.83 | X146: East
A147: UKH15 | B147: Norwich and East Norfolk | C147: 227721 | E147: 182764 | G147: 77.6 | I147: 9324 | K147: 4.9 | M147: 41123 | O147: 18.2 | Q147: 4015 | S147: 1.763122417 | U147: 194000 | W147: 0.85 | X147: East
A148: UKH16 | B148: North and West Norfolk | C148: 143391 | E148: 108727 | G148: 71.6 | I148: 3837 | K148: 3.4 | M148: 36589 | O148: 25.7 | Q148: 1455 | S148: 1.014708036 | U148: 109000 | W148: 0.76 | X148: East
A149: UKH17 | B149: Breckland and South Norfolk | C149: 156118 | E149: 134897 | G149: 80.7 | I149: 4603 | K149: 3.3 | M149: 25600 | O149: 16.4 | Q149: 1465 | S149: 0.9383927542 | U149: 118000 | W149: 0.76 | X149: East
X150: East
A151: UKH2 | B151: Bedfordshire and Hertfordshire | C151: 1151758 | E151: 926423 | G151: 77.3 | I151: 37535 | K151: 3.9 | M151: 225197 | O151: 19.5 | Q151: 13910 | S151: 1.207718983 | U151: 956759 | W151: 0.8306944688 | X151: East
X152: East
A153: UKH21 | B153: Luton | C153: 138226 | E153: 94837 | G153: 67.1 | I153: 6531 | K153: 6.4 | M153: 38834 | O153: 28.1 | Q153: 2515 | S153: 1.819484033 | U153: 98000 | W153: 0.71 | X153: East
A154: UKH23 | B154: Hertfordshire | C154: 735934 | E154: 604236 | G154: 78.9 | I154: 23663 | K154: 3.8 | M154: 133024 | O154: 18 | Q154: 7925 | S154: 1.076862871 | U154: 665000 | W154: 0.9 | X154: East
A155: UKH24 | B155: Bedford | C155: 104014 | E155: 83005 | G155: 78.6 | I155: 3103 | K155: 3.6 | M155: 18696 | O155: 18.4 | Q155: 2115 | S155: 2.033380122 | U155: 83000 | W155: 0.79 | X155: East
A156: UKH25 | B156: Central Bedfordshire | C156: 173584 | E156: 144345 | G156: 78.2 | I156: 4238 | K156: 2.9 | M156: 34643 | O156: 19.5 | Q156: 1355 | S156: 0.7806018988 | U156: 111000 | W156: 0.64 | X156: East
X157: East
A158: UKH3 | B158: Essex | C158: 1099225 | E158: 873043 | G158: 75.5 | I158: 34615 | K158: 3.8 | M158: 235630 | O158: 21.4 | Q158: 16115 | S158: 1.466032887 | U158: 810489 | W158: 0.7373276627 | X158: East
X159: East
A160: UKH31 | B160: Southend-on-Sea | C160: 110434 | E160: 86839 | G160: 76 | I160: 4952 | K160: 5.4 | M160: 21555 | O160: 19.5 | Q160: 2195 | S160: 1.987612511 | U160: 76000 | W160: 0.69 | X160: East
A161: UKH32 | B161: Thurrock | C161: 105449 | E161: 79214 | G161: 72.7 | I161: 4581 | K161: 5.5 | M161: 24483 | O161: 23 | Q161: 2070 | S161: 1.963034263 | U161: 72000 | W161: 0.68 | X161: East
A162: UKH34 | B162: Essex Haven Gateway | C162: 287444 | E162: 217674 | G162: 73.2 | I162: 8340 | K162: 3.7 | M162: 68006 | O162: 23.9 | Q162: 4660 | S162: 1.621185344 | U162: 204000 | W162: 0.71 | X162: East
A163: UKH35 | B163: West Essex | C163: 186355 | E163: 158442 | G163: 79.4 | I163: 2775 | K163: 1.7 | M163: 35775 | O163: 19.1 | Q163: 2165 | S163: 1.161761155 | U163: 146000 | W163: 0.78 | X163: East
A164: UKH36 | B164: Heart of Essex | C164: 192183 | E164: 156139 | G164: 76.2 | I164: 5951 | K164: 3.7 | M164: 41091 | O164: 21 | Q164: 1860 | S164: 0.9678275394 | U164: 164000 | W164: 0.85 | X164: East
A165: UKH37 | B165: Essex Thames Gateway | C165: 217360 | E165: 174735 | G165: 75.8 | I165: 8016 | K165: 4.4 | M165: 44720 | O165: 20.5 | Q165: 3165 | S165: 1.45610968 | U165: 149000 | W165: 0.69 | X165: East
X166: East
A167: E12000007 | B167: LONDON | C167: 5907762 | D167: 5907762 | E167: 4503576 | G167: 73.8 | I167: 269707 | K167: 5.7 | L167: 5.7 | M167: 1284616 | O167: 21.7 | Q167: 112020 | S167: 1.9 | U167: 5776000 | W167: 0.98 | X167: London
X168: London
A169: UKI3 | B169: Inner London - West | C169: 820781 | E169: 616912 | G169: 73.3 | I169: 30210 | K169: 4.7 | M169: 186471 | O169: 23 | Q169: 13235 | S169: 1.612488593 | U169: 2120215 | W169: 2.583167739 | X169: London
X170: London
A171: UKI31 | B171: Camden and City of London | C171: 177484 | E171: 129891 | G171: 69.9 | I171: 6167 | K171: 4.5 | M171: 47008 | O171: 26.6 | Q171: 2770 | S171: 1.560704063 | U171: 921000 | W171: 5.19 | X171: London
A172: UKI32 | B172: Westminster | C172: 175277 | E172: 122911 | G172: 68.3 | I172: 8195 | K172: 6.3 | M172: 45922 | O172: 26.9 | Q172: 2535 | S172: 1.446282171 | U172: 754000 | W172: 4.3 | X172: London
A173: UKI33 | B173: Kensington & Chelsea and Hammersmith & Fulham | C173: 238886 | E173: 178253 | G173: 72.4 | I173: 9640 | K173: 5.1 | M173: 55315 | O173: 23.5 | Q173: 4735 | S173: 1.982116993 | U173: 302000 | W173: 1.26 | X173: London
A174: UKI34 | B174: Wandsworth | C174: 229134 | E174: 185857 | G174: 80.5 | I174: 6208 | K174: 3.2 | M174: 38226 | O174: 16.8 | Q174: 3195 | S174: 1.394380581 | U174: 143000 | W174: 0.62 | X174: London
X175: London
A176: UKI4 | B176: Inner London - East | C176: 1687719 | E176: 1268715 | G176: 73.3 | I176: 94868 | K176: 7 | M176: 360355 | O176: 21.2 | Q176: 39075 | S176: 2.315255087 | U176: 1437640 | W176: 0.851824267 | X176: London
X177: London
A178: UKI41 | B178: Hackney and Newham | C178: 427708 | E178: 307188 | G178: 70.3 | I178: 22043 | K178: 6.7 | M178: 106405 | O178: 24.6 | Q178: 9435 | S178: 2.205944242 | U178: 247000 | W178: 0.58 | X178: London
A179: UKI42 | B179: Tower Hamlets | C179: 218284 | E179: 156111 | G179: 69.4 | I179: 18737 | K179: 10.7 | M179: 49618 | O179: 22.2 | Q179: 4970 | S179: 2.276850342 | U179: 296000 | W179: 1.35 | X179: London
A180: UKI43 | B180: Haringey and Islington | C180: 364393 | E180: 270987 | G180: 71.8 | I180: 16096 | K180: 5.6 | M180: 86884 | O180: 23.8 | Q180: 8290 | S180: 2.27501626 | U180: 340000 | W180: 0.93 | X180: London
A181: UKI44 | B181: Lewisham and Southwark | C181: 435336 | E181: 333080 | G181: 75.2 | I181: 25453 | K181: 7.1 | M181: 83068 | O181: 19.1 | Q181: 10550 | S181: 2.423415477 | U181: 371000 | W181: 0.85 | X181: London
A182: UKI45 | B182: Lambeth | C182: 241998 | E182: 201349 | G182: 80.8 | I182: 12539 | K182: 5.9 | M182: 34380 | O182: 14.1 | Q182: 5830 | S182: 2.409110819 | U182: 184000 | W182: 0.76 | X182: London
X183: London
A184: UKI5 | B184: Outer London - East and North East | C184: 1209750 | E184: 916836 | G184: 73.6 | I184: 55163 | K184: 5.7 | M184: 267153 | O184: 22 | Q184: 23325 | S184: 1.928084315 | U184: 642034 | W184: 0.5307162637 | X184: London
X185: London
A186: UKI51 | B186: Bexley and Greenwich | C186: 338357 | E186: 261656 | G186: 75.4 | I186: 15976 | K186: 5.8 | M186: 67596 | O186: 19.9 | Q186: 5965 | S186: 1.762930869 | U186: 181000 | W186: 0.53 | X186: London
A187: UKI52 | B187: Barking & Dagenham and Havering | C187: 282567 | E187: 217245 | G187: 73.8 | I187: 12569 | K187: 5.5 | M187: 62796 | O187: 21.9 | Q187: 5645 | S187: 1.997756284 | U187: 154000 | W187: 0.54 | X187: London
A188: UKI53 | B188: Redbridge and Waltham Forest | C188: 377229 | E188: 285811 | G188: 73.5 | I188: 17369 | K188: 5.7 | M188: 83084 | O188: 21.9 | Q188: 7015 | S188: 1.859613126 | U188: 176000 | W188: 0.47 | X188: London
A189: UKI54 | B189: Enfield | C189: 211597 | E189: 152124 | G189: 70.4 | I189: 9249 | K189: 5.7 | M189: 53677 | O189: 25.4 | Q189: 4700 | S189: 2.221203514 | U189: 132000 | W189: 0.62 | X189: London
X190: London
A191: UKI6 | B191: Outer London - South | C191: 832384 | E191: 663398 | G191: 77.2 | I191: 31213 | K191: 4.5 | M191: 159000 | O191: 19.1 | Q191: 13135 | S191: 1.577997655 | U191: 536852 | W191: 0.6449571352 | X191: London
X192: London
A193: UKI61 | B193: Bromley | C193: 203476 | E193: 161852 | G193: 77.3 | I193: 7205 | K193: 4.3 | M193: 38633 | O193: 19.1 | Q193: 2200 | S193: 1.081208595 | U193: 123000 | W193: 0.6 | X193: London
A194: UKI62 | B194: Croydon | C194: 246130 | E194: 196997 | G194: 77.3 | I194: 11809 | K194: 5.7 | M194: 44432 | O194: 18.1 | Q194: 5635 | S194: 2.28944054 | U194: 143000 | W194: 0.58 | X194: London
A195: UKI63 | B195: Merton, Kingston upon Thames and Sutton | C195: 382778 | E195: 304549 | G195: 77.1 | I195: 12199 | K195: 3.9 | M195: 75935 | O195: 19.8 | Q195: 5300 | S195: 1.384614581 | U195: 271000 | W195: 0.71 | X195: London
X196: London
A197: UKI7 | B197: Outer London - West and North West | C197: 1357128 | E197: 1037715 | G197: 73 | I197: 58253 | K197: 5.3 | M197: 311637 | O197: 22.8 | Q197: 23250 | S197: 1.71317665 | U197: 1038955 | W197: 0.7655541703 | X197: London
X198: London
A199: UKI71 | B199: Barnet | C199: 246528 | E199: 182033 | G199: 70 | I199: 6533 | K199: 3.5 | M199: 68926 | O199: 27.4 | Q199: 3650 | S199: 1.480562046 | U199: 166000 | W199: 0.67 | X199: London
A200: UKI72 | B200: Brent | C200: 219663 | E200: 158060 | G200: 69.4 | I200: 13112 | K200: 7.7 | M200: 54584 | O200: 24.7 | Q200: 5325 | S200: 2.42416793 | U200: 135000 | W200: 0.61 | X200: London
A201: UKI73 | B201: Ealing | C201: 229111 | E201: 172845 | G201: 73.8 | I201: 11175 | K201: 6.1 | M201: 47937 | O201: 21.2 | Q201: 5010 | S201: 2.186712991 | U201: 162000 | W201: 0.71 | X201: London
A202: UKI74 | B202: Harrow and Hillingdon | C202: 354675 | E202: 277659 | G202: 74.1 | I202: 13940 | K202: 4.8 | M202: 78665 | O202: 22 | Q202: 4560 | S202: 1.285684077 | U202: 288000 | W202: 0.81 | X202: London
A203: UKI75 | B203: Hounslow and Richmond upon Thames | C203: 307151 | E203: 247118 | G203: 75.9 | I203: 13493 | K203: 5.2 | M203: 61525 | O203: 19.7 | Q203: 4705 | S203: 1.531819854 | U203: 287000 | W203: 0.94 | X203: London
... 129 more rows

Sheet CMDs 2007 prices (hidden)
A1: 2007 prices
B2: Number of people (m) | C2: Overall costs (£bn) | F2: Cost per person (£)
C3: Service costs | D3: Lost earnings | E3: Total costs | F3: Service costs | G3: Lost earnings | H3: Total costs
A4: Depression | B4: 1.24 | C4: 1.68 | D4: 5.82 | E4: =C4+D4 -> 7.5 | F4: =(C4/B4)*1000 -> 1354.83871 | G4: =(D4/B4)*1000 -> 4693.548387 | H4: =F4+G4 -> 6048.387097
A5: Anxiety disorders | B5: 2.28 | C5: 1.24 | D5: 7.7 | E5: =C5+D5 -> 8.94 | F5: =(C5/B5)*1000 -> 543.8596491 | G5: =(D5/B5)*1000 -> 3377.192982 | H5: 3921.052632
A6: Schizophrenic disorders | B6: 0.21 | C6: 2.23 | D6: 1.78 | E6: 4.01 | F6: 10619.04762 | G6: 8476.190476 | H6: 19095.2381
A7: Bipolar disorder/related conditions | B7: 1.14 | C7: 1.64 | D7: 3.57 | E7: 5.21 | F7: 1438.596491 | G7: 3131.578947 | H7: 4570.175439
A8: Eating disorders | B8: 0.117 | C8: 0.016 | D8: 0.035 | E8: 0.051 | F8: 136.7521368 | G8: 299.1452991 | H8: 435.8974359
A9: Personality disorder | B9: 2.47 | C9: 0.7 | D9: 7.2 | E9: 7.9 | F9: 283.4008097 | G9: 2914.979757 | H9: 3198.380567
A10: Child/adolescent disorders | B10: 0.61 | C10: 0.14 | D10: 0 | E10: 0.14 | F10: 229.5081967 | G10: 0 | H10: 229.5081967
A11: Dementia | B11: 0.58 | C11: 14.85 | D11: 0 | E11: 14.85 | F11: 25603.44828 | G11: 0 | H11: 25603.44828
A13: Total, anxiety and depression | B13: =B4+B5 -> 3.52 | C13: =C4+C5 -> 2.92 | D13: =D4+D5 -> 13.52 | E13: 16.44 | F13: =(C13/B13)*1000 -> 829.5454545 | G13: =(D13/B13)*1000 -> 3840.909091 | H13: =F13+G13 -> 4670.454545
A14: Total, adult mental health | B14: =SUM(B4:B9,B11) -> 8.037 | C14: =SUM(C4:C9,C11) -> 22.356 | D14: =SUM(D4:D9,D11) -> 26.105 | E14: 48.461 | F14: =(C14/B14)*1000 -> 2781.634938 | G14: =(D14/B14)*1000 -> 3248.102526 | H14: =F14+G14 -> 6029.737464
A15: Total, adult mental health, excl. dementia | B15: =SUM(B4:B9) -> 7.457 | C15: =SUM(C4:C9) -> 7.506 | D15: =SUM(D4:D9) -> 26.105 | E15: =C15+D15 -> 33.611 | F15: =(C15/B15)*1000 -> 1006.571007 | G15: =(D15/B15)*1000 -> 3500.737562 | H15: =F15+G15 -> 4507.308569
A16: Overall, all conditions/ages | B16: =SUM(B4:B11) -> 8.647 | C16: =SUM(C4:C11) -> 22.496 | D16: =SUM(D4:D11) -> 26.105 | E16: =C16+D16 -> 48.601 | F16: =(C16/B16)*1000 -> 2601.595929 | G16: =(D16/B16)*1000 -> 3018.966115 | H16: =F16+G16 -> 5620.562045
A17: Overall, all conditions/ages, excl. dementia | B17: =SUM(B4:B10) -> 8.067 | C17: =SUM(C4:C10) -> 7.646 | D17: =SUM(D4:D10) -> 26.105 | E17: =C17+D17 -> 33.751 | F17: =(C17/B17)*1000 -> 947.8120739 | G17: =(D17/B17)*1000 -> 3236.023305 | H17: =F17+G17 -> 4183.835379
B20: Number of people (m) | C20: Overall costs (£bn) | F20: Cost per person (£)
C21: Service costs | D21: Lost earnings | E21: Total costs | F21: Service costs | G21: Lost earnings | H21: Total costs
A22: Depression (proportion accessing service provision) | F22: 2085 | G22: 9311 | H22: =F22+G22 -> 11396
A23: Anxiety disorders (proportion in contact with service provision, or whose condition is recognised) | F23: 1104 | G23: 1298 | H23: =F23+G23 -> 2402
A25: Splits by agency (%) (King's Fund report, p.25, 40, 59, 74, 84, 96, 109, 114) | J25: Note: splits reworked 17 May 2019 to allocate SSD (social services department) expenditure to LAs
B26: NHS | C26: LA (SSD, residential care, day care, supported accommodation) | D26: CJS (prisons) | E26: Informal care | F26: Other | G26: Total fiscal cost | H26: Total economic/ social cost (informal care) | I26: Check
A27: Depression | B27: =9%+33%+17%+10%+1% -> 0.7 | C27: =10%+15% -> 0.25 | F27: 0.05 | G27: =B27+C27+D27+F27 -> 1 | H27: =E27 -> 0 | I27: =SUM(G27,H27) -> 1
A28: Anxiety disorders | B28: =18.7%+52.5%+11.8%+1.4%+2.3% -> 0.867 | C28: =5.1%+7.5% -> 0.126 | F28: 0.006 | G28: =B28+C28+D28+F28 -> 0.999 | H28: =E28 -> 0 | I28: =SUM(G28,H28) -> 0.999
A29: Schizophrenic disorders | B29: =27%+3%+2%+7%+18% -> 0.57 | C29: =6%+7% -> 0.13 | D29: 0.05 | E29: 0.25 | G29: 0.75 | H29: 0.25 | I29: 1
A30: Bipolar disorder/related conditions | B30: =3%+32%+2%+5%+6%+9%+2% -> 0.59 | C30: =2%+6%+5% -> 0.13 | E30: 0.28 | G30: 0.72 | H30: 0.28 | I30: 1
A31: Eating disorders | B31: 1 | G31: 1 | H31: 0 | I31: 1
A32: Personality disorder | B32: =32%+11%+48%+9% -> 1 | G32: 1 | H32: 0 | I32: 1
A33: Child/adolescent disorders | B33: 1 | G33: 1 | H33: 0 | I33: 1
A34: Dementia | B34: =8% -> 0.08 | C34: =41%+15% -> 0.56 | E34: =36% -> 0.36 | G34: 0.64 | H34: 0.36 | I34: 1
A36: Splits by agency - service costs per person (£)
B37: NHS | C37: LA (SSD, residential care, day care, supported accommodation) | D37: CJS (prisons) | E37: Informal care | F37: Other | G37: Total fiscal cost | H37: Total economic/ social cost (informal care) | I37: Check
A38: Depression | B38: =$F$4*B27 -> 948.3870968 | C38: =$F$4*C27 -> 338.7096774 | D38: =$F$4*D27 -> 0 | E38: =$F$4*E27 -> 0 | F38: =$F$4*F27 -> 67.74193548 | G38: =B38+C38+D38+F38 -> 1354.83871 | H38: =E38 -> 0 | I38: =SUM(G38:H38)-F4 -> 0
A39: Anxiety disorders | B39: =$F$5*B28 -> 471.5263158 | C39: =$F$5*C28 -> 68.52631579 | D39: =$F$5*D28 -> 0 | E39: =$F$5*E28 -> 0 | F39: =$F$5*F28 -> 3.263157895 | G39: =B39+C39+D39+F39 -> 543.3157895 | H39: =E39 -> 0 | I39: =SUM(G39:H39)-F5 -> -0.5438596491
A40: Schizophrenic disorders | B40: =$F$6*B29 -> 6052.857143 | C40: =$F$6*C29 -> 1380.47619 | D40: =$F$6*D29 -> 530.952381 | E40: =$F$6*E29 -> 2654.761905 | F40: =$F$6*F29 -> 0 | G40: 7964.285714 | H40: 2654.761905 | I40: 0
A41: Bipolar disorder/related conditions | B41: =$F$7*B30 -> 848.7719298 | C41: =$F$7*C30 -> 187.0175439 | D41: =$F$7*D30 -> 0 | E41: =$F$7*E30 -> 402.8070175 | F41: =$F$7*F30 -> 0 | G41: 1035.789474 | H41: 402.8070175 | I41: 0
A42: Eating disorders | B42: =$F$8*B31 -> 136.7521368 | C42: =$F$8*C31 -> 0 | D42: =$F$8*D31 -> 0 | E42: =$F$8*E31 -> 0 | F42: =$F$8*F31 -> 0 | G42: 136.7521368 | H42: 0 | I42: =SUM(G42:H42)-F8 -> 0
A43: Personality disorder | B43: =$F$9*B32 -> 283.4008097 | C43: =$F$9*C32 -> 0 | D43: =$F$9*D32 -> 0 | E43: =$F$9*E32 -> 0 | F43: =$F$9*F32 -> 0 | G43: 283.4008097 | H43: 0 | I43: 0
A44: Child/adolescent disorders | B44: =$F$10*B33 -> 229.5081967 | C44: =$F$10*C33 -> 0 | D44: =$F$10*D33 -> 0 | E44: =$F$10*E33 -> 0 | F44: =$F$10*F33 -> 0 | G44: 229.5081967 | H44: 0 | I44: 0
A45: Dementia | B45: =$F$11*B34 -> 2048.275862 | C45: =$F$11*C34 -> 14337.93103 | D45: =$F$11*D34 -> 0 | E45: =$F$11*E34 -> 9217.241379 | F45: =$F$11*F34 -> 0 | G45: 16386.2069 | H45: 9217.241379 | I45: 0
B47: Overall service costs (£bn) | I47: Service costs per person (£)
B48: NHS | C48: LA (SSD, residential care, day care, supported accommodation) | D48: CJS (prisons) | E48: Informal care | F48: Other | G48: Total fiscal cost | H48: Total economic/ social cost (informal care) | I48: NHS | J48: LA (SSD, residential care, day care, supported accommodation) | K48: CJS (prisons) | L48: Informal care | M48: Other | N48: Total fiscal cost | O48: Total economic/ social cost (informal care) | P48: Check | Q48: Check
A49: Depression | B49: =($B$4*B38)/1000 -> 1.176 | C49: =($B$4*C38)/1000 -> 0.42 | D49: =($B$4*D38)/1000 -> 0 | E49: =($B$4*E38)/1000 -> 0 | F49: =($B$4*F38)/1000 -> 0.084 | G49: =B49+C49+D49+F49 -> 1.68 | H49: =E49 -> 0 | I49: =(B49/$B$4)*1000 -> 948.3870968 | J49: =(C49/$B$4)*1000 -> 338.7096774 | K49: =(D49/$B$4)*1000 -> 0 | L49: =(E49/$B$4)*1000 -> 0 | M49: =(F49/$B$4)*1000 -> 67.74193548 | N49: =I49+J49+K49+M49 -> 1354.83871 | O49: =L49 -> 0 | P49: =SUM(G49:H49)-C4 -> 0 | Q49: =SUM(N49:O49)-F4 -> 0
A50: Anxiety disorders | B50: =($B$5*B39)/1000 -> 1.07508 | C50: =($B$5*C39)/1000 -> 0.15624 | D50: =($B$5*D39)/1000 -> 0 | E50: =($B$5*E39)/1000 -> 0 | F50: =($B$5*F39)/1000 -> 0.00744 | G50: =B50+C50+D50+F50 -> 1.23876 | H50: =E50 -> 0 | I50: =(B50/$B$5)*1000 -> 471.5263158 | J50: =(C50/$B$5)*1000 -> 68.52631579 | K50: =(D50/$B$5)*1000 -> 0 | L50: =(E50/$B$5)*1000 -> 0 | M50: =(F50/$B$5)*1000 -> 3.263157895 | N50: =I50+J50+K50+M50 -> 543.3157895 | O50: =L50 -> 0 | P50: -0.00124 | Q50: -0.5438596491
A51: Schizophrenic disorders | B51: =($B$6*B40)/1000 -> 1.2711 | C51: =($B$6*C40)/1000 -> 0.2899 | D51: =($B$6*D40)/1000 -> 0.1115 | E51: =($B$6*E40)/1000 -> 0.5575 | F51: =($B$6*F40)/1000 -> 0 | G51: 1.6725 | H51: 0.5575 | I51: =(B51/$B$6)*1000 -> 6052.857143 | J51: =(C51/$B$6)*1000 -> 1380.47619 | K51: =(D51/$B$6)*1000 -> 530.952381 | L51: =(E51/$B$6)*1000 -> 2654.761905 | M51: =(F51/$B$6)*1000 -> 0 | N51: 7964.285714 | O51: 2654.761905 | P51: 0 | Q51: 0
A52: Bipolar disorder/related conditions | B52: =($B$7*B41)/1000 -> 0.9676 | C52: =($B$7*C41)/1000 -> 0.2132 | D52: =($B$7*D41)/1000 -> 0 | E52: =($B$7*E41)/1000 -> 0.4592 | F52: =($B$7*F41)/1000 -> 0 | G52: 1.1808 | H52: 0.4592 | I52: =(B52/$B$7)*1000 -> 848.7719298 | J52: =(C52/$B$7)*1000 -> 187.0175439 | K52: =(D52/$B$7)*1000 -> 0 | L52: =(E52/$B$7)*1000 -> 402.8070175 | M52: =(F52/$B$7)*1000 -> 0 | N52: 1035.789474 | O52: 402.8070175 | P52: 0 | Q52: 0
A53: Eating disorders | B53: =($B$8*B42)/1000 -> 0.016 | C53: =($B$8*C42)/1000 -> 0 | D53: =($B$8*D42)/1000 -> 0 | E53: =($B$8*E42)/1000 -> 0 | F53: =($B$8*F42)/1000 -> 0 | G53: 0.016 | H53: 0 | I53: =(B53/$B$8)*1000 -> 136.7521368 | J53: =(C53/$B$8)*1000 -> 0 | K53: =(D53/$B$8)*1000 -> 0 | L53: =(E53/$B$8)*1000 -> 0 | M53: =(F53/$B$8)*1000 -> 0 | N53: 136.7521368 | O53: 0 | P53: 0 | Q53: 0
A54: Personality disorder | B54: =($B$9*B43)/1000 -> 0.7 | C54: =($B$9*C43)/1000 -> 0 | D54: =($B$9*D43)/1000 -> 0 | E54: =($B$9*E43)/1000 -> 0 | F54: =($B$9*F43)/1000 -> 0 | G54: 0.7 | H54: 0 | I54: =(B54/$B$9)*1000 -> 283.4008097 | J54: =(C54/$B$9)*1000 -> 0 | K54: =(D54/$B$9)*1000 -> 0 | L54: =(E54/$B$9)*1000 -> 0 | M54: =(F54/$B$9)*1000 -> 0 | N54: 283.4008097 | O54: 0 | P54: 0 | Q54: 0
A55: Child/adolescent disorders | B55: =($B$10*B44)/1000 -> 0.14 | C55: =($B$10*C44)/1000 -> 0 | D55: =($B$10*D44)/1000 -> 0 | E55: =($B$10*E44)/1000 -> 0 | F55: =($B$10*F44)/1000 -> 0 | G55: 0.14 | H55: 0 | I55: =(B55/$B$10)*1000 -> 229.5081967 | J55: =(C55/$B$10)*1000 -> 0 | K55: =(D55/$B$10)*1000 -> 0 | L55: =(E55/$B$10)*1000 -> 0 | M55: =(F55/$B$10)*1000 -> 0 | N55: 229.5081967 | O55: 0 | P55: 0 | Q55: 0
A56: Dementia | B56: =($B$11*B45)/1000 -> 1.188 | C56: =($B$11*C45)/1000 -> 8.316 | D56: =($B$11*D45)/1000 -> 0 | E56: =($B$11*E45)/1000 -> 5.346 | F56: =($B$11*F45)/1000 -> 0 | G56: 9.504 | H56: 5.346 | I56: =(B56/$B$11)*1000 -> 2048.275862 | J56: =(C56/$B$11)*1000 -> 14337.93103 | K56: =(D56/$B$11)*1000 -> 0 | L56: =(E56/$B$11)*1000 -> 9217.241379 | M56: =(F56/$B$11)*1000 -> 0 | N56: 16386.2069 | O56: 9217.241379 | P56: 0 | Q56: 0
A58: Total, anxiety and depression | B58: =SUM(B49,B50) -> 2.25108 | C58: =SUM(C49,C50) -> 0.57624 | D58: =SUM(D49,D50) -> 0 | E58: =SUM(E49,E50) -> 0 | F58: =SUM(F49,F50) -> 0.09144 | G58: =B58+C58+D58+F58 -> 2.91876 | H58: =E58 -> 0 | I58: =(B58/$B$13)*1000 -> 639.5113636 | J58: =(C58/$B$13)*1000 -> 163.7045455 | K58: =(D58/$B$13)*1000 -> 0 | L58: =(E58/$B$13)*1000 -> 0 | M58: =(F58/$B$13)*1000 -> 25.97727273 | N58: =I58+J58+K58+M58 -> 829.1931818 | O58: =L58 -> 0 | P58: =SUM(G58:H58)-C13 -> -0.00124 | Q58: =SUM(N58:O58)-F13 -> -0.3522727273
A59: Total, adult mental health | B59: =SUM(B49:B54,B56) -> 6.39378 | C59: =SUM(C49:C54,C56) -> 9.39534 | D59: =SUM(D49:D54,D56) -> 0.1115 | E59: =SUM(E49:E54,E56) -> 6.3627 | F59: =SUM(F49:F54,F56) -> 0.09144 | G59: =B59+C59+D59+F59 -> 15.99206 | H59: =E59 -> 6.3627 | I59: =(B59/$B$14)*1000 -> 795.5431131 | J59: =(C59/$B$14)*1000 -> 1169.010825 | K59: =(D59/$B$14)*1000 -> 13.87333582 | L59: =(E59/$B$14)*1000 -> 791.6759985 | M59: =(F59/$B$14)*1000 -> 11.37737962 | N59: =I59+J59+K59+M59 -> 1989.804653 | O59: =L59 -> 791.6759985 | P59: =SUM(G59:H59)-C14 -> -0.00124 | Q59: =SUM(N59:O59)-F14 -> -0.1542864253
A60: Total, adult mental health, excl. dementia | B60: =SUM(B49:B54) -> 5.20578 | C60: =SUM(C49:C54) -> 1.07934 | D60: =SUM(D49:D54) -> 0.1115 | E60: =SUM(E49:E54) -> 1.0167 | F60: =SUM(F49:F54) -> 0.09144 | G60: =B60+C60+D60+F60 -> 6.48806 | H60: =E60 -> 1.0167 | I60: =(B60/$B$15)*1000 -> 698.1064771 | J60: =(C60/$B$15)*1000 -> 144.7418533 | K60: =(D60/$B$15)*1000 -> 14.95239372 | L60: =(E60/$B$15)*1000 -> 136.3416924 | M60: =(F60/$B$15)*1000 -> 12.26230388 | N60: =I60+J60+K60+M60 -> 870.063028 | O60: =L60 -> 136.3416924 | P60: =SUM(G60:H60)-C15 -> -0.00124 | Q60: =SUM(N60:O60)-F15 -> -0.1662867105
A61: Overall, all conditions/ages | B61: =SUM(B49:B56) -> 6.53378 | C61: =SUM(C49:C56) -> 9.39534 | D61: =SUM(D49:D56) -> 0.1115 | E61: =SUM(E49:E56) -> 6.3627 | F61: =SUM(F49:F56) -> 0.09144 | G61: =B61+C61+D61+F61 -> 16.13206 | H61: =E61 -> 6.3627 | I61: =(B61/$B$16)*1000 -> 755.6123511 | J61: =(C61/$B$16)*1000 -> 1086.54331 | K61: =(D61/$B$16)*1000 -> 12.89464554 | L61: =(E61/$B$16)*1000 -> 735.8274546 | M61: =(F61/$B$16)*1000 -> 10.57476581 | N61: =I61+J61+K61+M61 -> 1865.625072 | O61: =L61 -> 735.8274546 | P61: =SUM(G61:H61)-C16 -> -0.00124 | Q61: =SUM(N61:O61)-F16 -> -0.1434023361
A62: Overall, all conditions/ages, excl. dementia | B62: =SUM(B49:B55) -> 5.34578 | C62: =SUM(C49:C55) -> 1.07934 | D62: =SUM(D49:D55) -> 0.1115 | E62: =SUM(E49:E55) -> 1.0167 | F62: =SUM(F49:F55) -> 0.09144 | G62: =B62+C62+D62+F62 -> 6.62806 | H62: =E62 -> 1.0167 | I62: =(B62/$B$17)*1000 -> 662.6726168 | J62: =(C62/$B$17)*1000 -> 133.7969505 | K62: =(D62/$B$17)*1000 -> 13.8217429 | L62: =(E62/$B$17)*1000 -> 126.0319821 | M62: =(F62/$B$17)*1000 -> 11.3350688 | N62: =I62+J62+K62+M62 -> 821.6263791 | O62: =L62 -> 126.0319821 | P62: =SUM(G62:H62)-C17 -> -0.00124 | Q62: =SUM(N62:O62)-F17 -> -0.1537126565
A64: Splits by agency - service costs per person (%)
B65: Overall service costs (£bn) | I65: Service costs per person (£)
B66: NHS | C66: LA (SSD, residential care, day care, supported accommodation) | D66: CJS (prisons) | E66: Informal care | F66: Other | G66: Total fiscal cost | H66: Total economic/ social cost (informal care) | I66: NHS | J66: LA (SSD, residential care, day care, supported accommodation) | K66: CJS (prisons) | L66: Informal care | M66: Other | N66: Total fiscal cost | O66: Total economic/ social cost (informal care) | P66: Check | Q66: Check
A67: Total, anxiety and depression | B67: =B58/SUM($G$58:$H$58) -> 0.7712453234 | C67: =C58/SUM($G$58:$H$58) -> 0.1974263043 | D67: =D58/SUM($G$58:$H$58) -> 0 | E67: =E58/SUM($G$58:$H$58) -> 0 | F67: =F58/SUM($G$58:$H$58) -> 0.03132837232 | G67: =B67+C67+D67+F67 -> 1 | H67: =E67 -> 0 | I67: =I58/SUM($N$58:$O$58) -> 0.7712453234 | J67: =J58/SUM($N$58:$O$58) -> 0.1974263043 | K67: =K58/SUM($N$58:$O$58) -> 0 | L67: =L58/SUM($N$58:$O$58) -> 0 | M67: =M58/SUM($N$58:$O$58) -> 0.03132837232 | N67: =I67+J67+K67+M67 -> 1 | O67: =L67 -> 0 | P67: =SUM(G67:H67) -> 1 | Q67: =SUM(N67:O67) -> 1
A68: Total, adult mental health | B68: =B59/SUM($G$59:$H$59) -> 0.2860142538 | C68: =C59/SUM($G$59:$H$59) -> 0.4202836443 | D68: =D59/SUM($G$59:$H$59) -> 0.004987752049 | E68: =E59/SUM($G$59:$H$59) -> 0.2846239459 | F68: =F59/SUM($G$59:$H$59) -> 0.004090404012 | G68: =B68+C68+D68+F68 -> 0.7153760541 | H68: =E68 -> 0.2846239459 | I68: =I59/SUM($N$59:$O$59) -> 0.2860142538 | J68: =J59/SUM($N$59:$O$59) -> 0.4202836443 | K68: =K59/SUM($N$59:$O$59) -> 0.004987752049 | L68: =L59/SUM($N$59:$O$59) -> 0.2846239459 | M68: =M59/SUM($N$59:$O$59) -> 0.004090404012 | N68: =I68+J68+K68+M68 -> 0.7153760541 | O68: =L68 -> 0.2846239459 | P68: =SUM(G68:H68) -> 1 | Q68: =SUM(N68:O68) -> 1
A69: Total, adult mental health, excl. dementia | B69: =B60/SUM($G$60:$H$60) -> 0.6936637547 | C69: =C60/SUM($G$60:$H$60) -> 0.1438207218 | D69: =D60/SUM($G$60:$H$60) -> 0.01485723727 | E69: =E60/SUM($G$60:$H$60) -> 0.1354740192 | F69: =F60/SUM($G$60:$H$60) -> 0.01218426705 | G69: =B69+C69+D69+F69 -> 0.8645259808 | H69: =E69 -> 0.1354740192 | I69: =I60/SUM($N$60:$O$60) -> 0.6936637547 | J69: =J60/SUM($N$60:$O$60) -> 0.1438207218 | K69: =K60/SUM($N$60:$O$60) -> 0.01485723727 | L69: =L60/SUM($N$60:$O$60) -> 0.1354740192 | M69: =M60/SUM($N$60:$O$60) -> 0.01218426705 | N69: =I69+J69+K69+M69 -> 0.8645259808 | O69: =L69 -> 0.1354740192 | P69: =SUM(G69:H69) -> 1 | Q69: =SUM(N69:O69) -> 1
A70: Overall, all conditions/ages | B70: =B61/SUM($G$61:$H$61) -> 0.2904578666 | C70: =C61/SUM($G$61:$H$61) -> 0.4176679369 | D70: =D61/SUM($G$61:$H$61) -> 0.004956709918 | E70: =E61/SUM($G$61:$H$61) -> 0.2828525399 | F70: =F61/SUM($G$61:$H$61) -> 0.004064946681 | G70: =B70+C70+D70+F70 -> 0.7171474601 | H70: =E70 -> 0.2828525399 | I70: =I61/SUM($N$61:$O$61) -> 0.2904578666 | J70: =J61/SUM($N$61:$O$61) -> 0.4176679369 | K70: =K61/SUM($N$61:$O$61) -> 0.004956709918 | L70: =L61/SUM($N$61:$O$61) -> 0.2828525399 | M70: =M61/SUM($N$61:$O$61) -> 0.004064946681 | N70: =I70+J70+K70+M70 -> 0.7171474601 | O70: =L70 -> 0.2828525399 | P70: =SUM(G70:H70) -> 1 | Q70: =SUM(N70:O70) -> 1
A71: Overall, all conditions/ages, excl. dementia | B71: =B62/SUM($G$62:$H$62) -> 0.6992737509 | C71: =C62/SUM($G$62:$H$62) -> 0.1411869045 | D71: =D62/SUM($G$62:$H$62) -> 0.01458515375 | E71: =E62/SUM($G$62:$H$62) -> 0.1329930567 | F71: =F62/SUM($G$62:$H$62) -> 0.01196113416 | G71: =B71+C71+D71+F71 -> 0.8670069433 | H71: =E71 -> 0.1329930567 | I71: =I62/SUM($N$62:$O$62) -> 0.6992737509 | J71: =J62/SUM($N$62:$O$62) -> 0.1411869045 | K71: =K62/SUM($N$62:$O$62) -> 0.01458515375 | L71: =L62/SUM($N$62:$O$62) -> 0.1329930567 | M71: =M62/SUM($N$62:$O$62) -> 0.01196113416 | N71: =I71+J71+K71+M71 -> 0.8670069433 | O71: =L71 -> 0.1329930567 | P71: =SUM(G71:H71) -> 1 | Q71: =SUM(N71:O71) -> 1
A73: Splits by agency - assuming 'other' = NHS
B75: Overall service costs (£bn) | H75: Service costs per person (£)
B76: NHS | C76: LA (SSD, residential care, day care, supported accommodation) | D76: CJS (prisons) | E76: Informal care | F76: Total fiscal cost | G76: Total economic/ social cost (informal care) | H76: NHS | I76: LA (SSD, residential care, day care, supported accommodation) | J76: CJS (prisons) | K76: Informal care | L76: Total fiscal cost | M76: Total economic/ social cost (informal care) | N76: Check | O76: Check
A77: Depression | B77: =B49+F49 -> 1.26 | C77: =C49 -> 0.42 | D77: =D49 -> 0 | E77: 0 | F77: =SUM(B77:D77) -> 1.68 | G77: =E77 -> 0 | H77: =(B77/$B$4)*1000 -> 1016.129032 | I77: =(C77/$B$4)*1000 -> 338.7096774 | J77: =(D77/$B$4)*1000 -> 0 | K77: =(E77/$B$4)*1000 -> 0 | L77: =SUM(H77:J77) -> 1354.83871 | M77: =K77 -> 0 | N77: =SUM(F77:G77)-C4 -> 0 | O77: =SUM(L77:M77)-F4 -> 0
A78: Anxiety disorders | B78: =B50+F50 -> 1.08252 | C78: 0.15624 | D78: 0 | E78: 0 | F78: =SUM(B78:D78) -> 1.23876 | G78: =E78 -> 0 | H78: =(B78/$B$5)*1000 -> 474.7894737 | I78: =(C78/$B$5)*1000 -> 68.52631579 | J78: =(D78/$B$5)*1000 -> 0 | K78: =(E78/$B$5)*1000 -> 0 | L78: =SUM(H78:J78) -> 543.3157895 | M78: =K78 -> 0 | N78: -0.00124 | O78: -0.5438596491
A79: Schizophrenic disorders | B79: 1.2711 | C79: 0.2899 | D79: 0.1115 | E79: 0.5575 | F79: 1.6725 | G79: 0.5575 | H79: =(B79/$B$6)*1000 -> 6052.857143 | I79: =(C79/$B$6)*1000 -> 1380.47619 | J79: =(D79/$B$6)*1000 -> 530.952381 | K79: =(E79/$B$6)*1000 -> 2654.761905 | L79: 7964.285714 | M79: 2654.761905 | N79: 0 | O79: 0
A80: Bipolar disorder/related conditions | B80: 0.9676 | C80: 0.2132 | D80: 0 | E80: 0.4592 | F80: 1.1808 | G80: 0.4592 | H80: =(B80/$B$7)*1000 -> 848.7719298 | I80: =(C80/$B$7)*1000 -> 187.0175439 | J80: =(D80/$B$7)*1000 -> 0 | K80: =(E80/$B$7)*1000 -> 402.8070175 | L80: 1035.789474 | M80: 402.8070175 | N80: 0 | O80: 0
A81: Eating disorders | B81: 0.016 | C81: 0 | D81: 0 | E81: 0 | F81: 0.016 | G81: 0 | H81: =(B81/$B$8)*1000 -> 136.7521368 | I81: =(C81/$B$8)*1000 -> 0 | J81: =(D81/$B$8)*1000 -> 0 | K81: =(E81/$B$8)*1000 -> 0 | L81: 136.7521368 | M81: 0 | N81: 0 | O81: 0
A82: Personality disorder | B82: 0.7 | C82: 0 | D82: 0 | E82: 0 | F82: 0.7 | G82: 0 | H82: =(B82/$B$9)*1000 -> 283.4008097 | I82: =(C82/$B$9)*1000 -> 0 | J82: =(D82/$B$9)*1000 -> 0 | K82: =(E82/$B$9)*1000 -> 0 | L82: 283.4008097 | M82: 0 | N82: 0 | O82: 0
A83: Child/adolescent disorders | B83: 0.14 | C83: 0 | D83: 0 | E83: 0 | F83: 0.14 | G83: 0 | H83: =(B83/$B$10)*1000 -> 229.5081967 | I83: =(C83/$B$10)*1000 -> 0 | J83: =(D83/$B$10)*1000 -> 0 | K83: =(E83/$B$10)*1000 -> 0 | L83: 229.5081967 | M83: 0 | N83: 0 | O83: 0
A84: Dementia | B84: 1.188 | C84: 8.316 | D84: 0 | E84: 5.346 | F84: 9.504 | G84: 5.346 | H84: =(B84/$B$11)*1000 -> 2048.275862 | I84: =(C84/$B$11)*1000 -> 14337.93103 | J84: =(D84/$B$11)*1000 -> 0 | K84: =(E84/$B$11)*1000 -> 9217.241379 | L84: 16386.2069 | M84: 9217.241379 | N84: 0 | O84: 0
A86: Total, anxiety and depression | B86: =SUM(B77,B78) -> 2.34252 | C86: =SUM(C77,C78) -> 0.57624 | D86: =SUM(D77,D78) -> 0 | E86: =SUM(E77,E78) -> 0 | F86: 2.91876 | G86: =E86 -> 0 | H86: =(B86/$B$13)*1000 -> 665.4886364 | I86: =(C86/$B$13)*1000 -> 163.7045455 | J86: =(D86/$B$13)*1000 -> 0 | K86: =(E86/$B$13)*1000 -> 0 | L86: =SUM(H86:J86) -> 829.1931818 | M86: =K86 -> 0 | N86: =SUM(F86:G86)-C13 -> -0.00124 | O86: =SUM(L86:M86)-F13 -> -0.3522727273
A87: Total, adult mental health | B87: =SUM(B77:B82,B84) -> 6.48522 | C87: =SUM(C77:C82,C84) -> 9.39534 | D87: =SUM(D77:D82,D84) -> 0.1115 | E87: =SUM(E77:E82,E84) -> 6.3627 | F87: 15.99206 | G87: =E87 -> 6.3627 | H87: =(B87/$B$14)*1000 -> 806.9204927 | I87: =(C87/$B$14)*1000 -> 1169.010825 | J87: =(D87/$B$14)*1000 -> 13.87333582 | K87: =(E87/$B$14)*1000 -> 791.6759985 | L87: =SUM(H87:J87) -> 1989.804653 | M87: =K87 -> 791.6759985 | N87: =SUM(F87:G87)-C14 -> -0.00124 | O87: =SUM(L87:M87)-F14 -> -0.1542864253
A88: Total, adult mental health, excl. dementia | B88: =SUM(B77:B82) -> 5.29722 | C88: =SUM(C77:C82) -> 1.07934 | D88: =SUM(D77:D82) -> 0.1115 | E88: =SUM(E77:E82) -> 1.0167 | F88: 6.48806 | G88: =E88 -> 1.0167 | H88: =(B88/$B$15)*1000 -> 710.368781 | I88: =(C88/$B$15)*1000 -> 144.7418533 | J88: =(D88/$B$15)*1000 -> 14.95239372 | K88: =(E88/$B$15)*1000 -> 136.3416924 | L88: =SUM(H88:J88) -> 870.063028 | M88: =K88 -> 136.3416924 | N88: =SUM(F88:G88)-C15 -> -0.00124 | O88: =SUM(L88:M88)-F15 -> -0.1662867105
A89: Overall, all conditions/ages | B89: =SUM(B77:B84) -> 6.62522 | C89: =SUM(C77:C84) -> 9.39534 | D89: =SUM(D77:D84) -> 0.1115 | E89: =SUM(E77:E84) -> 6.3627 | F89: 16.13206 | G89: =E89 -> 6.3627 | H89: =(B89/$B$16)*1000 -> 766.1871169 | I89: =(C89/$B$16)*1000 -> 1086.54331 | J89: =(D89/$B$16)*1000 -> 12.89464554 | K89: =(E89/$B$16)*1000 -> 735.8274546 | L89: =SUM(H89:J89) -> 1865.625072 | M89: =K89 -> 735.8274546 | N89: =SUM(F89:G89)-C16 -> -0.00124 | O89: =SUM(L89:M89)-F16 -> -0.1434023361
A90: Overall, all conditions/ages, excl. dementia | B90: =SUM(B77:B83) -> 5.43722 | C90: =SUM(C77:C83) -> 1.07934 | D90: =SUM(D77:D83) -> 0.1115 | E90: =SUM(E77:E83) -> 1.0167 | F90: =SUM(B90:D90) -> 6.62806 | G90: =E90 -> 1.0167 | H90: =(B90/$B$17)*1000 -> 674.0076856 | I90: =(C90/$B$17)*1000 -> 133.7969505 | J90: =(D90/$B$17)*1000 -> 13.8217429 | K90: =(E90/$B$17)*1000 -> 126.0319821 | L90: =SUM(H90:J90) -> 821.6263791 | M90: =K90 -> 126.0319821 | N90: =SUM(F90:G90)-C17 -> -0.00124 | O90: =SUM(L90:M90)-F17 -> -0.1537126565
B92: Overall service costs (£bn) | H92: Service costs per person (£)
B93: NHS | C93: LA (SSD, residential care, day care, supported accommodation) | D93: CJS (prisons) | E93: Informal care | F93: Total fiscal cost | G93: Total economic/ social cost (informal care) | H93: NHS | I93: LA (SSD, residential care, day care, supported accommodation) | J93: CJS (prisons) | K93: Informal care | L93: Total fiscal cost | M93: Total economic/ social cost (informal care) | N93: Check | O93: Check
A94: Total, anxiety and depression | B94: =B86/SUM($F$86:$G$86) -> 0.8025736957 | C94: =C86/SUM($F$86:$G$86) -> 0.1974263043 | D94: =D86/SUM($F$86:$G$86) -> 0 | E94: =E86/SUM($F$86:$G$86) -> 0 | F94: =SUM(B94:D94) -> 1 | G94: =E94 -> 0 | H94: =H86/SUM($L$86:$M$86) -> 0.8025736957 | I94: =I86/SUM($L$86:$M$86) -> 0.1974263043 | J94: =J86/SUM($L$86:$M$86) -> 0 | K94: =K86/SUM($L$86:$M$86) -> 0 | L94: =SUM(H94:J94) -> 1 | M94: =K94 -> 0 | N94: =SUM(F94:G94) -> 1 | O94: =SUM(L94:M94) -> 1
A95: Total, adult mental health | B95: =B87/SUM($F$87:$G$87) -> 0.2901046578 | C95: =C87/SUM($F$87:$G$87) -> 0.4202836443 | D95: =D87/SUM($F$87:$G$87) -> 0.004987752049 | E95: =E87/SUM($F$87:$G$87) -> 0.2846239459 | F95: =SUM(B95:D95) -> 0.7153760541 | G95: =E95 -> 0.2846239459 | H95: =H87/SUM($L$87:$M$87) -> 0.2901046578 | I95: =I87/SUM($L$87:$M$87) -> 0.4202836443 | J95: =J87/SUM($L$87:$M$87) -> 0.004987752049 | K95: =K87/SUM($L$87:$M$87) -> 0.2846239459 | L95: =SUM(H95:J95) -> 0.7153760541 | M95: =K95 -> 0.2846239459 | N95: =SUM(F95:G95) -> 1 | O95: =SUM(L95:M95) -> 1
A96: Total, adult mental health, excl. dementia | B96: =B88/SUM($F$88:$G$88) -> 0.7058480218 | C96: =C88/SUM($F$88:$G$88) -> 0.1438207218 | D96: =D88/SUM($F$88:$G$88) -> 0.01485723727 | E96: =E88/SUM($F$88:$G$88) -> 0.1354740192 | F96: =SUM(B96:D96) -> 0.8645259808 | G96: =E96 -> 0.1354740192 | H96: =H88/SUM($L$88:$M$88) -> 0.7058480218 | I96: =I88/SUM($L$88:$M$88) -> 0.1438207218 | J96: =J88/SUM($L$88:$M$88) -> 0.01485723727 | K96: =K88/SUM($L$88:$M$88) -> 0.1354740192 | L96: =SUM(H96:J96) -> 0.8645259808 | M96: =K96 -> 0.1354740192 | N96: =SUM(F96:G96) -> 1 | O96: =SUM(L96:M96) -> 1
A97: Overall, all conditions/ages | B97: =B89/SUM($F$89:$G$89) -> 0.2945228133 | C97: =C89/SUM($F$89:$G$89) -> 0.4176679369 | D97: =D89/SUM($F$89:$G$89) -> 0.004956709918 | E97: =E89/SUM($F$89:$G$89) -> 0.2828525399 | F97: =SUM(B97:D97) -> 0.7171474601 | G97: =E97 -> 0.2828525399 | H97: =H89/SUM($L$89:$M$89) -> 0.2945228133 | I97: =I89/SUM($L$89:$M$89) -> 0.4176679369 | J97: =J89/SUM($L$89:$M$89) -> 0.004956709918 | K97: =K89/SUM($L$89:$M$89) -> 0.2828525399 | L97: =SUM(H97:J97) -> 0.7171474601 | M97: =K97 -> 0.2828525399 | N97: =SUM(F97:G97) -> 1 | O97: =SUM(L97:M97) -> 1
A98: Overall, all conditions/ages, excl. dementia | B98: =B90/SUM($F$90:$G$90) -> 0.7112348851 | C98: =C90/SUM($F$90:$G$90) -> 0.1411869045 | D98: =D90/SUM($F$90:$G$90) -> 0.01458515375 | E98: =E90/SUM($F$90:$G$90) -> 0.1329930567 | F98: =SUM(B98:D98) -> 0.8670069433 | G98: =E98 -> 0.1329930567 | H98: =H90/SUM($L$90:$M$90) -> 0.7112348851 | I98: =I90/SUM($L$90:$M$90) -> 0.1411869045 | J98: =J90/SUM($L$90:$M$90) -> 0.01458515375 | K98: =K90/SUM($L$90:$M$90) -> 0.1329930567 | L98: =SUM(H98:J98) -> 0.8670069433 | M98: =K98 -> 0.1329930567 | N98: =SUM(F98:G98) -> 1 | O98: =SUM(L98:M98) -> 1
A100: % of fiscal cost only
B101: Overall service costs (£bn) | F101: Service costs per person (£)
B102: NHS | C102: LA (SSD, residential care, day care, supported accommodation) | D102: CJS (prisons) | E102: Total fiscal cost | F102: NHS | G102: LA (SSD, residential care, day care, supported accommodation) | H102: CJS (prisons) | I102: Total fiscal cost
A103: Depression | B103: =B77/$F$77 -> 0.75 | C103: =C77/$F$77 -> 0.25 | D103: =D77/$F$77 -> 0 | E103: =SUM(B103:D103) -> 1 | F103: =H77/$L$77 -> 0.75 | G103: =I77/$L$77 -> 0.25 | H103: =J77/$L$77 -> 0 | I103: =SUM(F103:H103) -> 1
A104: Anxiety disorders | B104: =B78/$F$78 -> 0.8738738739 | C104: =C78/$F$78 -> 0.1261261261 | D104: =D78/$F$78 -> 0 | E104: 1 | F104: =H78/$L$78 -> 0.8738738739 | G104: =I78/$L$78 -> 0.1261261261 | H104: =J78/$L$78 -> 0 | I104: 1
A105: Schizophrenic disorders | B105: =B79/$F$79 -> 0.76 | C105: =C79/$F$79 -> 0.1733333333 | D105: =D79/$F$79 -> 0.06666666667 | E105: 1 | F105: =H79/$L$79 -> 0.76 | G105: =I79/$L$79 -> 0.1733333333 | H105: =J79/$L$79 -> 0.06666666667 | I105: 1
A106: Bipolar disorder/related conditions | B106: =B80/$F$80 -> 0.8194444444 | C106: =C80/$F$80 -> 0.1805555556 | D106: =D80/$F$80 -> 0 | E106: 1 | F106: =H80/$L$80 -> 0.8194444444 | G106: =I80/$L$80 -> 0.1805555556 | H106: =J80/$L$80 -> 0 | I106: 1
A107: Eating disorders | B107: =B81/$F$81 -> 1 | C107: =C81/$F$81 -> 0 | D107: =D81/$F$81 -> 0 | E107: 1 | F107: =H81/$L$81 -> 1 | G107: =I81/$L$81 -> 0 | H107: =J81/$L$81 -> 0 | I107: 1
A108: Personality disorder | B108: =B82/$F$82 -> 1 | C108: =C82/$F$82 -> 0 | D108: =D82/$F$82 -> 0 | E108: 1 | F108: =H82/$L$82 -> 1 | G108: =I82/$L$82 -> 0 | H108: =J82/$L$82 -> 0 | I108: 1
A109: Child/adolescent disorders | B109: =B83/$F$83 -> 1 | C109: =C83/$F$83 -> 0 | D109: =D83/$F$83 -> 0 | E109: 1 | F109: =H83/$L$83 -> 1 | G109: =I83/$L$83 -> 0 | H109: =J83/$L$83 -> 0 | I109: 1
A110: Dementia | B110: =B84/$F$84 -> 0.125 | C110: =C84/$F$84 -> 0.875 | D110: =D84/$F$84 -> 0 | E110: 1 | F110: =H84/$L$84 -> 0.125 | G110: =I84/$L$84 -> 0.875 | H110: =J84/$L$84 -> 0 | I110: 1
A112: Total, anxiety and depression | B112: =B86/$F$86 -> 0.8025736957 | C112: =C86/$F$86 -> 0.1974263043 | D112: =D86/$F$86 -> 0 | E112: =SUM(B112:D112) -> 1 | F112: =H86/$L$86 -> 0.8025736957 | G112: =I86/$L$86 -> 0.1974263043 | H112: =J86/$L$86 -> 0 | I112: =SUM(F112:H112) -> 1
A113: Total, adult mental health | B113: =B87/$F$87 -> 0.405527493 | C113: =C87/$F$87 -> 0.587500297 | D113: =D87/$F$87 -> 0.006972209959 | E113: =SUM(B113:D113) -> 1 | F113: =H87/$L$87 -> 0.405527493 | G113: =I87/$L$87 -> 0.587500297 | H113: =J87/$L$87 -> 0.006972209959 | I113: =SUM(F113:H113) -> 1
A114: Total, adult mental health, excl. dementia | B114: =B88/$F$88 -> 0.8164566912 | C114: =C88/$F$88 -> 0.1663578943 | D114: =D88/$F$88 -> 0.01718541444 | E114: =SUM(B114:D114) -> 1 | F114: =H88/$L$88 -> 0.8164566912 | G114: =I88/$L$88 -> 0.1663578943 | H114: =J88/$L$88 -> 0.01718541444 | I114: =SUM(F114:H114) -> 1
A115: Overall, all conditions/ages | B115: =B89/$F$89 -> 0.4106865459 | C115: =C89/$F$89 -> 0.5824017515 | D115: =D89/$F$89 -> 0.006911702535 | E115: =SUM(B115:D115) -> 1 | F115: =H89/$L$89 -> 0.4106865459 | G115: =I89/$L$89 -> 0.5824017515 | H115: =J89/$L$89 -> 0.006911702535 | I115: =SUM(F115:H115) -> 1
A116: Overall, all conditions/ages, excl. dementia | B116: =B90/$F$90 -> 0.8203335516 | C116: =C90/$F$90 -> 0.1628440298 | D116: =D90/$F$90 -> 0.01682241863 | E116: =SUM(B116:D116) -> 1 | F116: =H90/$L$90 -> 0.8203335516 | G116: =I90/$L$90 -> 0.1628440298 | H116: =J90/$L$90 -> 0.01682241863 | I116: =SUM(F116:H116) -> 1

Sheet CMDs 2016-2017 prices (hidden)
A1: 2017/18 prices
B2: Number of people (m) | C2: Overall costs (£bn) | F2: Cost per person (£)
C3: Service costs | D3: Lost earnings | E3: Total costs | F3: Service costs | G3: Lost earnings | H3: Total costs
A4: Depression | B4: 1.24 | C4: ='CMDs 2007 prices'!C4*(100/'GDP deflators, March 2017'!$S$60) -> 1.952927688 | D4: ='CMDs 2007 prices'!D4*(100/'GDP deflators, March 2017'!$S$60) -> 6.765499492 | E4: =C4+D4 -> 8.71842718 | F4: =(C4/B4)*1000 -> 1574.941684 | G4: =(D4/B4)*1000 -> 5456.047977 | H4: =F4+G4 -> 7030.989661
A5: Anxiety disorders | B5: 2.28 | C5: ='CMDs 2007 prices'!C5*(100/'GDP deflators, March 2017'!$S$60) -> 1.441446627 | D5: ='CMDs 2007 prices'!D5*(100/'GDP deflators, March 2017'!$S$60) -> 8.950918571 | E5: =C5+D5 -> 10.3923652 | F5: =(C5/B5)*1000 -> 632.2134329 | G5: =(D5/B5)*1000 -> 3925.841479 | H5: 4558.054912
A6: Schizophrenic disorders | B6: 0.21 | C6: ='CMDs 2007 prices'!C6*(100/'GDP deflators, March 2017'!$S$60) -> 2.592279015 | D6: ='CMDs 2007 prices'!D6*(100/'GDP deflators, March 2017'!$S$60) -> 2.069173384 | E6: 4.661452399 | F6: 12344.18578 | G6: 9853.206591 | H6: 22197.39238
A7: Bipolar disorder/related conditions | B7: 1.14 | C7: ='CMDs 2007 prices'!C7*(100/'GDP deflators, March 2017'!$S$60) -> 1.90642941 | D7: ='CMDs 2007 prices'!D7*(100/'GDP deflators, March 2017'!$S$60) -> 4.149971338 | E7: 6.056400748 | F7: 1672.3065 | G7: 3640.325735 | H7: 5312.632235
A8: Eating disorders | B8: 0.117 | C8: ='CMDs 2007 prices'!C8*(100/'GDP deflators, March 2017'!$S$60) -> 0.01859931132 | D8: ='CMDs 2007 prices'!D8*(100/'GDP deflators, March 2017'!$S$60) -> 0.04068599351 | E8: 0.05928530482 | F8: 158.9684728 | G8: 347.7435342 | H8: 506.712007
A9: Personality disorder | B9: 2.47 | C9: ='CMDs 2007 prices'!C9*(100/'GDP deflators, March 2017'!$S$60) -> 0.8137198701 | D9: ='CMDs 2007 prices'!D9*(100/'GDP deflators, March 2017'!$S$60) -> 8.369690093 | E9: 9.183409963 | F9: 329.441243 | G9: 3388.538499 | H9: 3717.979742
A10: Child/adolescent disorders | B10: 0.61 | C10: ='CMDs 2007 prices'!C10*(100/'GDP deflators, March 2017'!$S$60) -> 0.162743974 | D10: ='CMDs 2007 prices'!D10*(100/'GDP deflators, March 2017'!$S$60) -> 0 | E10: 0.162743974 | F10: 266.7934 | G10: 0 | H10: 266.7934
A11: Dementia | B11: 0.58 | C11: ='CMDs 2007 prices'!C11*(100/'GDP deflators, March 2017'!$S$60) -> 17.26248582 | D11: ='CMDs 2007 prices'!D11*(100/'GDP deflators, March 2017'!$S$60) -> 0 | E11: 17.26248582 | F11: 29762.90658 | G11: 0 | H11: 29762.90658
A13: Total, anxiety and depression | B13: =B4+B5 -> 3.52 | C13: =C4+C5 -> 3.394374315 | D13: =D4+D5 -> 15.71641806 | E13: 19.11079238 | F13: =(C13/B13)*1000 -> 964.310885 | G13: =(D13/B13)*1000 -> 4464.891495 | H13: =F13+G13 -> 5429.20238
A14: Total, adult mental health | B14: =SUM(B4:B9,B11) -> 8.037 | C14: =SUM(C4:C9,C11) -> 25.98788774 | D14: =SUM(D4:D9,D11) -> 30.34593887 | E14: 56.33382661 | F14: =(C14/B14)*1000 -> 3233.530887 | G14: =(D14/B14)*1000 -> 3775.779379 | H14: =F14+G14 -> 7009.310266
A15: Total, adult mental health, excl. dementia | B15: =SUM(B4:B9) -> 7.457 | C15: =SUM(C4:C9) -> 8.725401922 | D15: =SUM(D4:D9) -> 30.34593887 | E15: =C15+D15 -> 39.07134079 | F15: =(C15/B15)*1000 -> 1170.09547 | G15: =(D15/B15)*1000 -> 4069.456735 | H15: =F15+G15 -> 5239.552205
A16: Overall, all conditions/ages | B16: =SUM(B4:B11) -> 8.647 | C16: =SUM(C4:C11) -> 26.15063171 | D16: =SUM(D4:D11) -> 30.34593887 | E16: =C16+D16 -> 56.49657058 | F16: =(C16/B16)*1000 -> 3024.243288 | G16: =(D16/B16)*1000 -> 3509.418165 | H16: =F16+G16 -> 6533.661453
A17: Overall, all conditions/ages, excl. dementia | B17: =SUM(B4:B10) -> 8.067 | C17: =SUM(C4:C10) -> 8.888145896 | D17: =SUM(D4:D10) -> 30.34593887 | E17: =C17+D17 -> 39.23408477 | F17: =(C17/B17)*1000 -> 1101.79074 | G17: =(D17/B17)*1000 -> 3761.737805 | H17: =F17+G17 -> 4863.528544
B20: Number of people (m) | C20: Overall costs (£bn) | F20: Cost per person (£)
C21: Service costs | D21: Lost earnings | E21: Total costs | F21: Service costs | G21: Lost earnings | H21: Total costs
A22: Depression (proportion accessing service provision) | F22: ='CMDs 2007 prices'!F22*(100/'GDP deflators, March 2017'!$S$60) -> 2423.722756 | G22: ='CMDs 2007 prices'!G22*(100/'GDP deflators, March 2017'!$S$60) -> 10823.63673 | H22: =F22+G22 -> 13247.35949
A23: Anxiety disorders (proportion in contact with service provision, or whose condition is recognised) | F23: ='CMDs 2007 prices'!F23*(100/'GDP deflators, March 2017'!$S$60) -> 1283.352481 | G23: ='CMDs 2007 prices'!G23*(100/'GDP deflators, March 2017'!$S$60) -> 1508.869131 | H23: =F23+G23 -> 2792.221611
A25: Splits by agency (%) (King's Fund report, p.25, 40, 59, 74, 84, 96, 109, 114) | J25: Note: splits reworked 17 May 2019 to allocate SSD (social services department) expenditure to LAs
B26: NHS | C26: LA (SSD, residential care, day care, supported accommodation) | D26: CJS (prisons) | E26: Informal care | F26: Other | G26: Total fiscal cost | H26: Total economic/ social cost (informal care) | I26: Check
A27: Depression | B27: =9%+33%+17%+10%+1% -> 0.7 | C27: =10%+15% -> 0.25 | F27: 0.05 | G27: =B27+C27+D27+F27 -> 1 | H27: =E27 -> 0 | I27: =SUM(G27,H27) -> 1
A28: Anxiety disorders | B28: =18.7%+52.5%+11.8%+1.4%+2.3% -> 0.867 | C28: =5.1%+7.5% -> 0.126 | F28: 0.006 | G28: =B28+C28+D28+F28 -> 0.999 | H28: =E28 -> 0 | I28: =SUM(G28,H28) -> 0.999
A29: Schizophrenic disorders | B29: =27%+3%+2%+7%+18% -> 0.57 | C29: =6%+7% -> 0.13 | D29: 0.05 | E29: 0.25 | G29: 0.75 | H29: 0.25 | I29: 1
A30: Bipolar disorder/related conditions | B30: =3%+32%+2%+5%+6%+9%+2% -> 0.59 | C30: =2%+6%+5% -> 0.13 | E30: 0.28 | G30: 0.72 | H30: 0.28 | I30: 1
A31: Eating disorders | B31: 1 | G31: 1 | H31: 0 | I31: 1
A32: Personality disorder | B32: =32%+11%+48%+9% -> 1 | G32: 1 | H32: 0 | I32: 1
A33: Child/adolescent disorders | B33: 1 | G33: 1 | H33: 0 | I33: 1
A34: Dementia | B34: =8% -> 0.08 | C34: =41%+15% -> 0.56 | E34: =36% -> 0.36 | G34: 0.64 | H34: 0.36 | I34: 1
A36: Splits by agency - service costs per person (£)
B37: NHS | C37: LA (SSD, residential care, day care, supported accommodation) | D37: CJS (prisons) | E37: Informal care | F37: Other | G37: Total fiscal cost | H37: Total economic/ social cost (informal care) | I37: Check
A38: Depression | B38: =$F$4*B27 -> 1102.459179 | C38: =$F$4*C27 -> 393.735421 | D38: =$F$4*D27 -> 0 | E38: =$F$4*E27 -> 0 | F38: =$F$4*F27 -> 78.74708421 | G38: =B38+C38+D38+F38 -> 1574.941684 | H38: =E38 -> 0 | I38: =SUM(G38:H38)-F4 -> 0
A39: Anxiety disorders | B39: =$F$5*B28 -> 548.1290463 | C39: =$F$5*C28 -> 79.65889255 | D39: =$F$5*D28 -> 0 | E39: =$F$5*E28 -> 0 | F39: =$F$5*F28 -> 3.793280598 | G39: =B39+C39+D39+F39 -> 631.5812195 | H39: =E39 -> 0 | I39: =SUM(G39:H39)-F5 -> -0.6322134329
A40: Schizophrenic disorders | B40: =$F$6*B29 -> 7036.185897 | C40: =$F$6*C29 -> 1604.744152 | D40: =$F$6*D29 -> 617.2092892 | E40: =$F$6*E29 -> 3086.046446 | F40: =$F$6*F29 -> 0 | G40: 9258.139339 | H40: 3086.046446 | I40: 0
A41: Bipolar disorder/related conditions | B41: =$F$7*B30 -> 986.660835 | C41: =$F$7*C30 -> 217.399845 | D41: =$F$7*D30 -> 0 | E41: =$F$7*E30 -> 468.24582 | F41: =$F$7*F30 -> 0 | G41: 1204.06068 | H41: 468.24582 | I41: 0
A42: Eating disorders | B42: =$F$8*B31 -> 158.9684728 | C42: =$F$8*C31 -> 0 | D42: =$F$8*D31 -> 0 | E42: =$F$8*E31 -> 0 | F42: =$F$8*F31 -> 0 | G42: 158.9684728 | H42: 0 | I42: =SUM(G42:H42)-F8 -> 0
A43: Personality disorder | B43: =$F$9*B32 -> 329.441243 | C43: =$F$9*C32 -> 0 | D43: =$F$9*D32 -> 0 | E43: =$F$9*E32 -> 0 | F43: =$F$9*F32 -> 0 | G43: 329.441243 | H43: 0 | I43: 0
A44: Child/adolescent disorders | B44: =$F$10*B33 -> 266.7934 | C44: =$F$10*C33 -> 0 | D44: =$F$10*D33 -> 0 | E44: =$F$10*E33 -> 0 | F44: =$F$10*F33 -> 0 | G44: 266.7934 | H44: 0 | I44: 0
A45: Dementia | B45: =$F$11*B34 -> 2381.032526 | C45: =$F$11*C34 -> 16667.22768 | D45: =$F$11*D34 -> 0 | E45: =$F$11*E34 -> 10714.64637 | F45: =$F$11*F34 -> 0 | G45: 19048.26021 | H45: 10714.64637 | I45: 0
B47: Overall service costs (£bn) | I47: Service costs per person (£)
B48: NHS | C48: LA (SSD, residential care, day care, supported accommodation) | D48: CJS (prisons) | E48: Informal care | F48: Other | G48: Total fiscal cost | H48: Total economic/ social cost (informal care) | I48: NHS | J48: LA (SSD, residential care, day care, supported accommodation) | K48: CJS (prisons) | L48: Informal care | M48: Other | N48: Total fiscal cost | O48: Total economic/ social cost (informal care) | P48: Check | Q48: Check
A49: Depression | B49: =($B$4*B38)/1000 -> 1.367049382 | C49: =($B$4*C38)/1000 -> 0.4882319221 | D49: =($B$4*D38)/1000 -> 0 | E49: =($B$4*E38)/1000 -> 0 | F49: =($B$4*F38)/1000 -> 0.09764638441 | G49: =B49+C49+D49+F49 -> 1.952927688 | H49: =E49 -> 0 | I49: =(B49/$B$4)*1000 -> 1102.459179 | J49: =(C49/$B$4)*1000 -> 393.735421 | K49: =(D49/$B$4)*1000 -> 0 | L49: =(E49/$B$4)*1000 -> 0 | M49: =(F49/$B$4)*1000 -> 78.74708421 | N49: =I49+J49+K49+M49 -> 1574.941684 | O49: =L49 -> 0 | P49: =SUM(G49:H49)-C4 -> 0 | Q49: =SUM(N49:O49)-F4 -> 0
A50: Anxiety disorders | B50: =($B$5*B39)/1000 -> 1.249734226 | C50: =($B$5*C39)/1000 -> 0.181622275 | D50: =($B$5*D39)/1000 -> 0 | E50: =($B$5*E39)/1000 -> 0 | F50: =($B$5*F39)/1000 -> 0.008648679762 | G50: =B50+C50+D50+F50 -> 1.44000518 | H50: =E50 -> 0 | I50: =(B50/$B$5)*1000 -> 548.1290463 | J50: =(C50/$B$5)*1000 -> 79.65889255 | K50: =(D50/$B$5)*1000 -> 0 | L50: =(E50/$B$5)*1000 -> 0 | M50: =(F50/$B$5)*1000 -> 3.793280598 | N50: =I50+J50+K50+M50 -> 631.5812195 | O50: =L50 -> 0 | P50: -0.001441446627 | Q50: -0.6322134329
A51: Schizophrenic disorders | B51: =($B$6*B40)/1000 -> 1.477599038 | C51: =($B$6*C40)/1000 -> 0.3369962719 | D51: =($B$6*D40)/1000 -> 0.1296139507 | E51: =($B$6*E40)/1000 -> 0.6480697537 | F51: =($B$6*F40)/1000 -> 0 | G51: 1.944209261 | H51: 0.6480697537 | I51: =(B51/$B$6)*1000 -> 7036.185897 | J51: =(C51/$B$6)*1000 -> 1604.744152 | K51: =(D51/$B$6)*1000 -> 617.2092892 | L51: =(E51/$B$6)*1000 -> 3086.046446 | M51: =(F51/$B$6)*1000 -> 0 | N51: 9258.139339 | O51: 3086.046446 | P51: 0 | Q51: 0
A52: Bipolar disorder/related conditions | B52: =($B$7*B41)/1000 -> 1.124793352 | C52: =($B$7*C41)/1000 -> 0.2478358233 | D52: =($B$7*D41)/1000 -> 0 | E52: =($B$7*E41)/1000 -> 0.5338002348 | F52: =($B$7*F41)/1000 -> 0 | G52: 1.372629175 | H52: 0.5338002348 | I52: =(B52/$B$7)*1000 -> 986.660835 | J52: =(C52/$B$7)*1000 -> 217.399845 | K52: =(D52/$B$7)*1000 -> 0 | L52: =(E52/$B$7)*1000 -> 468.24582 | M52: =(F52/$B$7)*1000 -> 0 | N52: 1204.06068 | O52: 468.24582 | P52: 0 | Q52: 0
A53: Eating disorders | B53: =($B$8*B42)/1000 -> 0.01859931132 | C53: =($B$8*C42)/1000 -> 0 | D53: =($B$8*D42)/1000 -> 0 | E53: =($B$8*E42)/1000 -> 0 | F53: =($B$8*F42)/1000 -> 0 | G53: 0.01859931132 | H53: 0 | I53: =(B53/$B$8)*1000 -> 158.9684728 | J53: =(C53/$B$8)*1000 -> 0 | K53: =(D53/$B$8)*1000 -> 0 | L53: =(E53/$B$8)*1000 -> 0 | M53: =(F53/$B$8)*1000 -> 0 | N53: 158.9684728 | O53: 0 | P53: 0 | Q53: 0
A54: Personality disorder | B54: =($B$9*B43)/1000 -> 0.8137198701 | C54: =($B$9*C43)/1000 -> 0 | D54: =($B$9*D43)/1000 -> 0 | E54: =($B$9*E43)/1000 -> 0 | F54: =($B$9*F43)/1000 -> 0 | G54: 0.8137198701 | H54: 0 | I54: =(B54/$B$9)*1000 -> 329.441243 | J54: =(C54/$B$9)*1000 -> 0 | K54: =(D54/$B$9)*1000 -> 0 | L54: =(E54/$B$9)*1000 -> 0 | M54: =(F54/$B$9)*1000 -> 0 | N54: 329.441243 | O54: 0 | P54: 0 | Q54: 0
A55: Child/adolescent disorders | B55: =($B$10*B44)/1000 -> 0.162743974 | C55: =($B$10*C44)/1000 -> 0 | D55: =($B$10*D44)/1000 -> 0 | E55: =($B$10*E44)/1000 -> 0 | F55: =($B$10*F44)/1000 -> 0 | G55: 0.162743974 | H55: 0 | I55: =(B55/$B$10)*1000 -> 266.7934 | J55: =(C55/$B$10)*1000 -> 0 | K55: =(D55/$B$10)*1000 -> 0 | L55: =(E55/$B$10)*1000 -> 0 | M55: =(F55/$B$10)*1000 -> 0 | N55: 266.7934 | O55: 0 | P55: 0 | Q55: 0
A56: Dementia | B56: =($B$11*B45)/1000 -> 1.380998865 | C56: =($B$11*C45)/1000 -> 9.666992057 | D56: =($B$11*D45)/1000 -> 0 | E56: =($B$11*E45)/1000 -> 6.214494894 | F56: =($B$11*F45)/1000 -> 0 | G56: 11.04799092 | H56: 6.214494894 | I56: =(B56/$B$11)*1000 -> 2381.032526 | J56: =(C56/$B$11)*1000 -> 16667.22768 | K56: =(D56/$B$11)*1000 -> 0 | L56: =(E56/$B$11)*1000 -> 10714.64637 | M56: =(F56/$B$11)*1000 -> 0 | N56: 19048.26021 | O56: 10714.64637 | P56: 0 | Q56: 0
A58: Total, anxiety and depression | B58: =SUM(B49,B50) -> 2.616783607 | C58: =SUM(C49,C50) -> 0.6698541971 | D58: =SUM(D49,D50) -> 0 | E58: =SUM(E49,E50) -> 0 | F58: =SUM(F49,F50) -> 0.1062950642 | G58: =B58+C58+D58+F58 -> 3.392932869 | H58: =E58 -> 0 | I58: =(B58/$B$13)*1000 -> 743.4044339 | J58: =(C58/$B$13)*1000 -> 190.2994878 | K58: =(D58/$B$13)*1000 -> 0 | L58: =(E58/$B$13)*1000 -> 0 | M58: =(F58/$B$13)*1000 -> 30.19746141 | N58: =I58+J58+K58+M58 -> 963.9013832 | O58: =L58 -> 0 | P58: =SUM(G58:H58)-C13 -> -0.001441446627 | Q58: =SUM(N58:O58)-F13 -> -0.4095018827
A59: Total, adult mental health | B59: =SUM(B49:B54,B56) -> 7.432494045 | C59: =SUM(C49:C54,C56) -> 10.92167835 | D59: =SUM(D49:D54,D56) -> 0.1296139507 | E59: =SUM(E49:E54,E56) -> 7.396364882 | F59: =SUM(F49:F54,F56) -> 0.1062950642 | G59: =B59+C59+D59+F59 -> 18.59008141 | H59: =E59 -> 7.396364882 | I59: =(B59/$B$14)*1000 -> 924.7846267 | J59: =(C59/$B$14)*1000 -> 1358.924767 | K59: =(D59/$B$14)*1000 -> 16.12715575 | L59: =(E59/$B$14)*1000 -> 920.2892724 | M59: =(F59/$B$14)*1000 -> 13.22571409 | N59: =I59+J59+K59+M59 -> 2313.062263 | O59: =L59 -> 920.2892724 | P59: =SUM(G59:H59)-C14 -> -0.001441446627 | Q59: =SUM(N59:O59)-F14 -> -0.1793513285
A60: Total, adult mental health, excl. dementia | B60: =SUM(B49:B54) -> 6.051495179 | C60: =SUM(C49:C54) -> 1.254686292 | D60: =SUM(D49:D54) -> 0.1296139507 | E60: =SUM(E49:E54) -> 1.181869989 | F60: =SUM(F49:F54) -> 0.1062950642 | G60: =B60+C60+D60+F60 -> 7.542090487 | H60: =E60 -> 1.181869989 | I60: =(B60/$B$15)*1000 -> 811.5187313 | J60: =(C60/$B$15)*1000 -> 168.2561744 | K60: =(D60/$B$15)*1000 -> 17.38151411 | L60: =(E60/$B$15)*1000 -> 158.4913489 | M60: =(F60/$B$15)*1000 -> 14.25440045 | N60: =I60+J60+K60+M60 -> 1011.41082 | O60: =L60 -> 158.4913489 | P60: =SUM(G60:H60)-C15 -> -0.001441446627 | Q60: =SUM(N60:O60)-F15 -> -0.1933011435
A61: Overall, all conditions/ages | B61: =SUM(B49:B56) -> 7.595238019 | C61: =SUM(C49:C56) -> 10.92167835 | D61: =SUM(D49:D56) -> 0.1296139507 | E61: =SUM(E49:E56) -> 7.396364882 | F61: =SUM(F49:F56) -> 0.1062950642 | G61: =B61+C61+D61+F61 -> 18.75282538 | H61: =E61 -> 7.396364882 | I61: =(B61/$B$16)*1000 -> 878.3668346 | J61: =(C61/$B$16)*1000 -> 1263.05983 | K61: =(D61/$B$16)*1000 -> 14.98947042 | L61: =(E61/$B$16)*1000 -> 855.367744 | M61: =(F61/$B$16)*1000 -> 12.29271009 | N61: =I61+J61+K61+M61 -> 2168.708845 | O61: =L61 -> 855.367744 | P61: =SUM(G61:H61)-C16 -> -0.001441446627 | Q61: =SUM(N61:O61)-F16 -> -0.1666990433
A62: Overall, all conditions/ages, excl. dementia | B62: =SUM(B49:B55) -> 6.214239153 | C62: =SUM(C49:C55) -> 1.254686292 | D62: =SUM(D49:D55) -> 0.1296139507 | E62: =SUM(E49:E55) -> 1.181869989 | F62: =SUM(F49:F55) -> 0.1062950642 | G62: =B62+C62+D62+F62 -> 7.704834461 | H62: =E62 -> 1.181869989 | I62: =(B62/$B$17)*1000 -> 770.3283939 | J62: =(C62/$B$17)*1000 -> 155.533196 | K62: =(D62/$B$17)*1000 -> 16.0671812 | L62: =(E62/$B$17)*1000 -> 146.5067545 | M62: =(F62/$B$17)*1000 -> 13.17652959 | N62: =I62+J62+K62+M62 -> 955.1053007 | O62: =L62 -> 146.5067545 | P62: =SUM(G62:H62)-C17 -> -0.001441446627 | Q62: =SUM(N62:O62)-F17 -> -0.178684347
A64: Splits by agency - service costs per person (%)
B65: Overall service costs (£bn) | I65: Service costs per person (£)
B66: NHS | C66: LA (SSD, residential care, day care, supported accommodation) | D66: CJS (prisons) | E66: Informal care | F66: Other | G66: Total fiscal cost | H66: Total economic/ social cost (informal care) | I66: NHS | J66: LA (SSD, residential care, day care, supported accommodation) | K66: CJS (prisons) | L66: Informal care | M66: Other | N66: Total fiscal cost | O66: Total economic/ social cost (informal care) | P66: Check | Q66: Check
A67: Total, anxiety and depression | B67: =B58/SUM($G$58:$H$58) -> 0.7712453234 | C67: =C58/SUM($G$58:$H$58) -> 0.1974263043 | D67: =D58/SUM($G$58:$H$58) -> 0 | E67: =E58/SUM($G$58:$H$58) -> 0 | F67: =F58/SUM($G$58:$H$58) -> 0.03132837232 | G67: =B67+C67+D67+F67 -> 1 | H67: =E67 -> 0 | I67: =I58/SUM($N$58:$O$58) -> 0.7712453234 | J67: =J58/SUM($N$58:$O$58) -> 0.1974263043 | K67: =K58/SUM($N$58:$O$58) -> 0 | L67: =L58/SUM($N$58:$O$58) -> 0 | M67: =M58/SUM($N$58:$O$58) -> 0.03132837232 | N67: =I67+J67+K67+M67 -> 1 | O67: =L67 -> 0 | P67: =SUM(G67:H67) -> 1 | Q67: =SUM(N67:O67) -> 1
A68: Total, adult mental health | B68: =B59/SUM($G$59:$H$59) -> 0.2860142538 | C68: =C59/SUM($G$59:$H$59) -> 0.4202836443 | D68: =D59/SUM($G$59:$H$59) -> 0.004987752049 | E68: =E59/SUM($G$59:$H$59) -> 0.2846239459 | F68: =F59/SUM($G$59:$H$59) -> 0.004090404012 | G68: =B68+C68+D68+F68 -> 0.7153760541 | H68: =E68 -> 0.2846239459 | I68: =I59/SUM($N$59:$O$59) -> 0.2860142538 | J68: =J59/SUM($N$59:$O$59) -> 0.4202836443 | K68: =K59/SUM($N$59:$O$59) -> 0.004987752049 | L68: =L59/SUM($N$59:$O$59) -> 0.2846239459 | M68: =M59/SUM($N$59:$O$59) -> 0.004090404012 | N68: =I68+J68+K68+M68 -> 0.7153760541 | O68: =L68 -> 0.2846239459 | P68: =SUM(G68:H68) -> 1 | Q68: =SUM(N68:O68) -> 1
A69: Total, adult mental health, excl. dementia | B69: =B60/SUM($G$60:$H$60) -> 0.6936637547 | C69: =C60/SUM($G$60:$H$60) -> 0.1438207218 | D69: =D60/SUM($G$60:$H$60) -> 0.01485723727 | E69: =E60/SUM($G$60:$H$60) -> 0.1354740192 | F69: =F60/SUM($G$60:$H$60) -> 0.01218426705 | G69: =B69+C69+D69+F69 -> 0.8645259808 | H69: =E69 -> 0.1354740192 | I69: =I60/SUM($N$60:$O$60) -> 0.6936637547 | J69: =J60/SUM($N$60:$O$60) -> 0.1438207218 | K69: =K60/SUM($N$60:$O$60) -> 0.01485723727 | L69: =L60/SUM($N$60:$O$60) -> 0.1354740192 | M69: =M60/SUM($N$60:$O$60) -> 0.01218426705 | N69: =I69+J69+K69+M69 -> 0.8645259808 | O69: =L69 -> 0.1354740192 | P69: =SUM(G69:H69) -> 1 | Q69: =SUM(N69:O69) -> 1
A70: Overall, all conditions/ages | B70: =B61/SUM($G$61:$H$61) -> 0.2904578666 | C70: =C61/SUM($G$61:$H$61) -> 0.4176679369 | D70: =D61/SUM($G$61:$H$61) -> 0.004956709918 | E70: =E61/SUM($G$61:$H$61) -> 0.2828525399 | F70: =F61/SUM($G$61:$H$61) -> 0.004064946681 | G70: =B70+C70+D70+F70 -> 0.7171474601 | H70: =E70 -> 0.2828525399 | I70: =I61/SUM($N$61:$O$61) -> 0.2904578666 | J70: =J61/SUM($N$61:$O$61) -> 0.4176679369 | K70: =K61/SUM($N$61:$O$61) -> 0.004956709918 | L70: =L61/SUM($N$61:$O$61) -> 0.2828525399 | M70: =M61/SUM($N$61:$O$61) -> 0.004064946681 | N70: =I70+J70+K70+M70 -> 0.7171474601 | O70: =L70 -> 0.2828525399 | P70: =SUM(G70:H70) -> 1 | Q70: =SUM(N70:O70) -> 1
A71: Overall, all conditions/ages, excl. dementia | B71: =B62/SUM($G$62:$H$62) -> 0.6992737509 | C71: =C62/SUM($G$62:$H$62) -> 0.1411869045 | D71: =D62/SUM($G$62:$H$62) -> 0.01458515375 | E71: =E62/SUM($G$62:$H$62) -> 0.1329930567 | F71: =F62/SUM($G$62:$H$62) -> 0.01196113416 | G71: =B71+C71+D71+F71 -> 0.8670069433 | H71: =E71 -> 0.1329930567 | I71: =I62/SUM($N$62:$O$62) -> 0.6992737509 | J71: =J62/SUM($N$62:$O$62) -> 0.1411869045 | K71: =K62/SUM($N$62:$O$62) -> 0.01458515375 | L71: =L62/SUM($N$62:$O$62) -> 0.1329930567 | M71: =M62/SUM($N$62:$O$62) -> 0.01196113416 | N71: =I71+J71+K71+M71 -> 0.8670069433 | O71: =L71 -> 0.1329930567 | P71: =SUM(G71:H71) -> 1 | Q71: =SUM(N71:O71) -> 1
A73: Splits by agency - assuming 'other' = NHS | B73: As agreed, other as a separate category
B75: Overall service costs (£bn) | H75: Service costs per person (£)
B76: NHS | C76: LA (SSD, residential care, day care, supported accommodation) | D76: CJS (prisons) | E76: Informal care | F76: Total fiscal cost | G76: Total economic/ social cost (informal care) | H76: NHS | I76: LA (SSD, residential care, day care, supported accommodation) | J76: CJS (prisons) | K76: Informal care | L76: Total fiscal cost | M76: Total economic/ social cost (informal care) | N76: Check | O76: Check
A77: Depression | B77: =B49+F49 -> 1.464695766 | C77: =C49 -> 0.4882319221 | D77: =D49 -> 0 | E77: 0 | F77: =SUM(B77:D77) -> 1.952927688 | G77: =E77 -> 0 | H77: =(B77/$B$4)*1000 -> 1181.206263 | I77: =(C77/$B$4)*1000 -> 393.735421 | J77: =(D77/$B$4)*1000 -> 0 | K77: =(E77/$B$4)*1000 -> 0 | L77: =SUM(H77:J77) -> 1574.941684 | M77: =K77 -> 0 | N77: =SUM(F77:G77)-C4 -> 0 | O77: =SUM(L77:M77)-F4 -> 0
A78: Anxiety disorders | B78: =B50+F50 -> 1.258382905 | C78: 0.181622275 | D78: 0 | E78: 0 | F78: =SUM(B78:D78) -> 1.44000518 | G78: =E78 -> 0 | H78: =(B78/$B$5)*1000 -> 551.9223269 | I78: =(C78/$B$5)*1000 -> 79.65889255 | J78: =(D78/$B$5)*1000 -> 0 | K78: =(E78/$B$5)*1000 -> 0 | L78: =SUM(H78:J78) -> 631.5812195 | M78: =K78 -> 0 | N78: -0.001441446627 | O78: -0.6322134329
A79: Schizophrenic disorders | B79: 1.477599038 | C79: 0.3369962719 | D79: 0.1296139507 | E79: 0.6480697537 | F79: 1.944209261 | G79: 0.6480697537 | H79: =(B79/$B$6)*1000 -> 7036.185897 | I79: =(C79/$B$6)*1000 -> 1604.744152 | J79: =(D79/$B$6)*1000 -> 617.2092892 | K79: =(E79/$B$6)*1000 -> 3086.046446 | L79: 9258.139339 | M79: 3086.046446 | N79: 0 | O79: 0
A80: Bipolar disorder/related conditions | B80: 1.124793352 | C80: 0.2478358233 | D80: 0 | E80: 0.5338002348 | F80: 1.372629175 | G80: 0.5338002348 | H80: =(B80/$B$7)*1000 -> 986.660835 | I80: =(C80/$B$7)*1000 -> 217.399845 | J80: =(D80/$B$7)*1000 -> 0 | K80: =(E80/$B$7)*1000 -> 468.24582 | L80: 1204.06068 | M80: 468.24582 | N80: 0 | O80: 0
A81: Eating disorders | B81: 0.01859931132 | C81: 0 | D81: 0 | E81: 0 | F81: 0.01859931132 | G81: 0 | H81: =(B81/$B$8)*1000 -> 158.9684728 | I81: =(C81/$B$8)*1000 -> 0 | J81: =(D81/$B$8)*1000 -> 0 | K81: =(E81/$B$8)*1000 -> 0 | L81: 158.9684728 | M81: 0 | N81: 0 | O81: 0
A82: Personality disorder | B82: 0.8137198701 | C82: 0 | D82: 0 | E82: 0 | F82: 0.8137198701 | G82: 0 | H82: =(B82/$B$9)*1000 -> 329.441243 | I82: =(C82/$B$9)*1000 -> 0 | J82: =(D82/$B$9)*1000 -> 0 | K82: =(E82/$B$9)*1000 -> 0 | L82: 329.441243 | M82: 0 | N82: 0 | O82: 0
A83: Child/adolescent disorders | B83: 0.162743974 | C83: 0 | D83: 0 | E83: 0 | F83: 0.162743974 | G83: 0 | H83: =(B83/$B$10)*1000 -> 266.7934 | I83: =(C83/$B$10)*1000 -> 0 | J83: =(D83/$B$10)*1000 -> 0 | K83: =(E83/$B$10)*1000 -> 0 | L83: 266.7934 | M83: 0 | N83: 0 | O83: 0
A84: Dementia | B84: 1.380998865 | C84: 9.666992057 | D84: 0 | E84: 6.214494894 | F84: 11.04799092 | G84: 6.214494894 | H84: =(B84/$B$11)*1000 -> 2381.032526 | I84: =(C84/$B$11)*1000 -> 16667.22768 | J84: =(D84/$B$11)*1000 -> 0 | K84: =(E84/$B$11)*1000 -> 10714.64637 | L84: 19048.26021 | M84: 10714.64637 | N84: 0 | O84: 0
A86: Total, anxiety and depression | B86: =SUM(B77,B78) -> 2.723078672 | C86: =SUM(C77,C78) -> 0.6698541971 | D86: =SUM(D77,D78) -> 0 | E86: =SUM(E77,E78) -> 0 | F86: 3.392932869 | G86: =E86 -> 0 | H86: =(B86/$B$13)*1000 -> 773.6018954 | I86: =(C86/$B$13)*1000 -> 190.2994878 | J86: =(D86/$B$13)*1000 -> 0 | K86: =(E86/$B$13)*1000 -> 0 | L86: =SUM(H86:J86) -> 963.9013832 | M86: =K86 -> 0 | N86: =SUM(F86:G86)-C13 -> -0.001441446627 | O86: =SUM(L86:M86)-F13 -> -0.4095018827
A87: Total, adult mental health | B87: =SUM(B77:B82,B84) -> 7.538789109 | C87: =SUM(C77:C82,C84) -> 10.92167835 | D87: =SUM(D77:D82,D84) -> 0.1296139507 | E87: =SUM(E77:E82,E84) -> 7.396364882 | F87: 18.59008141 | G87: =E87 -> 7.396364882 | H87: =(B87/$B$14)*1000 -> 938.0103408 | I87: =(C87/$B$14)*1000 -> 1358.924767 | J87: =(D87/$B$14)*1000 -> 16.12715575 | K87: =(E87/$B$14)*1000 -> 920.2892724 | L87: =SUM(H87:J87) -> 2313.062263 | M87: =K87 -> 920.2892724 | N87: =SUM(F87:G87)-C14 -> -0.001441446627 | O87: =SUM(L87:M87)-F14 -> -0.1793513285
A88: Total, adult mental health, excl. dementia | B88: =SUM(B77:B82) -> 6.157790243 | C88: =SUM(C77:C82) -> 1.254686292 | D88: =SUM(D77:D82) -> 0.1296139507 | E88: =SUM(E77:E82) -> 1.181869989 | F88: 7.542090487 | G88: =E88 -> 1.181869989 | H88: =(B88/$B$15)*1000 -> 825.7731317 | I88: =(C88/$B$15)*1000 -> 168.2561744 | J88: =(D88/$B$15)*1000 -> 17.38151411 | K88: =(E88/$B$15)*1000 -> 158.4913489 | L88: =SUM(H88:J88) -> 1011.41082 | M88: =K88 -> 158.4913489 | N88: =SUM(F88:G88)-C15 -> -0.001441446627 | O88: =SUM(L88:M88)-F15 -> -0.1933011435
A89: Overall, all conditions/ages | B89: =SUM(B77:B84) -> 7.701533083 | C89: =SUM(C77:C84) -> 10.92167835 | D89: =SUM(D77:D84) -> 0.1296139507 | E89: =SUM(E77:E84) -> 7.396364882 | F89: 18.75282538 | G89: =E89 -> 7.396364882 | H89: =(B89/$B$16)*1000 -> 890.6595447 | I89: =(C89/$B$16)*1000 -> 1263.05983 | J89: =(D89/$B$16)*1000 -> 14.98947042 | K89: =(E89/$B$16)*1000 -> 855.367744 | L89: =SUM(H89:J89) -> 2168.708845 | M89: =K89 -> 855.367744 | N89: =SUM(F89:G89)-C16 -> -0.001441446627 | O89: =SUM(L89:M89)-F16 -> -0.1666990433
A90: Overall, all conditions/ages, excl. dementia | B90: =SUM(B77:B83) -> 6.320534217 | C90: =SUM(C77:C83) -> 1.254686292 | D90: =SUM(D77:D83) -> 0.1296139507 | E90: =SUM(E77:E83) -> 1.181869989 | F90: =SUM(B90:D90) -> 7.704834461 | G90: =E90 -> 1.181869989 | H90: =(B90/$B$17)*1000 -> 783.5049235 | I90: =(C90/$B$17)*1000 -> 155.533196 | J90: =(D90/$B$17)*1000 -> 16.0671812 | K90: =(E90/$B$17)*1000 -> 146.5067545 | L90: =SUM(H90:J90) -> 955.1053007 | M90: =K90 -> 146.5067545 | N90: =SUM(F90:G90)-C17 -> -0.001441446627 | O90: =SUM(L90:M90)-F17 -> -0.178684347
B92: Overall service costs (£bn) | H92: Service costs per person (£)
B93: NHS | C93: LA (SSD, residential care, day care, supported accommodation) | D93: CJS (prisons) | E93: Informal care | F93: Total fiscal cost | G93: Total economic/ social cost (informal care) | H93: NHS | I93: LA (SSD, residential care, day care, supported accommodation) | J93: CJS (prisons) | K93: Informal care | L93: Total fiscal cost | M93: Total economic/ social cost (informal care) | N93: Check | O93: Check
A94: Total, anxiety and depression | B94: =B86/SUM($F$86:$G$86) -> 0.8025736957 | C94: =C86/SUM($F$86:$G$86) -> 0.1974263043 | D94: =D86/SUM($F$86:$G$86) -> 0 | E94: =E86/SUM($F$86:$G$86) -> 0 | F94: =SUM(B94:D94) -> 1 | G94: =E94 -> 0 | H94: =H86/SUM($L$86:$M$86) -> 0.8025736957 | I94: =I86/SUM($L$86:$M$86) -> 0.1974263043 | J94: =J86/SUM($L$86:$M$86) -> 0 | K94: =K86/SUM($L$86:$M$86) -> 0 | L94: =SUM(H94:J94) -> 1 | M94: =K94 -> 0 | N94: =SUM(F94:G94) -> 1 | O94: =SUM(L94:M94) -> 1
A95: Total, adult mental health | B95: =B87/SUM($F$87:$G$87) -> 0.2901046578 | C95: =C87/SUM($F$87:$G$87) -> 0.4202836443 | D95: =D87/SUM($F$87:$G$87) -> 0.004987752049 | E95: =E87/SUM($F$87:$G$87) -> 0.2846239459 | F95: =SUM(B95:D95) -> 0.7153760541 | G95: =E95 -> 0.2846239459 | H95: =H87/SUM($L$87:$M$87) -> 0.2901046578 | I95: =I87/SUM($L$87:$M$87) -> 0.4202836443 | J95: =J87/SUM($L$87:$M$87) -> 0.004987752049 | K95: =K87/SUM($L$87:$M$87) -> 0.2846239459 | L95: =SUM(H95:J95) -> 0.7153760541 | M95: =K95 -> 0.2846239459 | N95: =SUM(F95:G95) -> 1 | O95: =SUM(L95:M95) -> 1
A96: Total, adult mental health, excl. dementia | B96: =B88/SUM($F$88:$G$88) -> 0.7058480218 | C96: =C88/SUM($F$88:$G$88) -> 0.1438207218 | D96: =D88/SUM($F$88:$G$88) -> 0.01485723727 | E96: =E88/SUM($F$88:$G$88) -> 0.1354740192 | F96: =SUM(B96:D96) -> 0.8645259808 | G96: =E96 -> 0.1354740192 | H96: =H88/SUM($L$88:$M$88) -> 0.7058480218 | I96: =I88/SUM($L$88:$M$88) -> 0.1438207218 | J96: =J88/SUM($L$88:$M$88) -> 0.01485723727 | K96: =K88/SUM($L$88:$M$88) -> 0.1354740192 | L96: =SUM(H96:J96) -> 0.8645259808 | M96: =K96 -> 0.1354740192 | N96: =SUM(F96:G96) -> 1 | O96: =SUM(L96:M96) -> 1
A97: Overall, all conditions/ages | B97: =B89/SUM($F$89:$G$89) -> 0.2945228133 | C97: =C89/SUM($F$89:$G$89) -> 0.4176679369 | D97: =D89/SUM($F$89:$G$89) -> 0.004956709918 | E97: =E89/SUM($F$89:$G$89) -> 0.2828525399 | F97: =SUM(B97:D97) -> 0.7171474601 | G97: =E97 -> 0.2828525399 | H97: =H89/SUM($L$89:$M$89) -> 0.2945228133 | I97: =I89/SUM($L$89:$M$89) -> 0.4176679369 | J97: =J89/SUM($L$89:$M$89) -> 0.004956709918 | K97: =K89/SUM($L$89:$M$89) -> 0.2828525399 | L97: =SUM(H97:J97) -> 0.7171474601 | M97: =K97 -> 0.2828525399 | N97: =SUM(F97:G97) -> 1 | O97: =SUM(L97:M97) -> 1
A98: Overall, all conditions/ages, excl. dementia | B98: =B90/SUM($F$90:$G$90) -> 0.7112348851 | C98: =C90/SUM($F$90:$G$90) -> 0.1411869045 | D98: =D90/SUM($F$90:$G$90) -> 0.01458515375 | E98: =E90/SUM($F$90:$G$90) -> 0.1329930567 | F98: =SUM(B98:D98) -> 0.8670069433 | G98: =E98 -> 0.1329930567 | H98: =H90/SUM($L$90:$M$90) -> 0.7112348851 | I98: =I90/SUM($L$90:$M$90) -> 0.1411869045 | J98: =J90/SUM($L$90:$M$90) -> 0.01458515375 | K98: =K90/SUM($L$90:$M$90) -> 0.1329930567 | L98: =SUM(H98:J98) -> 0.8670069433 | M98: =K98 -> 0.1329930567 | N98: =SUM(F98:G98) -> 1 | O98: =SUM(L98:M98) -> 1
A100: % of fiscal cost only
B101: Overall service costs (£bn) | F101: Service costs per person (£)
B102: NHS | C102: LA (SSD, residential care, day care, supported accommodation) | D102: CJS (prisons) | E102: Total fiscal cost | F102: NHS | G102: LA (SSD, residential care, day care, supported accommodation) | H102: CJS (prisons) | I102: Total fiscal cost
A103: Depression | B103: =B77/$F$77 -> 0.75 | C103: =C77/$F$77 -> 0.25 | D103: =D77/$F$77 -> 0 | E103: =SUM(B103:D103) -> 1 | F103: =H77/$L$77 -> 0.75 | G103: =I77/$L$77 -> 0.25 | H103: =J77/$L$77 -> 0 | I103: =SUM(F103:H103) -> 1
A104: Anxiety disorders | B104: =B78/$F$78 -> 0.8738738739 | C104: =C78/$F$78 -> 0.1261261261 | D104: =D78/$F$78 -> 0 | E104: 1 | F104: =H78/$L$78 -> 0.8738738739 | G104: =I78/$L$78 -> 0.1261261261 | H104: =J78/$L$78 -> 0 | I104: 1
A105: Schizophrenic disorders | B105: =B79/$F$79 -> 0.76 | C105: =C79/$F$79 -> 0.1733333333 | D105: =D79/$F$79 -> 0.06666666667 | E105: 1 | F105: =H79/$L$79 -> 0.76 | G105: =I79/$L$79 -> 0.1733333333 | H105: =J79/$L$79 -> 0.06666666667 | I105: 1
A106: Bipolar disorder/related conditions | B106: =B80/$F$80 -> 0.8194444444 | C106: =C80/$F$80 -> 0.1805555556 | D106: =D80/$F$80 -> 0 | E106: 1 | F106: =H80/$L$80 -> 0.8194444444 | G106: =I80/$L$80 -> 0.1805555556 | H106: =J80/$L$80 -> 0 | I106: 1
A107: Eating disorders | B107: =B81/$F$81 -> 1 | C107: =C81/$F$81 -> 0 | D107: =D81/$F$81 -> 0 | E107: 1 | F107: =H81/$L$81 -> 1 | G107: =I81/$L$81 -> 0 | H107: =J81/$L$81 -> 0 | I107: 1
A108: Personality disorder | B108: =B82/$F$82 -> 1 | C108: =C82/$F$82 -> 0 | D108: =D82/$F$82 -> 0 | E108: 1 | F108: =H82/$L$82 -> 1 | G108: =I82/$L$82 -> 0 | H108: =J82/$L$82 -> 0 | I108: 1
A109: Child/adolescent disorders | B109: =B83/$F$83 -> 1 | C109: =C83/$F$83 -> 0 | D109: =D83/$F$83 -> 0 | E109: 1 | F109: =H83/$L$83 -> 1 | G109: =I83/$L$83 -> 0 | H109: =J83/$L$83 -> 0 | I109: 1
A110: Dementia | B110: =B84/$F$84 -> 0.125 | C110: =C84/$F$84 -> 0.875 | D110: =D84/$F$84 -> 0 | E110: 1 | F110: =H84/$L$84 -> 0.125 | G110: =I84/$L$84 -> 0.875 | H110: =J84/$L$84 -> 0 | I110: 1
A112: Total, anxiety and depression | B112: =B86/$F$86 -> 0.8025736957 | C112: =C86/$F$86 -> 0.1974263043 | D112: =D86/$F$86 -> 0 | E112: =SUM(B112:D112) -> 1 | F112: =H86/$L$86 -> 0.8025736957 | G112: =I86/$L$86 -> 0.1974263043 | H112: =J86/$L$86 -> 0 | I112: =SUM(F112:H112) -> 1
A113: Total, adult mental health | B113: =B87/$F$87 -> 0.405527493 | C113: =C87/$F$87 -> 0.587500297 | D113: =D87/$F$87 -> 0.006972209959 | E113: =SUM(B113:D113) -> 1 | F113: =H87/$L$87 -> 0.405527493 | G113: =I87/$L$87 -> 0.587500297 | H113: =J87/$L$87 -> 0.006972209959 | I113: =SUM(F113:H113) -> 1
A114: Total, adult mental health, excl. dementia | B114: =B88/$F$88 -> 0.8164566912 | C114: =C88/$F$88 -> 0.1663578943 | D114: =D88/$F$88 -> 0.01718541444 | E114: =SUM(B114:D114) -> 1 | F114: =H88/$L$88 -> 0.8164566912 | G114: =I88/$L$88 -> 0.1663578943 | H114: =J88/$L$88 -> 0.01718541444 | I114: =SUM(F114:H114) -> 1
A115: Overall, all conditions/ages | B115: =B89/$F$89 -> 0.4106865459 | C115: =C89/$F$89 -> 0.5824017515 | D115: =D89/$F$89 -> 0.006911702535 | E115: =SUM(B115:D115) -> 1 | F115: =H89/$L$89 -> 0.4106865459 | G115: =I89/$L$89 -> 0.5824017515 | H115: =J89/$L$89 -> 0.006911702535 | I115: =SUM(F115:H115) -> 1
A116: Overall, all conditions/ages, excl. dementia | B116: =B90/$F$90 -> 0.8203335516 | C116: =C90/$F$90 -> 0.1628440298 | D116: =D90/$F$90 -> 0.01682241863 | E116: =SUM(B116:D116) -> 1 | F116: =H90/$L$90 -> 0.8203335516 | G116: =I90/$L$90 -> 0.1628440298 | H116: =J90/$L$90 -> 0.01682241863 | I116: =SUM(F116:H116) -> 1

Sheet GDP deflators, March 2017 (hidden)
B1: GDP DEFLATORS AT MARKET PRICES, AND MONEY GDP
B3: Outturn data are the latest National Accounts figures from ONS - last updated 31 March 2017.
B4: Forecast data are consistent with OBR Spring Budget 2017 EFO data as at 8 March 2017
B5: Financial year | H5: Calendar year
C6: GDP deflator at market prices | E6: Money GDP (3), (4) | I6: GDP deflator at market prices | K6: Money GDP (3)
B7: Financial year | C7: 2015-16 = 100 | D7: per cent change on previous year | E7: Cash £ million Non-Seasonally Adjusted | F7: Cash £ million Seasonally Adjusted | H7: Calendar year | I7: 2016 = 100 | J7: per cent change on previous year | K7: Cash £ million Non-Seasonally Adjusted | M7: 2007 base | N7: 2017 base | P7: 2007/08 base | Q7: 2017/18 base | S7: 2016/2017 base
B8: 1955-56 | C8: 4.426725 | E8: 19788 | F8: 19802 | H8: 1955 | I8: 4.3029 | K8: 19388 | M8: =(I8/$I$60)*100 -> 5.006387568 | N8: =(I8/$I$70)*100 -> 4.227004141 | P8: =(C8/$C$60)*100 -> 5.046039277 | Q8: =(C8/$C$70)*100 -> 4.271267928 | S8: =(C8/$C$69)*100 -> 4.340839672
B9: 1956-57 | C9: 4.7043 | D9: 6.270436948 | E9: 21374 | F9: 21349 | H9: 1956 | I9: 4.5983 | J9: 6.865137465 | K9: 21052 | M9: =(I9/$I$60)*100 -> 5.350082957 | N9: =(I9/$I$70)*100 -> 4.517193786 | P9: =(C9/$C$60)*100 -> 5.362447988 | Q9: =(C9/$C$70)*100 -> 4.539095091 | S9: =(C9/$C$69)*100 -> 4.613029286
B10: 1957-58 | C10: 4.9237 | D10: 4.663818209 | E10: 22727 | F10: 22743 | H10: 1957 | I10: 4.7847 | J10: 4.053672009 | K10: 22323 | M10: 5.566957772 | N10: 4.700306006 | P10: 5.612542814 | Q10: 4.750790234 | S10: =(C10/$C$69)*100 -> 4.828172586
B11: 1958-59 | C11: 5.046725 | D11: 2.49862908 | E11: 23571 | F11: 23543 | H11: 1958 | I11: 4.9636 | J11: 3.7390014 | K11: 23452 | M11: 5.775106401 | N11: 4.876050513 | P11: 5.752779441 | Q11: 4.86949486 | S11: 4.948810711
B12: 1959-60 | C12: 5.0697 | D12: 0.4552457287 | E12: 25074 | F12: 25127 | H12: 1959 | I12: 5.0005 | J12: 0.7434120396 | K12: 24597 | M12: 5.818039238 | N12: 4.91229966 | P12: 5.778968724 | Q12: 4.891663028 | S12: 4.97133996
B13: 1960-61 | C13: 5.173575 | D13: 2.048937807 | E13: 26856 | F13: 26875 | H13: 1960 | I13: 5.0519 | J13: 1.02789721 | K13: 26412 | M13: 5.877842701 | N13: 4.962793051 | P13: 5.897376199 | Q13: 4.991890161 | S13: 5.073199624
B14: 1961-62 | C14: 5.3441 | D14: 3.296076697 | E14: 28269 | F14: 28297 | H14: 1961 | I14: 5.2294 | J14: 3.513529563 | K14: 28069 | M14: 6.084362442 | N14: 5.137162252 | P14: 6.091758241 | Q14: 5.156426689 | S14: 5.240416174
B15: 1962-63 | C15: 5.50985 | D15: 3.101551243 | E15: 29594 | F15: 29611 | H15: 1962 | I15: 5.4128 | J15: 3.507094504 | K15: 29374 | M15: 6.297746782 | N15: 5.317327387 | P15: 6.280697245 | Q15: 5.316355905 | S15: 5.402950368
B16: 1963-64 | C16: 5.597025 | D16: 1.582166484 | E16: 32040 | F16: 31998 | H16: 1963 | I16: 5.4859 | J16: 1.350502513 | K16: 31229 | M16: 6.382798011 | N16: 5.389138027 | P16: 6.380068332 | Q16: 5.400469507 | S16: 5.488434037
B17: 1964-65 | C17: 5.859575 | D17: 4.69088489 | E17: 34931 | F17: 34998 | H17: 1964 | I17: 5.6805 | J17: 3.547275743 | K17: 34127 | M17: 6.609213456 | N17: 5.580305613 | P17: 6.679349993 | Q17: 5.653799315 | S17: 5.74589016
B18: 1965-66 | C18: 6.1701 | D18: 5.299445779 | E18: 37529 | F18: 37484 | H18: 1965 | I18: 6.0159 | J18: 5.904409823 | K18: 36906 | M18: 6.999448505 | N18: 5.909789725 | P18: 7.033318524 | Q18: 5.953419344 | S18: 6.050390494
B19: 1966-67 | C19: 6.4771 | D19: 4.975608175 | E19: 39983 | F19: 39977 | H19: 1966 | I19: 6.3275 | J19: 5.179607374 | K19: 39423 | M19: 7.361992456 | N19: 6.21589363 | P19: 7.383268896 | Q19: 6.249638163 | S19: 6.351434218
B20: 1967-68 | C20: 6.6569 | D20: 2.775933674 | E20: 42561 | F20: 42672 | H20: 1967 | I20: 6.5159 | J20: 2.977479257 | K20: 41728 | M20: 7.581194254 | N20: 6.400970573 | P20: 7.588223543 | Q20: 6.423123974 | S20: 6.527745819
B21: 1968-69 | C21: 6.993025 | D21: 5.049272184 | E21: 46752 | F21: 46770 | H21: 1968 | I21: 6.783 | J21: 4.099203487 | K21: 45809 | M21: 7.891962833 | N21: 6.663359382 | P21: 7.971373604 | Q21: 6.747444986 | S21: 6.857349473
B22: 1969-70 | C22: 7.462725 | D22: 6.716692705 | E22: 50737 | F22: 50794 | H22: 1969 | I22: 7.218 | J22: 6.413091552 | K22: 49682 | M22: 8.398081635 | N22: 7.09068672 | P22: 8.506786273 | Q22: 7.200650131 | S22: 7.317936565
B23: 1970-71 | C23: 8.199075 | D23: 9.867039185 | E23: 57586 | F23: 57672 | H23: 1970 | I23: 7.9067 | J23: 9.541424217 | K23: 55916 | M23: 9.19937823 | N23: 7.76723922 | P23: 9.346154208 | Q23: 7.911141101 | S23: 8.040000233
B24: 1971-72 | C24: 8.8165 | D24: 7.530422639 | E24: 64335 | F24: 64237 | H24: 1971 | I24: 8.5607 | J24: 8.271465972 | K24: 62640 | M24: 9.96030167 | N24: 8.409703769 | P24: 10.04995912 | Q24: 8.506883461 | S24: 8.645446231
B25: 1972-73 | C25: 9.567325 | D25: 8.516134521 | E25: 73635 | F25: 73740 | H25: 1972 | I25: 9.2109 | J25: 7.595173292 | K25: 70305 | M25: 10.71680384 | N25: 9.048435343 | P25: 10.90582716 | Q25: 9.2313411 | S25: 9.381704062
B26: 1973-74 | C26: 10.4089 | D26: 8.796345896 | E26: 82516 | F26: 82539 | H26: 1973 | I26: 10.0267 | J26: 8.856897806 | K26: 81467 | M26: 11.66598021 | N26: 9.849846015 | P26: 11.86514144 | Q26: 10.04336179 | S26: 10.2069512
B27: 1974-75 | C27: 12.506125 | D27: 20.14838263 | E27: 97700 | F27: 97869 | H27: 1974 | I27: 11.635 | J27: 16.04017274 | K27: 92227 | M27: 13.53722358 | N27: 11.42977833 | P27: 14.25577553 | Q27: 12.06693676 | S27: 12.26348679
B28: 1975-76 | C28: 15.568125 | D28: 24.48400284 | E28: 120237 | F28: 120126 | H28: 1975 | I28: 14.6735 | J28: 26.11516975 | K28: 114541 | M28: 17.0724925 | N28: 14.41468434 | P28: 17.74616002 | Q28: 15.0214059 | S28: 15.26607924
B29: 1976-77 | C29: 17.728425 | D29: 13.87643021 | E29: 141190 | F29: 141689 | H29: 1976 | I29: 16.9388 | J29: 15.43803455 | K29: 136172 | M29: 19.70814979 | N29: 16.64002829 | P29: 20.20869353 | Q29: 17.1058408 | S29: 17.38446607
B30: 1977-78 | C30: 20.16685 | D30: 13.75432392 | E30: 165041 | F30: 164845 | H30: 1977 | I30: 19.2815 | J30: 13.83037759 | K30: 158786 | M30: 22.43386133 | N30: 18.94140704 | P30: 22.9882627 | Q30: 19.45863355 | S30: 19.77558184
B31: 1978-79 | C31: 22.4241 | D31: 11.19287345 | E31: 191058 | F31: 191177 | H31: 1978 | I31: 21.5445 | J31: 11.73663875 | K31: 184891 | M31: 25.06684259 | N31: 21.16449155 | P31: 25.56130985 | Q31: 21.63661378 | S31: 21.98903769
B32: 1979-80 | C32: 26.211825 | D32: 16.89131336 | E32: 231150 | F32: 231173 | H32: 1979 | I32: 24.6634 | J32: 14.47654854 | K32: 219559 | M32: 28.69565622 | N32: 24.22837945 | P32: 29.8789508 | Q32: 25.29132202 | S32: 25.70327496
B33: 1980-81 | C33: 31.228225 | D33: 19.13792725 | E33: 265818 | F33: 266127 | H33: 1980 | I33: 29.6563 | J33: 20.24416747 | K33: 258411 | M33: 34.50485292 | N33: 29.13321316 | P33: 35.59716267 | Q33: 30.13155683 | S33: 30.62234902
B34: 1981-82 | C34: 34.468225 | D34: 10.37522946 | E34: 295767 | F34: 295207 | H34: 1981 | I34: 33.2731 | J34: 12.19572233 | K34: 287850 | M34: 38.71296897 | N34: 32.68621894 | P34: 39.29044997 | Q34: 33.25777499 | S34: 33.799488
B35: 1982-83 | C35: 36.956275 | D35: 7.21838737 | E35: 324512 | F35: 324778 | H35: 1982 | I35: 35.885 | J35: 7.849884742 | K35: 316698 | M35: 41.75189242 | N35: 35.25204945 | P35: 42.12658685 | Q35: 35.65845002 | S35: 36.23926597
B36: 1983-84 | C36: 38.710125 | D36: 4.74574345 | E36: 354960 | F36: 354169 | H36: 1983 | I36: 37.8654 | J36: 5.518740421 | K36: 348283 | M36: 44.05607098 | N36: 37.19751855 | P36: 44.12580659 | Q36: 37.35070857 | S36: 37.95908856
B37: 1984-85 | C37: 40.93555 | D37: 5.748948111 | E37: 382846 | F37: 382193 | H37: 1984 | I37: 39.8151 | J37: 5.149027872 | K37: 374534 | M37: 46.32453036 | N37: 39.11282915 | P37: 46.66257631 | Q37: 39.49798143 | S37: 40.14133686
B38: 1985-86 | C38: 43.25285 | D38: 5.660849799 | E38: 421215 | F38: 421739 | H38: 1985 | I38: 42.0467 | J38: 5.60490869 | K38: 412120 | M38: 48.92097798 | N38: 41.30506751 | P38: 49.30407467 | Q38: 41.73390283 | S38: 42.41367765
B39: 1986-87 | C39: 45.0328 | D39: 4.115220153 | E39: 452590 | F39: 453314 | H39: 1986 | I39: 43.9198 | J39: 4.454808582 | K39: 444033 | M39: 51.10031391 | N39: 43.14512921 | P39: 51.33304589 | Q39: 43.45134481 | S39: 44.15909386
B40: 1987-88 | C40: 47.50415 | D40: 5.487888828 | E40: 507412 | F40: 507550 | H40: 1987 | I40: 46.2401 | J40: 5.28303863 | K40: 492635 | M40: 53.79996323 | N40: 45.42450305 | P40: 54.15014638 | Q40: 45.83590631 | S40: 46.58249584
B41: 1988-89 | C41: 50.569325 | D41: 6.452436261 | E41: 565947 | F41: 566793 | H41: 1988 | I41: 48.954 | J41: 5.869148207 | K41: 551709 | M41: 56.95756281 | N41: 48.09053445 | P41: 57.64415006 | Q41: 48.79343895 | S41: 49.58820169
B42: 1989-90 | C42: 54.45255 | D42: 7.679012919 | E42: 623092 | F42: 622967 | H42: 1989 | I42: 52.7284 | J42: 7.710095191 | K42: 609474 | M42: 61.34904512 | N42: 51.79836044 | P42: 62.07065179 | Q42: 52.54029343 | S42: 53.39608611
B43: 1990-91 | C43: 58.873225 | D43: 8.118398496 | E43: 672128 | F43: 673721 | H43: 1990 | I43: 56.9468 | J43: 8.000242753 | K43: 662850 | M43: 66.25711766 | N43: 55.94235502 | P43: 67.10979465 | Q43: 56.80572382 | S43: 57.73099316
B44: 1991-92 | C44: 62.19565 | D44: 5.643354853 | E44: 706916 | F44: 705557 | H44: 1991 | I44: 60.6437 | J44: 6.491848532 | K44: 698038 | M44: 70.55842938 | N44: 59.57404797 | P44: 70.8970385 | Q44: 60.01147239 | S44: 60.98895796
B45: 1992-93 | C45: 63.71645 | D45: 2.445187083 | E45: 727530 | F45: 729357 | H45: 1992 | I45: 62.4508 | J45: 2.979864355 | K45: 721445 | M45: 72.66097487 | N45: 61.34927379 | P45: 72.63060373 | Q45: 61.47886516 | S45: 62.48025208
B46: 1993-94 | C46: 65.176525 | D46: 2.291519694 | E46: 769653 | F46: 767205 | H46: 1993 | I46: 64.0462 | J46: 2.554651021 | K46: 758445 | M46: 74.5172092 | N46: 62.91653364 | P46: 74.29494832 | Q46: 62.88766547 | S46: 63.91199937
B47: 1994-95 | C47: 65.911425 | D47: 1.12755321 | E47: 806312 | F47: 805833 | H47: 1994 | I47: 64.7926 | J47: 1.165408721 | K47: 797088 | M47: 75.38563926 | N47: 63.64976841 | P47: 75.13266339 | Q47: 63.59675736 | S47: 64.63264117
B48: 1995-96 | C48: 67.9134 | D48: 3.037371745 | E48: 849808 | F48: 850665 | H48: 1995 | I48: 66.3429 | J48: 2.392711513 | K48: 836646 | M48: 77.18940013 | N48: 65.17272375 | P48: 77.41472168 | Q48: 65.5284273 | S48: 66.59577475
B49: 1996-97 | C49: 70.50975 | D49: 3.823030506 | E49: 905541 | F49: 903950 | H49: 1996 | I49: 69.0464 | J49: 4.075040434 | K49: 892900 | M49: 80.33489939 | N49: 67.82853859 | P49: 80.37431011 | Q49: 68.03359906 | S49: 69.14175153
B50: 1997-98 | C50: 71.625475 | D50: 1.582369814 | E50: 949821 | F50: 950351 | H50: 1997 | I50: 70.3988 | J50: 1.958682857 | K50: 938855 | M50: 81.9084053 | N50: 69.15708455 | P50: 81.64612893 | Q50: 69.1101422 | S50: 70.23582974
B51: 1998-99 | C51: 72.60035 | D51: 1.361072998 | E51: 991717 | F51: 992547 | H51: 1998 | I51: 71.232 | J51: 1.183542901 | K51: 980308 | M51: 82.87782641 | N51: 69.97558831 | P51: 82.75739235 | Q51: 70.05078168 | S51: 71.19179065
B52: 1999-00 | C52: 72.9885 | D52: 0.5346392958 | E52: 1035717 | F52: 1033992 | H52: 1999 | I52: 71.8518 | J52: 0.8701145553 | K52: 1021205 | M52: 83.59895844 | N52: 70.58445609 | P52: 83.19984589 | Q52: 70.42530069 | S52: 71.57240994
B53: 2000-01 | C53: 74.485925 | D53: 2.051590319 | E53: 1091489 | F53: 1089720 | H53: 2000 | I53: 73.2998 | J53: 2.015259186 | K53: 1080863 | M53: 85.28369413 | N53: 72.00691583 | P53: 84.90676587 | Q53: 71.87013934 | S53: 73.04078257
B54: 2001-02 | C54: 75.439975 | D54: 1.280846012 | E54: 1131360 | F54: 1132965 | H54: 2001 | I54: 73.9757 | J54: 0.922103471 | K54: 1120575 | M54: 86.07009804 | N54: 72.6708941 | P54: 85.99429079 | Q54: 72.79068515 | S54: 73.97632252
B55: 2002-03 | C55: 77.1467 | D55: 2.262361566 | E55: 1190819 | F55: 1189393 | H55: 2002 | I55: 75.599 | J55: 2.194369232 | K55: 1172652 | M55: 87.95879379 | N55: 74.26556184 | P55: 87.93979258 | Q55: 74.43747364 | S55: 75.64993441
B56: 2003-04 | C56: 78.878075 | D56: 2.244263202 | E56: 1259266 | F56: 1258541 | H56: 2003 | I56: 77.4149 | J56: 2.4020159 | K56: 1242449 | M56: 90.071578 | N56: 76.04943244 | P56: 89.91339298 | Q56: 76.10804647 | S56: 77.34771805
B57: 2004-05 | C57: 80.97135 | D57: 2.653810961 | E57: 1320209 | F57: 1319841 | H57: 2004 | I57: 79.3021 | J57: 2.437773607 | K57: 1304874 | M57: 92.26731915 | N57: 77.90334543 | P57: 92.29952446 | Q57: 78.12781015 | S57: 79.40038027
B58: 2005-06 | C58: 83.132275 | D58: 2.66875259 | E58: 1402471 | F58: 1402269 | H58: 2005 | I58: 81.4116 | J58: 2.660080881 | K58: 1379457 | M58: 94.72170447 | N58: 79.97563743 | P58: 94.76277041 | Q58: 80.2128481 | S58: 81.51937998
B59: 2006-07 | C59: 85.65285 | D59: 3.032005319 | E59: 1476941 | F59: 1473267 | H59: 2006 | I59: 83.8148 | J59: 2.951913487 | K59: 1455644 | M59: 97.51780724 | N59: 82.33644906 | P59: 97.63598265 | Q59: 82.64490592 | S59: 83.99105191
B60: 2007-08 | C60: 87.726725 | D60: 2.42 | E60: 1547272 | F60: 1550004 | H60: 2007 | I60: 85.9482 | J60: 2.545373848 | K60: 1530890 | M60: =(I60/$I$60)*100 -> 100 | N60: 84.4322195 | P60: 100 | Q60: 84.64595089 | S60: 86.02469052
B61: 2008-09 | C61: 90.1105 | D61: 2.72 | E61: 1546968 | F61: 1548025 | H61: 2008 | I61: 88.393 | J61: 2.844504015 | K61: 1564252 | M61: 102.844504 | N61: 86.83389737 | P61: 102.7172734 | Q61: 86.94601283 | S61: 88.36221659
B62: 2009-10 | C62: 91.350525 | D62: 1.38 | E62: 1531330 | F62: 1528376 | H62: 2009 | I62: 89.7324 | J62: 1.515278359 | K62: 1519459 | M62: 104.4028845 | N62: 88.14967263 | P62: 104.1307823 | Q62: 88.14249082 | S62: 89.57818318
B63: 2010-11 | C63: 93.0212 | D63: 1.83 | E63: 1592057 | F63: 1591851 | H63: 2010 | I63: 91.1153 | J63: 1.541137872 | K63: 1572439 | M63: 106.0118769 | N63: 89.50818062 | P63: 106.0351905 | Q63: 89.7544953 | S63: 91.2164445
B64: 2011-12 | C64: 94.313025 | D64: 1.39 | E64: 1634025 | F64: 1634008 | H64: 2011 | I64: 92.9489 | J64: 2.012395284 | K64: 1628274 | M64: 108.1452549 | N64: 91.30943902 | P64: 107.5077464 | Q64: 91.00095418 | S64: 92.48320609
B65: 2012-13 | C65: 96.293375 | D65: 2.1 | E65: 1690042 | F65: 1691373 | H65: 2012 | I65: 94.3762 | J65: 1.535574923 | K65: 1675044 | M65: 109.8059063 | N65: 92.71156387 | P65: 109.7651542 | Q65: 92.91175855 | S65: 94.42513423
B66: 2013-14 | C66: 97.881475 | D66: 1.65 | E66: 1759560 | F66: 1757219 | H66: 2013 | I66: 96.1747 | J66: 1.905671133 | K66: 1739563 | M66: 111.8984458 | N66: 94.47834138 | P66: 111.575435 | Q66: 94.44408789 | S66: 95.98242263
B67: 2014-15 | C67: 99.3192 | D67: 1.47 | E67: 1834812 | F67: 1838568 | H67: 2014 | I67: 97.7573 | J67: 1.645547114 | K67: 1822480 | M67: 113.7397875 | N67: 96.033027 | P67: 113.2143027 | Q67: 95.83132307 | S67: 97.39225354
B68: 2015-16 | C68: 100 | D68: 0.69 | E68: 1885846 | F68: 1886095 | H68: 2015 | I68: 98.2971 | J68: 0.5521838267 | K68: 1872714 | M68: =(I68/$I$60)*100 -> 114.3678402 | N68: 96.56330584 | P68: 113.990349 | Q68: 96.48821484 | S68: 98.05984496
B69: 2016-17 (1), (2) | C69: 101.9785418 | D69: 1.98 | E69: 1964362 | F69: 1962864 | H69: 2016 | I69: 100 | J69: 1.732401058 | K69: 1939637 | M69: =(I69/$I$60)*100 -> 116.3491498 | N69: 98.23616958 | P69: 116.2456957 | Q69: 98.39727452 | S69: 100
B70: 2017-18 (1), (2) | C70: 103.6396001 | D70: 1.63 | E70: 2028715 | F70: 2029525 | H70: 2017 (1), (2) | I70: 101.7955 | J70: 1.795504222 | K70: 2014571 | M70: =((I69+J70)/$I$60)*100 -> 118.4382037 | N70: =(I70/$I$70)*100 -> 100 | P70: 118.1391419 | Q70: 100
B71: 2018-19 (1), (2) | C71: - | D71: 1.56 | E71: 2095146 | F71: 2094798 | H71: 2018 (1), (2) | I71: - | J71: 1.568347092 | K71: 2077910
B72: 2019-20 (1), (2) | C72: - | D72: 1.66 | E72: 2167688 | F72: 2167305 | H72: 2019 (1), (2) | I72: - | J72: 1.604785268 | K72: 2148046
B73: 2020-21 (1), (2) | C73: - | D73: 1.88 | E73: 2250808 | F73: 2250818 | H73: 2020 (1), (2) | I73: - | J73: 1.851416791 | K73: 2229225
B74: 2021-22 (1), (2) | C74: - | D74: 1.92 | E74: 2340161 | F74: 2339881 | H74: 2021 (1), (2) | I74: - | J74: 1.914440788 | K74: 2317380
B75: Sources and footnotes:
B76: GDP Deflator: | C76: Financial years 1955-56 to 2015-16 taken from ONS series L8GG in data tables: Table N.
C77: https://www.ons.gov.uk/file?uri=/economy/grossdomesticproductgdp/datasets/ukquarterlynationalaccountsdatatables/current/ukquarterlynationalaccountsdatatables.xls
C78: Calendar years 1955 to 2016 taken from ONS series MNF2 in data tables: Table O.
C79: https://www.ons.gov.uk/file?uri=/economy/grossdomesticproductgdp/datasets/ukquarterlynationalaccountsdatatables/current/ukquarterlynationalaccountsdatatables.xls
C80: For years 2016-17 to 2021-22 (2016 to 2021): taken from Office for Budgetary Responsibility (OBR) forecasts for GDP deflator increases as of the Spring Budget 2017, Economic and Fiscal Outlook (EFO) supplementary tables.
C81: http://budgetresponsibility.org.uk/download/march-2017-economic-and-fiscal-outlook-supplementary-economy-tables/
B82: Money GDP: | C82: For years 1955-56 to 2015-16 (1955 to 2016): ONS data for money GDP not seasonally adjusted series BKTL in data tables: Table N.
C83: https://www.ons.gov.uk/file?uri=/economy/grossdomesticproductgdp/datasets/ukquarterlynationalaccountsdatatables/current/ukquarterlynationalaccountsdatatables.xls
C84: For years 1955-56 to 2015-16: ONS data for money GDP seasonally adjusted series YBHA in data tables: Table N.
C85: https://www.ons.gov.uk/file?uri=/economy/grossdomesticproductgdp/datasets/ukquarterlynationalaccountsdatatables/current/ukquarterlynationalaccountsdatatables.xls
C86: For years 2016-17 to 2021-22 (2017 to 2021): OBR forecasts for money GDP as of the Spring Budget 2017
C87: http://budgetresponsibility.org.uk/download/march-2017-economic-and-fiscal-outlook-supplementary-economy-tables/
B88: Footnotes:
B89: -1 | C89: For years 2016-17 to 2021-22 (2017 to 2021), this presentation only shows percentage changes in line with OBR data as of the Spring Budget 2017.
B90: -2 | C90: For years 2016-17 to 2021-22 (2017 to 2021), money GDP forecasts from the OBR as of the Spring Budget 2017.
B91: -3 | C91: Non-Seasonally adjusted money GDP (BKTL) from 1955-56 to 2015-16 (1955 to 2016) consistent with ONS Quarterly National Accounts release of 31 March 2017.
B92: -4 | C92: Seasonally adjusted money GDP (YBHA) from 1955-56 to 2015-16 consistent with ONS Quarterly National Accounts release of 31 March 2017.
B93: -5 | C93: For further information and the 'User's Guide' to these series, please visit the following page on the GOV.UK website at:
C94: https://www.gov.uk/government/publications/gross-domestic-product-gdp-deflators-user-guide
B95: -6 | C95: For practical examples of how to use the GDP deflator series, please visit the following page on the GOV.UK website at:
C96: https://www.gov.uk/government/publications/how-to-use-the-gdp-deflator-series-practical-examples

Sheet PopulationRange (hidden)
A1: Areas | B1: Male 16 -24 | C1: Female 16 - 24 | D1: Male 25 - 34 | E1: Female 25 - 34 | F1: Male 35 - 44 | G1: Female 35 - 44 | H1: Male 45 - 54 | I1: Female 45 - 54 | J1: Male 55 - 64 | K1: Female 55 - 64 | L1: Pop w Depression | M1: Pop w Anxiety | N1: Pop w Phobias | O1: Pop w OCD | P1: Pop w Panic Disorder | Q1: Pop w CMD - NOS | R1: Pop w Any CMD | S1: Working age population (16-64 incl.) | T1: Total prevalence ratio | U1: Prev Ratio Depression | V1: Prev Ratio Anxiety | W1: Prev ratio Phobias | X1: Prev Ratio OCD | Y1: Prev Ratio Panic Disorder | Z1: Prev Ratio CMD-NOS
A2: Local Authority | AC2: Depression
A3: Adur | B3: =INDEX(LONB_MD_NMD_UA!$C$9:$S$500,MATCH(PopulationRange!$A3,LONB_MD_NMD_UA!$C$9:$C$500,0),MATCH(PopulationRange!B$1,LONB_MD_NMD_UA!$C$9:$S$9,0)) -> 2985 | C3: =INDEX(LONB_MD_NMD_UA!$C$9:$S$500,MATCH(PopulationRange!$A3,LONB_MD_NMD_UA!$C$9:$C$500,0),MATCH(PopulationRange!C$1,LONB_MD_NMD_UA!$C$9:$S$9,0)) -> 2664 | D3: =INDEX(LONB_MD_NMD_UA!$C$9:$S$500,MATCH(PopulationRange!$A3,LONB_MD_NMD_UA!$C$9:$C$500,0),MATCH(PopulationRange!D$1,LONB_MD_NMD_UA!$C$9:$S$9,0)) -> 3206 | E3: =INDEX(LONB_MD_NMD_UA!$C$9:$S$500,MATCH(PopulationRange!$A3,LONB_MD_NMD_UA!$C$9:$C$500,0),MATCH(PopulationRange!E$1,LONB_MD_NMD_UA!$C$9:$S$9,0)) -> 3469 | F3: =INDEX(LONB_MD_NMD_UA!$C$9:$S$500,MATCH(PopulationRange!$A3,LONB_MD_NMD_UA!$C$9:$C$500,0),MATCH(PopulationRange!F$1,LONB_MD_NMD_UA!$C$9:$S$9,0)) -> 3881 | G3: =INDEX(LONB_MD_NMD_UA!$C$9:$S$500,MATCH(PopulationRange!$A3,LONB_MD_NMD_UA!$C$9:$C$500,0),MATCH(PopulationRange!G$1,LONB_MD_NMD_UA!$C$9:$S$9,0)) -> 4304 | H3: =INDEX(LONB_MD_NMD_UA!$C$9:$S$500,MATCH(PopulationRange!$A3,LONB_MD_NMD_UA!$C$9:$C$500,0),MATCH(PopulationRange!H$1,LONB_MD_NMD_UA!$C$9:$S$9,0)) -> 4609 | I3: =INDEX(LONB_MD_NMD_UA!$C$9:$S$500,MATCH(PopulationRange!$A3,LONB_MD_NMD_UA!$C$9:$C$500,0),MATCH(PopulationRange!I$1,LONB_MD_NMD_UA!$C$9:$S$9,0)) -> 4585 | J3: =INDEX(LONB_MD_NMD_UA!$C$9:$S$500,MATCH(PopulationRange!$A3,LONB_MD_NMD_UA!$C$9:$C$500,0),MATCH(PopulationRange!J$1,LONB_MD_NMD_UA!$C$9:$S$9,0)) -> 3683 | K3: =INDEX(LONB_MD_NMD_UA!$C$9:$S$500,MATCH(PopulationRange!$A3,LONB_MD_NMD_UA!$C$9:$C$500,0),MATCH(PopulationRange!K$1,LONB_MD_NMD_UA!$C$9:$S$9,0)) -> 3970 | L3: =SUMPRODUCT(B3:K3*$AD$5:$AM$5) -> 1441.206 | M3: =SUMPRODUCT(B3:K3*$AD$10:$AM$10) -> 2489.886 | N3: =SUMPRODUCT(B3:K3*$AD$15:$AM$15) -> 1070.679 | O3: =SUMPRODUCT(B3:K3*$AD$20:$AM$20) -> 581.574 | P3: =SUMPRODUCT(B3:K3*$AD$25:$AM$25) -> 204.604 | Q3: =SUMPRODUCT(B3:K3*$AD$30:$AM$30) -> 3178.115 | R3: =SUMPRODUCT(B3:K3*$AD$34:$AM$34) -> 7040.17 | S3: =INDEX(LONB_MD_NMD_UA!$C$9:$S$500,MATCH(PopulationRange!$A3,LONB_MD_NMD_UA!$C$9:$C$500,0),MATCH(PopulationRange!S$1,LONB_MD_NMD_UA!$C$9:$S$9,0)) -> 37356 | T3: =R3/S3 -> 0.1884615591 | U3: =L3/S3 -> 0.03858030838 | V3: =M3/S3 -> 0.06665290716 | W3: =N3/S3 -> 0.02866150016 | X3: =O3/S3 -> 0.01556842274 | Y3: =P3/S3 -> 0.00547713888 | Z3: =Q3/S3 -> 0.08507642681 | AD3: 16 -24 | AF3: 25 - 34 | AH3: 35 - 44 | AJ3: 45 - 54 | AL3: 55 - 64
A4: Allerdale | B4: =INDEX(LONB_MD_NMD_UA!$C$9:$S$500,MATCH(PopulationRange!$A4,LONB_MD_NMD_UA!$C$9:$C$500,0),MATCH(PopulationRange!B$1,LONB_MD_NMD_UA!$C$9:$S$9,0)) -> 4871 | C4: =INDEX(LONB_MD_NMD_UA!$C$9:$S$500,MATCH(PopulationRange!$A4,LONB_MD_NMD_UA!$C$9:$C$500,0),MATCH(PopulationRange!C$1,LONB_MD_NMD_UA!$C$9:$S$9,0)) -> 4309 | D4: =INDEX(LONB_MD_NMD_UA!$C$9:$S$500,MATCH(PopulationRange!$A4,LONB_MD_NMD_UA!$C$9:$C$500,0),MATCH(PopulationRange!D$1,LONB_MD_NMD_UA!$C$9:$S$9,0)) -> 4926 | E4: =INDEX(LONB_MD_NMD_UA!$C$9:$S$500,MATCH(PopulationRange!$A4,LONB_MD_NMD_UA!$C$9:$C$500,0),MATCH(PopulationRange!E$1,LONB_MD_NMD_UA!$C$9:$S$9,0)) -> 4892 | F4: =INDEX(LONB_MD_NMD_UA!$C$9:$S$500,MATCH(PopulationRange!$A4,LONB_MD_NMD_UA!$C$9:$C$500,0),MATCH(PopulationRange!F$1,LONB_MD_NMD_UA!$C$9:$S$9,0)) -> 5208 | G4: =INDEX(LONB_MD_NMD_UA!$C$9:$S$500,MATCH(PopulationRange!$A4,LONB_MD_NMD_UA!$C$9:$C$500,0),MATCH(PopulationRange!G$1,LONB_MD_NMD_UA!$C$9:$S$9,0)) -> 5546 | H4: =INDEX(LONB_MD_NMD_UA!$C$9:$S$500,MATCH(PopulationRange!$A4,LONB_MD_NMD_UA!$C$9:$C$500,0),MATCH(PopulationRange!H$1,LONB_MD_NMD_UA!$C$9:$S$9,0)) -> 7397 | I4: =INDEX(LONB_MD_NMD_UA!$C$9:$S$500,MATCH(PopulationRange!$A4,LONB_MD_NMD_UA!$C$9:$C$500,0),MATCH(PopulationRange!I$1,LONB_MD_NMD_UA!$C$9:$S$9,0)) -> 7650 | J4: =INDEX(LONB_MD_NMD_UA!$C$9:$S$500,MATCH(PopulationRange!$A4,LONB_MD_NMD_UA!$C$9:$C$500,0),MATCH(PopulationRange!J$1,LONB_MD_NMD_UA!$C$9:$S$9,0)) -> 6633 | K4: =INDEX(LONB_MD_NMD_UA!$C$9:$S$500,MATCH(PopulationRange!$A4,LONB_MD_NMD_UA!$C$9:$C$500,0),MATCH(PopulationRange!K$1,LONB_MD_NMD_UA!$C$9:$S$9,0)) -> 6841 | L4: =SUMPRODUCT(B4:K4*$AD$5:$AM$5) -> 2249.633 | M4: 3882.691 | N4: 1649.123 | O4: 902.948 | P4: 327.858 | Q4: 4947.787 | R4: 10946.384 | S4: =INDEX(LONB_MD_NMD_UA!$C$9:$S$500,MATCH(PopulationRange!$A4,LONB_MD_NMD_UA!$C$9:$C$500,0),MATCH(PopulationRange!S$1,LONB_MD_NMD_UA!$C$9:$S$9,0)) -> 58273 | T4: 0.1878465842 | U4: 0.03860506581 | V4: 0.06662933091 | W4: 0.02829995023 | X4: 0.01549513497 | Y4: 0.005626241999 | Z4: 0.08490702384 | AD4: M | AE4: F | AF4: M | AG4: F | AH4: M | AI4: F | AJ4: M | AK4: F | AL4: M | AM4: F
A5: Amber Valley | B5: =INDEX(LONB_MD_NMD_UA!$C$9:$S$500,MATCH(PopulationRange!$A5,LONB_MD_NMD_UA!$C$9:$C$500,0),MATCH(PopulationRange!B$1,LONB_MD_NMD_UA!$C$9:$S$9,0)) -> 6022 | C5: =INDEX(LONB_MD_NMD_UA!$C$9:$S$500,MATCH(PopulationRange!$A5,LONB_MD_NMD_UA!$C$9:$C$500,0),MATCH(PopulationRange!C$1,LONB_MD_NMD_UA!$C$9:$S$9,0)) -> 6037 | D5: =INDEX(LONB_MD_NMD_UA!$C$9:$S$500,MATCH(PopulationRange!$A5,LONB_MD_NMD_UA!$C$9:$C$500,0),MATCH(PopulationRange!D$1,LONB_MD_NMD_UA!$C$9:$S$9,0)) -> 6492 | E5: =INDEX(LONB_MD_NMD_UA!$C$9:$S$500,MATCH(PopulationRange!$A5,LONB_MD_NMD_UA!$C$9:$C$500,0),MATCH(PopulationRange!E$1,LONB_MD_NMD_UA!$C$9:$S$9,0)) -> 6937 | F5: =INDEX(LONB_MD_NMD_UA!$C$9:$S$500,MATCH(PopulationRange!$A5,LONB_MD_NMD_UA!$C$9:$C$500,0),MATCH(PopulationRange!F$1,LONB_MD_NMD_UA!$C$9:$S$9,0)) -> 7566 | G5: =INDEX(LONB_MD_NMD_UA!$C$9:$S$500,MATCH(PopulationRange!$A5,LONB_MD_NMD_UA!$C$9:$C$500,0),MATCH(PopulationRange!G$1,LONB_MD_NMD_UA!$C$9:$S$9,0)) -> 7853 | H5: =INDEX(LONB_MD_NMD_UA!$C$9:$S$500,MATCH(PopulationRange!$A5,LONB_MD_NMD_UA!$C$9:$C$500,0),MATCH(PopulationRange!H$1,LONB_MD_NMD_UA!$C$9:$S$9,0)) -> 9676 | I5: =INDEX(LONB_MD_NMD_UA!$C$9:$S$500,MATCH(PopulationRange!$A5,LONB_MD_NMD_UA!$C$9:$C$500,0),MATCH(PopulationRange!I$1,LONB_MD_NMD_UA!$C$9:$S$9,0)) -> 9770 | J5: =INDEX(LONB_MD_NMD_UA!$C$9:$S$500,MATCH(PopulationRange!$A5,LONB_MD_NMD_UA!$C$9:$C$500,0),MATCH(PopulationRange!J$1,LONB_MD_NMD_UA!$C$9:$S$9,0)) -> 8197 | K5: =INDEX(LONB_MD_NMD_UA!$C$9:$S$500,MATCH(PopulationRange!$A5,LONB_MD_NMD_UA!$C$9:$C$500,0),MATCH(PopulationRange!K$1,LONB_MD_NMD_UA!$C$9:$S$9,0)) -> 8151 | L5: 2958.479 | M5: 5128.256 | N5: 2196.666 | O5: 1193.7 | P5: 434.51 | Q5: 6528.546 | R5: 14479.54 | S5: =INDEX(LONB_MD_NMD_UA!$C$9:$S$500,MATCH(PopulationRange!$A5,LONB_MD_NMD_UA!$C$9:$C$500,0),MATCH(PopulationRange!S$1,LONB_MD_NMD_UA!$C$9:$S$9,0)) -> 76701 | T5: 0.188779025 | U5: 0.03857158316 | V5: 0.06686035384 | W5: 0.02863933977 | X5: 0.01556303047 | Y5: 0.005664984811 | Z5: 0.08511683029 | AC5: APMS_Table 2.3 | AD5: =APMS_CommonMentalDisorder!$L$8/100 -> 0.009 | AE5: =APMS_CommonMentalDisorder!$L$17/100 -> 0.038 | AF5: =APMS_CommonMentalDisorder!$M$8/100 -> 0.041 | AG5: =APMS_CommonMentalDisorder!$M$17/100 -> 0.028 | AH5: =APMS_CommonMentalDisorder!$N$8/100 -> 0.027 | AI5: =APMS_CommonMentalDisorder!$N$17/100 -> 0.055 | AJ5: =APMS_CommonMentalDisorder!$O$8/100 -> 0.042 | AK5: =APMS_CommonMentalDisorder!$O$17/100 -> 0.048 | AL5: =APMS_CommonMentalDisorder!$P$8/100 -> 0.042 | AM5: =APMS_CommonMentalDisorder!$P$17/100 -> 0.044
A6: Arun | B6: =INDEX(LONB_MD_NMD_UA!$C$9:$S$500,MATCH(PopulationRange!$A6,LONB_MD_NMD_UA!$C$9:$C$500,0),MATCH(PopulationRange!B$1,LONB_MD_NMD_UA!$C$9:$S$9,0)) -> 7028 | C6: =INDEX(LONB_MD_NMD_UA!$C$9:$S$500,MATCH(PopulationRange!$A6,LONB_MD_NMD_UA!$C$9:$C$500,0),MATCH(PopulationRange!C$1,LONB_MD_NMD_UA!$C$9:$S$9,0)) -> 6704 | D6: =INDEX(LONB_MD_NMD_UA!$C$9:$S$500,MATCH(PopulationRange!$A6,LONB_MD_NMD_UA!$C$9:$C$500,0),MATCH(PopulationRange!D$1,LONB_MD_NMD_UA!$C$9:$S$9,0)) -> 7512 | E6: =INDEX(LONB_MD_NMD_UA!$C$9:$S$500,MATCH(PopulationRange!$A6,LONB_MD_NMD_UA!$C$9:$C$500,0),MATCH(PopulationRange!E$1,LONB_MD_NMD_UA!$C$9:$S$9,0)) -> 7771 | F6: =INDEX(LONB_MD_NMD_UA!$C$9:$S$500,MATCH(PopulationRange!$A6,LONB_MD_NMD_UA!$C$9:$C$500,0),MATCH(PopulationRange!F$1,LONB_MD_NMD_UA!$C$9:$S$9,0)) -> 7854 | G6: =INDEX(LONB_MD_NMD_UA!$C$9:$S$500,MATCH(PopulationRange!$A6,LONB_MD_NMD_UA!$C$9:$C$500,0),MATCH(PopulationRange!G$1,LONB_MD_NMD_UA!$C$9:$S$9,0)) -> 8749 | H6: =INDEX(LONB_MD_NMD_UA!$C$9:$S$500,MATCH(PopulationRange!$A6,LONB_MD_NMD_UA!$C$9:$C$500,0),MATCH(PopulationRange!H$1,LONB_MD_NMD_UA!$C$9:$S$9,0)) -> 10478 | I6: =INDEX(LONB_MD_NMD_UA!$C$9:$S$500,MATCH(PopulationRange!$A6,LONB_MD_NMD_UA!$C$9:$C$500,0),MATCH(PopulationRange!I$1,LONB_MD_NMD_UA!$C$9:$S$9,0)) -> 11147 | J6: =INDEX(LONB_MD_NMD_UA!$C$9:$S$500,MATCH(PopulationRange!$A6,LONB_MD_NMD_UA!$C$9:$C$500,0),MATCH(PopulationRange!J$1,LONB_MD_NMD_UA!$C$9:$S$9,0)) -> 9318 | K6: =INDEX(LONB_MD_NMD_UA!$C$9:$S$500,MATCH(PopulationRange!$A6,LONB_MD_NMD_UA!$C$9:$C$500,0),MATCH(PopulationRange!K$1,LONB_MD_NMD_UA!$C$9:$S$9,0)) -> 10494 | L6: 3365.061 | M6: 5814.208 | N6: 2495.101 | O6: 1358.64 | P6: 493.573 | Q6: 7439.625 | R6: 16457.176 | S6: =INDEX(LONB_MD_NMD_UA!$C$9:$S$500,MATCH(PopulationRange!$A6,LONB_MD_NMD_UA!$C$9:$C$500,0),MATCH(PopulationRange!S$1,LONB_MD_NMD_UA!$C$9:$S$9,0)) -> 87055 | T6: 0.1890434323 | U6: 0.03865442536 | V6: 0.06678775487 | W6: 0.02866120269 | X6: 0.01560668543 | Y6: 0.0056696686 | Z6: 0.08545890529
A7: Ashfield | B7: =INDEX(LONB_MD_NMD_UA!$C$9:$S$500,MATCH(PopulationRange!$A7,LONB_MD_NMD_UA!$C$9:$C$500,0),MATCH(PopulationRange!B$1,LONB_MD_NMD_UA!$C$9:$S$9,0)) -> 6507 | C7: =INDEX(LONB_MD_NMD_UA!$C$9:$S$500,MATCH(PopulationRange!$A7,LONB_MD_NMD_UA!$C$9:$C$500,0),MATCH(PopulationRange!C$1,LONB_MD_NMD_UA!$C$9:$S$9,0)) -> 6301 | D7: =INDEX(LONB_MD_NMD_UA!$C$9:$S$500,MATCH(PopulationRange!$A7,LONB_MD_NMD_UA!$C$9:$C$500,0),MATCH(PopulationRange!D$1,LONB_MD_NMD_UA!$C$9:$S$9,0)) -> 7427 | E7: =INDEX(LONB_MD_NMD_UA!$C$9:$S$500,MATCH(PopulationRange!$A7,LONB_MD_NMD_UA!$C$9:$C$500,0),MATCH(PopulationRange!E$1,LONB_MD_NMD_UA!$C$9:$S$9,0)) -> 8049 | F7: =INDEX(LONB_MD_NMD_UA!$C$9:$S$500,MATCH(PopulationRange!$A7,LONB_MD_NMD_UA!$C$9:$C$500,0),MATCH(PopulationRange!F$1,LONB_MD_NMD_UA!$C$9:$S$9,0)) -> 7525 | G7: =INDEX(LONB_MD_NMD_UA!$C$9:$S$500,MATCH(PopulationRange!$A7,LONB_MD_NMD_UA!$C$9:$C$500,0),MATCH(PopulationRange!G$1,LONB_MD_NMD_UA!$C$9:$S$9,0)) -> 7872 | H7: =INDEX(LONB_MD_NMD_UA!$C$9:$S$500,MATCH(PopulationRange!$A7,LONB_MD_NMD_UA!$C$9:$C$500,0),MATCH(PopulationRange!H$1,LONB_MD_NMD_UA!$C$9:$S$9,0)) -> 9310 | I7: =INDEX(LONB_MD_NMD_UA!$C$9:$S$500,MATCH(PopulationRange!$A7,LONB_MD_NMD_UA!$C$9:$C$500,0),MATCH(PopulationRange!I$1,LONB_MD_NMD_UA!$C$9:$S$9,0)) -> 9442 | J7: =INDEX(LONB_MD_NMD_UA!$C$9:$S$500,MATCH(PopulationRange!$A7,LONB_MD_NMD_UA!$C$9:$C$500,0),MATCH(PopulationRange!J$1,LONB_MD_NMD_UA!$C$9:$S$9,0)) -> 7486 | K7: =INDEX(LONB_MD_NMD_UA!$C$9:$S$500,MATCH(PopulationRange!$A7,LONB_MD_NMD_UA!$C$9:$C$500,0),MATCH(PopulationRange!K$1,LONB_MD_NMD_UA!$C$9:$S$9,0)) -> 7427 | L7: 2949.451 | M7: 5152.714 | N7: 2234.621 | O7: 1202.331 | P7: 440.847 | Q7: 6596.679 | R7: 14605.868 | S7: =INDEX(LONB_MD_NMD_UA!$C$9:$S$500,MATCH(PopulationRange!$A7,LONB_MD_NMD_UA!$C$9:$C$500,0),MATCH(PopulationRange!S$1,LONB_MD_NMD_UA!$C$9:$S$9,0)) -> 77346 | T7: 0.1888380524 | U7: 0.03813320663 | V7: 0.06661901068 | W7: 0.02889122902 | X7: 0.01554483748 | Y7: 0.005699674191 | Z7: 0.08528791405 | AC7: Anxiety
A8: Ashford | B8: =INDEX(LONB_MD_NMD_UA!$C$9:$S$500,MATCH(PopulationRange!$A8,LONB_MD_NMD_UA!$C$9:$C$500,0),MATCH(PopulationRange!B$1,LONB_MD_NMD_UA!$C$9:$S$9,0)) -> 6397 | C8: =INDEX(LONB_MD_NMD_UA!$C$9:$S$500,MATCH(PopulationRange!$A8,LONB_MD_NMD_UA!$C$9:$C$500,0),MATCH(PopulationRange!C$1,LONB_MD_NMD_UA!$C$9:$S$9,0)) -> 6165 | D8: =INDEX(LONB_MD_NMD_UA!$C$9:$S$500,MATCH(PopulationRange!$A8,LONB_MD_NMD_UA!$C$9:$C$500,0),MATCH(PopulationRange!D$1,LONB_MD_NMD_UA!$C$9:$S$9,0)) -> 6713 | E8: =INDEX(LONB_MD_NMD_UA!$C$9:$S$500,MATCH(PopulationRange!$A8,LONB_MD_NMD_UA!$C$9:$C$500,0),MATCH(PopulationRange!E$1,LONB_MD_NMD_UA!$C$9:$S$9,0)) -> 7426 | F8: =INDEX(LONB_MD_NMD_UA!$C$9:$S$500,MATCH(PopulationRange!$A8,LONB_MD_NMD_UA!$C$9:$C$500,0),MATCH(PopulationRange!F$1,LONB_MD_NMD_UA!$C$9:$S$9,0)) -> 7352 | G8: =INDEX(LONB_MD_NMD_UA!$C$9:$S$500,MATCH(PopulationRange!$A8,LONB_MD_NMD_UA!$C$9:$C$500,0),MATCH(PopulationRange!G$1,LONB_MD_NMD_UA!$C$9:$S$9,0)) -> 8238 | H8: =INDEX(LONB_MD_NMD_UA!$C$9:$S$500,MATCH(PopulationRange!$A8,LONB_MD_NMD_UA!$C$9:$C$500,0),MATCH(PopulationRange!H$1,LONB_MD_NMD_UA!$C$9:$S$9,0)) -> 9445 | I8: =INDEX(LONB_MD_NMD_UA!$C$9:$S$500,MATCH(PopulationRange!$A8,LONB_MD_NMD_UA!$C$9:$C$500,0),MATCH(PopulationRange!I$1,LONB_MD_NMD_UA!$C$9:$S$9,0)) -> 9480 | J8: =INDEX(LONB_MD_NMD_UA!$C$9:$S$500,MATCH(PopulationRange!$A8,LONB_MD_NMD_UA!$C$9:$C$500,0),MATCH(PopulationRange!J$1,LONB_MD_NMD_UA!$C$9:$S$9,0)) -> 6888 | K8: =INDEX(LONB_MD_NMD_UA!$C$9:$S$500,MATCH(PopulationRange!$A8,LONB_MD_NMD_UA!$C$9:$C$500,0),MATCH(PopulationRange!K$1,LONB_MD_NMD_UA!$C$9:$S$9,0)) -> 7099 | L8: 2879.98 | M8: 5020.339 | N8: 2176.911 | O8: 1174.34 | P8: 427.228 | Q8: 6422.892 | R8: 14225.02 | S8: =INDEX(LONB_MD_NMD_UA!$C$9:$S$500,MATCH(PopulationRange!$A8,LONB_MD_NMD_UA!$C$9:$C$500,0),MATCH(PopulationRange!S$1,LONB_MD_NMD_UA!$C$9:$S$9,0)) -> 75203 | T8: 0.1891549539 | U8: 0.03829607861 | V8: 0.06675716394 | W8: 0.02894712977 | X8: 0.01561560044 | Y8: 0.005680996769 | Z8: 0.08540739066 | AD8: 16 -24 | AF8: 25 - 34 | AH8: 35 - 44 | AJ8: 45 - 54 | AL8: 55 - 64
A9: Aylesbury Vale | B9: =INDEX(LONB_MD_NMD_UA!$C$9:$S$500,MATCH(PopulationRange!$A9,LONB_MD_NMD_UA!$C$9:$C$500,0),MATCH(PopulationRange!B$1,LONB_MD_NMD_UA!$C$9:$S$9,0)) -> 9847 | C9: =INDEX(LONB_MD_NMD_UA!$C$9:$S$500,MATCH(PopulationRange!$A9,LONB_MD_NMD_UA!$C$9:$C$500,0),MATCH(PopulationRange!C$1,LONB_MD_NMD_UA!$C$9:$S$9,0)) -> 8843 | D9: =INDEX(LONB_MD_NMD_UA!$C$9:$S$500,MATCH(PopulationRange!$A9,LONB_MD_NMD_UA!$C$9:$C$500,0),MATCH(PopulationRange!D$1,LONB_MD_NMD_UA!$C$9:$S$9,0)) -> 11063 | E9: =INDEX(LONB_MD_NMD_UA!$C$9:$S$500,MATCH(PopulationRange!$A9,LONB_MD_NMD_UA!$C$9:$C$500,0),MATCH(PopulationRange!E$1,LONB_MD_NMD_UA!$C$9:$S$9,0)) -> 11982 | F9: =INDEX(LONB_MD_NMD_UA!$C$9:$S$500,MATCH(PopulationRange!$A9,LONB_MD_NMD_UA!$C$9:$C$500,0),MATCH(PopulationRange!F$1,LONB_MD_NMD_UA!$C$9:$S$9,0)) -> 12970 | G9: =INDEX(LONB_MD_NMD_UA!$C$9:$S$500,MATCH(PopulationRange!$A9,LONB_MD_NMD_UA!$C$9:$C$500,0),MATCH(PopulationRange!G$1,LONB_MD_NMD_UA!$C$9:$S$9,0)) -> 13230 | H9: =INDEX(LONB_MD_NMD_UA!$C$9:$S$500,MATCH(PopulationRange!$A9,LONB_MD_NMD_UA!$C$9:$C$500,0),MATCH(PopulationRange!H$1,LONB_MD_NMD_UA!$C$9:$S$9,0)) -> 14434 | I9: =INDEX(LONB_MD_NMD_UA!$C$9:$S$500,MATCH(PopulationRange!$A9,LONB_MD_NMD_UA!$C$9:$C$500,0),MATCH(PopulationRange!I$1,LONB_MD_NMD_UA!$C$9:$S$9,0)) -> 14679 | J9: =INDEX(LONB_MD_NMD_UA!$C$9:$S$500,MATCH(PopulationRange!$A9,LONB_MD_NMD_UA!$C$9:$C$500,0),MATCH(PopulationRange!J$1,LONB_MD_NMD_UA!$C$9:$S$9,0)) -> 11083 | K9: =INDEX(LONB_MD_NMD_UA!$C$9:$S$500,MATCH(PopulationRange!$A9,LONB_MD_NMD_UA!$C$9:$C$500,0),MATCH(PopulationRange!K$1,LONB_MD_NMD_UA!$C$9:$S$9,0)) -> 11092 | L9: 4555.93 | M9: 7940.827 | N9: 3429.297 | O9: 1852.782 | P9: 658.46 | Q9: 10137.41 | R9: 22461.804 | S9: =INDEX(LONB_MD_NMD_UA!$C$9:$S$500,MATCH(PopulationRange!$A9,LONB_MD_NMD_UA!$C$9:$C$500,0),MATCH(PopulationRange!S$1,LONB_MD_NMD_UA!$C$9:$S$9,0)) -> 119223 | T9: 0.1884016004 | U9: 0.03821351585 | V9: 0.06660482457 | W9: 0.02876372009 | X9: 0.01554047457 | Y9: 0.005522927623 | Z9: 0.08502897931 | AD9: M | AE9: F | AF9: M | AG9: F | AH9: M | AI9: F | AJ9: M | AK9: F | AL9: M | AM9: F
A10: Babergh | B10: =INDEX(LONB_MD_NMD_UA!$C$9:$S$500,MATCH(PopulationRange!$A10,LONB_MD_NMD_UA!$C$9:$C$500,0),MATCH(PopulationRange!B$1,LONB_MD_NMD_UA!$C$9:$S$9,0)) -> 4077 | C10: =INDEX(LONB_MD_NMD_UA!$C$9:$S$500,MATCH(PopulationRange!$A10,LONB_MD_NMD_UA!$C$9:$C$500,0),MATCH(PopulationRange!C$1,LONB_MD_NMD_UA!$C$9:$S$9,0)) -> 3702 | D10: =INDEX(LONB_MD_NMD_UA!$C$9:$S$500,MATCH(PopulationRange!$A10,LONB_MD_NMD_UA!$C$9:$C$500,0),MATCH(PopulationRange!D$1,LONB_MD_NMD_UA!$C$9:$S$9,0)) -> 3929 | E10: =INDEX(LONB_MD_NMD_UA!$C$9:$S$500,MATCH(PopulationRange!$A10,LONB_MD_NMD_UA!$C$9:$C$500,0),MATCH(PopulationRange!E$1,LONB_MD_NMD_UA!$C$9:$S$9,0)) -> 4016 | F10: =INDEX(LONB_MD_NMD_UA!$C$9:$S$500,MATCH(PopulationRange!$A10,LONB_MD_NMD_UA!$C$9:$C$500,0),MATCH(PopulationRange!F$1,LONB_MD_NMD_UA!$C$9:$S$9,0)) -> 4917 | G10: =INDEX(LONB_MD_NMD_UA!$C$9:$S$500,MATCH(PopulationRange!$A10,LONB_MD_NMD_UA!$C$9:$C$500,0),MATCH(PopulationRange!G$1,LONB_MD_NMD_UA!$C$9:$S$9,0)) -> 5182 | H10: =INDEX(LONB_MD_NMD_UA!$C$9:$S$500,MATCH(PopulationRange!$A10,LONB_MD_NMD_UA!$C$9:$C$500,0),MATCH(PopulationRange!H$1,LONB_MD_NMD_UA!$C$9:$S$9,0)) -> 6638 | I10: =INDEX(LONB_MD_NMD_UA!$C$9:$S$500,MATCH(PopulationRange!$A10,LONB_MD_NMD_UA!$C$9:$C$500,0),MATCH(PopulationRange!I$1,LONB_MD_NMD_UA!$C$9:$S$9,0)) -> 6943 | J10: =INDEX(LONB_MD_NMD_UA!$C$9:$S$500,MATCH(PopulationRange!$A10,LONB_MD_NMD_UA!$C$9:$C$500,0),MATCH(PopulationRange!J$1,LONB_MD_NMD_UA!$C$9:$S$9,0)) -> 5677 | K10: =INDEX(LONB_MD_NMD_UA!$C$9:$S$500,MATCH(PopulationRange!$A10,LONB_MD_NMD_UA!$C$9:$C$500,0),MATCH(PopulationRange!K$1,LONB_MD_NMD_UA!$C$9:$S$9,0)) -> 6232 | L10: 1993.377 | M10: 3431.903 | N10: 1454.568 | O10: 800.265 | P10: 285.864 | Q10: 4363.19 | R10: 9664.405 | S10: =INDEX(LONB_MD_NMD_UA!$C$9:$S$500,MATCH(PopulationRange!$A10,LONB_MD_NMD_UA!$C$9:$C$500,0),MATCH(PopulationRange!S$1,LONB_MD_NMD_UA!$C$9:$S$9,0)) -> 51313 | T10: 0.188342233 | U10: 0.03884740709 | V10: 0.06688174537 | W10: 0.0283469686 | X10: 0.01559575546 | Y10: 0.00557098591 | Z10: 0.08503088886 | AC10: APMS_Table 2.3 | AD10: =APMS_CommonMentalDisorder!$L$7/100 -> 0.038 | AE10: =APMS_CommonMentalDisorder!$L$16/100 -> 0.09 | AF10: =APMS_CommonMentalDisorder!$M$7/100 -> 0.06 | AG10: =APMS_CommonMentalDisorder!$M$16/100 -> 0.063 | AH10: =APMS_CommonMentalDisorder!$N$7/100 -> 0.068 | AI10: =APMS_CommonMentalDisorder!$N$16/100 -> 0.07 | AJ10: =APMS_CommonMentalDisorder!$O$7/100 -> 0.06 | AK10: =APMS_CommonMentalDisorder!$O$16/100 -> 0.085 | AL10: =APMS_CommonMentalDisorder!$P$7/100 -> 0.062 | AM10: =APMS_CommonMentalDisorder!$P$16/100 -> 0.067
A11: Barking and Dagenham | B11: =INDEX(LONB_MD_NMD_UA!$C$9:$S$500,MATCH(PopulationRange!$A11,LONB_MD_NMD_UA!$C$9:$C$500,0),MATCH(PopulationRange!B$1,LONB_MD_NMD_UA!$C$9:$S$9,0)) -> 12055 | C11: =INDEX(LONB_MD_NMD_UA!$C$9:$S$500,MATCH(PopulationRange!$A11,LONB_MD_NMD_UA!$C$9:$C$500,0),MATCH(PopulationRange!C$1,LONB_MD_NMD_UA!$C$9:$S$9,0)) -> 11277 | D11: =INDEX(LONB_MD_NMD_UA!$C$9:$S$500,MATCH(PopulationRange!$A11,LONB_MD_NMD_UA!$C$9:$C$500,0),MATCH(PopulationRange!D$1,LONB_MD_NMD_UA!$C$9:$S$9,0)) -> 15481 | E11: =INDEX(LONB_MD_NMD_UA!$C$9:$S$500,MATCH(PopulationRange!$A11,LONB_MD_NMD_UA!$C$9:$C$500,0),MATCH(PopulationRange!E$1,LONB_MD_NMD_UA!$C$9:$S$9,0)) -> 17030 | F11: =INDEX(LONB_MD_NMD_UA!$C$9:$S$500,MATCH(PopulationRange!$A11,LONB_MD_NMD_UA!$C$9:$C$500,0),MATCH(PopulationRange!F$1,LONB_MD_NMD_UA!$C$9:$S$9,0)) -> 14586 | G11: =INDEX(LONB_MD_NMD_UA!$C$9:$S$500,MATCH(PopulationRange!$A11,LONB_MD_NMD_UA!$C$9:$C$500,0),MATCH(PopulationRange!G$1,LONB_MD_NMD_UA!$C$9:$S$9,0)) -> 15846 | H11: =INDEX(LONB_MD_NMD_UA!$C$9:$S$500,MATCH(PopulationRange!$A11,LONB_MD_NMD_UA!$C$9:$C$500,0),MATCH(PopulationRange!H$1,LONB_MD_NMD_UA!$C$9:$S$9,0)) -> 12013 | I11: =INDEX(LONB_MD_NMD_UA!$C$9:$S$500,MATCH(PopulationRange!$A11,LONB_MD_NMD_UA!$C$9:$C$500,0),MATCH(PopulationRange!I$1,LONB_MD_NMD_UA!$C$9:$S$9,0)) -> 13011 | J11: =INDEX(LONB_MD_NMD_UA!$C$9:$S$500,MATCH(PopulationRange!$A11,LONB_MD_NMD_UA!$C$9:$C$500,0),MATCH(PopulationRange!J$1,LONB_MD_NMD_UA!$C$9:$S$9,0)) -> 8123 | K11: =INDEX(LONB_MD_NMD_UA!$C$9:$S$500,MATCH(PopulationRange!$A11,LONB_MD_NMD_UA!$C$9:$C$500,0),MATCH(PopulationRange!K$1,LONB_MD_NMD_UA!$C$9:$S$9,0)) -> 8039 | L11: 4737.89 | M11: 8444.792 | N11: 3794.933 | O11: 1987.637 | P11: 726.765 | Q11: 10947.38 | R11: 24213.216 | S11: =INDEX(LONB_MD_NMD_UA!$C$9:$S$500,MATCH(PopulationRange!$A11,LONB_MD_NMD_UA!$C$9:$C$500,0),MATCH(PopulationRange!S$1,LONB_MD_NMD_UA!$C$9:$S$9,0)) -> 127461 | T11: 0.1899656836 | U11: 0.03717129161 | V11: 0.06625392865 | W11: 0.02977328752 | X11: 0.01559407976 | Y11: 0.005701861746 | Z11: 0.08588807557
A12: Barnet | B12: =INDEX(LONB_MD_NMD_UA!$C$9:$S$500,MATCH(PopulationRange!$A12,LONB_MD_NMD_UA!$C$9:$C$500,0),MATCH(PopulationRange!B$1,LONB_MD_NMD_UA!$C$9:$S$9,0)) -> 19872 | C12: =INDEX(LONB_MD_NMD_UA!$C$9:$S$500,MATCH(PopulationRange!$A12,LONB_MD_NMD_UA!$C$9:$C$500,0),MATCH(PopulationRange!C$1,LONB_MD_NMD_UA!$C$9:$S$9,0)) -> 18890 | D12: =INDEX(LONB_MD_NMD_UA!$C$9:$S$500,MATCH(PopulationRange!$A12,LONB_MD_NMD_UA!$C$9:$C$500,0),MATCH(PopulationRange!D$1,LONB_MD_NMD_UA!$C$9:$S$9,0)) -> 31985 | E12: =INDEX(LONB_MD_NMD_UA!$C$9:$S$500,MATCH(PopulationRange!$A12,LONB_MD_NMD_UA!$C$9:$C$500,0),MATCH(PopulationRange!E$1,LONB_MD_NMD_UA!$C$9:$S$9,0)) -> 31711 | F12: =INDEX(LONB_MD_NMD_UA!$C$9:$S$500,MATCH(PopulationRange!$A12,LONB_MD_NMD_UA!$C$9:$C$500,0),MATCH(PopulationRange!F$1,LONB_MD_NMD_UA!$C$9:$S$9,0)) -> 28771 | G12: =INDEX(LONB_MD_NMD_UA!$C$9:$S$500,MATCH(PopulationRange!$A12,LONB_MD_NMD_UA!$C$9:$C$500,0),MATCH(PopulationRange!G$1,LONB_MD_NMD_UA!$C$9:$S$9,0)) -> 28809 | H12: =INDEX(LONB_MD_NMD_UA!$C$9:$S$500,MATCH(PopulationRange!$A12,LONB_MD_NMD_UA!$C$9:$C$500,0),MATCH(PopulationRange!H$1,LONB_MD_NMD_UA!$C$9:$S$9,0)) -> 24305 | I12: =INDEX(LONB_MD_NMD_UA!$C$9:$S$500,MATCH(PopulationRange!$A12,LONB_MD_NMD_UA!$C$9:$C$500,0),MATCH(PopulationRange!I$1,LONB_MD_NMD_UA!$C$9:$S$9,0)) -> 25791 | J12: =INDEX(LONB_MD_NMD_UA!$C$9:$S$500,MATCH(PopulationRange!$A12,LONB_MD_NMD_UA!$C$9:$C$500,0),MATCH(PopulationRange!J$1,LONB_MD_NMD_UA!$C$9:$S$9,0)) -> 17570 | K12: =INDEX(LONB_MD_NMD_UA!$C$9:$S$500,MATCH(PopulationRange!$A12,LONB_MD_NMD_UA!$C$9:$C$500,0),MATCH(PopulationRange!K$1,LONB_MD_NMD_UA!$C$9:$S$9,0)) -> 18824 | L12: 9282.247 | M12: 16346.27 | N12: 7271.361 | O12: 3823.888 | P12: 1354.177 | Q12: 21099.731 | R12: 46696.707 | S12: =INDEX(LONB_MD_NMD_UA!$C$9:$S$500,MATCH(PopulationRange!$A12,LONB_MD_NMD_UA!$C$9:$C$500,0),MATCH(PopulationRange!S$1,LONB_MD_NMD_UA!$C$9:$S$9,0)) -> 246528 | T12: 0.1894174577 | U12: 0.03765189755 | V12: 0.06630593685 | W12: 0.02949507155 | X12: 0.01551096833 | Y12: 0.005492994711 | Z12: 0.08558756409 | AC12: Phobias
A13: Barnsley | B13: =INDEX(LONB_MD_NMD_UA!$C$9:$S$500,MATCH(PopulationRange!$A13,LONB_MD_NMD_UA!$C$9:$C$500,0),MATCH(PopulationRange!B$1,LONB_MD_NMD_UA!$C$9:$S$9,0)) -> 12762 | C13: =INDEX(LONB_MD_NMD_UA!$C$9:$S$500,MATCH(PopulationRange!$A13,LONB_MD_NMD_UA!$C$9:$C$500,0),MATCH(PopulationRange!C$1,LONB_MD_NMD_UA!$C$9:$S$9,0)) -> 12316 | D13: =INDEX(LONB_MD_NMD_UA!$C$9:$S$500,MATCH(PopulationRange!$A13,LONB_MD_NMD_UA!$C$9:$C$500,0),MATCH(PopulationRange!D$1,LONB_MD_NMD_UA!$C$9:$S$9,0)) -> 14893 | E13: =INDEX(LONB_MD_NMD_UA!$C$9:$S$500,MATCH(PopulationRange!$A13,LONB_MD_NMD_UA!$C$9:$C$500,0),MATCH(PopulationRange!E$1,LONB_MD_NMD_UA!$C$9:$S$9,0)) -> 15411 | F13: =INDEX(LONB_MD_NMD_UA!$C$9:$S$500,MATCH(PopulationRange!$A13,LONB_MD_NMD_UA!$C$9:$C$500,0),MATCH(PopulationRange!F$1,LONB_MD_NMD_UA!$C$9:$S$9,0)) -> 14337 | G13: =INDEX(LONB_MD_NMD_UA!$C$9:$S$500,MATCH(PopulationRange!$A13,LONB_MD_NMD_UA!$C$9:$C$500,0),MATCH(PopulationRange!G$1,LONB_MD_NMD_UA!$C$9:$S$9,0)) -> 14739 | H13: =INDEX(LONB_MD_NMD_UA!$C$9:$S$500,MATCH(PopulationRange!$A13,LONB_MD_NMD_UA!$C$9:$C$500,0),MATCH(PopulationRange!H$1,LONB_MD_NMD_UA!$C$9:$S$9,0)) -> 18054 | I13: =INDEX(LONB_MD_NMD_UA!$C$9:$S$500,MATCH(PopulationRange!$A13,LONB_MD_NMD_UA!$C$9:$C$500,0),MATCH(PopulationRange!I$1,LONB_MD_NMD_UA!$C$9:$S$9,0)) -> 17961 | J13: =INDEX(LONB_MD_NMD_UA!$C$9:$S$500,MATCH(PopulationRange!$A13,LONB_MD_NMD_UA!$C$9:$C$500,0),MATCH(PopulationRange!J$1,LONB_MD_NMD_UA!$C$9:$S$9,0)) -> 15028 | K13: =INDEX(LONB_MD_NMD_UA!$C$9:$S$500,MATCH(PopulationRange!$A13,LONB_MD_NMD_UA!$C$9:$C$500,0),MATCH(PopulationRange!K$1,LONB_MD_NMD_UA!$C$9:$S$9,0)) -> 14942 | L13: 5731.751 | M13: 10007.29 | N13: 4335.376 | O13: 2333.712 | P13: 858.742 | Q13: 12804.397 | R13: 28355.165 | S13: =INDEX(LONB_MD_NMD_UA!$C$9:$S$500,MATCH(PopulationRange!$A13,LONB_MD_NMD_UA!$C$9:$C$500,0),MATCH(PopulationRange!S$1,LONB_MD_NMD_UA!$C$9:$S$9,0)) -> 150443 | T13: 0.1884777956 | U13: 0.03809915383 | V13: 0.06651881443 | W13: 0.02881739928 | X13: 0.0155122671 | Y13: 0.005708088778 | Z13: 0.08511128467 | AD13: 16 -24 | AF13: 25 - 34 | AH13: 35 - 44 | AJ13: 45 - 54 | AL13: 55 - 64
A14: Barrow-in-Furness | B14: =INDEX(LONB_MD_NMD_UA!$C$9:$S$500,MATCH(PopulationRange!$A14,LONB_MD_NMD_UA!$C$9:$C$500,0),MATCH(PopulationRange!B$1,LONB_MD_NMD_UA!$C$9:$S$9,0)) -> 3630 | C14: =INDEX(LONB_MD_NMD_UA!$C$9:$S$500,MATCH(PopulationRange!$A14,LONB_MD_NMD_UA!$C$9:$C$500,0),MATCH(PopulationRange!C$1,LONB_MD_NMD_UA!$C$9:$S$9,0)) -> 3390 | D14: =INDEX(LONB_MD_NMD_UA!$C$9:$S$500,MATCH(PopulationRange!$A14,LONB_MD_NMD_UA!$C$9:$C$500,0),MATCH(PopulationRange!D$1,LONB_MD_NMD_UA!$C$9:$S$9,0)) -> 3963 | E14: =INDEX(LONB_MD_NMD_UA!$C$9:$S$500,MATCH(PopulationRange!$A14,LONB_MD_NMD_UA!$C$9:$C$500,0),MATCH(PopulationRange!E$1,LONB_MD_NMD_UA!$C$9:$S$9,0)) -> 3841 | F14: =INDEX(LONB_MD_NMD_UA!$C$9:$S$500,MATCH(PopulationRange!$A14,LONB_MD_NMD_UA!$C$9:$C$500,0),MATCH(PopulationRange!F$1,LONB_MD_NMD_UA!$C$9:$S$9,0)) -> 3714 | G14: =INDEX(LONB_MD_NMD_UA!$C$9:$S$500,MATCH(PopulationRange!$A14,LONB_MD_NMD_UA!$C$9:$C$500,0),MATCH(PopulationRange!G$1,LONB_MD_NMD_UA!$C$9:$S$9,0)) -> 4007 | H14: =INDEX(LONB_MD_NMD_UA!$C$9:$S$500,MATCH(PopulationRange!$A14,LONB_MD_NMD_UA!$C$9:$C$500,0),MATCH(PopulationRange!H$1,LONB_MD_NMD_UA!$C$9:$S$9,0)) -> 5194 | I14: =INDEX(LONB_MD_NMD_UA!$C$9:$S$500,MATCH(PopulationRange!$A14,LONB_MD_NMD_UA!$C$9:$C$500,0),MATCH(PopulationRange!I$1,LONB_MD_NMD_UA!$C$9:$S$9,0)) -> 5142 | J14: =INDEX(LONB_MD_NMD_UA!$C$9:$S$500,MATCH(PopulationRange!$A14,LONB_MD_NMD_UA!$C$9:$C$500,0),MATCH(PopulationRange!J$1,LONB_MD_NMD_UA!$C$9:$S$9,0)) -> 4277 | K14: =INDEX(LONB_MD_NMD_UA!$C$9:$S$500,MATCH(PopulationRange!$A14,LONB_MD_NMD_UA!$C$9:$C$500,0),MATCH(PopulationRange!K$1,LONB_MD_NMD_UA!$C$9:$S$9,0)) -> 4385 | L14: 1589.722 | M14: 2763.524 | N14: 1190.018 | O14: 644.515 | P14: 237.293 | Q14: 3531.13 | R14: 7816.69 | S14: =INDEX(LONB_MD_NMD_UA!$C$9:$S$500,MATCH(PopulationRange!$A14,LONB_MD_NMD_UA!$C$9:$C$500,0),MATCH(PopulationRange!S$1,LONB_MD_NMD_UA!$C$9:$S$9,0)) -> 41543 | T14: 0.188159016 | U14: 0.03826690417 | V14: 0.06652201334 | W14: 0.0286454517 | X14: 0.01551440676 | Y14: 0.005711985172 | Z14: 0.08499939821 | AD14: M | AE14: F | AF14: M | AG14: F | AH14: M | AI14: F | AJ14: M | AK14: F | AL14: M | AM14: F
A15: Basildon | B15: =INDEX(LONB_MD_NMD_UA!$C$9:$S$500,MATCH(PopulationRange!$A15,LONB_MD_NMD_UA!$C$9:$C$500,0),MATCH(PopulationRange!B$1,LONB_MD_NMD_UA!$C$9:$S$9,0)) -> 9545 | C15: =INDEX(LONB_MD_NMD_UA!$C$9:$S$500,MATCH(PopulationRange!$A15,LONB_MD_NMD_UA!$C$9:$C$500,0),MATCH(PopulationRange!C$1,LONB_MD_NMD_UA!$C$9:$S$9,0)) -> 9370 | D15: =INDEX(LONB_MD_NMD_UA!$C$9:$S$500,MATCH(PopulationRange!$A15,LONB_MD_NMD_UA!$C$9:$C$500,0),MATCH(PopulationRange!D$1,LONB_MD_NMD_UA!$C$9:$S$9,0)) -> 11587 | E15: =INDEX(LONB_MD_NMD_UA!$C$9:$S$500,MATCH(PopulationRange!$A15,LONB_MD_NMD_UA!$C$9:$C$500,0),MATCH(PopulationRange!E$1,LONB_MD_NMD_UA!$C$9:$S$9,0)) -> 12498 | F15: =INDEX(LONB_MD_NMD_UA!$C$9:$S$500,MATCH(PopulationRange!$A15,LONB_MD_NMD_UA!$C$9:$C$500,0),MATCH(PopulationRange!F$1,LONB_MD_NMD_UA!$C$9:$S$9,0)) -> 11815 | G15: =INDEX(LONB_MD_NMD_UA!$C$9:$S$500,MATCH(PopulationRange!$A15,LONB_MD_NMD_UA!$C$9:$C$500,0),MATCH(PopulationRange!G$1,LONB_MD_NMD_UA!$C$9:$S$9,0)) -> 12431 | H15: =INDEX(LONB_MD_NMD_UA!$C$9:$S$500,MATCH(PopulationRange!$A15,LONB_MD_NMD_UA!$C$9:$C$500,0),MATCH(PopulationRange!H$1,LONB_MD_NMD_UA!$C$9:$S$9,0)) -> 12769 | I15: =INDEX(LONB_MD_NMD_UA!$C$9:$S$500,MATCH(PopulationRange!$A15,LONB_MD_NMD_UA!$C$9:$C$500,0),MATCH(PopulationRange!I$1,LONB_MD_NMD_UA!$C$9:$S$9,0)) -> 13372 | J15: =INDEX(LONB_MD_NMD_UA!$C$9:$S$500,MATCH(PopulationRange!$A15,LONB_MD_NMD_UA!$C$9:$C$500,0),MATCH(PopulationRange!J$1,LONB_MD_NMD_UA!$C$9:$S$9,0)) -> 9885 | K15: =INDEX(LONB_MD_NMD_UA!$C$9:$S$500,MATCH(PopulationRange!$A15,LONB_MD_NMD_UA!$C$9:$C$500,0),MATCH(PopulationRange!K$1,LONB_MD_NMD_UA!$C$9:$S$9,0)) -> 10424 | L15: 4321.666 | M15: 7576.232 | N15: 3317.344 | O15: 1774.157 | P15: 645.628 | Q15: 9729.603 | R15: 21543.876 | S15: =INDEX(LONB_MD_NMD_UA!$C$9:$S$500,MATCH(PopulationRange!$A15,LONB_MD_NMD_UA!$C$9:$C$500,0),MATCH(PopulationRange!S$1,LONB_MD_NMD_UA!$C$9:$S$9,0)) -> 113696 | T15: 0.1894866662 | U15: 0.03801071278 | V15: 0.06663587109 | W15: 0.02917731495 | X15: 0.01560439241 | Y15: 0.005678546299 | Z15: 0.08557559633 | AC15: APMS_Table 2.3 | AD15: =APMS_CommonMentalDisorder!$L$9/100 -> 0.013 | AE15: =APMS_CommonMentalDisorder!$L$18/100 -> 0.054 | AF15: =APMS_CommonMentalDisorder!$M$9/100 -> 0.028 | AG15: =APMS_CommonMentalDisorder!$M$18/100 -> 0.038 | AH15: =APMS_CommonMentalDisorder!$N$9/100 -> 0.025 | AI15: =APMS_CommonMentalDisorder!$N$18/100 -> 0.035 | AJ15: =APMS_CommonMentalDisorder!$O$9/100 -> 0.023 | AK15: =APMS_CommonMentalDisorder!$O$18/100 -> 0.03 | AL15: =APMS_CommonMentalDisorder!$P$9/100 -> 0.012 | AM15: =APMS_CommonMentalDisorder!$P$18/100 -> 0.033
A16: Basingstoke and Deane | B16: =INDEX(LONB_MD_NMD_UA!$C$9:$S$500,MATCH(PopulationRange!$A16,LONB_MD_NMD_UA!$C$9:$C$500,0),MATCH(PopulationRange!B$1,LONB_MD_NMD_UA!$C$9:$S$9,0)) -> 8305 | C16: =INDEX(LONB_MD_NMD_UA!$C$9:$S$500,MATCH(PopulationRange!$A16,LONB_MD_NMD_UA!$C$9:$C$500,0),MATCH(PopulationRange!C$1,LONB_MD_NMD_UA!$C$9:$S$9,0)) -> 7812 | D16: =INDEX(LONB_MD_NMD_UA!$C$9:$S$500,MATCH(PopulationRange!$A16,LONB_MD_NMD_UA!$C$9:$C$500,0),MATCH(PopulationRange!D$1,LONB_MD_NMD_UA!$C$9:$S$9,0)) -> 10858 | E16: =INDEX(LONB_MD_NMD_UA!$C$9:$S$500,MATCH(PopulationRange!$A16,LONB_MD_NMD_UA!$C$9:$C$500,0),MATCH(PopulationRange!E$1,LONB_MD_NMD_UA!$C$9:$S$9,0)) -> 11722 | F16: =INDEX(LONB_MD_NMD_UA!$C$9:$S$500,MATCH(PopulationRange!$A16,LONB_MD_NMD_UA!$C$9:$C$500,0),MATCH(PopulationRange!F$1,LONB_MD_NMD_UA!$C$9:$S$9,0)) -> 12222 | G16: =INDEX(LONB_MD_NMD_UA!$C$9:$S$500,MATCH(PopulationRange!$A16,LONB_MD_NMD_UA!$C$9:$C$500,0),MATCH(PopulationRange!G$1,LONB_MD_NMD_UA!$C$9:$S$9,0)) -> 12477 | H16: =INDEX(LONB_MD_NMD_UA!$C$9:$S$500,MATCH(PopulationRange!$A16,LONB_MD_NMD_UA!$C$9:$C$500,0),MATCH(PopulationRange!H$1,LONB_MD_NMD_UA!$C$9:$S$9,0)) -> 13504 | I16: =INDEX(LONB_MD_NMD_UA!$C$9:$S$500,MATCH(PopulationRange!$A16,LONB_MD_NMD_UA!$C$9:$C$500,0),MATCH(PopulationRange!I$1,LONB_MD_NMD_UA!$C$9:$S$9,0)) -> 13456 | J16: =INDEX(LONB_MD_NMD_UA!$C$9:$S$500,MATCH(PopulationRange!$A16,LONB_MD_NMD_UA!$C$9:$C$500,0),MATCH(PopulationRange!J$1,LONB_MD_NMD_UA!$C$9:$S$9,0)) -> 10025 | K16: =INDEX(LONB_MD_NMD_UA!$C$9:$S$500,MATCH(PopulationRange!$A16,LONB_MD_NMD_UA!$C$9:$C$500,0),MATCH(PopulationRange!K$1,LONB_MD_NMD_UA!$C$9:$S$9,0)) -> 9865 | L16: 4229.39 | M16: 7349.627 | N16: 3181.635 | O16: 1710.148 | P16: 600.652 | Q16: 9384.977 | R16: 20800.321 | S16: =INDEX(LONB_MD_NMD_UA!$C$9:$S$500,MATCH(PopulationRange!$A16,LONB_MD_NMD_UA!$C$9:$C$500,0),MATCH(PopulationRange!S$1,LONB_MD_NMD_UA!$C$9:$S$9,0)) -> 110246 | T16: 0.1886718883 | U16: 0.03836320592 | V16: 0.06666570216 | W16: 0.0288594144 | X16: 0.01551210928 | Y16: 0.005448288373 | Z16: 0.08512759647
A17: Bassetlaw | B17: =INDEX(LONB_MD_NMD_UA!$C$9:$S$500,MATCH(PopulationRange!$A17,LONB_MD_NMD_UA!$C$9:$C$500,0),MATCH(PopulationRange!B$1,LONB_MD_NMD_UA!$C$9:$S$9,0)) -> 6113 | C17: =INDEX(LONB_MD_NMD_UA!$C$9:$S$500,MATCH(PopulationRange!$A17,LONB_MD_NMD_UA!$C$9:$C$500,0),MATCH(PopulationRange!C$1,LONB_MD_NMD_UA!$C$9:$S$9,0)) -> 5569 | D17: =INDEX(LONB_MD_NMD_UA!$C$9:$S$500,MATCH(PopulationRange!$A17,LONB_MD_NMD_UA!$C$9:$C$500,0),MATCH(PopulationRange!D$1,LONB_MD_NMD_UA!$C$9:$S$9,0)) -> 6277 | E17: =INDEX(LONB_MD_NMD_UA!$C$9:$S$500,MATCH(PopulationRange!$A17,LONB_MD_NMD_UA!$C$9:$C$500,0),MATCH(PopulationRange!E$1,LONB_MD_NMD_UA!$C$9:$S$9,0)) -> 6063 | F17: =INDEX(LONB_MD_NMD_UA!$C$9:$S$500,MATCH(PopulationRange!$A17,LONB_MD_NMD_UA!$C$9:$C$500,0),MATCH(PopulationRange!F$1,LONB_MD_NMD_UA!$C$9:$S$9,0)) -> 6656 | G17: =INDEX(LONB_MD_NMD_UA!$C$9:$S$500,MATCH(PopulationRange!$A17,LONB_MD_NMD_UA!$C$9:$C$500,0),MATCH(PopulationRange!G$1,LONB_MD_NMD_UA!$C$9:$S$9,0)) -> 6922 | H17: =INDEX(LONB_MD_NMD_UA!$C$9:$S$500,MATCH(PopulationRange!$A17,LONB_MD_NMD_UA!$C$9:$C$500,0),MATCH(PopulationRange!H$1,LONB_MD_NMD_UA!$C$9:$S$9,0)) -> 8874 | I17: =INDEX(LONB_MD_NMD_UA!$C$9:$S$500,MATCH(PopulationRange!$A17,LONB_MD_NMD_UA!$C$9:$C$500,0),MATCH(PopulationRange!I$1,LONB_MD_NMD_UA!$C$9:$S$9,0)) -> 8946 | J17: =INDEX(LONB_MD_NMD_UA!$C$9:$S$500,MATCH(PopulationRange!$A17,LONB_MD_NMD_UA!$C$9:$C$500,0),MATCH(PopulationRange!J$1,LONB_MD_NMD_UA!$C$9:$S$9,0)) -> 7633 | K17: =INDEX(LONB_MD_NMD_UA!$C$9:$S$500,MATCH(PopulationRange!$A17,LONB_MD_NMD_UA!$C$9:$C$500,0),MATCH(PopulationRange!K$1,LONB_MD_NMD_UA!$C$9:$S$9,0)) -> 7544 | L17: 2708.82 | M17: 4700.785 | N17: 2008.045 | O17: 1094.09 | P17: 400.306 | Q17: 5985.668 | R17: 13261.711 | S17: =INDEX(LONB_MD_NMD_UA!$C$9:$S$500,MATCH(PopulationRange!$A17,LONB_MD_NMD_UA!$C$9:$C$500,0),MATCH(PopulationRange!S$1,LONB_MD_NMD_UA!$C$9:$S$9,0)) -> 70597 | T17: 0.1878509143 | U17: 0.0383701857 | V17: 0.06658618638 | W17: 0.0284437724 | X17: 0.01549768404 | Y17: 0.005670297605 | Z17: 0.08478643568 | AC17: OCD
A18: Bath and North East Somerset | B18: =INDEX(LONB_MD_NMD_UA!$C$9:$S$500,MATCH(PopulationRange!$A18,LONB_MD_NMD_UA!$C$9:$C$500,0),MATCH(PopulationRange!B$1,LONB_MD_NMD_UA!$C$9:$S$9,0)) -> 16012 | C18: =INDEX(LONB_MD_NMD_UA!$C$9:$S$500,MATCH(PopulationRange!$A18,LONB_MD_NMD_UA!$C$9:$C$500,0),MATCH(PopulationRange!C$1,LONB_MD_NMD_UA!$C$9:$S$9,0)) -> 15309 | D18: =INDEX(LONB_MD_NMD_UA!$C$9:$S$500,MATCH(PopulationRange!$A18,LONB_MD_NMD_UA!$C$9:$C$500,0),MATCH(PopulationRange!D$1,LONB_MD_NMD_UA!$C$9:$S$9,0)) -> 11185 | E18: =INDEX(LONB_MD_NMD_UA!$C$9:$S$500,MATCH(PopulationRange!$A18,LONB_MD_NMD_UA!$C$9:$C$500,0),MATCH(PopulationRange!E$1,LONB_MD_NMD_UA!$C$9:$S$9,0)) -> 10335 | F18: =INDEX(LONB_MD_NMD_UA!$C$9:$S$500,MATCH(PopulationRange!$A18,LONB_MD_NMD_UA!$C$9:$C$500,0),MATCH(PopulationRange!F$1,LONB_MD_NMD_UA!$C$9:$S$9,0)) -> 10264 | G18: =INDEX(LONB_MD_NMD_UA!$C$9:$S$500,MATCH(PopulationRange!$A18,LONB_MD_NMD_UA!$C$9:$C$500,0),MATCH(PopulationRange!G$1,LONB_MD_NMD_UA!$C$9:$S$9,0)) -> 10768 | H18: =INDEX(LONB_MD_NMD_UA!$C$9:$S$500,MATCH(PopulationRange!$A18,LONB_MD_NMD_UA!$C$9:$C$500,0),MATCH(PopulationRange!H$1,LONB_MD_NMD_UA!$C$9:$S$9,0)) -> 12149 | I18: =INDEX(LONB_MD_NMD_UA!$C$9:$S$500,MATCH(PopulationRange!$A18,LONB_MD_NMD_UA!$C$9:$C$500,0),MATCH(PopulationRange!I$1,LONB_MD_NMD_UA!$C$9:$S$9,0)) -> 12713 | J18: =INDEX(LONB_MD_NMD_UA!$C$9:$S$500,MATCH(PopulationRange!$A18,LONB_MD_NMD_UA!$C$9:$C$500,0),MATCH(PopulationRange!J$1,LONB_MD_NMD_UA!$C$9:$S$9,0)) -> 9974 | K18: =INDEX(LONB_MD_NMD_UA!$C$9:$S$500,MATCH(PopulationRange!$A18,LONB_MD_NMD_UA!$C$9:$C$500,0),MATCH(PopulationRange!K$1,LONB_MD_NMD_UA!$C$9:$S$9,0)) -> 10533 | L18: 4346.025 | M18: 7893.827 | N18: 3502.326 | O18: 1884.662 | P18: 775.046 | Q18: 10148.394 | R18: 22514.887 | S18: =INDEX(LONB_MD_NMD_UA!$C$9:$S$500,MATCH(PopulationRange!$A18,LONB_MD_NMD_UA!$C$9:$C$500,0),MATCH(PopulationRange!S$1,LONB_MD_NMD_UA!$C$9:$S$9,0)) -> 119242 | T18: 0.1888167508 | U18: 0.03644709918 | V18: 0.06620005535 | W18: 0.02937158048 | X18: 0.01580535382 | Y18: 0.00649977357 | Z18: 0.085107546 | AD18: 16 -24 | AF18: 25 - 34 | AH18: 35 - 44 | AJ18: 45 - 54 | AL18: 55 - 64
A19: Bedford | B19: =INDEX(LONB_MD_NMD_UA!$C$9:$S$500,MATCH(PopulationRange!$A19,LONB_MD_NMD_UA!$C$9:$C$500,0),MATCH(PopulationRange!B$1,LONB_MD_NMD_UA!$C$9:$S$9,0)) -> 9316 | C19: =INDEX(LONB_MD_NMD_UA!$C$9:$S$500,MATCH(PopulationRange!$A19,LONB_MD_NMD_UA!$C$9:$C$500,0),MATCH(PopulationRange!C$1,LONB_MD_NMD_UA!$C$9:$S$9,0)) -> 8460 | D19: =INDEX(LONB_MD_NMD_UA!$C$9:$S$500,MATCH(PopulationRange!$A19,LONB_MD_NMD_UA!$C$9:$C$500,0),MATCH(PopulationRange!D$1,LONB_MD_NMD_UA!$C$9:$S$9,0)) -> 10206 | E19: =INDEX(LONB_MD_NMD_UA!$C$9:$S$500,MATCH(PopulationRange!$A19,LONB_MD_NMD_UA!$C$9:$C$500,0),MATCH(PopulationRange!E$1,LONB_MD_NMD_UA!$C$9:$S$9,0)) -> 10878 | F19: =INDEX(LONB_MD_NMD_UA!$C$9:$S$500,MATCH(PopulationRange!$A19,LONB_MD_NMD_UA!$C$9:$C$500,0),MATCH(PopulationRange!F$1,LONB_MD_NMD_UA!$C$9:$S$9,0)) -> 10884 | G19: =INDEX(LONB_MD_NMD_UA!$C$9:$S$500,MATCH(PopulationRange!$A19,LONB_MD_NMD_UA!$C$9:$C$500,0),MATCH(PopulationRange!G$1,LONB_MD_NMD_UA!$C$9:$S$9,0)) -> 11461 | H19: =INDEX(LONB_MD_NMD_UA!$C$9:$S$500,MATCH(PopulationRange!$A19,LONB_MD_NMD_UA!$C$9:$C$500,0),MATCH(PopulationRange!H$1,LONB_MD_NMD_UA!$C$9:$S$9,0)) -> 12039 | I19: =INDEX(LONB_MD_NMD_UA!$C$9:$S$500,MATCH(PopulationRange!$A19,LONB_MD_NMD_UA!$C$9:$C$500,0),MATCH(PopulationRange!I$1,LONB_MD_NMD_UA!$C$9:$S$9,0)) -> 12096 | J19: =INDEX(LONB_MD_NMD_UA!$C$9:$S$500,MATCH(PopulationRange!$A19,LONB_MD_NMD_UA!$C$9:$C$500,0),MATCH(PopulationRange!J$1,LONB_MD_NMD_UA!$C$9:$S$9,0)) -> 9229 | K19: =INDEX(LONB_MD_NMD_UA!$C$9:$S$500,MATCH(PopulationRange!$A19,LONB_MD_NMD_UA!$C$9:$C$500,0),MATCH(PopulationRange!K$1,LONB_MD_NMD_UA!$C$9:$S$9,0)) -> 9445 | L19: 3942.021 | M19: 6910.977 | N19: 3012.525 | O19: 1618.772 | P19: 586.611 | Q19: 8854.827 | R19: 19611.033 | S19: =INDEX(LONB_MD_NMD_UA!$C$9:$S$500,MATCH(PopulationRange!$A19,LONB_MD_NMD_UA!$C$9:$C$500,0),MATCH(PopulationRange!S$1,LONB_MD_NMD_UA!$C$9:$S$9,0)) -> 104014 | T19: 0.1885422443 | U19: 0.0378989463 | V19: 0.06644275771 | W19: 0.02896268772 | X19: 0.01556302036 | Y19: 0.00563973119 | Z19: 0.08513110735 | AD19: M | AE19: F | AF19: M | AG19: F | AH19: M | AI19: F | AJ19: M | AK19: F | AL19: M | AM19: F
A20: Bexley | B20: =INDEX(LONB_MD_NMD_UA!$C$9:$S$500,MATCH(PopulationRange!$A20,LONB_MD_NMD_UA!$C$9:$C$500,0),MATCH(PopulationRange!B$1,LONB_MD_NMD_UA!$C$9:$S$9,0)) -> 13492 | C20: =INDEX(LONB_MD_NMD_UA!$C$9:$S$500,MATCH(PopulationRange!$A20,LONB_MD_NMD_UA!$C$9:$C$500,0),MATCH(PopulationRange!C$1,LONB_MD_NMD_UA!$C$9:$S$9,0)) -> 13393 | D20: =INDEX(LONB_MD_NMD_UA!$C$9:$S$500,MATCH(PopulationRange!$A20,LONB_MD_NMD_UA!$C$9:$C$500,0),MATCH(PopulationRange!D$1,LONB_MD_NMD_UA!$C$9:$S$9,0)) -> 15361 | E20: =INDEX(LONB_MD_NMD_UA!$C$9:$S$500,MATCH(PopulationRange!$A20,LONB_MD_NMD_UA!$C$9:$C$500,0),MATCH(PopulationRange!E$1,LONB_MD_NMD_UA!$C$9:$S$9,0)) -> 16915 | F20: =INDEX(LONB_MD_NMD_UA!$C$9:$S$500,MATCH(PopulationRange!$A20,LONB_MD_NMD_UA!$C$9:$C$500,0),MATCH(PopulationRange!F$1,LONB_MD_NMD_UA!$C$9:$S$9,0)) -> 15260 | G20: =INDEX(LONB_MD_NMD_UA!$C$9:$S$500,MATCH(PopulationRange!$A20,LONB_MD_NMD_UA!$C$9:$C$500,0),MATCH(PopulationRange!G$1,LONB_MD_NMD_UA!$C$9:$S$9,0)) -> 16563 | H20: =INDEX(LONB_MD_NMD_UA!$C$9:$S$500,MATCH(PopulationRange!$A20,LONB_MD_NMD_UA!$C$9:$C$500,0),MATCH(PopulationRange!H$1,LONB_MD_NMD_UA!$C$9:$S$9,0)) -> 16908 | I20: =INDEX(LONB_MD_NMD_UA!$C$9:$S$500,MATCH(PopulationRange!$A20,LONB_MD_NMD_UA!$C$9:$C$500,0),MATCH(PopulationRange!I$1,LONB_MD_NMD_UA!$C$9:$S$9,0)) -> 18475 | J20: =INDEX(LONB_MD_NMD_UA!$C$9:$S$500,MATCH(PopulationRange!$A20,LONB_MD_NMD_UA!$C$9:$C$500,0),MATCH(PopulationRange!J$1,LONB_MD_NMD_UA!$C$9:$S$9,0)) -> 12857 | K20: =INDEX(LONB_MD_NMD_UA!$C$9:$S$500,MATCH(PopulationRange!$A20,LONB_MD_NMD_UA!$C$9:$C$500,0),MATCH(PopulationRange!K$1,LONB_MD_NMD_UA!$C$9:$S$9,0)) -> 13060 | L20: 5768.338 | M20: 10159.47 | N20: 4461.099 | O20: 2380.896 | P20: 883.343 | Q20: 13073.473 | R20: 28929.24 | S20: =INDEX(LONB_MD_NMD_UA!$C$9:$S$500,MATCH(PopulationRange!$A20,LONB_MD_NMD_UA!$C$9:$C$500,0),MATCH(PopulationRange!S$1,LONB_MD_NMD_UA!$C$9:$S$9,0)) -> 152284 | T20: 0.1899690053 | U20: 0.03787881852 | V20: 0.06671396864 | W20: 0.02929460088 | X20: 0.0156345775 | Y20: 0.005800629088 | Z20: 0.08584928817 | AC20: APMS_Table 2.3 | AD20: =APMS_CommonMentalDisorder!$L$10/100 -> 0.012 | AE20: =APMS_CommonMentalDisorder!$L$19/100 -> 0.024 | AF20: =APMS_CommonMentalDisorder!$M$10/100 -> 0.011 | AG20: =APMS_CommonMentalDisorder!$M$19/100 -> 0.016 | AH20: =APMS_CommonMentalDisorder!$N$10/100 -> 0.017 | AI20: =APMS_CommonMentalDisorder!$N$19/100 -> 0.016 | AJ20: =APMS_CommonMentalDisorder!$O$10/100 -> 0.014 | AK20: =APMS_CommonMentalDisorder!$O$19/100 -> 0.018 | AL20: =APMS_CommonMentalDisorder!$P$10/100 -> 0.007 | AM20: =APMS_CommonMentalDisorder!$P$19/100 -> 0.021
A21: Birmingham | B21: =INDEX(LONB_MD_NMD_UA!$C$9:$S$500,MATCH(PopulationRange!$A21,LONB_MD_NMD_UA!$C$9:$C$500,0),MATCH(PopulationRange!B$1,LONB_MD_NMD_UA!$C$9:$S$9,0)) -> 83213 | C21: =INDEX(LONB_MD_NMD_UA!$C$9:$S$500,MATCH(PopulationRange!$A21,LONB_MD_NMD_UA!$C$9:$C$500,0),MATCH(PopulationRange!C$1,LONB_MD_NMD_UA!$C$9:$S$9,0)) -> 83683 | D21: =INDEX(LONB_MD_NMD_UA!$C$9:$S$500,MATCH(PopulationRange!$A21,LONB_MD_NMD_UA!$C$9:$C$500,0),MATCH(PopulationRange!D$1,LONB_MD_NMD_UA!$C$9:$S$9,0)) -> 85052 | E21: =INDEX(LONB_MD_NMD_UA!$C$9:$S$500,MATCH(PopulationRange!$A21,LONB_MD_NMD_UA!$C$9:$C$500,0),MATCH(PopulationRange!E$1,LONB_MD_NMD_UA!$C$9:$S$9,0)) -> 85026 | F21: =INDEX(LONB_MD_NMD_UA!$C$9:$S$500,MATCH(PopulationRange!$A21,LONB_MD_NMD_UA!$C$9:$C$500,0),MATCH(PopulationRange!F$1,LONB_MD_NMD_UA!$C$9:$S$9,0)) -> 70224 | G21: =INDEX(LONB_MD_NMD_UA!$C$9:$S$500,MATCH(PopulationRange!$A21,LONB_MD_NMD_UA!$C$9:$C$500,0),MATCH(PopulationRange!G$1,LONB_MD_NMD_UA!$C$9:$S$9,0)) -> 71437 | H21: =INDEX(LONB_MD_NMD_UA!$C$9:$S$500,MATCH(PopulationRange!$A21,LONB_MD_NMD_UA!$C$9:$C$500,0),MATCH(PopulationRange!H$1,LONB_MD_NMD_UA!$C$9:$S$9,0)) -> 65477 | I21: =INDEX(LONB_MD_NMD_UA!$C$9:$S$500,MATCH(PopulationRange!$A21,LONB_MD_NMD_UA!$C$9:$C$500,0),MATCH(PopulationRange!I$1,LONB_MD_NMD_UA!$C$9:$S$9,0)) -> 68126 | J21: =INDEX(LONB_MD_NMD_UA!$C$9:$S$500,MATCH(PopulationRange!$A21,LONB_MD_NMD_UA!$C$9:$C$500,0),MATCH(PopulationRange!J$1,LONB_MD_NMD_UA!$C$9:$S$9,0)) -> 49539 | K21: =INDEX(LONB_MD_NMD_UA!$C$9:$S$500,MATCH(PopulationRange!$A21,LONB_MD_NMD_UA!$C$9:$C$500,0),MATCH(PopulationRange!K$1,LONB_MD_NMD_UA!$C$9:$S$9,0)) -> 50431 | L21: 25941.498 | M21: 47098.769 | N21: 21277.432 | O21: 11188.506 | P21: 4452.931 | Q21: 60964.288 | R21: 135133.763 | S21: =INDEX(LONB_MD_NMD_UA!$C$9:$S$500,MATCH(PopulationRange!$A21,LONB_MD_NMD_UA!$C$9:$C$500,0),MATCH(PopulationRange!S$1,LONB_MD_NMD_UA!$C$9:$S$9,0)) -> 712208 | T21: 0.1897391815 | U21: 0.03642404747 | V21: 0.0661306374 | W21: 0.02987530609 | X21: 0.0157096045 | Y21: 0.006252290061 | Z21: 0.08559899355
A22: Blaby | B22: =INDEX(LONB_MD_NMD_UA!$C$9:$S$500,MATCH(PopulationRange!$A22,LONB_MD_NMD_UA!$C$9:$C$500,0),MATCH(PopulationRange!B$1,LONB_MD_NMD_UA!$C$9:$S$9,0)) -> 5019 | C22: =INDEX(LONB_MD_NMD_UA!$C$9:$S$500,MATCH(PopulationRange!$A22,LONB_MD_NMD_UA!$C$9:$C$500,0),MATCH(PopulationRange!C$1,LONB_MD_NMD_UA!$C$9:$S$9,0)) -> 4387 | D22: =INDEX(LONB_MD_NMD_UA!$C$9:$S$500,MATCH(PopulationRange!$A22,LONB_MD_NMD_UA!$C$9:$C$500,0),MATCH(PopulationRange!D$1,LONB_MD_NMD_UA!$C$9:$S$9,0)) -> 5469 | E22: =INDEX(LONB_MD_NMD_UA!$C$9:$S$500,MATCH(PopulationRange!$A22,LONB_MD_NMD_UA!$C$9:$C$500,0),MATCH(PopulationRange!E$1,LONB_MD_NMD_UA!$C$9:$S$9,0)) -> 5976 | F22: =INDEX(LONB_MD_NMD_UA!$C$9:$S$500,MATCH(PopulationRange!$A22,LONB_MD_NMD_UA!$C$9:$C$500,0),MATCH(PopulationRange!F$1,LONB_MD_NMD_UA!$C$9:$S$9,0)) -> 5857 | G22: =INDEX(LONB_MD_NMD_UA!$C$9:$S$500,MATCH(PopulationRange!$A22,LONB_MD_NMD_UA!$C$9:$C$500,0),MATCH(PopulationRange!G$1,LONB_MD_NMD_UA!$C$9:$S$9,0)) -> 6243 | H22: =INDEX(LONB_MD_NMD_UA!$C$9:$S$500,MATCH(PopulationRange!$A22,LONB_MD_NMD_UA!$C$9:$C$500,0),MATCH(PopulationRange!H$1,LONB_MD_NMD_UA!$C$9:$S$9,0)) -> 7266 | I22: =INDEX(LONB_MD_NMD_UA!$C$9:$S$500,MATCH(PopulationRange!$A22,LONB_MD_NMD_UA!$C$9:$C$500,0),MATCH(PopulationRange!I$1,LONB_MD_NMD_UA!$C$9:$S$9,0)) -> 7415 | J22: =INDEX(LONB_MD_NMD_UA!$C$9:$S$500,MATCH(PopulationRange!$A22,LONB_MD_NMD_UA!$C$9:$C$500,0),MATCH(PopulationRange!J$1,LONB_MD_NMD_UA!$C$9:$S$9,0)) -> 5822 | K22: =INDEX(LONB_MD_NMD_UA!$C$9:$S$500,MATCH(PopulationRange!$A22,LONB_MD_NMD_UA!$C$9:$C$500,0),MATCH(PopulationRange!K$1,LONB_MD_NMD_UA!$C$9:$S$9,0)) -> 5846 | L22: 2267.778 | M22: 3944.347 | N22: 1699.645 | O22: 919.462 | P22: 330.02 | Q22: 5045.99 | R22: 11160.814 | S22: =INDEX(LONB_MD_NMD_UA!$C$9:$S$500,MATCH(PopulationRange!$A22,LONB_MD_NMD_UA!$C$9:$C$500,0),MATCH(PopulationRange!S$1,LONB_MD_NMD_UA!$C$9:$S$9,0)) -> 59300 | T22: 0.1882093423 | U22: 0.03824246206 | V22: 0.06651512648 | W22: 0.02866180438 | X22: 0.01550526138 | Y22: 0.005565261383 | Z22: 0.0850925801 | AC22: Panic Disorder
A23: Blackburn with Darwen | B23: =INDEX(LONB_MD_NMD_UA!$C$9:$S$500,MATCH(PopulationRange!$A23,LONB_MD_NMD_UA!$C$9:$C$500,0),MATCH(PopulationRange!B$1,LONB_MD_NMD_UA!$C$9:$S$9,0)) -> 8866 | C23: =INDEX(LONB_MD_NMD_UA!$C$9:$S$500,MATCH(PopulationRange!$A23,LONB_MD_NMD_UA!$C$9:$C$500,0),MATCH(PopulationRange!C$1,LONB_MD_NMD_UA!$C$9:$S$9,0)) -> 8121 | D23: =INDEX(LONB_MD_NMD_UA!$C$9:$S$500,MATCH(PopulationRange!$A23,LONB_MD_NMD_UA!$C$9:$C$500,0),MATCH(PopulationRange!D$1,LONB_MD_NMD_UA!$C$9:$S$9,0)) -> 9938 | E23: =INDEX(LONB_MD_NMD_UA!$C$9:$S$500,MATCH(PopulationRange!$A23,LONB_MD_NMD_UA!$C$9:$C$500,0),MATCH(PopulationRange!E$1,LONB_MD_NMD_UA!$C$9:$S$9,0)) -> 10258 | F23: =INDEX(LONB_MD_NMD_UA!$C$9:$S$500,MATCH(PopulationRange!$A23,LONB_MD_NMD_UA!$C$9:$C$500,0),MATCH(PopulationRange!F$1,LONB_MD_NMD_UA!$C$9:$S$9,0)) -> 9597 | G23: =INDEX(LONB_MD_NMD_UA!$C$9:$S$500,MATCH(PopulationRange!$A23,LONB_MD_NMD_UA!$C$9:$C$500,0),MATCH(PopulationRange!G$1,LONB_MD_NMD_UA!$C$9:$S$9,0)) -> 9532 | H23: =INDEX(LONB_MD_NMD_UA!$C$9:$S$500,MATCH(PopulationRange!$A23,LONB_MD_NMD_UA!$C$9:$C$500,0),MATCH(PopulationRange!H$1,LONB_MD_NMD_UA!$C$9:$S$9,0)) -> 10023 | I23: =INDEX(LONB_MD_NMD_UA!$C$9:$S$500,MATCH(PopulationRange!$A23,LONB_MD_NMD_UA!$C$9:$C$500,0),MATCH(PopulationRange!I$1,LONB_MD_NMD_UA!$C$9:$S$9,0)) -> 9911 | J23: =INDEX(LONB_MD_NMD_UA!$C$9:$S$500,MATCH(PopulationRange!$A23,LONB_MD_NMD_UA!$C$9:$C$500,0),MATCH(PopulationRange!J$1,LONB_MD_NMD_UA!$C$9:$S$9,0)) -> 7793 | K23: =INDEX(LONB_MD_NMD_UA!$C$9:$S$500,MATCH(PopulationRange!$A23,LONB_MD_NMD_UA!$C$9:$C$500,0),MATCH(PopulationRange!K$1,LONB_MD_NMD_UA!$C$9:$S$9,0)) -> 7805 | L23: 3433.873 | M23: 6080.084 | N23: 2674.345 | O23: 1427.579 | P23: 528.36 | Q23: 7807.18 | R23: 17293.241 | S23: =INDEX(LONB_MD_NMD_UA!$C$9:$S$500,MATCH(PopulationRange!$A23,LONB_MD_NMD_UA!$C$9:$C$500,0),MATCH(PopulationRange!S$1,LONB_MD_NMD_UA!$C$9:$S$9,0)) -> 91844 | T23: 0.188289284 | U23: 0.03738810374 | V23: 0.06620012195 | W23: 0.02911834197 | X23: 0.01554351945 | Y23: 0.005752798223 | Z23: 0.08500479073 | AD23: 16 -24 | AF23: 25 - 34 | AH23: 35 - 44 | AJ23: 45 - 54 | AL23: 55 - 64
A24: Blackpool | B24: =INDEX(LONB_MD_NMD_UA!$C$9:$S$500,MATCH(PopulationRange!$A24,LONB_MD_NMD_UA!$C$9:$C$500,0),MATCH(PopulationRange!B$1,LONB_MD_NMD_UA!$C$9:$S$9,0)) -> 7429 | C24: =INDEX(LONB_MD_NMD_UA!$C$9:$S$500,MATCH(PopulationRange!$A24,LONB_MD_NMD_UA!$C$9:$C$500,0),MATCH(PopulationRange!C$1,LONB_MD_NMD_UA!$C$9:$S$9,0)) -> 7462 | D24: =INDEX(LONB_MD_NMD_UA!$C$9:$S$500,MATCH(PopulationRange!$A24,LONB_MD_NMD_UA!$C$9:$C$500,0),MATCH(PopulationRange!D$1,LONB_MD_NMD_UA!$C$9:$S$9,0)) -> 8258 | E24: =INDEX(LONB_MD_NMD_UA!$C$9:$S$500,MATCH(PopulationRange!$A24,LONB_MD_NMD_UA!$C$9:$C$500,0),MATCH(PopulationRange!E$1,LONB_MD_NMD_UA!$C$9:$S$9,0)) -> 8234 | F24: =INDEX(LONB_MD_NMD_UA!$C$9:$S$500,MATCH(PopulationRange!$A24,LONB_MD_NMD_UA!$C$9:$C$500,0),MATCH(PopulationRange!F$1,LONB_MD_NMD_UA!$C$9:$S$9,0)) -> 7946 | G24: =INDEX(LONB_MD_NMD_UA!$C$9:$S$500,MATCH(PopulationRange!$A24,LONB_MD_NMD_UA!$C$9:$C$500,0),MATCH(PopulationRange!G$1,LONB_MD_NMD_UA!$C$9:$S$9,0)) -> 8066 | H24: =INDEX(LONB_MD_NMD_UA!$C$9:$S$500,MATCH(PopulationRange!$A24,LONB_MD_NMD_UA!$C$9:$C$500,0),MATCH(PopulationRange!H$1,LONB_MD_NMD_UA!$C$9:$S$9,0)) -> 10698 | I24: =INDEX(LONB_MD_NMD_UA!$C$9:$S$500,MATCH(PopulationRange!$A24,LONB_MD_NMD_UA!$C$9:$C$500,0),MATCH(PopulationRange!I$1,LONB_MD_NMD_UA!$C$9:$S$9,0)) -> 10538 | J24: =INDEX(LONB_MD_NMD_UA!$C$9:$S$500,MATCH(PopulationRange!$A24,LONB_MD_NMD_UA!$C$9:$C$500,0),MATCH(PopulationRange!J$1,LONB_MD_NMD_UA!$C$9:$S$9,0)) -> 8730 | K24: =INDEX(LONB_MD_NMD_UA!$C$9:$S$500,MATCH(PopulationRange!$A24,LONB_MD_NMD_UA!$C$9:$C$500,0),MATCH(PopulationRange!K$1,LONB_MD_NMD_UA!$C$9:$S$9,0)) -> 8406 | L24: 3269.383 | M24: 5715.124 | N24: 2468.953 | O24: 1332.048 | P24: 497.884 | Q24: 7293.36 | R24: 16168.842 | S24: =INDEX(LONB_MD_NMD_UA!$C$9:$S$500,MATCH(PopulationRange!$A24,LONB_MD_NMD_UA!$C$9:$C$500,0),MATCH(PopulationRange!S$1,LONB_MD_NMD_UA!$C$9:$S$9,0)) -> 85767 | T24: 0.1885205499 | U24: 0.03811935826 | V24: 0.06663546586 | W24: 0.02878674782 | X24: 0.01553100843 | Y24: 0.005805076545 | Z24: 0.08503690231 | AD24: M | AE24: F | AF24: M | AG24: F | AH24: M | AI24: F | AJ24: M | AK24: F | AL24: M | AM24: F
A25: Blaenau Gwent | B25: 3851 | C25: 3942 | D25: 4356 | E25: 4555 | F25: 4114 | G25: 4083 | H25: 5151 | I25: 5321 | J25: 4222 | K25: 4257 | L25: 1662.616 | M25: 2923.333 | N25: 1272.992 | O25: 683.725 | P25: 257.304 | Q25: 3744.927 | R25: 8295.73 | S25: 43852 | T25: 0.1891756362 | U25: 0.03791425705 | V25: 0.06666361854 | W25: 0.02902928031 | X25: 0.01559164918 | Y25: 0.005867554502 | Z25: 0.08539922923 | AC25: APMS_Table 2.3 | AD25: =APMS_CommonMentalDisorder!$L$11/100 -> 0.004 | AE25: =APMS_CommonMentalDisorder!$L$20/100 -> 0.022 | AF25: =APMS_CommonMentalDisorder!$M$11/100 -> 0.003 | AG25: =APMS_CommonMentalDisorder!$M$20/100 -> 0.006 | AH25: =APMS_CommonMentalDisorder!$N$11/100 -> 0.002 | AI25: =APMS_CommonMentalDisorder!$N$20/100 -> 0.003 | AJ25: =APMS_CommonMentalDisorder!$O$11/100 -> 0.001 | AK25: =APMS_CommonMentalDisorder!$O$20/100 -> 0.008 | AL25: =APMS_CommonMentalDisorder!$P$11/100 -> 0.007 | AM25: =APMS_CommonMentalDisorder!$P$20/100 -> 0.004
A26: Bolsover | B26: =INDEX(LONB_MD_NMD_UA!$C$9:$S$500,MATCH(PopulationRange!$A26,LONB_MD_NMD_UA!$C$9:$C$500,0),MATCH(PopulationRange!B$1,LONB_MD_NMD_UA!$C$9:$S$9,0)) -> 4170 | C26: =INDEX(LONB_MD_NMD_UA!$C$9:$S$500,MATCH(PopulationRange!$A26,LONB_MD_NMD_UA!$C$9:$C$500,0),MATCH(PopulationRange!C$1,LONB_MD_NMD_UA!$C$9:$S$9,0)) -> 3927 | D26: =INDEX(LONB_MD_NMD_UA!$C$9:$S$500,MATCH(PopulationRange!$A26,LONB_MD_NMD_UA!$C$9:$C$500,0),MATCH(PopulationRange!D$1,LONB_MD_NMD_UA!$C$9:$S$9,0)) -> 4594 | E26: =INDEX(LONB_MD_NMD_UA!$C$9:$S$500,MATCH(PopulationRange!$A26,LONB_MD_NMD_UA!$C$9:$C$500,0),MATCH(PopulationRange!E$1,LONB_MD_NMD_UA!$C$9:$S$9,0)) -> 4824 | F26: =INDEX(LONB_MD_NMD_UA!$C$9:$S$500,MATCH(PopulationRange!$A26,LONB_MD_NMD_UA!$C$9:$C$500,0),MATCH(PopulationRange!F$1,LONB_MD_NMD_UA!$C$9:$S$9,0)) -> 4739 | G26: =INDEX(LONB_MD_NMD_UA!$C$9:$S$500,MATCH(PopulationRange!$A26,LONB_MD_NMD_UA!$C$9:$C$500,0),MATCH(PopulationRange!G$1,LONB_MD_NMD_UA!$C$9:$S$9,0)) -> 4737 | H26: =INDEX(LONB_MD_NMD_UA!$C$9:$S$500,MATCH(PopulationRange!$A26,LONB_MD_NMD_UA!$C$9:$C$500,0),MATCH(PopulationRange!H$1,LONB_MD_NMD_UA!$C$9:$S$9,0)) -> 6013 | I26: =INDEX(LONB_MD_NMD_UA!$C$9:$S$500,MATCH(PopulationRange!$A26,LONB_MD_NMD_UA!$C$9:$C$500,0),MATCH(PopulationRange!I$1,LONB_MD_NMD_UA!$C$9:$S$9,0)) -> 6017 | J26: =INDEX(LONB_MD_NMD_UA!$C$9:$S$500,MATCH(PopulationRange!$A26,LONB_MD_NMD_UA!$C$9:$C$500,0),MATCH(PopulationRange!J$1,LONB_MD_NMD_UA!$C$9:$S$9,0)) -> 4862 | K26: =INDEX(LONB_MD_NMD_UA!$C$9:$S$500,MATCH(PopulationRange!$A26,LONB_MD_NMD_UA!$C$9:$C$500,0),MATCH(PopulationRange!K$1,LONB_MD_NMD_UA!$C$9:$S$9,0)) -> 4835 | L26: 1856.976 | M26: 3242.898 | N26: 1399.19 | O26: 756.418 | P26: 277.012 | Q26: 4141.075 | R26: 9172.196 | S26: =INDEX(LONB_MD_NMD_UA!$C$9:$S$500,MATCH(PopulationRange!$A26,LONB_MD_NMD_UA!$C$9:$C$500,0),MATCH(PopulationRange!S$1,LONB_MD_NMD_UA!$C$9:$S$9,0)) -> 48718 | T26: 0.1882711934 | U26: 0.03811683567 | V26: 0.06656467835 | W26: 0.02872018556 | X26: 0.01552645839 | Y26: 0.005686029804 | Z26: 0.08500092368
A27: Bolton | B27: =INDEX(LONB_MD_NMD_UA!$C$9:$S$500,MATCH(PopulationRange!$A27,LONB_MD_NMD_UA!$C$9:$C$500,0),MATCH(PopulationRange!B$1,LONB_MD_NMD_UA!$C$9:$S$9,0)) -> 16552 | C27: =INDEX(LONB_MD_NMD_UA!$C$9:$S$500,MATCH(PopulationRange!$A27,LONB_MD_NMD_UA!$C$9:$C$500,0),MATCH(PopulationRange!C$1,LONB_MD_NMD_UA!$C$9:$S$9,0)) -> 15031 | D27: =INDEX(LONB_MD_NMD_UA!$C$9:$S$500,MATCH(PopulationRange!$A27,LONB_MD_NMD_UA!$C$9:$C$500,0),MATCH(PopulationRange!D$1,LONB_MD_NMD_UA!$C$9:$S$9,0)) -> 18089 | E27: =INDEX(LONB_MD_NMD_UA!$C$9:$S$500,MATCH(PopulationRange!$A27,LONB_MD_NMD_UA!$C$9:$C$500,0),MATCH(PopulationRange!E$1,LONB_MD_NMD_UA!$C$9:$S$9,0)) -> 18820 | F27: =INDEX(LONB_MD_NMD_UA!$C$9:$S$500,MATCH(PopulationRange!$A27,LONB_MD_NMD_UA!$C$9:$C$500,0),MATCH(PopulationRange!F$1,LONB_MD_NMD_UA!$C$9:$S$9,0)) -> 17664 | G27: =INDEX(LONB_MD_NMD_UA!$C$9:$S$500,MATCH(PopulationRange!$A27,LONB_MD_NMD_UA!$C$9:$C$500,0),MATCH(PopulationRange!G$1,LONB_MD_NMD_UA!$C$9:$S$9,0)) -> 18144 | H27: =INDEX(LONB_MD_NMD_UA!$C$9:$S$500,MATCH(PopulationRange!$A27,LONB_MD_NMD_UA!$C$9:$C$500,0),MATCH(PopulationRange!H$1,LONB_MD_NMD_UA!$C$9:$S$9,0)) -> 19619 | I27: =INDEX(LONB_MD_NMD_UA!$C$9:$S$500,MATCH(PopulationRange!$A27,LONB_MD_NMD_UA!$C$9:$C$500,0),MATCH(PopulationRange!I$1,LONB_MD_NMD_UA!$C$9:$S$9,0)) -> 20077 | J27: =INDEX(LONB_MD_NMD_UA!$C$9:$S$500,MATCH(PopulationRange!$A27,LONB_MD_NMD_UA!$C$9:$C$500,0),MATCH(PopulationRange!J$1,LONB_MD_NMD_UA!$C$9:$S$9,0)) -> 15398 | K27: =INDEX(LONB_MD_NMD_UA!$C$9:$S$500,MATCH(PopulationRange!$A27,LONB_MD_NMD_UA!$C$9:$C$500,0),MATCH(PopulationRange!K$1,LONB_MD_NMD_UA!$C$9:$S$9,0)) -> 15800 | L27: 6593.213 | M27: 11620.959 | N27: 5084.865 | O27: 2725.697 | P27: 1005.058 | Q27: 14920.436 | R27: 33022.256 | S27: =INDEX(LONB_MD_NMD_UA!$C$9:$S$500,MATCH(PopulationRange!$A27,LONB_MD_NMD_UA!$C$9:$C$500,0),MATCH(PopulationRange!S$1,LONB_MD_NMD_UA!$C$9:$S$9,0)) -> 175194 | T27: 0.1884896515 | U27: 0.03763378312 | V27: 0.0663319463 | W27: 0.02902419603 | X27: 0.01555816409 | Y27: 0.005736828887 | Z27: 0.08516522255 | AC27: CMD - NOS
A28: Boston | B28: =INDEX(LONB_MD_NMD_UA!$C$9:$S$500,MATCH(PopulationRange!$A28,LONB_MD_NMD_UA!$C$9:$C$500,0),MATCH(PopulationRange!B$1,LONB_MD_NMD_UA!$C$9:$S$9,0)) -> 3363 | C28: =INDEX(LONB_MD_NMD_UA!$C$9:$S$500,MATCH(PopulationRange!$A28,LONB_MD_NMD_UA!$C$9:$C$500,0),MATCH(PopulationRange!C$1,LONB_MD_NMD_UA!$C$9:$S$9,0)) -> 3045 | D28: =INDEX(LONB_MD_NMD_UA!$C$9:$S$500,MATCH(PopulationRange!$A28,LONB_MD_NMD_UA!$C$9:$C$500,0),MATCH(PopulationRange!D$1,LONB_MD_NMD_UA!$C$9:$S$9,0)) -> 4578 | E28: =INDEX(LONB_MD_NMD_UA!$C$9:$S$500,MATCH(PopulationRange!$A28,LONB_MD_NMD_UA!$C$9:$C$500,0),MATCH(PopulationRange!E$1,LONB_MD_NMD_UA!$C$9:$S$9,0)) -> 4524 | F28: =INDEX(LONB_MD_NMD_UA!$C$9:$S$500,MATCH(PopulationRange!$A28,LONB_MD_NMD_UA!$C$9:$C$500,0),MATCH(PopulationRange!F$1,LONB_MD_NMD_UA!$C$9:$S$9,0)) -> 4033 | G28: =INDEX(LONB_MD_NMD_UA!$C$9:$S$500,MATCH(PopulationRange!$A28,LONB_MD_NMD_UA!$C$9:$C$500,0),MATCH(PopulationRange!G$1,LONB_MD_NMD_UA!$C$9:$S$9,0)) -> 3983 | H28: =INDEX(LONB_MD_NMD_UA!$C$9:$S$500,MATCH(PopulationRange!$A28,LONB_MD_NMD_UA!$C$9:$C$500,0),MATCH(PopulationRange!H$1,LONB_MD_NMD_UA!$C$9:$S$9,0)) -> 4369 | I28: =INDEX(LONB_MD_NMD_UA!$C$9:$S$500,MATCH(PopulationRange!$A28,LONB_MD_NMD_UA!$C$9:$C$500,0),MATCH(PopulationRange!I$1,LONB_MD_NMD_UA!$C$9:$S$9,0)) -> 4671 | J28: =INDEX(LONB_MD_NMD_UA!$C$9:$S$500,MATCH(PopulationRange!$A28,LONB_MD_NMD_UA!$C$9:$C$500,0),MATCH(PopulationRange!J$1,LONB_MD_NMD_UA!$C$9:$S$9,0)) -> 3951 | K28: =INDEX(LONB_MD_NMD_UA!$C$9:$S$500,MATCH(PopulationRange!$A28,LONB_MD_NMD_UA!$C$9:$C$500,0),MATCH(PopulationRange!K$1,LONB_MD_NMD_UA!$C$9:$S$9,0)) -> 4188 | L28: 1546.223 | M28: 2699.323 | N28: 1174.708 | O28: 629.316 | P28: 227.481 | Q28: 3469.967 | R28: 7669.254 | S28: =INDEX(LONB_MD_NMD_UA!$C$9:$S$500,MATCH(PopulationRange!$A28,LONB_MD_NMD_UA!$C$9:$C$500,0),MATCH(PopulationRange!S$1,LONB_MD_NMD_UA!$C$9:$S$9,0)) -> 40705 | T28: 0.1884106129 | U28: 0.03798607051 | V28: 0.06631428571 | W28: 0.02885905908 | X28: 0.01546041027 | Y28: 0.005588527208 | Z28: 0.08524670188 | AD28: 16 -24 | AF28: 25 - 34 | AH28: 35 - 44 | AJ28: 45 - 54 | AL28: 55 - 64
A29: Bournemouth | B29: =INDEX(LONB_MD_NMD_UA!$C$9:$S$500,MATCH(PopulationRange!$A29,LONB_MD_NMD_UA!$C$9:$C$500,0),MATCH(PopulationRange!B$1,LONB_MD_NMD_UA!$C$9:$S$9,0)) -> 13811 | C29: =INDEX(LONB_MD_NMD_UA!$C$9:$S$500,MATCH(PopulationRange!$A29,LONB_MD_NMD_UA!$C$9:$C$500,0),MATCH(PopulationRange!C$1,LONB_MD_NMD_UA!$C$9:$S$9,0)) -> 13893 | D29: =INDEX(LONB_MD_NMD_UA!$C$9:$S$500,MATCH(PopulationRange!$A29,LONB_MD_NMD_UA!$C$9:$C$500,0),MATCH(PopulationRange!D$1,LONB_MD_NMD_UA!$C$9:$S$9,0)) -> 15442 | E29: =INDEX(LONB_MD_NMD_UA!$C$9:$S$500,MATCH(PopulationRange!$A29,LONB_MD_NMD_UA!$C$9:$C$500,0),MATCH(PopulationRange!E$1,LONB_MD_NMD_UA!$C$9:$S$9,0)) -> 14168 | F29: =INDEX(LONB_MD_NMD_UA!$C$9:$S$500,MATCH(PopulationRange!$A29,LONB_MD_NMD_UA!$C$9:$C$500,0),MATCH(PopulationRange!F$1,LONB_MD_NMD_UA!$C$9:$S$9,0)) -> 14054 | G29: =INDEX(LONB_MD_NMD_UA!$C$9:$S$500,MATCH(PopulationRange!$A29,LONB_MD_NMD_UA!$C$9:$C$500,0),MATCH(PopulationRange!G$1,LONB_MD_NMD_UA!$C$9:$S$9,0)) -> 12289 | H29: =INDEX(LONB_MD_NMD_UA!$C$9:$S$500,MATCH(PopulationRange!$A29,LONB_MD_NMD_UA!$C$9:$C$500,0),MATCH(PopulationRange!H$1,LONB_MD_NMD_UA!$C$9:$S$9,0)) -> 13009 | I29: =INDEX(LONB_MD_NMD_UA!$C$9:$S$500,MATCH(PopulationRange!$A29,LONB_MD_NMD_UA!$C$9:$C$500,0),MATCH(PopulationRange!I$1,LONB_MD_NMD_UA!$C$9:$S$9,0)) -> 11938 | J29: =INDEX(LONB_MD_NMD_UA!$C$9:$S$500,MATCH(PopulationRange!$A29,LONB_MD_NMD_UA!$C$9:$C$500,0),MATCH(PopulationRange!J$1,LONB_MD_NMD_UA!$C$9:$S$9,0)) -> 9831 | K29: =INDEX(LONB_MD_NMD_UA!$C$9:$S$500,MATCH(PopulationRange!$A29,LONB_MD_NMD_UA!$C$9:$C$500,0),MATCH(PopulationRange!K$1,LONB_MD_NMD_UA!$C$9:$S$9,0)) -> 9966 | L29: 4708.22 | M29: 8482.708 | N29: 3786.187 | O29: 2006.369 | P29: 774.393 | Q29: 10873.94 | R29: 24180.865 | S29: =INDEX(LONB_MD_NMD_UA!$C$9:$S$500,MATCH(PopulationRange!$A29,LONB_MD_NMD_UA!$C$9:$C$500,0),MATCH(PopulationRange!S$1,LONB_MD_NMD_UA!$C$9:$S$9,0)) -> 128401 | T29: 0.1883230271 | U29: 0.03666809449 | V29: 0.06606418953 | W29: 0.02948720804 | X29: 0.01562580509 | Y29: 0.00603105116 | Z29: 0.08468734667 | AD29: M | AE29: F | AF29: M | AG29: F | AH29: M | AI29: F | AJ29: M | AK29: F | AL29: M | AM29: F
A30: Bracknell Forest | B30: =INDEX(LONB_MD_NMD_UA!$C$9:$S$500,MATCH(PopulationRange!$A30,LONB_MD_NMD_UA!$C$9:$C$500,0),MATCH(PopulationRange!B$1,LONB_MD_NMD_UA!$C$9:$S$9,0)) -> 6250 | C30: =INDEX(LONB_MD_NMD_UA!$C$9:$S$500,MATCH(PopulationRange!$A30,LONB_MD_NMD_UA!$C$9:$C$500,0),MATCH(PopulationRange!C$1,LONB_MD_NMD_UA!$C$9:$S$9,0)) -> 5760 | D30: =INDEX(LONB_MD_NMD_UA!$C$9:$S$500,MATCH(PopulationRange!$A30,LONB_MD_NMD_UA!$C$9:$C$500,0),MATCH(PopulationRange!D$1,LONB_MD_NMD_UA!$C$9:$S$9,0)) -> 7993 | E30: =INDEX(LONB_MD_NMD_UA!$C$9:$S$500,MATCH(PopulationRange!$A30,LONB_MD_NMD_UA!$C$9:$C$500,0),MATCH(PopulationRange!E$1,LONB_MD_NMD_UA!$C$9:$S$9,0)) -> 8303 | F30: =INDEX(LONB_MD_NMD_UA!$C$9:$S$500,MATCH(PopulationRange!$A30,LONB_MD_NMD_UA!$C$9:$C$500,0),MATCH(PopulationRange!F$1,LONB_MD_NMD_UA!$C$9:$S$9,0)) -> 8763 | G30: =INDEX(LONB_MD_NMD_UA!$C$9:$S$500,MATCH(PopulationRange!$A30,LONB_MD_NMD_UA!$C$9:$C$500,0),MATCH(PopulationRange!G$1,LONB_MD_NMD_UA!$C$9:$S$9,0)) -> 9280 | H30: =INDEX(LONB_MD_NMD_UA!$C$9:$S$500,MATCH(PopulationRange!$A30,LONB_MD_NMD_UA!$C$9:$C$500,0),MATCH(PopulationRange!H$1,LONB_MD_NMD_UA!$C$9:$S$9,0)) -> 9149 | I30: =INDEX(LONB_MD_NMD_UA!$C$9:$S$500,MATCH(PopulationRange!$A30,LONB_MD_NMD_UA!$C$9:$C$500,0),MATCH(PopulationRange!I$1,LONB_MD_NMD_UA!$C$9:$S$9,0)) -> 9130 | J30: =INDEX(LONB_MD_NMD_UA!$C$9:$S$500,MATCH(PopulationRange!$A30,LONB_MD_NMD_UA!$C$9:$C$500,0),MATCH(PopulationRange!J$1,LONB_MD_NMD_UA!$C$9:$S$9,0)) -> 6658 | K30: =INDEX(LONB_MD_NMD_UA!$C$9:$S$500,MATCH(PopulationRange!$A30,LONB_MD_NMD_UA!$C$9:$C$500,0),MATCH(PopulationRange!K$1,LONB_MD_NMD_UA!$C$9:$S$9,0)) -> 6567 | L30: 2973.41 | M30: 5181.828 | N30: 2256.417 | O30: 1208.401 | P30: 425.946 | Q30: 6629.342 | R30: 14693.836 | S30: =INDEX(LONB_MD_NMD_UA!$C$9:$S$500,MATCH(PopulationRange!$A30,LONB_MD_NMD_UA!$C$9:$C$500,0),MATCH(PopulationRange!S$1,LONB_MD_NMD_UA!$C$9:$S$9,0)) -> 77853 | T30: 0.1887382118 | U30: 0.03819261942 | V30: 0.06655913067 | W30: 0.02898304497 | X30: 0.01552157271 | Y30: 0.005471157181 | Z30: 0.08515204295 | AC30: APMS_Table 2.3 | AD30: =APMS_CommonMentalDisorder!$L$12/100 -> 0.056 | AE30: =APMS_CommonMentalDisorder!$L$21/100 -> 0.113 | AF30: =APMS_CommonMentalDisorder!$M$12/100 -> 0.079 | AG30: =APMS_CommonMentalDisorder!$M$21/100 -> 0.102 | AH30: =APMS_CommonMentalDisorder!$N$12/100 -> 0.061 | AI30: =APMS_CommonMentalDisorder!$N$21/100 -> 0.103 | AJ30: =APMS_CommonMentalDisorder!$O$12/100 -> 0.056 | AK30: =APMS_CommonMentalDisorder!$O$21/100 -> 0.118 | AL30: =APMS_CommonMentalDisorder!$P$12/100 -> 0.068 | AM30: =APMS_CommonMentalDisorder!$P$21/100 -> 0.094
A31: Bradford | B31: =INDEX(LONB_MD_NMD_UA!$C$9:$S$500,MATCH(PopulationRange!$A31,LONB_MD_NMD_UA!$C$9:$C$500,0),MATCH(PopulationRange!B$1,LONB_MD_NMD_UA!$C$9:$S$9,0)) -> 31599 | C31: =INDEX(LONB_MD_NMD_UA!$C$9:$S$500,MATCH(PopulationRange!$A31,LONB_MD_NMD_UA!$C$9:$C$500,0),MATCH(PopulationRange!C$1,LONB_MD_NMD_UA!$C$9:$S$9,0)) -> 30001 | D31: =INDEX(LONB_MD_NMD_UA!$C$9:$S$500,MATCH(PopulationRange!$A31,LONB_MD_NMD_UA!$C$9:$C$500,0),MATCH(PopulationRange!D$1,LONB_MD_NMD_UA!$C$9:$S$9,0)) -> 36164 | E31: =INDEX(LONB_MD_NMD_UA!$C$9:$S$500,MATCH(PopulationRange!$A31,LONB_MD_NMD_UA!$C$9:$C$500,0),MATCH(PopulationRange!E$1,LONB_MD_NMD_UA!$C$9:$S$9,0)) -> 37997 | F31: =INDEX(LONB_MD_NMD_UA!$C$9:$S$500,MATCH(PopulationRange!$A31,LONB_MD_NMD_UA!$C$9:$C$500,0),MATCH(PopulationRange!F$1,LONB_MD_NMD_UA!$C$9:$S$9,0)) -> 36132 | G31: =INDEX(LONB_MD_NMD_UA!$C$9:$S$500,MATCH(PopulationRange!$A31,LONB_MD_NMD_UA!$C$9:$C$500,0),MATCH(PopulationRange!G$1,LONB_MD_NMD_UA!$C$9:$S$9,0)) -> 34363 | H31: =INDEX(LONB_MD_NMD_UA!$C$9:$S$500,MATCH(PopulationRange!$A31,LONB_MD_NMD_UA!$C$9:$C$500,0),MATCH(PopulationRange!H$1,LONB_MD_NMD_UA!$C$9:$S$9,0)) -> 33129 | I31: =INDEX(LONB_MD_NMD_UA!$C$9:$S$500,MATCH(PopulationRange!$A31,LONB_MD_NMD_UA!$C$9:$C$500,0),MATCH(PopulationRange!I$1,LONB_MD_NMD_UA!$C$9:$S$9,0)) -> 34534 | J31: =INDEX(LONB_MD_NMD_UA!$C$9:$S$500,MATCH(PopulationRange!$A31,LONB_MD_NMD_UA!$C$9:$C$500,0),MATCH(PopulationRange!J$1,LONB_MD_NMD_UA!$C$9:$S$9,0)) -> 27640 | K31: =INDEX(LONB_MD_NMD_UA!$C$9:$S$500,MATCH(PopulationRange!$A31,LONB_MD_NMD_UA!$C$9:$C$500,0),MATCH(PopulationRange!K$1,LONB_MD_NMD_UA!$C$9:$S$9,0)) -> 28177 | L31: 12286.316 | M31: 21851.558 | N31: 9652.832 | O31: 5139.635 | P31: 1913.834 | Q31: 28094.142 | R31: 62263.186 | S31: =INDEX(LONB_MD_NMD_UA!$C$9:$S$500,MATCH(PopulationRange!$A31,LONB_MD_NMD_UA!$C$9:$C$500,0),MATCH(PopulationRange!S$1,LONB_MD_NMD_UA!$C$9:$S$9,0)) -> 329736 | T31: 0.1888273831 | U31: 0.03726106946 | V31: 0.06626985831 | W31: 0.0292744256 | X31: 0.01558712121 | Y31: 0.005804140282 | Z31: 0.08520192518
